Workbook

Sheet FMS Data Sheet (hidden)
A1: FMS Download
A3: Criteria Used
A4: Financial Year: 2013
A5: Cost Centre Group: All
A6: Fund: All
A7: ShowTotals: Yes
A8: Download timestamp: Void
A11: DATA
A13: Raw Cost Centre | B13: Ledger Code | C13: Cost Centre | D13: Cost Centre Description | E13: Total Allocated | F13: Commitment | G13: Cent.Inv 'd | H13: Actual | I13: Remaining | J13: Allocated up to Given Period | K13: Actual up to Given Period | L13: Variance up to Given Period
A14: Ledger - All | C14: Ledger - All | G14: Exclude Ledger Codes With Zero Value - No
A15: Cost | C15: Cost | D15: Cost Centre | E15: Total Allocated | F15: Commitment | G15: Cent. Inv'd | H15: Actual | I15: Remaining | J15: Allocated up to | K15: Actual up to | L15: Variance up to
A16: Show movement up to given period - Y/E | C16: Show movement up to given period - Y/E | D16: Description | G16: Exclude Balance Sheet Accounts - No | J16: Given Period | K16: Given Period | L16: Given Period
A17: User: | C17: User: | D17: SYS
A18: 6312 | B18: CE01-63 | C18: CE01-636312 | D18: 6312 | E18: 0 | F18: 0 | G18: 0 | H18: 0 | I18: 0 | J18: 0 | K18: 0 | L18: 0
A19: 6312 | B19: CE01-64 | C19: CE01-646312 | D19: 6312 | E19: 0 | F19: 0 | G19: 0 | H19: 0 | I19: 0 | J19: 0 | K19: 0 | L19: 0
A20: 6315 | B20: CE02-63 | C20: CE02-636315 | D20: 6315 Yr 6 Project | E20: 15856 | F20: 0 | G20: 0 | H20: 14040 | I20: 1816 | J20: 15856 | K20: 14040 | L20: 1816
A21: 6415 | B21: CE02-64 | C21: CE02-646415 | D21: 6415 YR 6 Project | E21: 1144 | F21: 0 | G21: 0 | H21: 1560 | I21: -416 | J21: 1144 | K21: 1560 | L21: -416
A22: 6307 | B22: CE04-63 | C22: CE04-636307 | D22: 6307 ICT | E22: 0 | F22: 0 | G22: 0 | H22: 0 | I22: 0 | J22: 0 | K22: 0 | L22: 0
A23: 6407 | B23: CE04-64 | C23: CE04-646407 | D23: 6407 IT Upgrade 10% | E23: 3000 | F23: 0 | G23: 0 | H23: 1630.8 | I23: 1369.2 | J23: 3000 | K23: 1630.8 | L23: 1369.2
A24: 63INC | B24: CI01-63 | C24: CI01-6363INC | D24: 63INC Capital Income | E24: -6823 | F24: 0 | G24: 0 | H24: -6822.9 | I24: -0.1 | J24: -6823 | K24: -6822.9 | L24: -0.1
A25: 6312 | B25: CI03-63 | C25: CI03-636312 | D25: 6312 | E25: 0 | F25: 0 | G25: 0 | H25: 0 | I25: 0 | J25: 0 | K25: 0 | L25: 0
A26: 63SCH | B26: CI04-63 | C26: CI04-6363SCH | D26: 63SCH School Revenue Cont | E26: 0 | F26: 0 | G26: 0 | H26: 0 | I26: 0 | J26: 0 | K26: 0 | L26: 0
A27: 64SCH | B27: CI04-64 | C27: CI04-6464SCH | D27: 64SCH Sch Rev Contribution | E27: -4144 | F27: 0 | G27: 0 | H27: 0 | I27: -4144 | J27: -4144 | K27: 0 | L27: -4144
A28: A01 | B28: E01-01 | C28: E01-01A01 | D28: A01 Teachers | E28: 403083 | F28: 0 | G28: 0 | H28: 232050.11 | I28: 171032.89 | J28: 403083 | K28: 232050.11 | L28: 171032.89
A29: A01A | B29: E01-01 | C29: E01-01A01A | D29: A01A Sports Coach | E29: 0 | F29: 0 | G29: 0 | H29: 0 | I29: 0 | J29: 0 | K29: 0 | L29: 0
A30: A02 | B30: E02-01 | C30: E02-01A02 | D30: A02 Supply Teachers | E30: 7000 | F30: 0 | G30: 0 | H30: 2110.07 | I30: 4889.93 | J30: 7000 | K30: 2110.07 | L30: 4889.93
A31: A03 | B31: E02-01 | C31: E02-01A03 | D31: A03 Booster Classes | E31: 4100 | F31: 0 | G31: 0 | H31: 1965.02 | I31: 2134.98 | J31: 4100 | K31: 1965.02 | L31: 2134.98
A32: A04 | B32: E02-01 | C32: E02-01A04 | D32: A04 Teachers Supply Sickness | E32: 2000 | F32: 0 | G32: 0 | H32: 1037.91 | I32: 962.09 | J32: 2000 | K32: 1037.91 | L32: 962.09
A33: B01 | B33: E03-01 | C33: E03-01B01 | D33: B01 Learning support assistants | E33: 129923 | F33: 0 | G33: 0 | H33: 39671.22 | I33: 90251.78 | J33: 129923 | K33: 39671.22 | L33: 90251.78
A34: B02 | B34: E03-01 | C34: E03-01B02 | D34: B02 LSA Add Hrs | E34: 0 | F34: 0 | G34: 0 | H34: 6737.46 | I34: -6737.46 | J34: 0 | K34: 6737.46 | L34: -6737.46
A35: B03 | B35: E03-01 | C35: E03-01B03 | D35: B03 SEN TA'S | E35: 0 | F35: 0 | G35: 0 | H35: 26338.37 | I35: -26338.37 | J35: 0 | K35: 26338.37 | L35: -26338.37
A36: B05 | B36: E03-01 | C36: E03-01B05 | D36: B05 PPA Time | E36: 0 | F36: 0 | G36: 0 | H36: 2807.65 | I36: -2807.65 | J36: 0 | K36: 2807.65 | L36: -2807.65
A37: C02 | B37: E04-01 | C37: E04-01C02 | D37: C02 Caretakers | E37: 31670 | F37: 0 | G37: 0 | H37: 12670.35 | I37: 18999.65 | J37: 31670 | K37: 12670.35 | L37: 18999.65
A38: C05 | B38: E04-01 | C38: E04-01C05 | D38: C05 Cleaners | E38: 0 | F38: 0 | G38: 0 | H38: 5472.47 | I38: -5472.47 | J38: 0 | K38: 5472.47 | L38: -5472.47
A39: C06 | B39: E04-01 | C39: E04-01C06 | D39: C06 Cleaners Overtime | E39: 0 | F39: 0 | G39: 0 | H39: 779.55 | I39: -779.55 | J39: 0 | K39: 779.55 | L39: -779.55
A40: C07 | B40: E04-01 | C40: E04-01C07 | D40: C07 Site Manager overtime | E40: 0 | F40: 0 | G40: 0 | H40: 0 | I40: 0 | J40: 0 | K40: 0 | L40: 0
A41: C01 | B41: E05-01 | C41: E05-01C01 | D41: C01 Administrative Staff | E41: 50913 | F41: 0 | G41: 0 | H41: 29973.54 | I41: 20939.46 | J41: 50913 | K41: 29973.54 | L41: 20939.46
A42: C04 | B42: E05-01 | C42: E05-01C04 | D42: C04 Admin O/Time | E42: 0 | F42: 0 | G42: 0 | H42: 84.09 | I42: -84.09 | J42: 0 | K42: 84.09 | L42: -84.09
A43: B06 | B43: E07-01 | C43: E07-01B06 | D43: B06 After School Clubs | E43: 0 | F43: 0 | G43: 0 | H43: 2102.27 | I43: -2102.27 | J43: 0 | K43: 2102.27 | L43: -2102.27
A44: C03 | B44: E07-01 | C44: E07-01C03 | D44: C03 Mid Day Meal Supervisors | E44: 30514 | F44: 0 | G44: 0 | H44: 10640.5 | I44: 19873.5 | J44: 30514 | K44: 10640.5 | L44: 19873.5
A45: C08 | B45: E07-01 | C45: E07-01C08 | D45: C08 FLO | E45: 0 | F45: 0 | G45: 0 | H45: 2695.07 | I45: -2695.07 | J45: 0 | K45: 2695.07 | L45: -2695.07
A46: C09 | B46: E07-01 | C46: E07-01C09 | D46: C09 Midday meals supervisers pay | E46: 0 | F46: 0 | G46: 0 | H46: 0 | I46: 0 | J46: 0 | K46: 0 | L46: 0
A47: C10 | B47: E07-01 | C47: E07-01C10 | D47: C10 Breakfast Club | E47: 0 | F47: 0 | G47: 0 | H47: 921.01 | I47: -921.01 | J47: 0 | K47: 921.01 | L47: -921.01
A48: C11 | B48: E07-01 | C48: E07-01C11 | D48: C11 Child care assistant | E48: 0 | F48: 0 | G48: 0 | H48: -170 | I48: 170 | J48: 0 | K48: -170 | L48: 170
A49: D08 | B49: E07-01 | C49: E07-01D08 | D49: D08 Meeting Overtime | E49: 0 | F49: 0 | G49: 0 | H49: 190.38 | I49: -190.38 | J49: 0 | K49: 190.38 | L49: -190.38
A50: D01 | B50: E08-01 | C50: E08-01D01 | D50: D01 Staff Advertising | E50: 0 | F50: 0 | G50: 0 | H50: 0 | I50: 0 | J50: 0 | K50: 0 | L50: 0
A51: D01A | B51: E08-01 | C51: E08-01D01A | D51: D01A Staff Refreshments | E51: 300 | F51: 0 | G51: 0 | H51: 145.98 | I51: 154.02 | J51: 300 | K51: 145.98 | L51: 154.02
A52: D01B | B52: E08-01 | C52: E08-01D01B | D52: D01B Hospitality | E52: 600 | F52: 0 | G52: 0 | H52: 448.83 | I52: 151.17 | J52: 600 | K52: 448.83 | L52: 151.17
A53: D02 | B53: E08-01 | C53: E08-01D02 | D53: D02 Staff Subsistence | E53: 1600 | F53: 0 | G53: 0 | H53: 836.49 | I53: 763.51 | J53: 1600 | K53: 836.49 | L53: 763.51
A54: D03 | B54: E08-01 | C54: E08-01D03 | D54: D03 Duty Meals | E54: 450 | F54: 0 | G54: 0 | H54: 226.26 | I54: 223.74 | J54: 450 | K54: 226.26 | L54: 223.74
A55: D09 | B55: E08-01 | C55: E08-01D09 | D55: D09 CRB Costs | E55: 500 | F55: 0 | G55: 0 | H55: 620.28 | I55: -120.28 | J55: 500 | K55: 620.28 | L55: -120.28
A56: D04 | B56: E09-01 | C56: E09-01D04 | D56: D04 Staff Development costs | E56: 8000 | F56: 870 | G56: 0 | H56: 3849 | I56: 3281 | J56: 8000 | K56: 3849 | L56: 4151
A57: D05 | B57: E10-01 | C57: E10-01D05 | D57: D05 Supply Teacher Insurance | E57: 6413 | F57: 0 | G57: 0 | H57: 6251.37 | I57: 161.63 | J57: 6413 | K57: 6251.37 | L57: 161.63
A58: D06 | B58: E11-01 | C58: E11-01D06 | D58: D06 Other Staff Insurance | E58: 1262 | F58: 0 | G58: 0 | H58: 839.43 | I58: 422.57 | J58: 1262 | K58: 839.43 | L58: 422.57
A59: E01 | B59: E12-01 | C59: E12-01E01 | D59: E01 Building Maintenance | E59: 8000 | F59: 465 | G59: 0 | H59: 5927.08 | I59: 1607.92 | J59: 8000 | K59: 5927.08 | L59: 2072.92
A60: E01A | B60: E12-01 | C60: E12-01E01A | D60: E01A Yr1 Windows | E60: 480 | F60: 0 | G60: 0 | H60: 0 | I60: 480 | J60: 480 | K60: 0 | L60: 480
A61: E01B | B61: E12-01 | C61: E12-01E01B | D61: E01B Gutters | E61: 950 | F61: 0 | G61: 0 | H61: 0 | I61: 950 | J61: 950 | K61: 0 | L61: 950
A62: E02 | B62: E13-01 | C62: E13-01E02 | D62: E02 Grounds Maintenance | E62: 1167 | F62: 702.24 | G62: 0 | H62: 1071.51 | I62: -606.75 | J62: 1167 | K62: 1071.51 | L62: 95.49
A63: E02A | B63: E13-01 | C63: E13-01E02A | D63: E02A Carpark | E63: 3250 | F63: 0 | G63: 0 | H63: 3650 | I63: -400 | J63: 3250 | K63: 3650 | L63: -400
A64: E02B | B64: E13-01 | C64: E13-01E02B | D64: E02B Nuture Garden | E64: 300 | F64: 0 | G64: 0 | H64: 0 | I64: 300 | J64: 300 | K64: 0 | L64: 300
A65: E03 | B65: E14-01 | C65: E14-01E03 | D65: E03 Clean/Caretaking Supplies | E65: 3000 | F65: 4.25 | G65: 0 | H65: 1454.65 | I65: 1541.1 | J65: 3000 | K65: 1454.65 | L65: 1545.35
A66: E05 | B66: E14-01 | C66: E14-01E05 | D66: E05 Contract Cleaning Costs | E66: 0 | F66: 0 | G66: 0 | H66: 0 | I66: 0 | J66: 0 | K66: 0 | L66: 0
A67: E08 | B67: E14-01 | C67: E14-01E08 | D67: E08 Window Cleaning | E67: 600 | F67: 0 | G67: 0 | H67: 300 | I67: 300 | J67: 600 | K67: 300 | L67: 300
A68: E17 | B68: E14-01 | C68: E14-01E17 | D68: E17 Liquid Soap | E68: 120 | F68: 0 | G68: 0 | H68: 68.28 | I68: 51.72 | J68: 120 | K68: 68.28 | L68: 51.72
A69: F01 | B69: E15-01 | C69: E15-01F01 | D69: F01 Water and Sewerage | E69: 4000 | F69: 2004 | G69: 0 | H69: 1206.4 | I69: 789.6 | J69: 4000 | K69: 1206.4 | L69: 2793.6
A70: F02 | B70: E16-01 | C70: E16-01F02 | D70: F02 Electricity | E70: 8182 | F70: 0 | G70: 0 | H70: 3126.49 | I70: 5055.51 | J70: 8182 | K70: 3126.49 | L70: 5055.51
A71: F03 | B71: E16-01 | C71: E16-01F03 | D71: F03 Gas | E71: 7279 | F71: 0 | G71: 0 | H71: 2199.65 | I71: 5079.35 | J71: 7279 | K71: 2199.65 | L71: 5079.35
A72: E04 | B72: E17-01 | C72: E17-01E04 | D72: E04 Rates | E72: 2139 | F72: 642 | G72: 0 | H72: 1501.05 | I72: -4.05 | J72: 2139 | K72: 1501.05 | L72: 637.95
A73: E06 | B73: E18-01 | C73: E18-01E06 | D73: E06 Other Occupation Costs | E73: 780 | F73: 0 | G73: 0 | H73: 1369.33 | I73: -589.33 | J73: 780 | K73: 1369.33 | L73: -589.33
A74: E07 | B74: E18-01 | C74: E18-01E07 | D74: E07 Security | E74: 450 | F74: 0 | G74: 0 | H74: 30 | I74: 420 | J74: 450 | K74: 30 | L74: 420
A75: E09 | B75: E18-01 | C75: E18-01E09 | D75: E09 P/Ground equip | E75: 150 | F75: 120 | G75: 0 | H75: 80.5 | I75: -50.5 | J75: 150 | K75: 80.5 | L75: 69.5
A76: E10 | B76: E18-01 | C76: E18-01E10 | D76: E10 Gym Inspections | E76: 130 | F76: 105 | G76: 0 | H76: 0 | I76: 25 | J76: 130 | K76: 0 | L76: 130
A77: E11 | B77: E18-01 | C77: E18-01E11 | D77: E11 Fire Extinguishers | E77: 190 | F77: 0 | G77: 0 | H77: 0 | I77: 190 | J77: 190 | K77: 0 | L77: 190
A78: E13 | B78: E18-01 | C78: E18-01E13 | D78: E13 PAT TESTING | E78: 360 | F78: 0 | G78: 0 | H78: 466.2 | I78: -106.2 | J78: 360 | K78: 466.2 | L78: -106.2
A79: E14 | B79: E18-01 | C79: E18-01E14 | D79: E14 Hygiene | E79: 90 | F79: 0 | G79: 0 | H79: 0 | I79: 90 | J79: 90 | K79: 0 | L79: 90
A80: E15 | B80: E18-01 | C80: E18-01E15 | D80: E15 Refuse | E80: 1249 | F80: 0 | G80: 0 | H80: 852.4 | I80: 396.6 | J80: 1249 | K80: 852.4 | L80: 396.6
A81: E19 | B81: E18-01 | C81: E18-01E19 | D81: E19 Handdryers -PHS | E81: 1500 | F81: 0 | G81: 0 | H81: 20 | I81: 1480 | J81: 1500 | K81: 20 | L81: 1480
A82: H01 | B82: E19-01 | C82: E19-01H01 | D82: H01 Curr Licences | E82: 3177 | F82: 80.6 | G82: 0 | H82: 1807.5 | I82: 1288.9 | J82: 3177 | K82: 1807.5 | L82: 1369.5
A83: H02 | B83: E19-01 | C83: E19-01H02 | D83: H02 General Resources | E83: 1500 | F83: 0 | G83: 0 | H83: 203.07 | I83: 1296.93 | J83: 1500 | K83: 203.07 | L83: 1296.93
A84: H06 | B84: E19-01 | C84: E19-01H06 | D84: H06 Infants | E84: 1500 | F84: 241.8 | G84: 0 | H84: 1295.88 | I84: -37.68 | J84: 1500 | K84: 1295.88 | L84: 204.12
A85: H07 | B85: E19-01 | C85: E19-01H07 | D85: H07 English | E85: 750 | F85: 354.4 | G85: 0 | H85: 401.22 | I85: -5.62 | J85: 750 | K85: 401.22 | L85: 348.78
A86: H08 | B86: E19-01 | C86: E19-01H08 | D86: H08 Maths | E86: 600 | F86: 5.65 | G86: 0 | H86: 483.79 | I86: 110.56 | J86: 600 | K86: 483.79 | L86: 116.21
A87: H09 | B87: E19-01 | C87: E19-01H09 | D87: H09 Science | E87: 300 | F87: 0 | G87: 0 | H87: 46.63 | I87: 253.37 | J87: 300 | K87: 46.63 | L87: 253.37
A88: H10 | B88: E19-01 | C88: E19-01H10 | D88: H10 Art | E88: 800 | F88: 203.53 | G88: 0 | H88: 311.72 | I88: 284.75 | J88: 800 | K88: 311.72 | L88: 488.28
A89: H11 | B89: E19-01 | C89: E19-01H11 | D89: H11 History & Geography | E89: 200 | F89: 0 | G89: 0 | H89: 0 | I89: 200 | J89: 200 | K89: 0 | L89: 200
A90: H13 | B90: E19-01 | C90: E19-01H13 | D90: H13 Physical Education | E90: 800 | F90: 199.99 | G90: 0 | H90: 268.53 | I90: 331.48 | J90: 800 | K90: 268.53 | L90: 531.47
A91: H14 | B91: E19-01 | C91: E19-01H14 | D91: H14 Music | E91: 350 | F91: 0 | G91: 0 | H91: 46.07 | I91: 303.93 | J91: 350 | K91: 46.07 | L91: 303.93
A92: H15 | B92: E19-01 | C92: E19-01H15 | D92: H15 Religious Education | E92: 250 | F92: 0 | G92: 0 | H92: 232.5 | I92: 17.5 | J92: 250 | K92: 232.5 | L92: 17.5
A93: H16 | B93: E19-01 | C93: E19-01H16 | D93: H16 Design Technology | E93: 600 | F93: 315.32 | G93: 0 | H93: 186.93 | I93: 97.75 | J93: 600 | K93: 186.93 | L93: 413.07
A94: H18 | B94: E19-01 | C94: E19-01H18 | D94: H18 Key Stage 2 | E94: 1200 | F94: 57.39 | G94: 0 | H94: 930.79 | I94: 211.82 | J94: 1200 | K94: 930.79 | L94: 269.21
A95: H19 | B95: E19-01 | C95: E19-01H19 | D95: H19 Special Educational Needs | E95: 800 | F95: 0 | G95: 0 | H95: 374.61 | I95: 425.39 | J95: 800 | K95: 374.61 | L95: 425.39
A96: H20 | B96: E19-01 | C96: E19-01H20 | D96: H20 Assessments | E96: 500 | F96: 139.15 | G96: 0 | H96: 0 | I96: 360.85 | J96: 500 | K96: 0 | L96: 500
A97: H23 | B97: E19-01 | C97: E19-01H23 | D97: H23 PSHE | E97: 100 | F97: 0 | G97: 0 | H97: 50.89 | I97: 49.11 | J97: 100 | K97: 50.89 | L97: 49.11
A98: H24 | B98: E19-01 | C98: E19-01H24 | D98: H24 PTFA | E98: 0 | F98: 0 | G98: 0 | H98: 241.39 | I98: -241.39 | J98: 0 | K98: 241.39 | L98: -241.39
A99: H26 | B99: E19-01 | C99: E19-01H26 | D99: H26 Computer Inks | E99: 1000 | F99: 0 | G99: 0 | H99: 39 | I99: 961 | J99: 1000 | K99: 39 | L99: 961
A100: H27 | B100: E19-01 | C100: E19-01H27 | D100: H27 HT Exp | E100: 500 | F100: 0 | G100: 0 | H100: 479.66 | I100: 20.34 | J100: 500 | K100: 479.66 | L100: 20.34
A101: H29 | B101: E19-01 | C101: E19-01H29 | D101: H29 Photo Copier | E101: 680 | F101: 0 | G101: 0 | H101: 388.43 | I101: 291.57 | J101: 680 | K101: 388.43 | L101: 291.57
A102: H31 | B102: E19-01 | C102: E19-01H31 | D102: H31 Trips | E102: 1800 | F102: 280 | G102: 0 | H102: 3018.7 | I102: -1498.7 | J102: 1800 | K102: 3018.7 | L102: -1218.7
A103: H32 | B103: E19-01 | C103: E19-01H32 | D103: H32 Swimming coach | E103: 1500 | F103: 0 | G103: 0 | H103: 0 | I103: 1500 | J103: 1500 | K103: 0 | L103: 1500
A104: H33 | B104: E19-01 | C104: E19-01H33 | D104: H33 Modern Foreign Languages | E104: 200 | F104: 48.83 | G104: 0 | H104: 0 | I104: 151.17 | J104: 200 | K104: 0 | L104: 200
A105: H34 | B105: E19-01 | C105: E19-01H34 | D105: H34 Furniture | E105: 500 | F105: 0 | G105: 0 | H105: 6033.7 | I105: -5533.7 | J105: 500 | K105: 6033.7 | L105: -5533.7
A106: H35 | B106: E19-01 | C106: E19-01H35 | D106: H35 Pupil Premium Trips | E106: 1000 | F106: 0 | G106: 0 | H106: 0 | I106: 1000 | J106: 1000 | K106: 0 | L106: 1000
A107: H39 | B107: E19-01 | C107: E19-01H39 | D107: H39 Community | E107: 420 | F107: 0 | G107: 0 | H107: 119.8 | I107: 300.2 | J107: 420 | K107: 119.8 | L107: 300.2
A108: H45 | B108: E19-01 | C108: E19-01H45 | D108: H45 Extra Curricular Play | E108: 350 | F108: 0 | G108: 0 | H108: 264.98 | I108: 85.02 | J108: 350 | K108: 264.98 | L108: 85.02
A109: H47 | B109: E19-01 | C109: E19-01H47 | D109: H47 Trip - Panto | E109: 0 | F109: 0 | G109: 0 | H109: 0 | I109: 0 | J109: 0 | K109: 0 | L109: 0
A110: H48 | B110: E19-01 | C110: E19-01H48 | D110: H48 Trip-Marchant Hill W/End | E110: 4100 | F110: 0 | G110: 0 | H110: 1280 | I110: 2820 | J110: 4100 | K110: 1280 | L110: 2820
A111: H49 | B111: E19-01 | C111: E19-01H49 | D111: H49 School Council | E111: 50 | F111: 0 | G111: 0 | H111: 0 | I111: 50 | J111: 50 | K111: 0 | L111: 50
A112: H50 | B112: E19-01 | C112: E19-01H50 | D112: H50 Promote Healthy Eating | E112: 100 | F112: 0 | G112: 0 | H112: 0 | I112: 100 | J112: 100 | K112: 0 | L112: 100
A113: H54 | B113: E19-01 | C113: E19-01H54 | D113: H54 French Trip | E113: 700 | F113: 0 | G113: 0 | H113: 39 | I113: 661 | J113: 700 | K113: 39 | L113: 661
A114: H03 | B114: E20-01 | C114: E20-01H03 | D114: H03 General ICT | E114: 14030 | F114: 132 | G114: 0 | H114: 1352.85 | I114: 12545.15 | J114: 14030 | K114: 1352.85 | L114: 12677.15
A115: H53 | B115: E20-01 | C115: E20-01H53 | D115: H53 Centaur ICT Support - Curr | E115: 3500 | F115: 0 | G115: 0 | H115: 150 | I115: 3350 | J115: 3500 | K115: 150 | L115: 3350
A116: I10 | B116: E20-01 | C116: E20-01I10 | D116: I10 EIS Services | E116: 0 | F116: 0 | G116: 0 | H116: 7829.55 | I116: -7829.55 | J116: 0 | K116: 7829.55 | L116: -7829.55
A117: J01 | B117: E21-01 | C117: E21-01J01 | D117: J01 Exam Fees | E117: 0 | F117: 0 | G117: 0 | H117: 0 | I117: 0 | J117: 0 | K117: 0 | L117: 0
A118: H21 | B118: E22-01 | C118: E22-01H21 | D118: H21 1st Aid/Clothing | E118: 250 | F118: 0 | G118: 0 | H118: 86.42 | I118: 163.58 | J118: 250 | K118: 86.42 | L118: 163.58
A119: H26 | B119: E22-01 | C119: E22-01H26 | D119: H26 Computer Inks | E119: 3000 | F119: 0 | G119: 0 | H119: 623.98 | I119: 2376.02 | J119: 3000 | K119: 623.98 | L119: 2376.02
A120: H29 | B120: E22-01 | C120: E22-01H29 | D120: H29 Photo Copier | E120: 1200 | F120: 600 | G120: 0 | H120: 338.29 | I120: 261.71 | J120: 1200 | K120: 338.29 | L120: 861.71
A121: H30 | B121: E22-01 | C121: E22-01H30 | D121: H30 Photo Copier Paper | E121: 700 | F121: 184 | G121: 0 | H121: 50.1 | I121: 465.9 | J121: 700 | K121: 50.1 | L121: 649.9
A122: I01 | B122: E22-01 | C122: E22-01I01 | D122: I01 Admin Supplies | E122: 3000 | F122: 345.84 | G122: 0 | H122: 608.74 | I122: 2045.42 | J122: 3000 | K122: 608.74 | L122: 2391.26
A123: I02 | B123: E22-01 | C123: E22-01I02 | D123: I02 Admin ICT | E123: 0 | F123: 0 | G123: 0 | H123: 0 | I123: 0 | J123: 0 | K123: 0 | L123: 0
A124: I03 | B124: E22-01 | C124: E22-01I03 | D124: I03 Telephone | E124: 6500 | F124: 75 | G124: 0 | H124: 3857.26 | I124: 2567.74 | J124: 6500 | K124: 3857.26 | L124: 2642.74
A125: I04 | B125: E22-01 | C125: E22-01I04 | D125: I04 Postage | E125: 800 | F125: 0 | G125: 0 | H125: 292.11 | I125: 507.89 | J125: 800 | K125: 292.11 | L125: 507.89
A126: I05 | B126: E22-01 | C126: E22-01I05 | D126: I05 Bank Charges | E126: 120 | F126: 0 | G126: 0 | H126: 64.64 | I126: 55.36 | J126: 120 | K126: 64.64 | L126: 55.36
A127: I09 | B127: E22-01 | C127: E22-01I09 | D127: I09 Governor Expenses | E127: 100 | F127: 0 | G127: 0 | H127: 0 | I127: 100 | J127: 100 | K127: 0 | L127: 100
A128: I10 | B128: E22-01 | C128: E22-01I10 | D128: I10 EIS Services | E128: 3714 | F128: 0 | G128: 0 | H128: 2738 | I128: 976 | J128: 3714 | K128: 2738 | L128: 976
A129: I11 | B129: E22-01 | C129: E22-01I11 | D129: I11 Headteacher Costs | E129: 0 | F129: 0 | G129: 0 | H129: 0 | I129: 0 | J129: 0 | K129: 0 | L129: 0
A130: J02 | B130: E23-01 | C130: E23-01J02 | D130: J02 Other Insurance Premiums | E130: 8250 | F130: 0 | G130: 0 | H130: 5154.48 | I130: 3095.52 | J130: 8250 | K130: 5154.48 | L130: 3095.52
A131: J08 | B131: E23-01 | C131: E23-01J08 | D131: J08 Diocesan Insurance | E131: 850 | F131: 0 | G131: 0 | H131: 839.04 | I131: 10.96 | J131: 850 | K131: 839.04 | L131: 10.96
A132: C10 | B132: E24-01 | C132: E24-01C10 | D132: C10 Breakfast Club | E132: 0 | F132: 0 | G132: 0 | H132: 0 | I132: 0 | J132: 0 | K132: 0 | L132: 0
A133: J03 | B133: E24-01 | C133: E24-01J03 | D133: J03 Special Facilities | E133: 4000 | F133: 0 | G133: 0 | H133: 0 | I133: 4000 | J133: 4000 | K133: 0 | L133: 4000
A134: J07 | B134: E24-01 | C134: E24-01J07 | D134: J07 After School Club Exp | E134: 0 | F134: 0 | G134: 0 | H134: 0 | I134: 0 | J134: 0 | K134: 0 | L134: 0
A135: J04 | B135: E25-01 | C135: E25-01J04 | D135: J04 Catering Supplies | E135: 8750 | F135: 0 | G135: 0 | H135: 2712.98 | I135: 6037.02 | J135: 8750 | K135: 2712.98 | L135: 6037.02
A136: A02 | B136: E26-01 | C136: E26-01A02 | D136: A02 Supply Teachers | E136: 0 | F136: 0 | G136: 0 | H136: 0 | I136: 0 | J136: 0 | K136: 0 | L136: 0
A137: H04 | B137: E27-01 | C137: E27-01H04 | D137: H04 Curriculum Professional Serv | E137: 10570 | F137: 0 | G137: 0 | H137: 2884.16 | I137: 7685.84 | J137: 10570 | K137: 2884.16 | L137: 7685.84
A138: H14 | B138: E27-01 | C138: E27-01H14 | D138: H14 Music | E138: 1240 | F138: 0 | G138: 0 | H138: 680 | I138: 560 | J138: 1240 | K138: 680 | L138: 560
A139: H32 | B139: E27-01 | C139: E27-01H32 | D139: H32 Swimming coach | E139: 460 | F139: 0 | G139: 0 | H139: 0 | I139: 460 | J139: 460 | K139: 0 | L139: 460
A140: H36 | B140: E27-01 | C140: E27-01H36 | D140: H36 AV& T 3 Primary Curriculum | E140: 0 | F140: 0 | G140: 0 | H140: 954.8 | I140: -954.8 | J140: 0 | K140: 954.8 | L140: -954.8
A141: H53 | B141: E27-01 | C141: E27-01H53 | D141: H53 Centaur ICT Support - Curr | E141: 0 | F141: 0 | G141: 0 | H141: 1212.5 | I141: -1212.5 | J141: 0 | K141: 1212.5 | L141: -1212.5
A142: I07 | B142: E27-01 | C142: E27-01I07 | D142: I07 Other Professional Services | E142: 0 | F142: 0 | G142: 0 | H142: 1470.99 | I142: -1470.99 | J142: 0 | K142: 1470.99 | L142: -1470.99
A143: J09 | B143: E27-01 | C143: E27-01J09 | D143: J09 Elite Sports | E143: 5100 | F143: 0 | G143: 0 | H143: 0 | I143: 5100 | J143: 5100 | K143: 0 | L143: 5100
A144: J09A | B144: E27-01 | C144: E27-01J09A | D144: J09A Recorders | E144: 1240 | F144: 0 | G144: 0 | H144: 0 | I144: 1240 | J144: 1240 | K144: 0 | L144: 1240
A145: I07 | B145: E28-01 | C145: E28-01I07 | D145: I07 Other Professional Services | E145: 20391 | F145: 1001 | G145: 0 | H145: 10298.9 | I145: 9091.1 | J145: 20391 | K145: 10298.9 | L145: 10092.1
A146: J05 | B146: E29-01 | C146: E29-01J05 | D146: J05 Loan Interest | E146: 0 | F146: 0 | G146: 0 | H146: 0 | I146: 0 | J146: 0 | K146: 0 | L146: 0
A147: J06 | B147: E30-01 | C147: E30-01J06 | D147: J06 Direct Revenue Financing | E147: 4144 | F147: 0 | G147: 0 | H147: 0 | I147: 4144 | J147: 4144 | K147: 0 | L147: 4144
A148: K01 | B148: I01-01 | C148: I01-01K01 | D148: K01 Funds delegated by LEA | E148: -773411 | F148: 0 | G148: 0 | H148: -450882.56 | I148: -322528.44 | J148: -773411 | K148: -450882.56 | L148: -322528.44
A149: K02 | B149: I02-01 | C149: I02-01K02 | D149: K02 Funding Sixth form students | E149: 0 | F149: 0 | G149: 0 | H149: 0 | I149: 0 | J149: 0 | K149: 0 | L149: 0
A150: K03 | B150: I03-01 | C150: I03-01K03 | D150: K03 SEN Funding (not special Sch | E150: -8551 | F150: 0 | G150: 0 | H150: -2995 | I150: -5556 | J150: -8551 | K150: -2995 | L150: -5556
A151: K05 | B151: I05-01 | C151: I05-01K05 | D151: K05 Pupil Preium Income | E151: -21600 | F151: 0 | G151: 0 | H151: -13125 | I151: -8475 | J151: -21600 | K151: -13125 | L151: -8475
A152: K06 | B152: I06-01 | C152: I06-01K06 | D152: K06 Other Government Grants | E152: 0 | F152: 0 | G152: 0 | H152: 0 | I152: 0 | J152: 0 | K152: 0 | L152: 0
A153: K07 | B153: I07-01 | C153: I07-01K07 | D153: K07 Other grants & Payments | E153: -9972 | F153: 0 | G153: 0 | H153: -2163.34 | I153: -7808.66 | J153: -9972 | K153: -2163.34 | L153: -7808.66
A154: E15 | B154: I08-01 | C154: I08-01E15 | D154: E15 Refuse | E154: 0 | F154: 0 | G154: 0 | H154: 0 | I154: 0 | J154: 0 | K154: 0 | L154: 0
A155: C10 | B155: I08-01 | C155: I08-01C10 | D155: C10 Breakfast Club | E155: 0 | F155: 0 | G155: 0 | H155: 0 | I155: 0 | J155: 0 | K155: 0 | L155: 0
A156: K08 | B156: I08-01 | C156: I08-01K08 | D156: K08 Lettings | E156: -155 | F156: 0 | G156: 0 | H156: -321 | I156: 166 | J156: -155 | K156: -321 | L156: 166
A157: K08A | B157: I08-01 | C157: I08-01K08A | D157: K08A Bank Int | E157: -850 | F157: 0 | G157: 0 | H157: -393.66 | I157: -456.34 | J157: -850 | K157: -393.66 | L157: -456.34
A158: K08B | B158: I08-01 | C158: I08-01K08B | D158: K08B Other Fees & Services | E158: -1500 | F158: 0 | G158: 0 | H158: -1677.25 | I158: 177.25 | J158: -1500 | K158: -1677.25 | L158: 177.25
A159: K08C | B159: I08-01 | C159: I08-01K08C | D159: K08C After School Club | E159: -6200 | F159: 0 | G159: 0 | H159: -3086.7 | I159: -3113.3 | J159: -6200 | K159: -3086.7 | L159: -3113.3
A160: K08D | B160: I08-01 | C160: I08-01K08D | D160: K08D FLO Funding | E160: -3000 | F160: 0 | G160: 0 | H160: -1750 | I160: -1250 | J160: -3000 | K160: -1750 | L160: -1250
A161: K08E | B161: I08-01 | C161: I08-01K08E | D161: K08E Breakfast Club | E161: -3500 | F161: 0 | G161: 0 | H161: -2119.6 | I161: -1380.4 | J161: -3500 | K161: -2119.6 | L161: -1380.4
A162: K09 | B162: I09-01 | C162: I09-01K09 | D162: K09 Income from catering | E162: 0 | F162: 0 | G162: 0 | H162: 0 | I162: 0 | J162: 0 | K162: 0 | L162: 0
A163: K10 | B163: I10-01 | C163: I10-01K10 | D163: K10 Supply Teacher Ins | E163: 0 | F163: 0 | G163: 0 | H163: -700 | I163: 700 | J163: 0 | K163: -700 | L163: 700
A164: K11 | B164: I11-01 | C164: I11-01K11 | D164: K11 Other Insurance Claims | E164: -2728 | F164: 0 | G164: 0 | H164: -1028.76 | I164: -1699.24 | J164: -2728 | K164: -1028.76 | L164: -1699.24
A165: H32 | B165: I12-01 | C165: I12-01H32 | D165: H32 Swimming coach | E165: -1500 | F165: 0 | G165: 0 | H165: -248 | I165: -1252 | J165: -1500 | K165: -248 | L165: -1252
A166: H47 | B166: I12-01 | C166: I12-01H47 | D166: H47 Trip - Panto | E166: 0 | F166: 0 | G166: 0 | H166: 0 | I166: 0 | J166: 0 | K166: 0 | L166: 0
A167: H48 | B167: I12-01 | C167: I12-01H48 | D167: H48 Trip-Marchant Hill W/End | E167: -4100 | F167: 0 | G167: 0 | H167: -2836 | I167: -1264 | J167: -4100 | K167: -2836 | L167: -1264
A168: H54 | B168: I12-01 | C168: I12-01H54 | D168: H54 French Trip | E168: -700 | F168: 0 | G168: 0 | H168: -630 | I168: -70 | J168: -700 | K168: -630 | L168: -70
A169: K12 | B169: I12-01 | C169: I12-01K12 | D169: K12 Contributions to Visits | E169: -1800 | F169: 0 | G169: 0 | H169: -1561.65 | I169: -238.35 | J169: -1800 | K169: -1561.65 | L169: -238.35
A170: K13 | B170: I13-01 | C170: I13-01K13 | D170: K13 Donations | E170: 0 | F170: 0 | G170: 0 | H170: -1083.93 | I170: 1083.93 | J170: 0 | K170: -1083.93 | L170: 1083.93
A171: K13A | B171: I13-01 | C171: I13-01K13A | D171: K13a Donations PTA | E171: 0 | F171: 0 | G171: 0 | H171: -182.5 | I171: 182.5 | J171: 0 | K171: -182.5 | L171: 182.5
A172: K15 | B172: I13-01 | C172: I13-01K15 | D172: K15 Fundraising | E172: 0 | F172: 0 | G172: 0 | H172: 0 | I172: 0 | J172: 0 | K172: 0 | L172: 0
A173: K04 | B173: I14-01 | C173: I14-01K04 | D173: Do Not Use | E173: 0 | F173: 0 | G173: 0 | H173: 0 | I173: 0 | J173: 0 | K173: 0 | L173: 0
A174: KYCH | B174: I15-01 | C174: I15-01KYCH | D174: KYCH Your Choice Funding | E174: 0 | F174: 0 | G174: 0 | H174: 0 | I174: 0 | J174: 0 | K174: 0 | L174: 0
A175: K18 | B175: I18-01 | C175: I18-01K18 | D175: K18 Additional Grant for School | E175: 0 | F175: 0 | G175: 0 | H175: -5438 | I175: 5438 | J175: 0 | K175: -5438 | L175: 5438
A176: ROVER | B176: ROVER-01 | C176: ROVER-01ROVER | D176: 01 Rollover B/F (Budget Only) | E176: -51817 | F176: 0 | G176: 0 | H176: -51817.36 | I176: 0.36 | J176: -51817 | K176: -51817.36 | L176: 0.36
A177: 63RVR | B177: ROVER-63 | C177: ROVER-6363RVR | D177: 63RVR Rollover -63 | E177: -9033 | F177: 0 | G177: 0 | H177: -9033.43 | I177: 0.43 | J177: -9033 | K177: -9033.43 | L177: 0.43
A178: UNA | B178: UNA-01 | C178: UNA-01UNA | D178: Unallocated Budget | E178: 40454 | F178: 0 | G178: 0 | H178: 0 | I178: 40454 | J178: 40454 | K178: 0 | L178: 40454
A179: 63UNA | B179: UNA-63 | C179: UNA-6363UNA | D179: 63UNA Unallocated -63 | E179: 0 | F179: 0 | G179: 0 | H179: 0 | I179: 0 | J179: 0 | K179: 0 | L179: 0
A180: 64UNA | B180: UNA-64 | C180: UNA-6464UNA | D180: 64UNA -Unallocated to be advised | E180: 0 | F180: 0 | G180: 0 | H180: 0 | I180: 0 | J180: 0 | K180: 0 | L180: 0

Sheet Admin (hidden)
A1: FMS Download - Admin Sheet
A3: This sheet contains variables that are user definable. | J3: Fund
A4: You would ONLY want to edit these if the format of the download file changed for some reason. | J4: Monitoring Sheet
A6: If the format of the source download file changes, amend the column information here.
A7: Note: Column refers to the column of the DATA, not the column of the title text!
A11: Header Information
B14: Ledger Code | C14: Establishment | D14: Ledger Description:
A15: Column | B15: 2 | C15: 4 | D15: 7
A19: Main Body Information
B21: Cost Centre | C21: Cost Centre Description | D21: Total Allocated | E21: Commitment | F21: Cent. Inv'd | G21: Actual | H21: Remaining | I21: Allocated up to Given Period | J21: Actual up to Given Period | K21: Variance up to Given Period
A22: Column | B22: 1 | C22: 2 | D22: 6 | E22: 8 | F22: 9 | G22: 11 | H22: 13 | I22: 15 | J22: 16 | K22: 18
A25: End Key Information
A27: EndKey | B27: Grand Totals:
A28: EndKeyColumn | B28: 4
A31: HeaderKey | B31: Ledger Code
A32: HeaderKeyColumn | B32: 1
A35: Phase | B35: =hphase -> 
A36: inc vi | B36: =incvirement(#REF!,#REF!,#REF!,#REF!,#REF!,#REF!,#REF!,#REF!,#REF!,#REF!,#REF!,#REF!,#REF!,#REF!,#REF!,#REF!,#REF!) -> 
A37: e 16 vi | B37: =exp16virement(#REF!,#REF!,#REF!,#REF!,#REF!,#REF!,#REF!,#REF!,#REF!,#REF!,#REF!,#REF!,#REF!,#REF!,#REF!,#REF!) -> 
A38: e 32 vi | B38: =exp32virement(#REF!,#REF!,#REF!,#REF!,#REF!,#REF!,#REF!,#REF!,#REF!,#REF!,#REF!,#REF!,#REF!,#REF!,#REF!,#REF!) -> 
A39: Exp Vi | B39: =IF(AND(B37="",B38=""),"","The following expenditure codes show substantial virements:"&B37&B38&". These amounts should be discussed and if necessary approved by the Governors in accordance with the Finance Policy") -> 
A40: inc va | B40: =incvariance(#REF!,#REF!,#REF!,#REF!,#REF!,#REF!,#REF!,#REF!,#REF!,#REF!,#REF!,#REF!,#REF!,#REF!,#REF!,#REF!,#REF!) -> 
A41: e 16 va | B41: =exp16variance(#REF!,#REF!,#REF!,#REF!,#REF!,#REF!,#REF!,#REF!,#REF!,#REF!,#REF!,#REF!,#REF!,#REF!,#REF!,#REF!) -> 
A42: e 32 va | B42: =exp32variance(#REF!,#REF!,#REF!,#REF!,#REF!,#REF!,#REF!,#REF!,#REF!,#REF!,#REF!,#REF!,#REF!,#REF!,#REF!,#REF!) -> 
A43: Exp Va | B43: =IF(AND(B41="",B42=""),"","The following expenditure codes show substantial variances:"&B41&B42&". These amounts should be explained") -> 
A44: inc % | B44: =incpercent(#REF!,#REF!,#REF!,#REF!,#REF!,#REF!,#REF!,#REF!,#REF!,#REF!,#REF!,#REF!,#REF!,#REF!,#REF!,#REF!,#REF!,#REF!) -> 
A45: exp 16% | B45: =exp16percent(#REF!,#REF!,#REF!,#REF!,#REF!,#REF!,#REF!,#REF!,#REF!,#REF!,#REF!,#REF!,#REF!,#REF!,#REF!,#REF!,#REF!) -> 
A46: exp 32% | B46: =exp32percent(#REF!,#REF!,#REF!,#REF!,#REF!,#REF!,#REF!,#REF!,#REF!,#REF!,#REF!,#REF!,#REF!,#REF!,#REF!,#REF!,#REF!) -> 
A47: exp% | B47: =IF(AND(B45="",B46=""),"","The following expenditure codes show a disproportionate spend:"&B45&B46&". It should be considered if the year end forecast is realistic.") -> 
A48: tot% | B48: =totalpercent(#REF!,#REF!,#REF!) -> 
B50: budget no forecast | C50: forcast no budget
A51: I01 | B51: =IF(AND(#REF!<>0,#REF!=0),A51&" ","") ->  | C51: =IF(AND(#REF!<>0,#REF!=0),A51&" ","") -> 
A52: I02 | B52: =IF(AND(#REF!<>0,#REF!=0),A52&" ","") ->  | C52: =IF(AND(#REF!<>0,#REF!=0),A52&" ","") -> 
A53: I03 | B53: =IF(AND(#REF!<>0,#REF!=0),A53&" ","") ->  | C53: =IF(AND(#REF!<>0,#REF!=0),A53&" ","") -> 
A54: I04 | B54: =IF(AND(#REF!<>0,#REF!=0),A54&" ","") ->  | C54: =IF(AND(#REF!<>0,#REF!=0),A54&" ","") -> 
A55: I05 | B55: =IF(AND(#REF!<>0,#REF!=0),A55&" ","") ->  | C55: =IF(AND(#REF!<>0,#REF!=0),A55&" ","") -> 
A56: I06 | B56: =IF(AND(#REF!<>0,#REF!=0),A56&" ","") ->  | C56: =IF(AND(#REF!<>0,#REF!=0),A56&" ","") -> 
A57: I07 | B57: =IF(AND(#REF!<>0,#REF!=0),A57&" ","") ->  | C57: =IF(AND(#REF!<>0,#REF!=0),A57&" ","") -> 
A58: I08 | B58: =IF(AND(#REF!<>0,#REF!=0),A58&" ","") ->  | C58: =IF(AND(#REF!<>0,#REF!=0),A58&" ","") -> 
A59: I09 | B59: =IF(AND(#REF!<>0,#REF!=0),A59&" ","") ->  | C59: =IF(AND(#REF!<>0,#REF!=0),A59&" ","") -> 
A60: I10 | B60: =IF(AND(#REF!<>0,#REF!=0),A60&" ","") ->  | C60: =IF(AND(#REF!<>0,#REF!=0),A60&" ","") -> 
A61: I11 | B61: =IF(AND(#REF!<>0,#REF!=0),A61&" ","") ->  | C61: =IF(AND(#REF!<>0,#REF!=0),A61&" ","") -> 
A62: I12 | B62: =IF(AND(#REF!<>0,#REF!=0),A62&" ","") ->  | C62: =IF(AND(#REF!<>0,#REF!=0),A62&" ","") -> 
A63: I13 | B63: =IF(AND(#REF!<>0,#REF!=0),A63&" ","") ->  | C63: =IF(AND(#REF!<>0,#REF!=0),A63&" ","") -> 
A64: I15 | B64: =IF(AND(#REF!<>0,#REF!=0),A64&" ","") ->  | C64: =IF(AND(#REF!<>0,#REF!=0),A64&" ","") -> 
A65: I16 | B65: =IF(AND(#REF!<>0,#REF!=0),A65&" ","") ->  | C65: =IF(AND(#REF!<>0,#REF!=0),A65&" ","") -> 
A66: I17 | B66: =IF(AND(#REF!<>0,#REF!=0),A66&" ","") ->  | C66: =IF(AND(#REF!<>0,#REF!=0),A66&" ","") -> 
A67: I18 | B67: =IF(AND(#REF!<>0,#REF!=0),A67&" ","") ->  | C67: =IF(AND(#REF!<>0,#REF!=0),A67&" ","") -> 
A68: E01 | B68: =IF(AND(#REF!<>0,#REF!=0),A68&" ","") ->  | C68: =IF(AND(#REF!<>0,#REF!=0),A68&" ","") -> 
A69: E02 | B69: =IF(AND(#REF!<>0,#REF!=0),A69&" ","") ->  | C69: =IF(AND(#REF!<>0,#REF!=0),A69&" ","") -> 
A70: E03 | B70: =IF(AND(#REF!<>0,#REF!=0),A70&" ","") ->  | C70: =IF(AND(#REF!<>0,#REF!=0),A70&" ","") -> 
A71: E04 | B71: =IF(AND(#REF!<>0,#REF!=0),A71&" ","") ->  | C71: =IF(AND(#REF!<>0,#REF!=0),A71&" ","") -> 
A72: E05 | B72: =IF(AND(#REF!<>0,#REF!=0),A72&" ","") ->  | C72: =IF(AND(#REF!<>0,#REF!=0),A72&" ","") -> 
A73: E06 | B73: =IF(AND(#REF!<>0,#REF!=0),A73&" ","") ->  | C73: =IF(AND(#REF!<>0,#REF!=0),A73&" ","") -> 
A74: E07 | B74: =IF(AND(#REF!<>0,#REF!=0),A74&" ","") ->  | C74: =IF(AND(#REF!<>0,#REF!=0),A74&" ","") -> 
A75: E08 | B75: =IF(AND(#REF!<>0,#REF!=0),A75&" ","") ->  | C75: =IF(AND(#REF!<>0,#REF!=0),A75&" ","") -> 
A76: E09 | B76: =IF(AND(#REF!<>0,#REF!=0),A76&" ","") ->  | C76: =IF(AND(#REF!<>0,#REF!=0),A76&" ","") -> 
A77: E10 | B77: =IF(AND(#REF!<>0,#REF!=0),A77&" ","") ->  | C77: =IF(AND(#REF!<>0,#REF!=0),A77&" ","") -> 
A78: E11 | B78: =IF(AND(#REF!<>0,#REF!=0),A78&" ","") ->  | C78: =IF(AND(#REF!<>0,#REF!=0),A78&" ","") -> 
A79: E12 | B79: =IF(AND(#REF!<>0,#REF!=0),A79&" ","") ->  | C79: =IF(AND(#REF!<>0,#REF!=0),A79&" ","") -> 
A80: E13 | B80: =IF(AND(#REF!<>0,#REF!=0),A80&" ","") ->  | C80: =IF(AND(#REF!<>0,#REF!=0),A80&" ","") -> 
A81: E14 | B81: =IF(AND(#REF!<>0,#REF!=0),A81&" ","") ->  | C81: =IF(AND(#REF!<>0,#REF!=0),A81&" ","") -> 
A82: E15 | B82: =IF(AND(#REF!<>0,#REF!=0),A82&" ","") ->  | C82: =IF(AND(#REF!<>0,#REF!=0),A82&" ","") -> 
A83: E16 | B83: =IF(AND(#REF!<>0,#REF!=0),A83&" ","") ->  | C83: =IF(AND(#REF!<>0,#REF!=0),A83&" ","") -> 
A84: E17 | B84: =IF(AND(#REF!<>0,#REF!=0),A84&" ","") ->  | C84: =IF(AND(#REF!<>0,#REF!=0),A84&" ","") -> 
A85: E18 | B85: =IF(AND(#REF!<>0,#REF!=0),A85&" ","") ->  | C85: =IF(AND(#REF!<>0,#REF!=0),A85&" ","") -> 
A86: E19 | B86: =IF(AND(#REF!<>0,#REF!=0),A86&" ","") ->  | C86: =IF(AND(#REF!<>0,#REF!=0),A86&" ","") -> 
A87: E20 | B87: =IF(AND(#REF!<>0,#REF!=0),A87&" ","") ->  | C87: =IF(AND(#REF!<>0,#REF!=0),A87&" ","") -> 
A88: E21 | B88: =IF(AND(#REF!<>0,#REF!=0),A88&" ","") ->  | C88: =IF(AND(#REF!<>0,#REF!=0),A88&" ","") -> 
A89: E22 | B89: =IF(AND(#REF!<>0,#REF!=0),A89&" ","") ->  | C89: =IF(AND(#REF!<>0,#REF!=0),A89&" ","") -> 
A90: E23 | B90: =IF(AND(#REF!<>0,#REF!=0),A90&" ","") ->  | C90: =IF(AND(#REF!<>0,#REF!=0),A90&" ","") -> 
A91: E24 | B91: =IF(AND(#REF!<>0,#REF!=0),A91&" ","") ->  | C91: =IF(AND(#REF!<>0,#REF!=0),A91&" ","") -> 
A92: E25 | B92: =IF(AND(#REF!<>0,#REF!=0),A92&" ","") ->  | C92: =IF(AND(#REF!<>0,#REF!=0),A92&" ","") -> 
A93: E26 | B93: =IF(AND(#REF!<>0,#REF!=0),A93&" ","") ->  | C93: =IF(AND(#REF!<>0,#REF!=0),A93&" ","") -> 
A94: E27 | B94: =IF(AND(#REF!<>0,#REF!=0),A94&" ","") ->  | C94: =IF(AND(#REF!<>0,#REF!=0),A94&" ","") -> 
A95: E28 | B95: =IF(AND(#REF!<>0,#REF!=0),A95&" ","") ->  | C95: =IF(AND(#REF!<>0,#REF!=0),A95&" ","") -> 
A96: E29 | B96: =IF(AND(#REF!<>0,#REF!=0),A96&" ","") ->  | C96: =IF(AND(#REF!<>0,#REF!=0),A96&" ","") -> 
A97: E30 | B97: =IF(AND(#REF!<>0,#REF!=0),A97&" ","") ->  | C97: =IF(AND(#REF!<>0,#REF!=0),A97&" ","") -> 
A98: E31 | B98: =IF(AND(#REF!<>0,#REF!=0),A98&" ","") ->  | C98: =IF(AND(#REF!<>0,#REF!=0),A98&" ","") -> 
A99: E32 | B99: =IF(AND(#REF!<>0,#REF!=0),A99&" ","") ->  | C99: =IF(AND(#REF!<>0,#REF!=0),A99&" ","") -> 
A100: I01 - E13 | B100: =CONCATENATE(B51,B52,B53,B54,B55,B56,B57,B58,B59,B60,B61,B62,B63,B64,B65,B66,B67,B68,B69,B70,B71,B72,B73,B74,B75,B76,B77,B78,B79,B80) ->  | C100: =CONCATENATE(C51,C52,C53,C54,C55,C56,C57,C58,C59,C60,C61,C62,C63,C64,C65,C66,C68,C69,C70,C71,C72,C73,C74,C75,C76,C77,C78,C79,C80,C81) -> 
A101: E14 - E32 | B101: =CONCATENATE(B81,B82,B83,B84,B85,B86,B87,B88,B89,B90,B91,B92,B93,B94,B95,B96,B97,B98,B99) ->  | C101: =CONCATENATE(C82,C83,C84,C85,C86,C87,C88,C89,C90,C91,C92,C93,C94,C95,C96,C97,C98,C99) -> 
A102: All | B102: =B100&B101 ->  | C102: =C100&C101 -> 
B103: =IF(B102="","","The following codes show a budget but no year end forecast: "&B102&". Does this reflect a change in the basis upon which the budget was set?") -> 
B104: =IF(C102="","","The following codes show a year end forecast but no budget: "&C102&". Does this reflect a change in the basis upon which the budget was set?") -> 
A105: Final comment
A107: CE01 | B107: =IF(OR(#REF!>0,#REF!>0),"You have used ledger code CE01, this is for the acquisition of land and existing buildings. This code is rarely needed please ensure this coding is correct.","") -> 
A108: budnofor | B108: =capcodes(#REF!,#REF!,#REF!,#REF!,#REF!,#REF!,#REF!,#REF!,#REF!,#REF!,#REF!,#REF!,#REF!,#REF!) -> 
A109: capvire | B109: =capvire(#REF!,#REF!,#REF!,#REF!,#REF!,#REF!,#REF!) -> 
A110: Ci04 | B110: =ci04fun(#REF!,#REF!,#REF!,#REF!) -> 
A112: =" "&#REF!&": "&#REF!&CHAR(10) ->  | B112: =IF(LEN(A112)>8,A112,"") ->  | C112: =B112&B113&B114&B115&B116&B117&B118&B119&B120&B121&B122&B123&B124&B125&B126&B127&B128 ->  | D112: =IF((20-COUNTIF(B112:B128,""))*25.5>409,409,((20-COUNTIF(B112:B128,""))*25.5)) -> 409
A113: =" "&#REF!&": "&#REF!&CHAR(10) ->  | B113: =IF(LEN(A113)>8,A113,"") ->  | C113: =B129&B130&B131&B132&B133&B134&B135&B136&B137&B138&B139&B140&B141&B142&B143&B144 ->  | D113: =IF((20-COUNTIF(B129:B144,""))*25.5>409,409,((20-COUNTIF(B129:B144,""))*25.5)) -> 409 | E113: =IF(ISERROR(LEFT(C113,(LEN(C113)-1))),"",(LEFT(C113,(LEN(C113)-1)))) -> 
A114: =" "&#REF!&": "&#REF!&CHAR(10) ->  | C114: =B145&B146&B147&B148&B149&B150&B151&B152&B153&B154&B155&B156&B157&B158&B159&B160 ->  | D114: =IF((20-COUNTIF(B145:B160,""))*25.5>409,409,((20-COUNTIF(B145:B160,""))*25.5)) -> 409
A115: =" "&#REF!&": "&#REF!&CHAR(10) ->  | C115: =B161&B162&B163&B164&B165&B166&B167 ->  | D115: =IF((10-COUNTIF(B161:B167,""))*25.5>409,409,((10-COUNTIF(B161:B167,""))*25.5)) -> 255
A116: =" "&#REF!&": "&#REF!&CHAR(10) -> 
A117: =" "&#REF!&": "&#REF!&CHAR(10) -> 
A118: =" "&#REF!&": "&#REF!&CHAR(10) -> 
A119: =" "&#REF!&": "&#REF!&CHAR(10) -> 
A120: =" "&#REF!&": "&#REF!&CHAR(10) -> 
A121: =" "&#REF!&": "&#REF!&CHAR(10) -> 
A122: =" "&#REF!&": "&#REF!&CHAR(10) -> 
A123: =" "&#REF!&": "&#REF!&CHAR(10) -> 
A124: =" "&#REF!&": "&#REF!&CHAR(10) -> 
A125: =" "&#REF!&": "&#REF!&CHAR(10) -> 
A126: =" "&#REF!&": "&#REF!&CHAR(10) -> 
A127: =" "&#REF!&": "&#REF!&CHAR(10) -> 
A128: =" "&#REF!&": "&#REF!&CHAR(10) ->  | B128: =IF(LEN(A128)>8,A128,"") -> 
A129: =" "&#REF!&": "&#REF!&CHAR(10) -> 
A130: =" "&#REF!&": "&#REF!&CHAR(10) -> 
A131: =" "&#REF!&": "&#REF!&CHAR(10) -> 
A132: =" "&#REF!&": "&#REF!&CHAR(10) -> 
A133: =" "&#REF!&": "&#REF!&CHAR(10) -> 
A134: =" "&#REF!&": "&#REF!&CHAR(10) -> 
A135: =" "&#REF!&": "&#REF!&CHAR(10) -> 
A136: =" "&#REF!&": "&#REF!&CHAR(10) -> 
A137: =" "&#REF!&": "&#REF!&CHAR(10) -> 
A138: =" "&#REF!&": "&#REF!&CHAR(10) -> 
A139: =" "&#REF!&": "&#REF!&CHAR(10) -> 
A140: =" "&#REF!&": "&#REF!&CHAR(10) -> 
A141: =" "&#REF!&": "&#REF!&CHAR(10) -> 
A142: =" "&#REF!&": "&#REF!&CHAR(10) -> 
A143: =" "&#REF!&": "&#REF!&CHAR(10) -> 
A144: =" "&#REF!&": "&#REF!&CHAR(10) -> 
A145: =" "&#REF!&": "&#REF!&CHAR(10) -> 
A146: =" "&#REF!&": "&#REF!&CHAR(10) -> 
A147: =" "&#REF!&": "&#REF!&CHAR(10) -> 
A148: =" "&#REF!&": "&#REF!&CHAR(10) -> 
A149: =" "&#REF!&": "&#REF!&CHAR(10) -> 
A150: =" "&#REF!&": "&#REF!&CHAR(10) -> 
A151: =" "&#REF!&": "&#REF!&CHAR(10) -> 
A152: =" "&#REF!&": "&#REF!&CHAR(10) -> 
A153: =" "&#REF!&": "&#REF!&CHAR(10) -> 
A154: =" "&#REF!&": "&#REF!&CHAR(10) -> 
A155: =" "&#REF!&": "&#REF!&CHAR(10) -> 
A156: =" "&#REF!&": "&#REF!&CHAR(10) -> 
A157: =" "&#REF!&": "&#REF!&CHAR(10) -> 
A158: =" "&#REF!&": "&#REF!&CHAR(10) -> 
A159: =" "&#REF!&": "&#REF!&CHAR(10) -> 
A160: =" "&#REF!&": "&#REF!&CHAR(10) -> 
A161: =" "&#REF!&": "&#REF!&CHAR(10) -> 
A162: =" "&#REF!&": "&#REF!&CHAR(10) -> 
A163: =" "&#REF!&": "&#REF!&CHAR(10) -> 
A164: =" "&#REF!&": "&#REF!&CHAR(10) -> 
A165: =" "&#REF!&": "&#REF!&CHAR(10) -> 
A166: =" "&#REF!&": "&#REF!&CHAR(10) -> 
A167: =" "&#REF!&": "&#REF!&CHAR(10) -> 
A169: BCM | B169: =#REF! -> 
A170: Loan | B170: =#REF! -> 
A172: Teachers sum product | L172: =SUMPRODUCT(--(TeaLed=B172),--(TeaCos=C172),TeaFor) -> 
A173: Non Teachers sum product | L173: =SUMPRODUCT(--(NonLed=B173),--(NonCos=C173),NonFor) -> 
G175: April | H175: 1
A176: =#REF! ->  | B176: =VLOOKUP(A176,G175:H186,2,0) ->  | G176: May | H176: 2
A177: Income | B177: £ | G177: June | H177: 3
A178: =B176&"/12th of Fixed Budget" ->  | B178: =C178/12*$B$176 ->  | C178: =#REF! ->  | G178: July | H178: 4
A179: =B176&"/12th of Year end Forecast" ->  | B179: =C179/12*$B$176 ->  | C179: =#REF! ->  | G179: August | H179: 5
A180: Actual Income | B180: =#REF! ->  | G180: September | H180: 6
G181: October | H181: 7
A182: Expenditure | B182: £ | G182: November | H182: 8
A183: =A178 ->  | B183: =C183/12*$B$176 ->  | C183: =#REF! ->  | G183: December | H183: 9
A184: =A179 ->  | B184: =C184/12*$B$176 ->  | C184: =#REF! ->  | G184: January | H184: 10
A185: Actual Expenditure | B185: =#REF! ->  | G185: February | H185: 11
G186: March | H186: 12
A187: Year End | B187: £
A188: Original Budget | B188: =#REF! -> 
A189: Year end Forecast | B189: =#REF! -> 

Sheet Year 1
D2: DfE Number
E5: Phase | F5: =VLOOKUP($E$2,Data!$A$3:$AH$544,3,0) -> 
B9: =VLOOKUP($E$2,Data!$A$3:$AH$544,2,0) ->  | C9: 1 | D9: 1 | E9: 1 | F9: 1
B11: Formula Budget
D12: Pupils | E12: Rate | F12: Total
B13: Factor 1 | C13: =IF(VLOOKUP($E$2,Data!$A$3:$AH$544,22,0)=0,"Basic Entitlement Primary","Basic Entitlement Primary (less "&VLOOKUP($E$2,Data!$A$3:$AH$544,22,0)&" SRP )Pupils)") ->  | D13: =VLOOKUP($E$2,Data!$A$3:$AH$544,6,0)-D14 ->  | E13: 2727.106287 | F13: =D13*E13 -> 
C14: Basic Entitlement Reception Uplift | D14: =VLOOKUP($E$2,Data!$A$3:$AL$544,35,0) ->  | E14: 2727.106287 | F14: =D14*E14 -> 
C15: =IF(VLOOKUP($E$2,Data!$A$3:$AH$544,23,0)=0,"Basic Entitlement Key Stage 3","Basic Entitlement Key Stage 3 (less "&VLOOKUP($E$2,Data!$A$3:$AH$544,23,0)&" SRP Pupils)") ->  | D15: =VLOOKUP($E$2,Data!$A$3:$AH$544,7,0) ->  | E15: 3788.255859 | F15: =D15*E15 -> 
C16: =IF(VLOOKUP($E$2,Data!$A$3:$AH$544,24,0)=0,"Basic Entitlement Key Stage 4","Basic Entitlement Key Stage 4 (less "&VLOOKUP($E$2,Data!$A$3:$AH$544,24,0)&" SRP Pupils)") ->  | D16: =VLOOKUP($E$2,Data!$A$3:$AH$544,8,0) ->  | E16: 4157.108229 | F16: =D16*E16 -> 
C17: Total AWPU Funding | D17: =F13+F14+F15+F16 -> 
B18: Factor 2 | C18: Deprivation FSM | D18: =VLOOKUP($E$2,Data!$A$3:$AH$544,9,0) ->  | E18: =IF($F$5=1,G18,IF($F$5=2,H18,0)) ->  | F18: =D18*E18 ->  | G18: 359.1004788 | H18: 334.3994368
C19: Deprivation IDACI Band 1 | D19: =VLOOKUP($E$2,Data!$A$3:$AH$544,10,0) ->  | E19: =IF($F$5=1,G19,IF($F$5=2,H19,0)) ->  | F19: =D19*E19 ->  | G19: 414.7299971 | H19: 446.7599947
C20: Deprivation IDACI Band 2 | D20: =VLOOKUP($E$2,Data!$A$3:$AH$544,11,0) ->  | G20: 435.469997 | H20: 469.0999945
C21: Deprivation IDACI Band 3 | D21: =VLOOKUP($E$2,Data!$A$3:$AH$544,12,0) ->  | G21: 468.1299968 | H21: 504.2799941
C22: Deprivation IDACI Band 4 | D22: =VLOOKUP($E$2,Data!$A$3:$AH$544,13,0) ->  | G22: 514.9399964 | H22: 554.7099935
C23: Deprivation IDACI Band 5 | D23: =VLOOKUP($E$2,Data!$A$3:$AH$544,14,0) ->  | G23: 566.4399961 | H23: 610.1799928
C24: Deprivation IDACI Band 6 | D24: =VLOOKUP($E$2,Data!$A$3:$AH$544,15,0) ->  | G24: 708.0499951 | H24: 762.719991
C25: Total Deprivation Funding | D25: =SUM(F18:F24) -> 
B26: Factor 3 | C26: Looked After Children | D26: =VLOOKUP($E$2,Data!$A$3:$AH$544,16,0) ->  | E26: 525.4170156 | F26: =D26*E26 -> 
B27: Factor 4 | C27: English as an additional language | D27: =VLOOKUP($E$2,Data!$A$3:$AH$544,18,0) ->  | E27: =IF($F$5=1,G27,IF($F$5=2,H27,0)) ->  | F27: =D27*E27 ->  | G27: 884.9368831 | H27: 3343.990215
B28: Factor 6 | C28: Low cost, high incidence SEN | D28: =VLOOKUP($E$2,Data!$A$3:$AH$544,17,0) ->  | E28: =IF($F$5=1,G28,IF($F$5=2,H28,0)) ->  | F28: =D28*E28 ->  | G28: 1052.488745 | H28: 1105.54127
B29: Factor 7 | C29: Lump Sum | F29: =IF(E2=1001,0,120000) -> 120000
B30: Factor 9 | C30: London Fringe (if applicable) | D30: (1.63% of Factors 1 to 6) | F30: =IF(VLOOKUP($E$2,Data!$A$3:$AH$544,21,0)=0,0,(D17+D25+F26+F28+F27+F29)*0.0163161664734) -> 
B31: Factor 11 | C31: Rates | D31: (Actual) | F31: =VLOOKUP($E$2,Data!$A$3:$AH$544,19,0) -> 
B32: Factor 12 | C32: PFI funding (if applicable) | F32: =VLOOKUP($E$2,Data!$A$3:$AH$544,20,0) -> 
C34: Formula Factors Total | F34: =D17+D25+SUM(F26:F32) -> 
C36: Minimum Funding Guarantee | F36: =mfgadj -> 
C38: Place Plus Element 3 | F38: ='Place Plus'!F109 -> 0
C39: Place Plus Resourced Provision | F39: =IF(Year1DfE=1001,0,'Place Plus Resourced Provision'!E73) -> 0
C40: AEN/SEN Top Up | F40: ='Place Plus'!F108 -> 
C42: Early Years | F42: ='Early Years'!J46 -> 
C44: Estimated Growth Funding | F44: ='Growth Funding'!H38 -> 
C46: Revenue Budget Total | F46: =F34+F36+F38+F39+F40+F42+F44 -> 
C48: De-delegation (Approved by Schools Funding Forum on 13/12/13) | F48: =F72 -> 0
C50: Revised Revenue Budget (Total minus De-Delegation) | F50: =F46-F48 -> 
B53: Estimated Pupil Premium
D54: Units | E54: Rate | F54: Total
C55: Free School Meals Primary | E55: =IF(Year1DfE=1001,0,1300) -> 1300 | F55: =D55*E55 -> 0
C56: Free School Meals Secondary | E56: =IF(Year1DfE=1001,0,935) -> 935 | F56: =D56*E56 -> 0
C57: Adopted (Post-LAC) pupils | E57: =IF(Year1DfE=1001,0,1900) -> 1900 | F57: =D57*E57 -> 0
C58: Funding agreed with virtual schools head teachers
C59: Service Children | E59: =IF(Year1DfE=1001,0,300) -> 300 | F59: =D59*E59 -> 0
C61: Total Pupil Premium | F61: =SUM(F55:F59) -> 0
B64: Delegation and De-Delegation
D65: Rate | E65: Total | F65: De-Delegation
B66: 1.1.1 | C66: Schools in financial difficulties | D66: =IF(ISERROR(IF($F$5=1,G66,IF($F$5=2,H66,0))),0,IF($F$5=1,G66,IF($F$5=2,H66,0))) -> 0 | E66: =D66*SUM($D$13:$D$16) ->  | F66: =IF(ISERROR(E66),0,E66) -> 0 | G66: 18.81 | H66: 9.45
B67: 1.5.2 | C67: Free School Meals Eligibility | D67: =IF(ISERROR(IF($F$5=1,G67,IF($F$5=2,H67,0))),0,IF($F$5=1,G67,IF($F$5=2,H67,0))) -> 0 | E67: =D67*SUM($D$13:$D$16) ->  | F67: 0 | G67: 0.57 | H67: 0.57
B68: 1.6.4 | C68: Licences and Subscriptions (SIMS) | D68: =IF(ISERROR(IF($F$5=1,G68,IF($F$5=2,H68,0))),0,IF($F$5=1,G68,IF($F$5=2,H68,0))) -> 0 | F68: 0 | G68: 3.63 | H68: 3.63
B69: 1.6.7 | C69: Trade Union Duties | D69: =IF(ISERROR(IF($F$5=1,G69,IF($F$5=2,H69,0))),0,IF($F$5=1,G69,IF($F$5=2,H69,0))) -> 0 | F69: 0 | G69: 1.85 | H69: 1.85
B70: 1.6.7 | C70: Schools Personnel Service | D70: =IF(ISERROR(IF($F$5=1,G70,IF($F$5=2,H70,0))),0,IF($F$5=1,G70,IF($F$5=2,H70,0))) -> 0 | F70: 0 | G70: 0.8 | H70: 0.8
C71: London Fringe | E71: =IF(Year1F10>0,SUM(E66:E70)*0.0163161664734,0) ->  | F71: 0
C72: Totals | D72: =SUM(D66:D71) -> 0 | E72: =SUM(E66:E71) ->  | F72: =SUM(F66:F71) -> 0

Sheet Year 2
E2: =Year1DfE -> 0
B7: =VLOOKUP(Year1DfE,Data!$A$3:$AH$544,2,0) -> 
B9: 2015/16 Budget Projection
B11: 2014/15 School Budget | E11: =SUM('Year 1'!F46-'Year 1'!F44) -> 
B13: Less Early Years | E13: ='Year 1'!F42 -> 
B14: Less High Needs | E14: =SUM('Year 1'!F38:F40) -> 
B15: Less Rates | E15: =Year1F8 -> 
B16: Less Lump Sum | E16: =IF(E2=1001,0,IF(Year1F10>0,120000*1.0163161664734,120000)) -> 
B18: MFG Baseline | E18: =E11-SUM(E13:E16) -> 
B19: October 2013 Pupils Plus Yr R Uplift | E19: =SUM('Year 1'!D13:D16) -> 
B20: MFG per Pupil | E20: =IF(E2=1001,0,E18/E19) -> 
B22: MFG Reduction | E22: 0.015
B23: Reduced MFG per Pupil | E23: =E20-(E20*E22) -> 
B25: October 2014 Pupils Plus Yr R Uplift
B26: MFG Excluding Exempt Items | E26: =E23*E25 -> 
B28: Plus Early Years | E28: ='Early Years'!J49 -> 0
B29: Plus High Needs | E29: ='Place Plus'!D60+'Place Plus'!C79+SUM('Place Plus'!C105:F105)+tpf+SUM('Place Plus Resourced Provision'!C68:F68) -> 
B30: Plus Rates | E30: =E15 -> 
B31: Plus Lump Sum | E31: =E16 -> 
B33: 2015/2016 MFG Budget | E33: =E26+SUM(E28:E31) -> 
B36: Pupil Premium
C37: Units | D37: Estimated Rate | E37: Total
B38: Free School Meals Primary | D38: =IF(Year1DfE=1001,0,1300) -> 1300 | E38: =C38*D38 -> 0
B39: Free School Meals Secondary | D39: =IF(Year1DfE=1001,0,935) -> 935 | E39: =C39*D39 -> 0
B40: Adopted (Post-LAC) pupils | D40: =IF(Year1DfE=1001,0,1900) -> 1900 | E40: =C40*D40 -> 0
B41: Funding agreed with virtual schools head teachers
B42: Service Children | D42: =IF(Year1DfE=1001,0,300) -> 300 | E42: =C42*D42 -> 0
B44: Total Pupil Premium | E44: =SUM(E38:E42) -> 0

Sheet Year 3
E2: =Year1DfE -> 0
B7: =VLOOKUP(Year1DfE,Data!$A$3:$AH$544,2,0) -> 
B9: 2016/17 Budget Projection
B11: 2015/16 School Budget | E11: ='Year 2'!E33 -> 
B13: Less Early Years | E13: ='Year 2'!E28 -> 0
B14: Less High Needs | E14: ='Year 2'!E29 -> 
B15: Less Rates | E15: ='Year 2'!E30 -> 
B16: Less Lump Sum | E16: ='Year 2'!E16 -> 
B18: MFG Baseline | E18: =E11-SUM(E13:E16) -> 
B19: October 2014 Pupils Plus Yr R Uplift | E19: ='Year 2'!E25 -> 0
B20: MFG per Pupil | E20: =IF(ISERROR(SUM(E18/E19)),0,SUM(E18/E19)) -> 0
B22: MFG Reduction | E22: ='Year 2'!E22 -> 0.015
B23: Reduced MFG per Pupil | E23: =E20-(E20*E22) -> 0
B25: October 2015 Pupils Plus Yr R Uplift
B26: MFG Excluding Exempt Items | E26: =E23*E25 -> 0
B28: Plus Early Years | E28: ='Early Years'!J50 -> 0
B29: Plus High Needs | E29: ='Place Plus'!D61+'Place Plus'!C80+SUM('Place Plus'!C106:F106)+tpf+SUM('Place Plus Resourced Provision'!C69:F69) -> 
B30: Plus Rates | E30: =E15 -> 
B31: Plus Lump Sum | E31: =E16 -> 
B33: 2015/2016 MFG Budget | E33: =IF(ISERROR(E26+SUM(E28:E31)),0,E26+SUM(E28:E31)) -> 0
B36: Pupil Premium
C37: Units | D37: Estimated Rate | E37: Total
B38: Free School Meals Primary | D38: =IF(Year1DfE=1001,0,1300) -> 1300 | E38: =C38*D38 -> 0
B39: Free School Meals Secondary | D39: =IF(Year1DfE=1001,0,935) -> 935 | E39: =C39*D39 -> 0
B40: Adopted (Post-LAC) pupils | D40: =IF(Year1DfE=1001,0,1900) -> 1900 | E40: =C40*D40 -> 0
B41: Funding agreed with virtual schools head teachers
B42: Service Children | D42: =IF(Year1DfE=1001,0,300) -> 300 | E42: =C42*D42 -> 0
B44: Total Pupil Premium | E44: =SUM(E38:E42) -> 0

Sheet Early Years
K2: =Year1DfE -> 0
C5: =VLOOKUP(Year1DfE,Data!$A$3:$AH$544,2,0) -> 
A7: 2014/15 Early Years Budget Estimation
B9: Hourly Rate | G9: Hourly rate
B10: Base rate | G10: =IF(Preschoolind=1,3.9,0) -> 0
B11: Qualified Teacher Supplement | G11: =IF(Preschoolind=1,0.9,0) -> 0
B12: Disadvantage supplement | G12: =VLOOKUP(K2,Data!A:BM,65,0) -> 
G13: =SUM(G10:G12) -> 
B15: Please Enter your Pupil Numbers
B17: Please only enter qualifying pupils (follow link for guidance)
C18: 2014/15 | F18: 2015/16 | I18: 2016/17
B19: Pupils Early Years Hours | C19: Summer | D19: Autumn | E19: Spring | F19: Summer | G19: Autumn | H19: Spring | I19: Summer | J19: Autumn | K19: Spring
B20: 1
B21: 2
B22: 3
B23: 4
B24: 5
B25: 6
B26: 7
B27: 8
B28: 9
B29: 10
B30: 11
B31: 12
B32: 13
B33: 14
B34: 15
B35: Total pupils: | C35: =SUM(C20:C34) -> 0 | D35: =SUM(D20:D34) -> 0 | E35: =SUM(E20:E34) -> 0 | F35: =SUM(F20:F34) -> 0 | G35: 0 | H35: 0 | I35: 0 | J35: 0 | K35: 0
B36: Total Weekly Hours: | C36: =(1*C20)+(2*C21)+(3*C22)+(4*C23)+(5*C24)+(6*C25)+(7*C26)+(8*C27)+(9*C28)+(10*C29)+(11*C30)+(12*C31)+(13*C32)+(14*C33)+(15*C34) -> 0 | D36: =(1*D20)+(2*D21)+(3*D22)+(4*D23)+(5*D24)+(6*D25)+(7*D26)+(8*D27)+(9*D28)+(10*D29)+(11*D30)+(12*D31)+(13*D32)+(14*D33)+(15*D34) -> 0 | E36: =(1*E20)+(2*E21)+(3*E22)+(4*E23)+(5*E24)+(6*E25)+(7*E26)+(8*E27)+(9*E28)+(10*E29)+(11*E30)+(12*E31)+(13*E32)+(14*E33)+(15*E34) -> 0 | F36: 0 | G36: 0 | H36: 0 | I36: 0 | J36: 0 | K36: 0
B37: Total Hours for Term: | C37: =C36*H40 -> 0 | D37: =D36*H41 -> 0 | E37: =E36*H42 -> 0
F39: Weekly Hours | H39: Weeks
B40: Summer term 2014 | F40: =C36 -> 0 | H40: 12 | J40: =F40*H40 -> 0
B41: Autumn term 2014 | F41: =D36 -> 0 | H41: 14 | J41: =F41*H41 -> 0
B42: Spring term 2015 | F42: =E36 -> 0 | H42: 11 | J42: =F42*H42 -> 0
B43: Total hours for 2014/15: | J43: =SUM(J40:J42) -> 0
B44: Hourly rate: | J44: =G13 -> 
B45: =IF(K2=1001,"Nursery Lump Sum","") ->  | J45: =IF(K2=1001,87036,0) -> 0
B46: Total 2014/15 Estimated Budget: | J46: =IF(K2=1001,(J43*J44)+J45,(J43*J44)) -> 
B49: Total 2015/16 Estimated Budget: | J49: =(((IF(ISERROR(((J46-J45)/SUM(C36:E36))*SUM(F36:H36)),0,((J46-J45)/SUM(C36:E36))*SUM(F36:H36))))/37)*38+IF(K2=1001,J45,0) -> 0
B50: Total 2016/17 Estimated Budget: | J50: =(((IF(ISERROR(((J46-J45)/SUM(C36:E36))*SUM(I36:K36)),0,((J46-J45)/SUM(C36:E36))*SUM(I36:K36))))/37)*38+IF(K2=1001,J45,0) -> 0

Sheet Data (hidden)
A1: 1 | B1: 2 | C1: 3 | D1: 4 | E1: 5 | F1: 6 | G1: 7 | H1: 8 | I1: 9 | J1: 10 | K1: 11 | L1: 12 | M1: 13 | N1: 14 | O1: 15 | P1: 16 | Q1: 17 | R1: 18 | S1: 19 | T1: 20 | U1: 21 | V1: 22 | W1: 23 | X1: 24 | Y1: 25 | Z1: 26 | AA1: 27 | AB1: 28 | AC1: 29 | AD1: 30 | AE1: 31 | AF1: 32 | AG1: 33 | AH1: 34 | AI1: 35 | AJ1: 36 | AK1: 37 | AL1: 38 | AM1: 39 | AN1: 40 | AO1: 41 | AP1: 42 | AQ1: 43 | AR1: 44 | AS1: 45 | AT1: 46 | AU1: 47 | AV1: 48 | AW1: 49 | AX1: 50 | AY1: 51 | AZ1: 52 | BA1: 53 | BB1: 54 | BC1: 55 | BD1: 56 | BE1: 57 | BF1: 58 | BG1: 59 | BH1: 60 | BI1: 61 | BJ1: 62 | BK1: 63 | BL1: 64 | BM1: 65 | BN1: 66
A2: MI DfE no | B2: School Name | C2: Phase | D2: Type | E2: District | F2: AWPU Primary | G2: AWPU Key Stage 3 | H2: AWPU Key Stage 4 | I2: Deprivation FSM | J2: Deprivation IDACI Band 1 | K2: Deprivation IDACI Band 2 | L2: Deprivation IDACI Band 3 | M2: Deprivation IDACI Band 4 | N2: Deprivation IDACI Band 5 | O2: Deprivation IDACI Band 6 | P2: Looked After Children | Q2: Low cost, high incidence SEN | R2: English as an additional language | S2: Rates | T2: PFI funding (if applicable) | U2: London Fringe (if applicable) | V2: Primary Age Unit Pupils | W2: Key Stage 3 Unit Pupils | X2: Key Stage 4 Unit Pupils | Y2: PP FSM Primary | Z2: PP FSM Secondary | AA2: 2012/13 Formula Budget | AB2: 2012/13 In Year Adjustments Within Guarantee | AC2: 4/12 Catering for Schools taking Delegation from August 2012 | AD2: Less Early Years | AE2: Less High Needs | AF2: Less Rates | AG2: Previous Pupils | AH2: MFG Further Delegation | AI2: Reception uplift | AJ2: PFI | AK2: Pre 16 Places | AL2: Post 16 Places | AM2: Element 3 Pre 16 Des 1 | AN2: Element 3 Post 16 Des 2 | AO2: Element 3 Pre 16 Des 2 | AP2: Element 3 Pre 16 Des 2 | AQ2: Pre School Ind | AR2: Unit Ind | AS2: ASD | AT2: PDHI & VI | AU2: SLCN & SPLD | AV2: SLD | AW2: ASD | AX2: PDHI & VI | AY2: SLCN & SPLD | AZ2: SLD | BA2: IAR Funding assigned to empty places | BB2: AWPU | BC2: FSM | BD2: IDACI | BE2: LAC | BF2: SEN | BG2: EAL | BH2: London Fringe | BI2: Post-16 Funding Rate | BJ2: Summer 2012 | BK2: Autumn 2012 | BL2: Spring 2013 | BM2: Dis Supplement | BN2: Subscribers
A3: 1001 | B3: Northfleet Nursery | C3: 6 | E3: Gravesham | AA3: 0 | AF3: 0 | AG3: 0 | AQ3: 1 | AR3: 0 | BM3: 0.16
A4: 2000 | B4: St Johns C of E Primary School | C4: 1 | E4: Canterbury | F4: 325 | G4: 0 | H4: 0 | I4: 140.8668731 | J4: 68.42105263 | K4: 1.00619195 | L4: 75.46439628 | M4: 123.7616099 | N4: 0 | O4: 0 | P4: 4.180064309 | Q4: 78.06982664 | R4: 46.08208955 | S4: 23464 | T4: 0 | U4: 0 | Y4: 167 | Z4: 0 | AA4: 1420288.854 | AF4: 22678 | AG4: 307 | AI4: 2 | AQ4: 1 | AR4: 0 | BM4: 0.43
A5: 2002 | B5: Repton Manor Primary School | C5: 1 | E5: Ashford | F5: 218 | G5: 0 | H5: 0 | I5: 33.61682243 | J5: 7.130841121 | K5: 10.18691589 | L5: 10.18691589 | M5: 6.112149533 | N5: 0 | O5: 0 | P5: 0 | Q5: 59.52919021 | R5: 48.44444444 | S5: 49164 | T5: 0 | U5: 0 | Y5: 39 | Z5: 0 | AA5: 656135.0486 | AF5: 30000 | AG5: 144 | AI5: 4 | AQ5: 0 | AR5: 0 | BM5: 0
A6: 2062 | B6: Darenth Community Primary School | C6: 1 | E6: Dartford | F6: 128 | G6: 0 | H6: 0 | I6: 29.22834646 | J6: 50.39370079 | K6: 6.047244094 | L6: 2.015748031 | M6: 3.023622047 | N6: 0 | O6: 0 | P6: 0 | Q6: 45.60451977 | R6: 5.663716814 | S6: 8917 | T6: 0 | U6: 1 | Y6: 59 | Z6: 0 | AA6: 641621.3755 | AF6: 8695 | AG6: 140 | AI6: 1 | AQ6: 0 | AR6: 0 | BM6: 0
A7: 2065 | B7: Discovery School, The | C7: 1 | E7: Tonbridge and Malling | F7: 526 | G7: 0 | H7: 0 | I7: 31 | J7: 5.028680688 | K7: 1.005736138 | L7: 0 | M7: 6.034416826 | N7: 0 | O7: 0 | P7: 2.205450734 | Q7: 74.15269162 | R7: 27.74770642 | S7: 32294 | T7: 0 | U7: 0 | Y7: 43 | Z7: 0 | AA7: 1590301.841 | AF7: 26912 | AG7: 476 | AI7: 0 | AQ7: 0 | AR7: 0 | BM7: 0
A8: 2066 | B8: Maypole Primary School | C8: 1 | E8: Dartford | F8: 323 | G8: 0 | H8: 0 | I8: 39.12111801 | J8: 60.1863354 | K8: 11.03416149 | L8: 3.00931677 | M8: 2.00621118 | N8: 0 | O8: 0 | P8: 1.113793103 | Q8: 81.71166425 | R8: 14.73764259 | S8: 29643 | T8: 0 | U8: 1 | Y8: 45 | Z8: 0 | AA8: 1041759.167 | AF8: 28905 | AG8: 282 | AI8: 1 | AQ8: 0 | AR8: 0 | BM8: 0
A9: 2069 | B9: St Albans Road Infant School | C9: 1 | E9: Dartford | F9: 264 | G9: 0 | H9: 0 | I9: 39.44827586 | J9: 8.091954023 | K9: 42.48275862 | L9: 6.068965517 | M9: 12.13793103 | N9: 0 | O9: 0 | P9: 1.023255814 | Q9: 59.51628994 | R9: 54 | S9: 13135 | T9: 0 | U9: 1 | Y9: 52 | Z9: 0 | AA9: 1006320.167 | AF9: 12808 | AG9: 258 | AI9: 3 | AQ9: 1 | AR9: 0 | BM9: 0
A10: 2072 | B10: Westgate Primary School | C10: 1 | E10: Dartford | F10: 204 | G10: 0 | H10: 0 | I10: 21 | J10: 17.16831683 | K10: 64.63366337 | L10: 48.47524752 | M10: 7.069306931 | N10: 0 | O10: 0 | P10: 0 | Q10: 32.24704619 | R10: 28.30057803 | S10: 28438 | T10: 0 | U10: 1 | Y10: 50 | Z10: 0 | AA10: 869527.1054 | AF10: 27730 | AG10: 201 | AI10: 0 | AQ10: 0 | AR10: 0 | BM10: 0
A11: 2088 | B11: Crockenhill Primary School | C11: 1 | E11: Sevenoaks | F11: 201 | G11: 0 | H11: 0 | I11: 22 | J11: 23 | K11: 0 | L11: 19 | M11: 23 | N11: 0 | O11: 0 | P11: 0.9757281553 | Q11: 31.86976293 | R11: 1.175438596 | S11: 11005 | T11: 0 | U11: 1 | Y11: 26 | Z11: 0 | AA11: 768564.9252 | AF11: 10690 | AG11: 204 | AI11: 0 | AQ11: 0 | AR11: 0 | BM11: 0
A12: 2089 | B12: Anthony Roper Primary School, The | C12: 1 | E12: Sevenoaks | F12: 316 | G12: 0 | H12: 0 | I12: 11.78305085 | J12: 13.92542373 | K12: 1.071186441 | L12: 0 | M12: 1.071186441 | N12: 0 | O12: 0 | P12: 0.9813664596 | Q12: 43.55722382 | R12: 4.664206642 | S12: 4651 | T12: 0 | U12: 1 | Y12: 12 | Z12: 0 | AA12: 1074288.255 | AF12: 4536 | AG12: 301 | AI12: 21 | AQ12: 0 | AR12: 0 | BM12: 0
A13: 2094 | B13: Cobham Primary School | C13: 1 | E13: Gravesham | F13: 219 | G13: 0 | H13: 0 | I13: 8 | J13: 14 | K13: 1 | L13: 11 | M13: 2 | N13: 0 | O13: 0 | P13: 0 | Q13: 19.78970223 | R13: 8.154255319 | S13: 12050 | T13: 0 | U13: 0 | Y13: 12 | Z13: 0 | AA13: 742515.7627 | AF13: 11750 | AG13: 215 | AI13: 0 | AQ13: 0 | AR13: 0 | BM13: 0
A14: 2095 | B14: Cecil Road Primary and Nursery School | C14: 1 | E14: Gravesham | F14: 366 | G14: 0 | H14: 0 | I14: 32.32478632 | J14: 74.03418803 | K14: 8.341880342 | L14: 11.47008547 | M14: 6.256410256 | N14: 6.256410256 | O14: 0 | P14: 0 | Q14: 77.94680344 | R14: 75.72413793 | S14: 25305 | T14: 0 | U14: 0 | Y14: 53 | Z14: 0 | AA14: 1358246.039 | AF14: 24675 | AG14: 357 | AI14: 15 | AQ14: 1 | AR14: 0 | BM14: 0.05
A15: 2109 | B15: Higham Primary School | C15: 1 | E15: Gravesham | F15: 208 | G15: 0 | H15: 0 | I15: 14 | J15: 3.014492754 | K15: 6.028985507 | L15: 3.014492754 | M15: 1.004830918 | N15: 4.019323671 | O15: 0 | P15: 0 | Q15: 25.3441333 | R15: 1.168539326 | S15: 13978 | T15: 0 | U15: 0 | Y15: 27 | Z15: 0 | AA15: 759118.5456 | AF15: 13630 | AG15: 216 | AI15: 0 | AQ15: 0 | AR15: 0 | BM15: 0
A16: 2110 | B16: Culverstone Green Primary School | C16: 1 | E16: Gravesham | F16: 198 | G16: 0 | H16: 0 | I16: 17 | J16: 24.12182741 | K16: 11.05583756 | L16: 4.020304569 | M16: 4.020304569 | N16: 0 | O16: 0 | P16: 1.07027027 | Q16: 36.2604722 | R16: 0 | S16: 9881 | T16: 0 | U16: 0 | Y16: 29 | Z16: 0 | AA16: 665419.244 | AF16: 9635 | AG16: 180 | AI16: 0 | AQ16: 0 | AR16: 0 | BM16: 0
A17: 2116 | B17: Lawn Primary School | C17: 1 | E17: Gravesham | F17: 177 | G17: 0 | H17: 0 | I17: 80 | J17: 22 | K17: 6 | L17: 43 | M17: 91 | N17: 3 | O17: 0 | P17: 2.13253012 | Q17: 71.94028078 | R17: 38.53061224 | S17: 13617 | T17: 0 | U17: 0 | Y17: 94 | Z17: 0 | AA17: 831334.1728 | AF17: 12455 | AG17: 164 | AI17: 0 | AQ17: 1 | AR17: 0 | BM17: 0.68
A18: 2119 | B18: Shears Green Infant School | C18: 1 | E18: Gravesham | F18: 361 | G18: 0 | H18: 0 | I18: 53 | J18: 97.54038997 | K18: 17.09470752 | L18: 14.07799443 | M18: 3.016713092 | N18: 6.033426184 | O18: 0 | P18: 2 | Q18: 70.55639376 | R18: 26.9626556 | S18: 20124 | T18: 0 | U18: 0 | Y18: 68 | Z18: 0 | AA18: 1344121.585 | AF18: 19623 | AG18: 361 | AI18: 0 | AQ18: 0 | AR18: 0 | BM18: 0
A19: 2120 | B19: Bean Primary School | C19: 1 | E19: Dartford | F19: 193 | G19: 0 | H19: 0 | I19: 21 | J19: 8.126315789 | K19: 12.18947368 | L19: 10.15789474 | M19: 10.15789474 | N19: 0 | O19: 0 | P19: 1.015789474 | Q19: 44.75362319 | R19: 9.136094675 | S19: 10122 | T19: 0 | U19: 1 | Y19: 33 | Z19: 0 | AA19: 734945.9134 | AF19: 9870 | AG19: 192 | AI19: 0 | AQ19: 0 | AR19: 0 | BM19: 0
A20: 2123 | B20: Knockhall Community Primary School | C20: 1 | E20: Dartford | F20: 417 | G20: 0 | H20: 0 | I20: 64.15384615 | J20: 27.06490385 | K20: 138.3317308 | L20: 3.007211538 | M20: 25.06009615 | N20: 0 | O20: 0 | P20: 1.032178218 | Q20: 100.5306053 | R20: 20.72807018 | S20: 25546 | T20: 0 | U20: 1 | Y20: 87 | Z20: 0 | AA20: 1481042.443 | AF20: 24910 | AG20: 403 | AI20: 1 | AQ20: 1 | AR20: 0 | BM20: 0
A21: 2127 | B21: Paddock Wood Primary School | C21: 1 | E21: Tunbridge Wells | F21: 568 | G21: 0 | H21: 0 | I21: 57 | J21: 117 | K21: 2 | L21: 1 | M21: 0 | N21: 0 | O21: 0 | P21: 3.903780069 | Q21: 81.85406198 | R21: 13.88187373 | S21: 51574 | T21: 0 | U21: 0 | Y21: 103 | Z21: 0 | AA21: 2017509.161 | AF21: 50290 | AG21: 587 | AI21: 0 | AQ21: 0 | AR21: 0 | BM21: 0
A22: 2128 | B22: Capel Primary School | C22: 1 | E22: Tunbridge Wells | F22: 199 | G22: 0 | H22: 0 | I22: 15 | J22: 0 | K22: 3 | L22: 0 | M22: 1 | N22: 0 | O22: 0 | P22: 0 | Q22: 14.22170057 | R22: 1.177514793 | S22: 13617 | T22: 0 | U22: 0 | Y22: 24 | Z22: 0 | AA22: 692475.4304 | AF22: 13278 | AG22: 193 | AI22: 0 | AQ22: 0 | AR22: 0 | BM22: 0
A23: 2130 | B23: Dunton Green Primary School | C23: 1 | E23: Sevenoaks | F23: 190 | G23: 0 | H23: 0 | I23: 27.14285714 | J23: 0 | K23: 0 | L23: 0 | M23: 0 | N23: 1.016042781 | O23: 0 | P23: 0 | Q23: 50.07857143 | R23: 6.826347305 | S23: 20847 | T23: 0 | U23: 1 | Y23: 48 | Z23: 0 | AA23: 722464.8144 | AF23: 20328 | AG23: 192 | AI23: 1 | AQ23: 0 | AR23: 0 | BM23: 0
A24: 2132 | B24: Hadlow School | C24: 1 | E24: Tonbridge and Malling | F24: 175 | G24: 0 | H24: 0 | I24: 21 | J24: 0 | K24: 0 | L24: 82.47126437 | M24: 0 | N24: 0 | O24: 0 | P24: 0.9831460674 | Q24: 40.97953216 | R24: 1.198630137 | S24: 13496 | T24: 0 | U24: 0 | Y24: 59 | Z24: 0 | AA24: 708103.0578 | AF24: 11247 | AG24: 174 | AI24: 0 | AQ24: 0 | AR24: 0 | BM24: 0
A25: 2133 | B25: Halstead Community Primary School | C25: 1 | E25: Sevenoaks | F25: 67 | G25: 0 | H25: 0 | I25: 17.796875 | J25: 0 | K25: 2.09375 | L25: 0 | M25: 0 | N25: 3.140625 | O25: 0 | P25: 0 | Q25: 8.739130435 | R25: 3.654545455 | S25: 6705 | T25: 0 | U25: 1 | Y25: 28 | Z25: 0 | AA25: 364592.6235 | AF25: 5742 | AG25: 73 | AI25: 3 | AQ25: 0 | AR25: 0 | BM25: 0
A26: 2134 | B26: Four Elms Primary School | C26: 1 | E26: Sevenoaks | F26: 115 | G26: 0 | H26: 0 | I26: 7 | J26: 29 | K26: 0 | L26: 16 | M26: 0 | N26: 0 | O26: 0 | P26: 1.00877193 | Q26: 15.12467076 | R26: 0 | S26: 10604 | T26: 0 | U26: 1 | Y26: 18 | Z26: 0 | AA26: 479606.7172 | AF26: 10340 | AG26: 115 | AI26: 0 | AQ26: 0 | AR26: 0 | BM26: 0
A27: 2135 | B27: Horsmonden Primary School | C27: 1 | E27: Tunbridge Wells | F27: 222 | G27: 0 | H27: 0 | I27: 9 | J27: 1.027777778 | K27: 0 | L27: 0 | M27: 0 | N27: 0 | O27: 0 | P27: 0 | Q27: 16.7618246 | R27: 2.32460733 | S27: 12050 | T27: 0 | U27: 0 | Y27: 21 | Z27: 0 | AA27: 802552.5932 | AF27: 11750 | AG27: 231 | AI27: 0 | AQ27: 0 | AR27: 0 | BM27: 0
A28: 2136 | B28: Kemsing Primary School | C28: 1 | E28: Sevenoaks | F28: 208 | G28: 0 | H28: 0 | I28: 11 | J28: 0 | K28: 0 | L28: 0 | M28: 0 | N28: 0 | O28: 0 | P28: 0 | Q28: 24.39864584 | R28: 7.011235955 | S28: 13014 | T28: 0 | U28: 1 | Y28: 26 | Z28: 0 | AA28: 787240.1723 | AF28: 12690 | AG28: 213 | AI28: 0 | AQ28: 0 | AR28: 0 | BM28: 0
A29: 2137 | B29: Leigh Primary School | C29: 1 | E29: Sevenoaks | F29: 151 | G29: 0 | H29: 0 | I29: 5 | J29: 0 | K29: 0 | L29: 0 | M29: 0 | N29: 0 | O29: 0 | P29: 0 | Q29: 25.92693525 | R29: 4.682170543 | S29: 10074 | T29: 0 | U29: 1 | Y29: 11 | Z29: 0 | AA29: 565200.5956 | AF29: 9823 | AG29: 149 | AI29: 0 | AQ29: 0 | AR29: 0 | BM29: 0
A30: 2138 | B30: Otford Primary School | C30: 1 | E30: Sevenoaks | F30: 341 | G30: 0 | H30: 0 | I30: 15.04411765 | J30: 0 | K30: 0 | L30: 2.005882353 | M30: 0 | N30: 0 | O30: 0 | P30: 0.9970760234 | Q30: 65.49081692 | R30: 6.959183673 | S30: 23859 | T30: 0 | U30: 1 | Y30: 24 | Z30: 0 | AA30: 1152107.571 | AF30: 15158 | AG30: 342 | AI30: 1 | AQ30: 0 | AR30: 0 | BM30: 0
A31: 2139 | B31: Pembury School | C31: 1 | E31: Tunbridge Wells | F31: 493 | G31: 0 | H31: 0 | I31: 20.04065041 | J31: 4.008130081 | K31: 18.03658537 | L31: 13.02642276 | M31: 9.018292683 | N31: 0 | O31: 0 | P31: 1.064794816 | Q31: 54.23937252 | R31: 19.42857143 | S31: 22654 | T31: 0 | U31: 0 | Y31: 32 | Z31: 0 | AA31: 1537330.892 | AF31: 22090 | AG31: 464 | AI31: 1 | AQ31: 0 | AR31: 0 | BM31: 0
A32: 2142 | B32: Sandhurst Primary School | C32: 1 | E32: Tunbridge Wells | F32: 156 | G32: 0 | H32: 0 | I32: 13 | J32: 12 | K32: 1 | L32: 0 | M32: 0 | N32: 0 | O32: 0 | P32: 0 | Q32: 26.0060241 | R32: 3.68503937 | S32: 17834 | T32: 0 | U32: 0 | Y32: 30 | Z32: 0 | AA32: 578050.3564 | AF32: 12856 | AG32: 147 | AI32: 0 | AQ32: 0 | AR32: 0 | BM32: 0
A33: 2147 | B33: Weald Community Primary School | C33: 1 | E33: Sevenoaks | F33: 149 | G33: 0 | H33: 0 | I33: 3 | J33: 2 | K33: 0 | L33: 0 | M33: 0 | N33: 0 | O33: 0 | P33: 0 | Q33: 7.040551478 | R33: 1.15503876 | S33: 10002 | T33: 0 | U33: 1 | Y33: 0 | Z33: 0 | AA33: 573246.2764 | AF33: 9753 | AG33: 157 | AI33: 0 | AQ33: 0 | AR33: 0 | BM33: 0
A34: 2148 | B34: Shoreham Village School | C34: 1 | E34: Sevenoaks | F34: 109 | G34: 0 | H34: 0 | I34: 11 | J34: 1 | K34: 0 | L34: 1 | M34: 0 | N34: 0 | O34: 0 | P34: 0 | Q34: 20.74663866 | R34: 2.344086022 | S34: 11207 | T34: 0 | U34: 1 | Y34: 17 | Z34: 0 | AA34: 426907.3049 | AF34: 10928 | AG34: 101 | AI34: 0 | AQ34: 0 | AR34: 0 | BM34: 0
A35: 2155 | B35: Slade Primary School | C35: 1 | E35: Tonbridge and Malling | F35: 306 | G35: 0 | H35: 0 | I35: 21.64630225 | J35: 0 | K35: 5.922580645 | L35: 0.9870967742 | M35: 1.974193548 | N35: 0 | O35: 0.9870967742 | P35: 2.961290323 | Q35: 62.13432594 | R35: 28.7593985 | S35: 14701 | T35: 0 | U35: 0 | Y35: 31 | Z35: 0 | AA35: 1013742.042 | AF35: 12251 | AG35: 300 | AI35: 1 | AQ35: 0 | AR35: 1 | BM35: 0
A36: 2156 | B36: Sussex Road Community Primary School | C36: 1 | E36: Tonbridge and Malling | F36: 404 | G36: 0 | H36: 0 | I36: 47.11662531 | J36: 0 | K36: 15.03722084 | L36: 2.004962779 | M36: 1.00248139 | N36: 0 | O36: 0 | P36: 0 | Q36: 51.04869629 | R36: 23.35260116 | S36: 39042 | T36: 0 | U36: 0 | Y36: 75 | Z36: 0 | AA36: 1421833.681 | AF36: 32536 | AG36: 400 | AI36: 1 | AQ36: 0 | AR36: 0 | BM36: 0
A37: 2161 | B37: Boughton Monchelsea Primary School | C37: 1 | E37: Maidstone | F37: 214 | G37: 0 | H37: 0 | I37: 7.066037736 | J37: 56.79620853 | K37: 0 | L37: 1.014218009 | M37: 0 | N37: 0 | O37: 3.042654028 | P37: 0 | Q37: 47.03021871 | R37: 0 | S37: 17473 | T37: 0 | U37: 0 | Y37: 21 | Z37: 0 | AA37: 746415.0406 | AF37: 17038 | AG37: 206 | AI37: 2 | AQ37: 0 | AR37: 0 | BM37: 0
A38: 2163 | B38: East Farleigh Primary School | C38: 1 | E38: Maidstone | F38: 205 | G38: 0 | H38: 0 | I38: 5.049261084 | J38: 5.049261084 | K38: 0 | L38: 1.009852217 | M38: 1.009852217 | N38: 7.068965517 | O38: 1.009852217 | P38: 0 | Q38: 13.29531754 | R38: 0 | S38: 13014 | T38: 0 | U38: 0 | Y38: 18 | Z38: 0 | AA38: 700840.7457 | AF38: 12690 | AG38: 202 | AI38: 2 | AQ38: 0 | AR38: 0 | BM38: 0
A39: 2164 | B39: East Peckham Primary School | C39: 1 | E39: Tonbridge and Malling | F39: 188 | G39: 0 | H39: 0 | I39: 20.21505376 | J39: 0 | K39: 0 | L39: 1.010752688 | M39: 0 | N39: 0 | O39: 0 | P39: 0 | Q39: 20.64538205 | R39: 0 | S39: 12653 | T39: 0 | U39: 0 | Y39: 35 | Z39: 0 | AA39: 652340.4621 | AF39: 10544 | AG39: 180 | AI39: 2 | AQ39: 0 | AR39: 0 | BM39: 0
A40: 2165 | B40: Headcorn Primary School | C40: 1 | E40: Maidstone | F40: 199 | G40: 0 | H40: 0 | I40: 13.06565657 | J40: 0 | K40: 0 | L40: 0 | M40: 0 | N40: 0 | O40: 1.036458333 | P40: 1.036458333 | Q40: 19.04286875 | R40: 9.476190476 | S40: 14460 | T40: 0 | U40: 0 | Y40: 18 | Z40: 0 | AA40: 681940.7538 | AF40: 14100 | AG40: 188 | AI40: 1 | AQ40: 0 | AR40: 0 | BM40: 0
A41: 2166 | B41: Hollingbourne Primary School | C41: 1 | E41: Maidstone | F41: 106 | G41: 0 | H41: 0 | I41: 7 | J41: 0 | K41: 0 | L41: 0 | M41: 0 | N41: 0 | O41: 1 | P41: 0 | Q41: 14.2462406 | R41: 3.533333333 | S41: 10725 | T41: 0 | U41: 0 | Y41: 11 | Z41: 0 | AA41: 420605.4114 | AF41: 10458 | AG41: 99 | AI41: 0 | AQ41: 0 | AR41: 0 | BM41: 0
A42: 2167 | B42: Ightham Primary School | C42: 1 | E42: Tonbridge and Malling | F42: 206 | G42: 0 | H42: 0 | I42: 4 | J42: 0 | K42: 0 | L42: 0 | M42: 0 | N42: 0 | O42: 0 | P42: 2.02955665 | Q42: 14.09610063 | R42: 3.511363636 | S42: 11689 | T42: 0 | U42: 0 | Y42: 8 | Z42: 0 | AA42: 691598.6293 | AF42: 9741 | AG42: 199 | AI42: 0 | AQ42: 0 | AR42: 0 | BM42: 0
A43: 2168 | B43: Lenham Primary School | C43: 1 | E43: Maidstone | F43: 207 | G43: 0 | H43: 0 | I43: 21.10194175 | J43: 2.019512195 | K43: 0 | L43: 0 | M43: 0 | N43: 0 | O43: 1.009756098 | P43: 2.985576923 | Q43: 46.77517241 | R43: 0 | S43: 12894 | T43: 0 | U43: 0 | Y43: 33 | Z43: 0 | AA43: 754378.7004 | AF43: 12573 | AG43: 205 | AI43: 1 | AQ43: 0 | AR43: 0 | BM43: 0
A44: 2169 | B44: Platts Heath Primary School | C44: 1 | E44: Maidstone | F44: 67 | G44: 0 | H44: 0 | I44: 6 | J44: 0 | K44: 0 | L44: 2 | M44: 0 | N44: 0 | O44: 2 | P44: 0 | Q44: 10.78598485 | R44: 0 | S44: 1832 | T44: 0 | U44: 0 | Y44: 14 | Z44: 0 | AA44: 326680.563 | AF44: 1786 | AG44: 66 | AI44: 0 | AQ44: 0 | AR44: 0 | BM44: 0
A45: 2170 | B45: Loose Junior School | C45: 1 | E45: Maidstone | F45: 366 | G45: 0 | H45: 0 | I45: 22 | J45: 23 | K45: 30 | L45: 6 | M45: 6 | N45: 4 | O45: 3 | P45: 1.011049724 | Q45: 17.62222222 | R45: 6.016438356 | S45: 19642 | T45: 0 | U45: 0 | Y45: 34 | Z45: 0 | AA45: 1197073.716 | AF45: 19153 | AG45: 367 | AI45: 0 | AQ45: 0 | AR45: 0 | BM45: 0
A46: 2171 | B46: Brunswick House Primary School | C46: 1 | E46: Maidstone | F46: 417 | G46: 0 | H46: 0 | I46: 35 | J46: 33.23913043 | K46: 33.23913043 | L46: 17.12318841 | M46: 0 | N46: 1.007246377 | O46: 0 | P46: 0 | Q46: 95.99521073 | R46: 35.14044944 | S46: 49164 | T46: 0 | U46: 0 | Y46: 69 | Z46: 0 | AA46: 1501898.044 | AF46: 47940 | AG46: 414 | AI46: 0 | AQ46: 0 | AR46: 0 | BM46: 0
A47: 2172 | B47: East Borough Primary School | C47: 1 | E47: Maidstone | F47: 421 | G47: 0 | H47: 0 | I47: 44 | J47: 3 | K47: 11 | L47: 103 | M47: 1 | N47: 4 | O47: 4 | P47: 0 | Q47: 77.28414664 | R47: 32.65373961 | S47: 36632 | T47: 0 | U47: 0 | Y47: 64 | Z47: 0 | AA47: 1496615.987 | AF47: 35720 | AG47: 421 | AI47: 0 | AQ47: 0 | AR47: 0 | BM47: 0
A48: 2175 | B48: North Borough Junior School | C48: 1 | E48: Maidstone | F48: 263 | G48: 0 | H48: 0 | I48: 37 | J48: 1.003816794 | K48: 62.23664122 | L48: 22.08396947 | M48: 3.011450382 | N48: 0 | O48: 2.007633588 | P48: 4.981060606 | Q48: 49.83157895 | R48: 28 | S48: 15545 | T48: 0 | U48: 0 | Y48: 77 | Z48: 0 | AA48: 1025808.237 | AF48: 15158 | AG48: 261 | AI48: 0 | AQ48: 0 | AR48: 0 | BM48: 0
A49: 2176 | B49: Park Way Primary School | C49: 1 | E49: Maidstone | F49: 295 | G49: 0 | H49: 0 | I49: 65.66780822 | J49: 54.93103448 | K49: 26.44827586 | L49: 25.43103448 | M49: 4.068965517 | N49: 40.68965517 | O49: 6.103448276 | P49: 0 | Q49: 92.2038339 | R49: 48.58823529 | S49: 22654 | T49: 0 | U49: 0 | Y49: 108 | Z49: 0 | AA49: 1122904.625 | AF49: 22090 | AG49: 273 | AI49: 3 | AQ49: 0 | AR49: 0 | BM49: 0
A50: 2180 | B50: South Borough Primary School | C50: 1 | E50: Maidstone | F50: 195 | G50: 0 | H50: 0 | I50: 49 | J50: 15.15544041 | K50: 3.031088083 | L50: 8.082901554 | M50: 5.051813472 | N50: 51.52849741 | O50: 3.031088083 | P50: 1.054054054 | Q50: 59.06528057 | R50: 23.63636364 | S50: 27474 | T50: 0 | U50: 0 | Y50: 53 | Z50: 0 | AA50: 861515.0357 | AF50: 26790 | AG50: 190 | AI50: 0 | AQ50: 1 | AR50: 0 | BM50: 0.06
A51: 2183 | B51: Marden Primary School | C51: 1 | E51: Maidstone | F51: 248 | G51: 0 | H51: 0 | I51: 25.10121457 | J51: 104.8455285 | K51: 0 | L51: 4.032520325 | M51: 0 | N51: 0 | O51: 0 | P51: 2 | Q51: 39.05980853 | R51: 7.75 | S51: 20485 | T51: 0 | U51: 0 | Y51: 38 | Z51: 0 | AA51: 891170.6139 | AF51: 19975 | AG51: 242 | AI51: 1 | AQ51: 0 | AR51: 0 | BM51: 0
A52: 2185 | B52: Mereworth Community Primary School | C52: 1 | E52: Tonbridge and Malling | F52: 213 | G52: 0 | H52: 0 | I52: 14 | J52: 0 | K52: 4 | L52: 4 | M52: 1 | N52: 0 | O52: 0 | P52: 1.033980583 | Q52: 26.74081122 | R52: 5.819672131 | S52: 18437 | T52: 0 | U52: 0 | Y52: 26 | Z52: 0 | AA52: 729227.9581 | AF52: 12622 | AG52: 208 | AI52: 0 | AQ52: 0 | AR52: 0 | BM52: 0
A53: 2187 | B53: Offham Primary School | C53: 1 | E53: Tonbridge and Malling | F53: 205 | G53: 0 | H53: 0 | I53: 6.029411765 | J53: 5.024509804 | K53: 18.08823529 | L53: 0 | M53: 2.009803922 | N53: 0 | O53: 0 | P53: 0 | Q53: 13.99408459 | R53: 1.184971098 | S53: 17390 | T53: 0 | U53: 0 | Y53: 10 | Z53: 0 | AA53: 687832.4821 | AF53: 9281 | AG53: 201 | AI53: 1 | AQ53: 0 | AR53: 0 | BM53: 0
A54: 2188 | B54: Plaxtol Primary School | C54: 1 | E54: Tonbridge and Malling | F54: 91 | G54: 0 | H54: 0 | I54: 3.033333333 | J54: 0 | K54: 0 | L54: 10.11111111 | M54: 1.011111111 | N54: 0 | O54: 0 | P54: 0 | Q54: 10.71836735 | R54: 2.219512195 | S54: 9881 | T54: 0 | U54: 0 | Y54: 8 | Z54: 0 | AA54: 420188.4946 | AF54: 8234 | AG54: 101 | AI54: 1 | AQ54: 0 | AR54: 0 | BM54: 0
A55: 2189 | B55: Ryarsh Primary School | C55: 1 | E55: Tonbridge and Malling | F55: 188 | G55: 0 | H55: 0 | I55: 8 | J55: 0 | K55: 5.053763441 | L55: 2.021505376 | M55: 0 | N55: 0 | O55: 0 | P55: 0 | Q55: 27.91547687 | R55: 1.189873418 | S55: 12050 | T55: 0 | U55: 0 | Y55: 13 | Z55: 0 | AA55: 642872.9144 | AF55: 9038 | AG55: 179 | AI55: 0 | AQ55: 0 | AR55: 0 | BM55: 0
A56: 2190 | B56: Shipbourne School | C56: 1 | E56: Tonbridge and Malling | F56: 56 | G56: 0 | H56: 0 | I56: 1 | J56: 0 | K56: 3 | L56: 0 | M56: 2 | N56: 0 | O56: 0 | P56: 0 | Q56: 10.66666667 | R56: 3.428571429 | S56: 4043 | T56: 0 | U56: 0 | Y56: 0 | Z56: 0 | AA56: 285989.3848 | AF56: 2557 | AG56: 57 | AI56: 0 | AQ56: 0 | AR56: 0 | BM56: 0
A57: 2191 | B57: St Katherine's School | C57: 1 | E57: Tonbridge and Malling | F57: 573 | G57: 0 | H57: 0 | I57: 65 | J57: 2 | K57: 5 | L57: 190 | M57: 2 | N57: 0 | O57: 0 | P57: 5.247252747 | Q57: 106.4530003 | R57: 7.222689076 | S57: 48200 | T57: 0 | U57: 0 | Y57: 97 | Z57: 0 | AA57: 1877908.939 | AF57: 40168 | AG57: 553 | AI57: 0 | AQ57: 1 | AR57: 0 | BM57: 0.01
A58: 2192 | B58: Staplehurst School | C58: 1 | E58: Maidstone | F58: 435 | G58: 0 | H58: 0 | I58: 38 | J58: 4 | K58: 1 | L58: 0 | M58: 1 | N58: 0 | O58: 0 | P58: 0.9886363636 | Q58: 65.51407905 | R58: 4.554973822 | S58: 31089 | T58: 0 | U58: 0 | Y58: 52 | Z58: 0 | AA58: 1465381.15 | AF58: 30315 | AG58: 438 | AI58: 0 | AQ58: 0 | AR58: 0 | BM58: 0
A59: 2193 | B59: Sutton Valence Primary School | C59: 1 | E59: Maidstone | F59: 211 | G59: 0 | H59: 0 | I59: 21 | J59: 9.042857143 | K59: 0 | L59: 3.014285714 | M59: 1.004761905 | N59: 0 | O59: 2.00952381 | P59: 4.077294686 | Q59: 43.65517241 | R59: 5.796703297 | S59: 12532 | T59: 0 | U59: 0 | Y59: 17 | Z59: 0 | AA59: 751193.7135 | AF59: 12220 | AG59: 210 | AI59: 0 | AQ59: 0 | AR59: 0 | BM59: 0
A60: 2223 | B60: Bobbing Village School | C60: 1 | E60: Swale | F60: 207 | G60: 0 | H60: 0 | I60: 6 | J60: 4.019417476 | K60: 0 | L60: 67.32524272 | M60: 2.009708738 | N60: 0 | O60: 0 | P60: 0 | Q60: 30.88981289 | R60: 2.338983051 | S60: 3808 | T60: 0 | U60: 0 | Y60: 16 | Z60: 0 | AA60: 750758.1772 | AF60: 3558 | AG60: 210 | AI60: 0 | AQ60: 0 | AR60: 0 | BM60: 0
A61: 2226 | B61: Eastling Primary School | C61: 1 | E61: Swale | F61: 103 | G61: 0 | H61: 0 | I61: 12 | J61: 11 | K61: 0 | L61: 3 | M61: 0 | N61: 0 | O61: 0 | P61: 1.01980198 | Q61: 17.19772551 | R61: 0 | S61: 4434 | T61: 0 | U61: 0 | Y61: 21 | Z61: 0 | AA61: 419390.5788 | AF61: 4324 | AG61: 102 | AI61: 0 | AQ61: 0 | AR61: 0 | BM61: 0
A62: 2227 | B62: Ethelbert Road Primary School | C62: 1 | E62: Swale | F62: 166 | G62: 0 | H62: 0 | I62: 11 | J62: 18 | K62: 0 | L62: 6 | M62: 5 | N62: 0 | O62: 0 | P62: 0 | Q62: 23.71428571 | R62: 4.882352941 | S62: 6869 | T62: 0 | U62: 0 | Y62: 22 | Z62: 0 | AA62: 614483.3036 | AF62: 6698 | AG62: 164 | AI62: 0 | AQ62: 0 | AR62: 0 | BM62: 0
A63: 2228 | B63: Davington Primary School | C63: 1 | E63: Swale | F63: 406 | G63: 0 | H63: 0 | I63: 58.14320988 | J63: 62.15308642 | K63: 2.004938272 | L63: 24.05925926 | M63: 150.3703704 | N63: 0 | O63: 0 | P63: 1 | Q63: 93.17368421 | R63: 10.56069364 | S63: 20606 | T63: 0 | U63: 0 | Y63: 107 | Z63: 0 | AA63: 1489094.009 | AF63: 20093 | AG63: 403 | AI63: 1 | AQ63: 0 | AR63: 0 | BM63: 0
A64: 2230 | B64: Iwade Community Primary School | C64: 1 | E64: Swale | F64: 418 | G64: 0 | H64: 0 | I64: 32 | J64: 3 | K64: 0 | L64: 49 | M64: 0 | N64: 0 | O64: 0 | P64: 4 | Q64: 63.80969469 | R64: 6.986072423 | S64: 7833 | T64: 0 | U64: 0 | Y64: 49 | Z64: 0 | AA64: 1383243.813 | AF64: 7638 | AG64: 416 | AI64: 0 | AQ64: 0 | AR64: 0 | BM64: 0
A65: 2231 | B65: Lower Halstow School | C65: 1 | E65: Swale | F65: 136 | G65: 0 | H65: 0 | I65: 13 | J65: 12.08888889 | K65: 1.007407407 | L65: 4.02962963 | M65: 0 | N65: 0 | O65: 0 | P65: 2.076335878 | Q65: 35.9644845 | R65: 0 | S65: 14340 | T65: 0 | U65: 0 | Y65: 24 | Z65: 0 | AA65: 541685.5569 | AF65: 13865 | AG65: 132 | AI65: 0 | AQ65: 0 | AR65: 0 | BM65: 0
A66: 2235 | B66: Minster in Sheppey Primary School | C66: 1 | E66: Swale | F66: 516 | G66: 0 | H66: 0 | I66: 112 | J66: 45 | K66: 43 | L66: 20 | M66: 83 | N66: 20 | O66: 0 | P66: 3.343412527 | Q66: 140.3464671 | R66: 11.00473934 | S66: 39042 | T66: 0 | U66: 0 | Y66: 126 | Z66: 0 | AA66: 1781381.846 | AF66: 38070 | AG66: 472 | AI66: 0 | AQ66: 0 | AR66: 0 | BM66: 0
A67: 2237 | B67: Queenborough Primary School | C67: 1 | E67: Swale | F67: 386 | G67: 0 | H67: 0 | I67: 141.734375 | J67: 9.046875 | K67: 7.036458333 | L67: 13.06770833 | M67: 256.328125 | N67: 10.05208333 | O67: 0 | P67: 1.054644809 | Q67: 101.6087205 | R67: 9.530864198 | S67: 13737 | T67: 0 | U67: 0 | Y67: 169 | Z67: 0 | AA67: 1393158.666 | AF67: 13395 | AG67: 344 | AI67: 2 | AQ67: 1 | AR67: 0 | BM67: 0.29
A68: 2239 | B68: Rodmersham School | C68: 1 | E68: Swale | F68: 100 | G68: 0 | H68: 0 | I68: 5 | J68: 7.070707071 | K68: 3.03030303 | L68: 9.090909091 | M68: 3.03030303 | N68: 0 | O68: 0 | P68: 0 | Q68: 4.109589041 | R68: 4.597701149 | S68: 1759 | T68: 0 | U68: 0 | Y68: 8 | Z68: 0 | AA68: 408696.2988 | AF68: 1716 | AG68: 98 | AI68: 0 | AQ68: 0 | AR68: 0 | BM68: 0
A69: 2242 | B69: Richmond Primary School | C69: 1 | E69: Swale | F69: 397 | G69: 0 | H69: 0 | I69: 178 | J69: 5 | K69: 76 | L69: 102 | M69: 75 | N69: 119 | O69: 0 | P69: 2.030690537 | Q69: 126.1235867 | R69: 17.36151603 | S69: 18678 | T69: 0 | U69: 0 | Y69: 209 | Z69: 0 | AA69: 1605888.45 | AF69: 18213 | AG69: 396 | AI69: 0 | AQ69: 1 | AR69: 0 | BM69: 0.57
A70: 2245 | B70: Rose Street School | C70: 1 | E70: Swale | F70: 204 | G70: 0 | H70: 0 | I70: 100 | J70: 0 | K70: 23 | L70: 29 | M70: 72 | N70: 77 | O70: 0 | P70: 0 | Q70: 58.82911877 | R70: 15.24137931 | S70: 14219 | T70: 0 | U70: 0 | Y70: 132 | Z70: 0 | AA70: 989845.8755 | AF70: 13865 | AG70: 202 | AI70: 0 | AQ70: 1 | AR70: 0 | BM70: 0.69
A71: 2252 | B71: Murston Junior School | C71: 1 | E71: Swale | F71: 150 | G71: 0 | H71: 0 | I71: 56 | J71: 34 | K71: 14 | L71: 42 | M71: 3 | N71: 37 | O71: 0 | P71: 1.153846154 | Q71: 64.0625 | R71: 16.10738255 | S71: 10966 | T71: 0 | U71: 0 | Y71: 65 | Z71: 0 | AA71: 636208.0711 | AF71: 10693 | AG71: 126 | AI71: 0 | AQ71: 0 | AR71: 0 | BM71: 0
A72: 2254 | B72: Canterbury Road Primary School | C72: 1 | E72: Swale | F72: 204 | G72: 0 | H72: 0 | I72: 36 | J72: 17 | K72: 66 | L72: 45 | M72: 2 | N72: 19 | O72: 0 | P72: 1.980582524 | Q72: 68.65522914 | R72: 10.55172414 | S72: 26028 | T72: 0 | U72: 0 | Y72: 65 | Z72: 0 | AA72: 869836.3144 | AF72: 25380 | AG72: 210 | AI72: 0 | AQ72: 0 | AR72: 0 | BM72: 0
A73: 2258 | B73: Blean Primary School | C73: 1 | E73: Canterbury | F73: 437 | G73: 0 | H73: 0 | I73: 30 | J73: 22 | K73: 18 | L73: 40 | M73: 13 | N73: 0 | O73: 0 | P73: 0.9646799117 | Q73: 59.47920829 | R73: 35.74406332 | S73: 24341 | T73: 0 | U73: 0 | Y73: 32 | Z73: 0 | AA73: 1501559.728 | AF73: 23735 | AG73: 451 | AI73: 0 | AQ73: 0 | AR73: 0 | BM73: 0
A74: 2259 | B74: Chartham Primary School | C74: 1 | E74: Canterbury | F74: 309 | G74: 0 | H74: 0 | I74: 37 | J74: 169 | K74: 1 | L74: 0 | M74: 3 | N74: 0 | O74: 0 | P74: 0 | Q74: 52.75703611 | R74: 9.363636364 | S74: 21449 | T74: 0 | U74: 0 | Y74: 57 | Z74: 0 | AA74: 1104273.991 | AF74: 20915 | AG74: 300 | AI74: 0 | AQ74: 0 | AR74: 0 | BM74: 0
A75: 2263 | B75: Herne Bay Infant School | C75: 1 | E75: Canterbury | F75: 361 | G75: 0 | H75: 0 | I75: 72.2 | J75: 0 | K75: 79.31830986 | L75: 43.72676056 | M75: 1.016901408 | N75: 2.033802817 | O75: 0 | P75: 0 | Q75: 99.93066239 | R75: 13.5375 | S75: 14219 | T75: 0 | U75: 0 | Y75: 73 | Z75: 0 | AA75: 1265217.323 | AF75: 13865 | AG75: 356 | AI75: 1 | AQ75: 1 | AR75: 0 | BM75: 0
A76: 2265 | B76: Hoath Primary School | C76: 1 | E76: Canterbury | F76: 68 | G76: 0 | H76: 0 | I76: 7 | J76: 0 | K76: 0 | L76: 6 | M76: 2 | N76: 0 | O76: 0 | P76: 0 | Q76: 18.41666667 | R76: 1.152542373 | S76: 5061 | T76: 0 | U76: 0 | Y76: 8 | Z76: 0 | AA76: 293412.1555 | AF76: 4935 | AG76: 57 | AI76: 0 | AQ76: 0 | AR76: 0 | BM76: 0
A77: 2268 | B77: Westmeads Community Infant School | C77: 1 | E77: Canterbury | F77: 182 | G77: 0 | H77: 0 | I77: 12.13333333 | J77: 0 | K77: 0 | L77: 2.033519553 | M77: 4.067039106 | N77: 0 | O77: 0 | P77: 2.011049724 | Q77: 27.35229885 | R77: 16.68333333 | S77: 19401 | T77: 0 | U77: 0 | Y77: 22 | Z77: 0 | AA77: 650662.6384 | AF77: 18918 | AG77: 177 | AI77: 2 | AQ77: 0 | AR77: 0 | BM77: 0
A78: 2269 | B78: Whitstable Junior School | C78: 1 | E78: Canterbury | F78: 242 | G78: 0 | H78: 0 | I78: 41 | J78: 0 | K78: 0 | L78: 2 | M78: 43 | N78: 0 | O78: 0 | P78: 5.831325301 | Q78: 42.35 | R78: 7 | S78: 15665 | T78: 0 | U78: 0 | Y78: 54 | Z78: 0 | AA78: 894919.9829 | AF78: 15275 | AG78: 245 | AI78: 0 | AQ78: 0 | AR78: 0 | BM78: 0
A79: 2270 | B79: Aldington Primary School | C79: 1 | E79: Ashford | F79: 168 | G79: 0 | H79: 0 | I79: 15 | J79: 3 | K79: 4 | L79: 0 | M79: 2 | N79: 0 | O79: 0 | P79: 0 | Q79: 26.56349874 | R79: 6.131386861 | S79: 23739 | T79: 0 | U79: 0 | Y79: 26 | Z79: 0 | AA79: 602604.0699 | AF79: 18448 | AG79: 155 | AI79: 0 | AQ79: 0 | AR79: 0 | BM79: 0
A80: 2272 | B80: East Stour Primary School | C80: 1 | E80: Ashford | F80: 397 | G80: 0 | H80: 0 | I80: 110.1094148 | J80: 21.21374046 | K80: 91.92620865 | L80: 4.040712468 | M80: 5.050890585 | N80: 9.091603053 | O80: 0 | P80: 3.093506494 | Q80: 110.7710898 | R80: 40.65662651 | S80: 33740 | T80: 0 | U80: 0 | Y80: 157 | Z80: 0 | AA80: 1536430.942 | AF80: 32900 | AG80: 380 | AI80: 4 | AQ80: 1 | AR80: 0 | BM80: 0
A81: 2275 | B81: Victoria Road Primary School | C81: 1 | E81: Ashford | F81: 204 | G81: 0 | H81: 0 | I81: 34 | J81: 44.21674877 | K81: 76.37438424 | L81: 12.0591133 | M81: 12.0591133 | N81: 4.019704433 | O81: 0 | P81: 0 | Q81: 52.49255952 | R81: 17.5862069 | S81: 12532 | T81: 0 | U81: 0 | Y81: 65 | Z81: 0 | AA81: 851735.1332 | AF81: 12220 | AG81: 206 | AI81: 0 | AQ81: 0 | AR81: 0 | BM81: 0
A82: 2276 | B82: Willesborough Infant School | C82: 1 | E82: Ashford | F82: 349 | G82: 0 | H82: 0 | I82: 62 | J82: 32.18443804 | K82: 62.3573487 | L82: 2.011527378 | M82: 0 | N82: 1.005763689 | O82: 0 | P82: 0.9971428571 | Q82: 79.96281302 | R82: 64.13247863 | S82: 15545 | T82: 0 | U82: 0 | Y82: 83 | Z82: 0 | AA82: 1279590.643 | AF82: 15158 | AG82: 352 | AI82: 0 | AQ82: 0 | AR82: 0 | BM82: 0
A83: 2278 | B83: Bethersden Primary School | C83: 1 | E83: Ashford | F83: 110 | G83: 0 | H83: 0 | I83: 17 | J83: 1 | K83: 2 | L83: 3 | M83: 1 | N83: 1 | O83: 0 | P83: 0 | Q83: 27.72916667 | R83: 13.60824742 | S83: 7471 | T83: 0 | U83: 0 | Y83: 29 | Z83: 0 | AA83: 514795.165 | AF83: 7285 | AG83: 116 | AI83: 0 | AQ83: 0 | AR83: 0 | BM83: 0
A84: 2279 | B84: Brook Community Primary School | C84: 1 | E84: Ashford | F84: 86 | G84: 0 | H84: 0 | I84: 23.27058824 | J84: 8.094117647 | K84: 7.082352941 | L84: 1.011764706 | M84: 0 | N84: 1.011764706 | O84: 0 | P84: 0 | Q84: 18.75146009 | R84: 2.356164384 | S84: 6146 | T84: 0 | U84: 0 | Y84: 21 | Z84: 0 | AA84: 346372.3183 | AF84: 5993 | AG84: 75 | AI84: 1 | AQ84: 0 | AR84: 0 | BM84: 0
A85: 2280 | B85: Challock Primary School | C85: 1 | E85: Ashford | F85: 195 | G85: 0 | H85: 0 | I85: 7 | J85: 11 | K85: 0 | L85: 9 | M85: 0 | N85: 0 | O85: 0 | P85: 0 | Q85: 34.24255319 | R85: 0 | S85: 9399 | T85: 0 | U85: 0 | Y85: 8 | Z85: 0 | AA85: 674808.3164 | AF85: 9165 | AG85: 184 | AI85: 0 | AQ85: 0 | AR85: 0 | BM85: 0
A86: 2282 | B86: Great Chart Primary School | C86: 1 | E86: Ashford | F86: 482 | G86: 0 | H86: 0 | I86: 47 | J86: 3.006237006 | K86: 15.03118503 | L86: 11.02286902 | M86: 11.02286902 | N86: 7.014553015 | O86: 2.004158004 | P86: 1.066371681 | Q86: 84.6850759 | R86: 39.34693878 | S86: 34222 | T86: 0 | U86: 0 | Y86: 68 | Z86: 0 | AA86: 1527443.586 | AF86: 33370 | AG86: 448 | AI86: 0 | AQ86: 0 | AR86: 0 | BM86: 0
A87: 2285 | B87: Mersham Primary School | C87: 1 | E87: Ashford | F87: 211 | G87: 0 | H87: 0 | I87: 4.019047619 | J87: 4.019047619 | K87: 7.033333333 | L87: 2.00952381 | M87: 0 | N87: 0 | O87: 0 | P87: 2.038647343 | Q87: 17.10221993 | R87: 1.172222222 | S87: 5302 | T87: 0 | U87: 0 | Y87: 10 | Z87: 0 | AA87: 704380.542 | AF87: 5170 | AG87: 207 | AI87: 1 | AQ87: 0 | AR87: 0 | BM87: 0
A88: 2287 | B88: Rolvenden Primary School | C88: 1 | E88: Ashford | F88: 70 | G88: 0 | H88: 0 | I88: 15.2173913 | J88: 2.028985507 | K88: 0 | L88: 0 | M88: 0 | N88: 0 | O88: 0 | P88: 0 | Q88: 18.2122093 | R88: 2.456140351 | S88: 6748 | T88: 0 | U88: 0 | Y88: 21 | Z88: 0 | AA88: 312567.6337 | AF88: 6580 | AG88: 60 | AI88: 1 | AQ88: 0 | AR88: 0 | BM88: 0
A89: 2289 | B89: Smeeth Community Primary School | C89: 1 | E89: Ashford | F89: 147 | G89: 0 | H89: 0 | I89: 2 | J89: 0 | K89: 4 | L89: 3 | M89: 0 | N89: 2 | O89: 0 | P89: 2.115107914 | Q89: 30.16312374 | R89: 2.31496063 | S89: 8194 | T89: 0 | U89: 0 | Y89: 14 | Z89: 0 | AA89: 532667.3685 | AF89: 7990 | AG89: 135 | AI89: 0 | AQ89: 0 | AR89: 0 | BM89: 0
A90: 2290 | B90: Tenterden Infant School | C90: 1 | E90: Ashford | F90: 162 | G90: 0 | H90: 0 | I90: 20 | J90: 26.325 | K90: 0 | L90: 0 | M90: 0 | N90: 0 | O90: 0 | P90: 0 | Q90: 28.38120185 | R90: 4.418181818 | S90: 18316 | T90: 0 | U90: 0 | Y90: 28 | Z90: 0 | AA90: 629663.2543 | AF90: 17860 | AG90: 166 | AI90: 0 | AQ90: 0 | AR90: 0 | BM90: 0
A91: 2296 | B91: Mundella Primary School | C91: 1 | E91: Shepway | F91: 183 | G91: 0 | H91: 0 | I91: 76.41758242 | J91: 26.14285714 | K91: 11.06043956 | L91: 64.35164835 | M91: 42.23076923 | N91: 19.1043956 | O91: 7.038461538 | P91: 2 | Q91: 67.39292667 | R91: 19.1372549 | S91: 12267 | T91: 0 | U91: 0 | Y91: 97 | Z91: 0 | AA91: 858874.0507 | AF91: 11962 | AG91: 186 | AI91: 1 | AQ91: 0 | AR91: 0 | BM91: 0
A92: 2298 | B92: Hawkinge Primary School | C92: 1 | E92: Shepway | F92: 321 | G92: 0 | H92: 0 | I92: 55.171875 | J92: 7.043887147 | K92: 1.006269592 | L92: 109.6833856 | M92: 11.06896552 | N92: 2.012539185 | O92: 0 | P92: 4.155339806 | Q92: 82.13317941 | R92: 23.45769231 | S92: 23545 | T92: 0 | U92: 0 | Y92: 91 | Z92: 0 | AA92: 1147581.829 | AF92: 18448 | AG92: 311 | AI92: 1 | AQ92: 0 | AR92: 0 | BM92: 0
A93: 2300 | B93: Sellindge Primary School | C93: 1 | E93: Shepway | F93: 110 | G93: 0 | H93: 0 | I93: 6 | J93: 1 | K93: 0 | L93: 0 | M93: 1 | N93: 0 | O93: 0 | P93: 0 | Q93: 11.13924051 | R93: 2.315789474 | S93: 16388 | T93: 0 | U93: 0 | Y93: 8 | Z93: 0 | AA93: 455431.862 | AF93: 15980 | AG93: 110 | AI93: 0 | AQ93: 0 | AR93: 0 | BM93: 0
A94: 2309 | B94: Priory Fields School | C94: 1 | E94: Dover | F94: 377 | G94: 0 | H94: 0 | I94: 164.1774194 | J94: 33.53369272 | K94: 112.7951482 | L94: 76.21293801 | M94: 110.7628032 | N94: 16.25876011 | O94: 0 | P94: 3.307017544 | Q94: 130.6752494 | R94: 87.09177215 | S94: 25064 | T94: 0 | U94: 0 | Y94: 195 | Z94: 0 | AA94: 1505515.753 | AF94: 24440 | AG94: 328 | AI94: 5 | AQ94: 0 | AR94: 0 | BM94: 0
A95: 2312 | B95: River Primary School | C95: 1 | E95: Dover | F95: 419 | G95: 0 | H95: 0 | I95: 40 | J95: 3.007177033 | K95: 50.11961722 | L95: 29.06937799 | M95: 69.16507177 | N95: 19.04545455 | O95: 0 | P95: 0 | Q95: 52.91824283 | R95: 3.501392758 | S95: 28197 | T95: 0 | U95: 0 | Y95: 53 | Z95: 0 | AA95: 1450483.69 | AF95: 27495 | AG95: 410 | AI95: 0 | AQ95: 0 | AR95: 1 | BM95: 0
A96: 2313 | B96: St Martin's School | C96: 1 | E96: Dover | F96: 208 | G96: 0 | H96: 0 | I96: 20 | J96: 3.014492754 | K96: 10.04830918 | L96: 19.09178744 | M96: 9.043478261 | N96: 4.019323671 | O96: 0 | P96: 0 | Q96: 42.27579365 | R96: 5.842696629 | S96: 13496 | T96: 0 | U96: 0 | Y96: 31 | Z96: 0 | AA96: 788577.9398 | AF96: 13160 | AG96: 212 | AI96: 0 | AQ96: 0 | AR96: 0 | BM96: 0
A97: 2318 | B97: Langdon Primary School | C97: 1 | E97: Dover | F97: 82 | G97: 0 | H97: 0 | I97: 11.13580247 | J97: 4.049382716 | K97: 2.024691358 | L97: 3.037037037 | M97: 2.024691358 | N97: 0 | O97: 0 | P97: 0 | Q97: 16.98561214 | R97: 2.411764706 | S97: 3711 | T97: 0 | U97: 0 | Y97: 12 | Z97: 0 | AA97: 336733.7372 | AF97: 3619 | AG97: 70 | AI97: 1 | AQ97: 0 | AR97: 0 | BM97: 0
A98: 2320 | B98: Eythorne Elvington Community Primary School | C98: 1 | E98: Dover | F98: 79 | G98: 0 | H98: 0 | I98: 46 | J98: 33 | K98: 0 | L98: 44 | M98: 0 | N98: 2 | O98: 0 | P98: 1.926829268 | Q98: 35.33044365 | R98: 1.234375 | S98: 11448 | T98: 0 | U98: 0 | Y98: 47 | Z98: 0 | AA98: 436992.9093 | AF98: 11163 | AG98: 81 | AI98: 0 | AQ98: 0 | AR98: 0 | BM98: 0
A99: 2321 | B99: Lydden Primary School | C99: 1 | E99: Dover | F99: 82 | G99: 0 | H99: 0 | I99: 4.049382716 | J99: 5.061728395 | K99: 3.037037037 | L99: 9.111111111 | M99: 5.061728395 | N99: 0 | O99: 0 | P99: 0 | Q99: 2.962624585 | R99: 1.28125 | S99: 4347 | T99: 0 | U99: 0 | Y99: 8 | Z99: 0 | AA99: 322033.1322 | AF99: 3725 | AG99: 68 | AI99: 1 | AQ99: 0 | AR99: 0 | BM99: 0
A100: 2322 | B100: Preston Primary School | C100: 1 | E100: Dover | F100: 123 | G100: 0 | H100: 0 | I100: 5.040983607 | J100: 3.024590164 | K100: 1.008196721 | L100: 5.040983607 | M100: 0 | N100: 0 | O100: 0 | P100: 2.067226891 | Q100: 23.12641723 | R100: 0 | S100: 6266 | T100: 0 | U100: 0 | Y100: 16 | Z100: 0 | AA100: 469745.6828 | AF100: 6110 | AG100: 116 | AI100: 1 | AQ100: 0 | AR100: 0 | BM100: 0
A101: 2326 | B101: Wingham Primary School | C101: 1 | E101: Dover | F101: 212 | G101: 0 | H101: 0 | I101: 16 | J101: 2 | K101: 0 | L101: 2 | M101: 0 | N101: 0 | O101: 0 | P101: 1.004739336 | Q101: 24.14162679 | R101: 5.824175824 | S101: 27233 | T101: 0 | U101: 0 | Y101: 21 | Z101: 0 | AA101: 753328.464 | AF101: 26555 | AG101: 211 | AI101: 0 | AQ101: 0 | AR101: 0 | BM101: 0
A102: 2327 | B102: Worth Primary School | C102: 1 | E102: Dover | F102: 61 | G102: 0 | H102: 0 | I102: 7 | J102: 26.43333333 | K102: 1.016666667 | L102: 1.016666667 | M102: 0 | N102: 1.016666667 | O102: 0 | P102: 2.103448276 | Q102: 16.46504065 | R102: 0 | S102: 2506 | T102: 0 | U102: 0 | Y102: 18 | Z102: 0 | AA102: 310154.26 | AF102: 2444 | AG102: 59 | AI102: 0 | AQ102: 0 | AR102: 0 | BM102: 0
A103: 2328 | B103: St Mildred's Primary Infant School | C103: 1 | E103: Thanet | F103: 270 | G103: 0 | H103: 0 | I103: 22 | J103: 42 | K103: 2 | L103: 4 | M103: 5 | N103: 3 | O103: 0 | P103: 4.014869888 | Q103: 72.30681818 | R103: 19.5 | S103: 15906 | T103: 0 | U103: 0 | Y103: 37 | Z103: 0 | AA103: 947522.0301 | AF103: 15510 | AG103: 269 | AI103: 0 | AQ103: 0 | AR103: 0 | BM103: 0
A104: 2329 | B104: Callis Grange Nursery & Infant School | C104: 1 | E104: Thanet | F104: 300 | G104: 0 | H104: 0 | I104: 41 | J104: 73.24414716 | K104: 2.006688963 | L104: 46.15384615 | M104: 11.0367893 | N104: 9.030100334 | O104: 0 | P104: 0.9966777409 | Q104: 101.8847678 | R104: 31.42857143 | S104: 39042 | T104: 0 | U104: 0 | Y104: 50 | Z104: 0 | AA104: 1145465.606 | AF104: 21385 | AG104: 301 | AI104: 0 | AQ104: 1 | AR104: 0 | BM104: 0.03
A105: 2337 | B105: St Crispin's Community Primary Infant School | C105: 1 | E105: Thanet | F105: 273 | G105: 0 | H105: 0 | I105: 31 | J105: 3 | K105: 35 | L105: 67 | M105: 2 | N105: 4 | O105: 1 | P105: 1.007380074 | Q105: 65.58645136 | R105: 8.950819672 | S105: 16870 | T105: 0 | U105: 0 | Y105: 43 | Z105: 0 | AA105: 982242.52 | AF105: 16450 | AG105: 270 | AI105: 0 | AQ105: 0 | AR105: 0 | BM105: 0
A106: 2340 | B106: Ellington Infant School | C106: 1 | E106: Thanet | F106: 272 | G106: 0 | H106: 0 | I106: 56 | J106: 78 | K106: 34 | L106: 48 | M106: 34 | N106: 15 | O106: 0 | P106: 1.963898917 | Q106: 65.94505495 | R106: 17.80952381 | S106: 23618 | T106: 0 | U106: 0 | Y106: 82 | Z106: 0 | AA106: 1072210.187 | AF106: 23030 | AG106: 277 | AI106: 0 | AQ106: 0 | AR106: 0 | BM106: 0
A107: 2345 | B107: Priory Infant School | C107: 1 | E107: Thanet | F107: 184 | G107: 0 | H107: 0 | I107: 43.23497268 | J107: 72.39344262 | K107: 5.027322404 | L107: 59.32240437 | M107: 12.06557377 | N107: 7.038251366 | O107: 1.005464481 | P107: 3.032967033 | Q107: 37.78429681 | R107: 19.60655738 | S107: 35186 | T107: 0 | U107: 0 | Y107: 52 | Z107: 0 | AA107: 835978.4957 | AF107: 34310 | AG107: 182 | AI107: 1 | AQ107: 0 | AR107: 0 | BM107: 0
A108: 2431 | B108: Shears Green Junior School | C108: 1 | E108: Gravesham | F108: 475 | G108: 0 | H108: 0 | I108: 70 | J108: 123 | K108: 29 | L108: 14 | M108: 2 | N108: 12 | O108: 0 | P108: 4.033970276 | Q108: 136.4788732 | R108: 15 | S108: 20124 | T108: 0 | U108: 0 | Y108: 117 | Z108: 0 | AA108: 1733607.795 | AF108: 19623 | AG108: 474 | AI108: 0 | AQ108: 0 | AR108: 0 | BM108: 0
A109: 2434 | B109: West Minster Primary School | C109: 1 | E109: Swale | F109: 408 | G109: 0 | H109: 0 | I109: 188 | J109: 4 | K109: 22 | L109: 156 | M109: 62 | N109: 154 | O109: 0 | P109: 0 | Q109: 102.4268807 | R109: 10.61271676 | S109: 42175 | T109: 0 | U109: 0 | Y109: 232 | Z109: 0 | AA109: 1688520.622 | AF109: 18213 | AG109: 398 | AI109: 0 | AQ109: 1 | AR109: 0 | BM109: 0.46
A110: 2444 | B110: Riverview Junior School | C110: 1 | E110: Gravesham | F110: 489 | G110: 0 | H110: 0 | I110: 54 | J110: 53 | K110: 58 | L110: 44 | M110: 24 | N110: 26 | O110: 0 | P110: 2.033264033 | Q110: 88.39067055 | R110: 14 | S110: 17834 | T110: 0 | U110: 0 | Y110: 96 | Z110: 0 | AA110: 1672412.126 | AF110: 17390 | AG110: 476 | AI110: 0 | AQ110: 0 | AR110: 0 | BM110: 0
A111: 2453 | B111: Woodlands Junior School | C111: 1 | E111: Tonbridge and Malling | F111: 382 | G111: 0 | H111: 0 | I111: 38 | J111: 0 | K111: 2 | L111: 3 | M111: 7 | N111: 0 | O111: 0 | P111: 2 | Q111: 59.60283688 | R111: 3.015789474 | S111: 24341 | T111: 0 | U111: 0 | Y111: 62 | Z111: 0 | AA111: 1293843.421 | AF111: 20285 | AG111: 383 | AI111: 0 | AQ111: 0 | AR111: 0 | BM111: 0
A112: 2454 | B112: Aycliffe Community Primary School | C112: 1 | E112: Dover | F112: 123 | G112: 0 | H112: 0 | I112: 30.24590164 | J112: 1.016528926 | K112: 107.7520661 | L112: 4.066115702 | M112: 5.082644628 | N112: 3.049586777 | O112: 0 | P112: 0 | Q112: 42.38838068 | R112: 18.74285714 | S112: 19883 | T112: 0 | U112: 0 | Y112: 46 | Z112: 0 | AA112: 569136.4765 | AF112: 19388 | AG112: 111 | AI112: 1 | AQ112: 0 | AR112: 0 | BM112: 0
A113: 2458 | B113: Istead Rise Primary School | C113: 1 | E113: Gravesham | F113: 274 | G113: 0 | H113: 0 | I113: 26 | J113: 12 | K113: 41 | L113: 11 | M113: 4 | N113: 14 | O113: 0 | P113: 1 | Q113: 70.53401414 | R113: 16.7510917 | S113: 17473 | T113: 0 | U113: 0 | Y113: 41 | Z113: 0 | AA113: 1019283.075 | AF113: 17038 | AG113: 273 | AI113: 0 | AQ113: 0 | AR113: 0 | BM113: 0
A114: 2459 | B114: Riverhead Infant School | C114: 1 | E114: Sevenoaks | F114: 269 | G114: 0 | H114: 0 | I114: 5 | J114: 0 | K114: 0 | L114: 0 | M114: 0 | N114: 0 | O114: 0 | P114: 0.9926199262 | Q114: 20.97375479 | R114: 16.43888889 | S114: 35909 | T114: 0 | U114: 1 | Y114: 7 | Z114: 0 | AA114: 945365.6078 | AF114: 35015 | AG114: 271 | AI114: 0 | AQ114: 0 | AR114: 0 | BM114: 0
A115: 2462 | B115: Riverview Infant School | C115: 1 | E115: Gravesham | F115: 361 | G115: 0 | H115: 0 | I115: 31 | J115: 47.13055556 | K115: 53.14722222 | L115: 43.11944444 | M115: 12.03333333 | N115: 19.05277778 | O115: 0 | P115: 0.9972375691 | Q115: 88.68248081 | R115: 43.43983402 | S115: 17834 | T115: 0 | U115: 0 | Y115: 38 | Z115: 0 | AA115: 1294503.838 | AF115: 17390 | AG115: 362 | AI115: 0 | AQ115: 0 | AR115: 0 | BM115: 0
A116: 2463 | B116: Minterne Community Junior School | C116: 1 | E116: Swale | F116: 363 | G116: 0 | H116: 0 | I116: 28.78005115 | J116: 16.71099744 | K116: 50.13299233 | L116: 24.13810742 | M116: 5.570332481 | N116: 6.498721228 | O116: 0 | P116: 1.852040816 | Q116: 53.63917526 | R116: 2.78516624 | S116: 20485 | T116: 0 | U116: 0 | Y116: 67 | Z116: 0 | AA116: 1263601.951 | AF116: 19975 | AG116: 364 | AI116: 0 | AQ116: 0 | AR116: 1 | BM116: 0
A117: 2465 | B117: Claremont Primary School | C117: 1 | E117: Tunbridge Wells | F117: 493 | G117: 0 | H117: 0 | I117: 8 | J117: 2 | K117: 0 | L117: 1 | M117: 0 | N117: 0 | O117: 0 | P117: 0 | Q117: 41.24236596 | R117: 48.84562212 | S117: 23498 | T117: 0 | U117: 0 | Y117: 12 | Z117: 0 | AA117: 1561838.374 | AF117: 22913 | AG117: 494 | AI117: 0 | AQ117: 0 | AR117: 0 | BM117: 0
A118: 2471 | B118: Whitfield and Aspen School | C118: 1 | E118: Dover | F118: 372 | G118: 0 | H118: 0 | I118: 52.3943662 | J118: 10.47887324 | K118: 23.57746479 | L118: 139.7183099 | M118: 41.91549296 | N118: 6.112676056 | O118: 0 | P118: 4.481927711 | Q118: 112.8268917 | R118: 20.49586777 | S118: 48200 | T118: 0 | U118: 0 | Y118: 77 | Z118: 0 | AA118: 1439253.761 | AF118: 47000 | AG118: 360 | AI118: 1 | AQ118: 0 | AR118: 0 | BM118: 0
A119: 2474 | B119: St Paul's Infant School | C119: 1 | E119: Maidstone | F119: 235 | G119: 0 | H119: 0 | I119: 34.58874459 | J119: 2.043478261 | K119: 61.30434783 | L119: 30.65217391 | M119: 1.02173913 | N119: 0 | O119: 2.043478261 | P119: 2.87755102 | Q119: 72.05965697 | R119: 53.62416107 | S119: 10363 | T119: 0 | U119: 0 | Y119: 57 | Z119: 0 | AA119: 959142.4023 | AF119: 10105 | AG119: 246 | AI119: 4 | AQ119: 0 | AR119: 0 | BM119: 0
A120: 2482 | B120: Langton Green Primary School | C120: 1 | E120: Tunbridge Wells | F120: 273 | G120: 0 | H120: 0 | I120: 9 | J120: 23 | K120: 0 | L120: 1 | M120: 0 | N120: 0 | O120: 0 | P120: 0 | Q120: 24.91207154 | R120: 3.791666667 | S120: 12291 | T120: 0 | U120: 0 | Y120: 12 | Z120: 0 | AA120: 802739.2959 | AF120: 11985 | AG120: 234 | AI120: 0 | AQ120: 0 | AR120: 0 | BM120: 0
A121: 2484 | B121: Woodlands Infant School | C121: 1 | E121: Tonbridge and Malling | F121: 270 | G121: 0 | H121: 0 | I121: 17 | J121: 0 | K121: 0 | L121: 2 | M121: 7 | N121: 0 | O121: 0 | P121: 0.9926470588 | Q121: 50.29749745 | R121: 7.541899441 | S121: 24341 | T121: 0 | U121: 0 | Y121: 21 | Z121: 0 | AA121: 956289.6298 | AF121: 20285 | AG121: 271 | AI121: 0 | AQ121: 0 | AR121: 0 | BM121: 0
A122: 2490 | B122: Bishops Down Primary School | C122: 1 | E122: Tunbridge Wells | F122: 310 | G122: 0 | H122: 0 | I122: 18.75796178 | J122: 52.32484076 | K122: 3.949044586 | L122: 0.9872611465 | M122: 0 | N122: 0 | O122: 0 | P122: 0 | Q122: 54.1763886 | R122: 27.21374046 | S122: 15183 | T122: 0 | U122: 0 | Y122: 32 | Z122: 0 | AA122: 955393.7252 | AF122: 14805 | AG122: 280 | AI122: 2 | AQ122: 1 | AR122: 1 | BM122: 0
A123: 2491 | B123: Madginford Park Junior School | C123: 1 | E123: Maidstone | F123: 379 | G123: 0 | H123: 0 | I123: 20 | J123: 52 | K123: 24 | L123: 13 | M123: 6 | N123: 1 | O123: 7 | P123: 1.989501312 | Q123: 32.83754513 | R123: 10 | S123: 19401 | T123: 0 | U123: 0 | Y123: 43 | Z123: 0 | AA123: 1254442.863 | AF123: 18918 | AG123: 379 | AI123: 0 | AQ123: 0 | AR123: 0 | BM123: 0
A124: 2509 | B124: Singlewell Primary School | C124: 1 | E124: Gravesham | F124: 209 | G124: 0 | H124: 0 | I124: 21 | J124: 22 | K124: 17 | L124: 9 | M124: 0 | N124: 12 | O124: 0 | P124: 0 | Q124: 67.87773563 | R124: 10.50837989 | S124: 15665 | T124: 0 | U124: 0 | Y124: 36 | Z124: 0 | AA124: 824244.0387 | AF124: 15275 | AG124: 211 | AI124: 0 | AQ124: 0 | AR124: 0 | BM124: 0
A125: 2510 | B125: Cheriton Primary School | C125: 1 | E125: Shepway | F125: 398 | G125: 0 | H125: 0 | I125: 77 | J125: 66.33333333 | K125: 10.05050505 | L125: 21.10606061 | M125: 14.07070707 | N125: 0 | O125: 3.015151515 | P125: 2.051546392 | Q125: 111.5008041 | R125: 84.78106509 | S125: 19642 | T125: 0 | U125: 0 | Y125: 121 | Z125: 0 | AA125: 1570594.986 | AF125: 19153 | AG125: 396 | AI125: 0 | AQ125: 0 | AR125: 0 | BM125: 0
A126: 2513 | B126: Oaks Community Infant School, The | C126: 1 | E126: Swale | F126: 269 | G126: 0 | H126: 0 | I126: 23.05714286 | J126: 7.685714286 | K126: 50.91785714 | L126: 10.56785714 | M126: 4.803571429 | N126: 0 | O126: 0 | P126: 0.9539007092 | Q126: 52.86618141 | R126: 14.15789474 | S126: 15424 | T126: 0 | U126: 0 | Y126: 31 | Z126: 0 | AA126: 964404.6518 | AF126: 15040 | AG126: 269 | AI126: 1 | AQ126: 1 | AR126: 1 | BM126: 0
A127: 2514 | B127: Brookfield Infant School | C127: 1 | E127: Tonbridge and Malling | F127: 176 | G127: 0 | H127: 0 | I127: 48.27428571 | J127: 13.07428571 | K127: 3.017142857 | L127: 3.017142857 | M127: 23.13142857 | N127: 0 | O127: 0 | P127: 0 | Q127: 45.71916972 | R127: 6.017094017 | S127: 11568 | T127: 0 | U127: 0 | Y127: 60 | Z127: 0 | AA127: 658141.3536 | AF127: 9640 | AG127: 162 | AI127: 1 | AQ127: 0 | AR127: 0 | BM127: 0
A128: 2516 | B128: Lansdowne Primary School | C128: 1 | E128: Swale | F128: 230 | G128: 0 | H128: 0 | I128: 58 | J128: 40 | K128: 12 | L128: 80 | M128: 3 | N128: 25 | O128: 0 | P128: 1.133004926 | Q128: 50.83193277 | R128: 3.965517241 | S128: 12291 | T128: 0 | U128: 0 | Y128: 66 | Z128: 0 | AA128: 813555.298 | AF128: 11985 | AG128: 207 | AI128: 0 | AQ128: 0 | AR128: 0 | BM128: 0
A129: 2519 | B129: Vigo Village School | C129: 1 | E129: Gravesham | F129: 178 | G129: 0 | H129: 0 | I129: 15 | J129: 58 | K129: 1 | L129: 2 | M129: 1 | N129: 3 | O129: 0 | P129: 1.053254438 | Q129: 42.62508229 | R129: 1.178807947 | S129: 13617 | T129: 0 | U129: 0 | Y129: 21 | Z129: 0 | AA129: 670377.1089 | AF129: 13278 | AG129: 174 | AI129: 0 | AQ129: 0 | AR129: 0 | BM129: 0
A130: 2520 | B130: Madginford Park Infant School | C130: 1 | E130: Maidstone | F130: 270 | G130: 0 | H130: 0 | I130: 11 | J130: 18 | K130: 15 | L130: 8 | M130: 4 | N130: 0 | O130: 1 | P130: 0 | Q130: 48.64515286 | R130: 27 | S130: 19401 | T130: 0 | U130: 0 | Y130: 18 | Z130: 0 | AA130: 926192.4874 | AF130: 18918 | AG130: 268 | AI130: 0 | AQ130: 0 | AR130: 0 | BM130: 0
A131: 2523 | B131: Upton Junior School | C131: 1 | E131: Thanet | F131: 521 | G131: 0 | H131: 0 | I131: 46 | J131: 87.84302326 | K131: 8.07751938 | L131: 41.39728682 | M131: 29.28100775 | N131: 2.019379845 | O131: 0 | P131: 3.011560694 | Q131: 83.36 | R131: 14 | S131: 59334 | T131: 0 | U131: 0 | Y131: 82 | Z131: 0 | AA131: 1807627.142 | AF131: 57857 | AG131: 516 | AI131: 0 | AQ131: 0 | AR131: 0 | BM131: 0
A132: 2524 | B132: Palmarsh Primary School | C132: 1 | E132: Shepway | F132: 103 | G132: 0 | H132: 0 | I132: 35 | J132: 14 | K132: 32 | L132: 6 | M132: 4 | N132: 2 | O132: 3 | P132: 1.256097561 | Q132: 33.03671976 | R132: 4.735632184 | S132: 7110 | T132: 0 | U132: 0 | Y132: 42 | Z132: 0 | AA132: 413114.187 | AF132: 6933 | AG132: 83 | AI132: 0 | AQ132: 0 | AR132: 0 | BM132: 0
A133: 2525 | B133: Painters Ash Primary School | C133: 1 | E133: Gravesham | F133: 396 | G133: 0 | H133: 0 | I133: 80 | J133: 29.14720812 | K133: 80.40609137 | L133: 23.11675127 | M133: 11.05583756 | N133: 5.025380711 | O133: 0 | P133: 0 | Q133: 105.7244444 | R133: 30.81268012 | S133: 23739 | T133: 0 | U133: 0 | Y133: 108 | Z133: 0 | AA133: 1503584.024 | AF133: 23148 | AG133: 396 | AI133: 0 | AQ133: 0 | AR133: 0 | BM133: 0
A134: 2530 | B134: Tunbury Primary School | C134: 1 | E134: Tonbridge and Malling | F134: 605 | G134: 0 | H134: 0 | I134: 28.04635762 | J134: 9.014900662 | K134: 26.04304636 | L134: 2.003311258 | M134: 0 | N134: 0 | O134: 0 | P134: 4.143835616 | Q134: 49.78703168 | R134: 12.94747082 | S134: 33017 | T134: 0 | U134: 0 | Y134: 33 | Z134: 0 | AA134: 1853090.068 | AF134: 27515 | AG134: 588 | AI134: 1 | AQ134: 0 | AR134: 0 | BM134: 0
A135: 2531 | B135: Vale View Community School | C135: 1 | E135: Dover | F135: 194 | G135: 0 | H135: 0 | I135: 74 | J135: 24.12435233 | K135: 46.23834197 | L135: 61.31606218 | M135: 17.0880829 | N135: 1.005181347 | O135: 0 | P135: 0 | Q135: 39.45169139 | R135: 33.12195122 | S135: 12291 | T135: 0 | U135: 0 | Y135: 72 | Z135: 0 | AA135: 797649.159 | AF135: 11985 | AG135: 186 | AI135: 0 | AQ135: 1 | AR135: 0 | BM135: 0.17
A136: 2532 | B136: St Margaret's-at-Cliffe Primary School | C136: 1 | E136: Dover | F136: 187 | G136: 0 | H136: 0 | I136: 8 | J136: 5 | K136: 9 | L136: 4 | M136: 2 | N136: 0 | O136: 0 | P136: 0 | Q136: 18.07540486 | R136: 0 | S136: 10966 | T136: 0 | U136: 0 | Y136: 14 | Z136: 0 | AA136: 682194.8079 | AF136: 10693 | AG136: 196 | AI136: 0 | AQ136: 0 | AR136: 0 | BM136: 0
A137: 2534 | B137: Bysing Wood Primary School | C137: 1 | E137: Swale | F137: 111 | G137: 0 | H137: 0 | I137: 58.52727273 | J137: 10.18348624 | K137: 0 | L137: 50.91743119 | M137: 37.67889908 | N137: 0 | O137: 0 | P137: 1.047169811 | Q137: 33.32655502 | R137: 2.551724138 | S137: 12653 | T137: 0 | U137: 0 | Y137: 77 | Z137: 0 | AA137: 573856.2383 | AF137: 12338 | AG137: 104 | AI137: 1 | AQ137: 0 | AR137: 0 | BM137: 0
A138: 2536 | B138: Loose Infant School | C138: 1 | E138: Maidstone | F138: 269 | G138: 0 | H138: 0 | I138: 18 | J138: 22 | K138: 27 | L138: 1 | M138: 6 | N138: 2 | O138: 2 | P138: 0 | Q138: 42.19706617 | R138: 10.46111111 | S138: 19642 | T138: 0 | U138: 0 | Y138: 12 | Z138: 0 | AA138: 940307.1254 | AF138: 19153 | AG138: 270 | AI138: 0 | AQ138: 0 | AR138: 0 | BM138: 0
A139: 2539 | B139: Stocks Green Primary School | C139: 1 | E139: Tonbridge and Malling | F139: 216 | G139: 0 | H139: 0 | I139: 2 | J139: 0 | K139: 0 | L139: 0 | M139: 0 | N139: 0 | O139: 0 | P139: 0 | Q139: 12.76133702 | R139: 3.483870968 | S139: 13376 | T139: 0 | U139: 0 | Y139: 8 | Z139: 0 | AA139: 720262.6916 | AF139: 11147 | AG139: 214 | AI139: 0 | AQ139: 0 | AR139: 0 | BM139: 0
A140: 2545 | B140: Sandgate Primary School | C140: 1 | E140: Shepway | F140: 422 | G140: 0 | H140: 0 | I140: 37.08788599 | J140: 45.10688836 | K140: 2.004750594 | L140: 14.03325416 | M140: 15.03562945 | N140: 1.002375297 | O140: 0 | P140: 0 | Q140: 18.32542934 | R140: 12.85872576 | S140: 37596 | T140: 0 | U140: 0 | Y140: 56 | Z140: 0 | AA140: 1427442.558 | AF140: 36660 | AG140: 421 | AI140: 1 | AQ140: 0 | AR140: 0 | BM140: 0
A141: 2548 | B141: Barming Primary School | C141: 1 | E141: Maidstone | F141: 405 | G141: 0 | H141: 0 | I141: 35 | J141: 74.18316832 | K141: 4.00990099 | L141: 1.002475248 | M141: 0 | N141: 0 | O141: 2.004950495 | P141: 0 | Q141: 45.95016892 | R141: 21.13043478 | S141: 27474 | T141: 0 | U141: 0 | Y141: 61 | Z141: 0 | AA141: 1417049.303 | AF141: 26790 | AG141: 410 | AI141: 0 | AQ141: 0 | AR141: 0 | BM141: 0
A142: 2552 | B142: Sandling Primary School | C142: 1 | E142: Maidstone | F142: 427 | G142: 0 | H142: 0 | I142: 28.60287081 | J142: 3.071942446 | K142: 33.79136691 | L142: 6.143884892 | M142: 1.023980815 | N142: 1.023980815 | O142: 3.071942446 | P142: 1.028915663 | Q142: 59.53077684 | R142: 15.41944444 | S142: 19883 | T142: 0 | U142: 0 | Y142: 47 | Z142: 0 | AA142: 1391860.28 | AF142: 17508 | AG142: 407 | AI142: 9 | AQ142: 0 | AR142: 0 | BM142: 0
A143: 2559 | B143: Capel-le-Ferne Primary School | C143: 1 | E143: Dover | F143: 203 | G143: 0 | H143: 0 | I143: 19.09405941 | J143: 8.03960396 | K143: 12.05940594 | L143: 17.08415842 | M143: 19.09405941 | N143: 6.02970297 | O143: 0 | P143: 0 | Q143: 38.98522727 | R143: 0 | S143: 12171 | T143: 0 | U143: 0 | Y143: 23 | Z143: 0 | AA143: 729187.7884 | AF143: 11868 | AG143: 194 | AI143: 1 | AQ143: 0 | AR143: 0 | BM143: 0
A144: 2562 | B144: Lunsford Primary School | C144: 1 | E144: Tonbridge and Malling | F144: 212 | G144: 0 | H144: 0 | I144: 15.07109005 | J144: 2.009478673 | K144: 0 | L144: 1.004739336 | M144: 2.009478673 | N144: 0 | O144: 0 | P144: 0 | Q144: 25.27152318 | R144: 0 | S144: 11448 | T144: 0 | U144: 0 | Y144: 21 | Z144: 0 | AA144: 717549.2795 | AF144: 9540 | AG144: 209 | AI144: 1 | AQ144: 0 | AR144: 0 | BM144: 0
A145: 2568 | B145: Morehall Primary School | C145: 1 | E145: Shepway | F145: 181 | G145: 0 | H145: 0 | I145: 44.26630435 | J145: 20.7704918 | K145: 2.967213115 | L145: 24.72677596 | M145: 13.84699454 | N145: 3.956284153 | O145: 3.956284153 | P145: 0 | Q145: 46.62082926 | R145: 7.91875 | S145: 25787 | T145: 0 | U145: 0 | Y145: 55 | Z145: 0 | AA145: 722667.1427 | AF145: 25145 | AG145: 169 | AI145: 2 | AQ145: 0 | AR145: 1 | BM145: 0
A146: 2569 | B146: Briary Primary School | C146: 1 | E146: Canterbury | F146: 412 | G146: 0 | H146: 0 | I146: 81 | J146: 0 | K146: 6.029268293 | L146: 125.6097561 | M146: 5.024390244 | N146: 0 | O146: 0 | P146: 8.302267003 | Q146: 122.8357202 | R146: 18.72727273 | S146: 40681 | T146: 0 | U146: 0 | Y146: 109 | Z146: 0 | AA146: 1513467.243 | AF146: 35955 | AG146: 398 | AI146: 0 | AQ146: 0 | AR146: 0 | BM146: 0
A147: 2574 | B147: Downs View Infant School | C147: 1 | E147: Ashford | F147: 258 | G147: 0 | H147: 0 | I147: 34 | J147: 4 | K147: 27 | L147: 21 | M147: 0 | N147: 1 | O147: 0 | P147: 0 | Q147: 70.45615923 | R147: 18.31952663 | S147: 20485 | T147: 0 | U147: 0 | Y147: 45 | Z147: 0 | AA147: 971482.4201 | AF147: 19975 | AG147: 267 | AI147: 0 | AQ147: 0 | AR147: 0 | BM147: 0
A148: 2578 | B148: Kingswood Primary School | C148: 1 | E148: Maidstone | F148: 131 | G148: 0 | H148: 0 | I148: 16 | J148: 12.28125 | K148: 0 | L148: 1.0234375 | M148: 0 | N148: 0 | O148: 3.0703125 | P148: 0 | Q148: 15.51024549 | R148: 4.763636364 | S148: 6748 | T148: 0 | U148: 0 | Y148: 26 | Z148: 0 | AA148: 500154.2426 | AF148: 6580 | AG148: 119 | AI148: 0 | AQ148: 0 | AR148: 0 | BM148: 0
A149: 2586 | B149: Senacre Wood Primary School | C149: 1 | E149: Maidstone | F149: 203 | G149: 0 | H149: 0 | I149: 48 | J149: 25 | K149: 72 | L149: 24 | M149: 10 | N149: 2 | O149: 21 | P149: 0 | Q149: 54.49512671 | R149: 7.040462428 | S149: 12171 | T149: 0 | U149: 0 | Y149: 64 | Z149: 0 | AA149: 835188.6779 | AF149: 11868 | AG149: 204 | AI149: 0 | AQ149: 0 | AR149: 0 | BM149: 0
A150: 2596 | B150: Chilton Primary School | C150: 1 | E150: Thanet | F150: 420 | G150: 0 | H150: 0 | I150: 49 | J150: 86 | K150: 24 | L150: 59 | M150: 32 | N150: 15 | O150: 3 | P150: 0 | Q150: 70.14482759 | R150: 26.83333333 | S150: 30125 | T150: 0 | U150: 0 | Y150: 80 | Z150: 0 | AA150: 1449097.584 | AF150: 29375 | AG150: 403 | AI150: 0 | AQ150: 0 | AR150: 0 | BM150: 0
A151: 2603 | B151: Bromstone Primary School, Broadstairs | C151: 1 | E151: Thanet | F151: 451 | G151: 0 | H151: 0 | I151: 122.8169643 | J151: 53.47427293 | K151: 28.25055928 | L151: 80.71588367 | M151: 43.38478747 | N151: 39.34899329 | O151: 15.13422819 | P151: 3.324324324 | Q151: 120.3371142 | R151: 43.07303371 | S151: 24100 | T151: 0 | U151: 0 | Y151: 137 | Z151: 0 | AA151: 1518931.316 | AF151: 23500 | AG151: 380 | AI151: 3 | AQ151: 0 | AR151: 1 | BM151: 0
A152: 2607 | B152: Parkside Community Primary School | C152: 1 | E152: Canterbury | F152: 116 | G152: 0 | H152: 0 | I152: 63.54782609 | J152: 5.043478261 | K152: 0 | L152: 7.060869565 | M152: 91.79130435 | N152: 0 | O152: 1.008695652 | P152: 2.784 | Q152: 52.26222861 | R152: 11.26213592 | S152: 14340 | T152: 0 | U152: 0 | Y152: 79 | Z152: 0 | AA152: 756646.7554 | AF152: 13983 | AG152: 125 | AI152: 1 | AQ152: 1 | AR152: 0 | BM152: 0.41
A153: 2611 | B153: St Stephen's Infant School | C153: 1 | E153: Canterbury | F153: 269 | G153: 0 | H153: 0 | I153: 35 | J153: 44.1641791 | K153: 4.014925373 | L153: 64.23880597 | M153: 58.21641791 | N153: 0 | O153: 0 | P153: 0 | Q153: 48.19483408 | R153: 54.10055866 | S153: 24100 | T153: 0 | U153: 0 | Y153: 59 | Z153: 0 | AA153: 1030025.347 | AF153: 23500 | AG153: 267 | AI153: 0 | AQ153: 0 | AR153: 0 | BM153: 0
A154: 2615 | B154: High Firs Primary School | C154: 1 | E154: Sevenoaks | F154: 204 | G154: 0 | H154: 0 | I154: 24 | J154: 32 | K154: 1 | L154: 12 | M154: 9 | N154: 0 | O154: 0 | P154: 1.035532995 | Q154: 37.98066595 | R154: 8.16 | S154: 17111 | T154: 0 | U154: 1 | Y154: 28 | Z154: 0 | AA154: 741649.1442 | AF154: 16685 | AG154: 197 | AI154: 0 | AQ154: 0 | AR154: 0 | BM154: 0
A155: 2622 | B155: Murston Infant School | C155: 1 | E155: Swale | F155: 130 | G155: 0 | H155: 0 | I155: 62 | J155: 30 | K155: 15 | L155: 38 | M155: 1 | N155: 37 | O155: 0 | P155: 1.023622047 | Q155: 61.60591133 | R155: 23.90804598 | S155: 17714 | T155: 0 | U155: 0 | Y155: 56 | Z155: 0 | AA155: 651872.7252 | AF155: 17273 | AG155: 130 | AI155: 0 | AQ155: 1 | AR155: 0 | BM155: 0.32
A156: 2625 | B156: Godinton Primary School | C156: 1 | E156: Ashford | F156: 419 | G156: 0 | H156: 0 | I156: 39 | J156: 10 | K156: 14 | L156: 6 | M156: 12 | N156: 0 | O156: 0 | P156: 0 | Q156: 46.25026654 | R156: 22.17548747 | S156: 38319 | T156: 0 | U156: 0 | Y156: 54 | Z156: 0 | AA156: 1394929.445 | AF156: 37365 | AG156: 415 | AI156: 0 | AQ156: 0 | AR156: 0 | BM156: 0
A157: 2626 | B157: Sandwich Infant School | C157: 1 | E157: Dover | F157: 158 | G157: 0 | H157: 0 | I157: 9.233766234 | J157: 47.81578947 | K157: 2.078947368 | L157: 0 | M157: 0 | N157: 0 | O157: 0 | P157: 0 | Q157: 22.34343434 | R157: 12.76767677 | S157: 9399 | T157: 0 | U157: 0 | Y157: 21 | Z157: 0 | AA157: 574312.5412 | AF157: 9165 | AG157: 146 | AI157: 4 | AQ157: 0 | AR157: 0 | BM157: 0
A158: 2627 | B158: Sandwich Junior School | C158: 1 | E158: Dover | F158: 196 | G158: 0 | H158: 0 | I158: 18 | J158: 67 | K158: 3 | L158: 2 | M158: 0 | N158: 0 | O158: 0 | P158: 0 | Q158: 27.41258741 | R158: 7 | S158: 14822 | T158: 0 | U158: 0 | Y158: 41 | Z158: 0 | AA158: 705309.4107 | AF158: 14453 | AG158: 184 | AI158: 0 | AQ158: 0 | AR158: 0 | BM158: 0
A159: 2629 | B159: Holywell Primary School Upchurch | C159: 1 | E159: Swale | F159: 199 | G159: 0 | H159: 0 | I159: 6.060913706 | J159: 17.17258883 | K159: 4.040609137 | L159: 4.040609137 | M159: 0 | N159: 0 | O159: 0 | P159: 0 | Q159: 23.60361111 | R159: 0 | S159: 16991 | T159: 0 | U159: 0 | Y159: 19 | Z159: 0 | AA159: 696711.0398 | AF159: 16568 | AG159: 192 | AI159: 2 | AQ159: 0 | AR159: 0 | BM159: 0
A160: 2632 | B160: Sevenoaks Primary School | C160: 1 | E160: Sevenoaks | F160: 478 | G160: 0 | H160: 0 | I160: 20 | J160: 2 | K160: 0 | L160: 1 | M160: 0 | N160: 0 | O160: 0 | P160: 6.303296703 | Q160: 46.99335751 | R160: 54.73282443 | S160: 23859 | T160: 0 | U160: 1 | Y160: 35 | Z160: 0 | AA160: 1567236.547 | AF160: 23265 | AG160: 456 | AI160: 0 | AQ160: 0 | AR160: 0 | BM160: 0
A161: 2636 | B161: Edenbridge Primary School | C161: 1 | E161: Sevenoaks | F161: 330 | G161: 0 | H161: 0 | I161: 107.9816514 | J161: 58.71165644 | K161: 0 | L161: 88.06748466 | M161: 0 | N161: 0 | O161: 0 | P161: 3.235294118 | Q161: 74.12616672 | R161: 16.73913043 | S161: 25305 | T161: 0 | U161: 1 | Y161: 124 | Z161: 0 | AA161: 1185021.353 | AF161: 24675 | AG161: 300 | AI161: 3 | AQ161: 1 | AR161: 0 | BM161: 0.02
A162: 2643 | B162: Swalecliffe Community Primary School | C162: 1 | E162: Canterbury | F162: 646 | G162: 0 | H162: 0 | I162: 35 | J162: 3.004651163 | K162: 4.00620155 | L162: 7.010852713 | M162: 17.02635659 | N162: 0 | O162: 0 | P162: 3 | Q162: 110.0481862 | R162: 11.61870504 | S162: 49164 | T162: 0 | U162: 0 | Y162: 62 | Z162: 0 | AA162: 2105298.516 | AF162: 47940 | AG162: 639 | AI162: 0 | AQ162: 0 | AR162: 0 | BM162: 0
A163: 2645 | B163: Lydd Primary School | C163: 1 | E163: Shepway | F163: 200 | G163: 0 | H163: 0 | I163: 59 | J163: 96 | K163: 3 | L163: 97 | M163: 0 | N163: 0 | O163: 0 | P163: 4.95049505 | Q163: 45.31607879 | R163: 1.19047619 | S163: 21309 | T163: 0 | U163: 0 | Y163: 76 | Z163: 0 | AA163: 836433.7391 | AF163: 20851 | AG163: 202 | AI163: 0 | AQ163: 1 | AR163: 0 | BM163: 0.05
A164: 2648 | B164: Aylesham Primary School | C164: 1 | E164: Dover | F164: 190 | G164: 0 | H164: 0 | I164: 64 | J164: 2 | K164: 0 | L164: 100 | M164: 0 | N164: 0 | O164: 0 | P164: 0 | Q164: 33.42027342 | R164: 1.144578313 | S164: 13255 | T164: 0 | U164: 0 | Y164: 85 | Z164: 0 | AA164: 875217.179 | AF164: 12925 | AG164: 196 | AI164: 0 | AQ164: 0 | AR164: 0 | BM164: 0
A165: 2650 | B165: Dymchurch Primary School | C165: 1 | E165: Shepway | F165: 168 | G165: 0 | H165: 0 | I165: 50.2994012 | J165: 20.11976048 | K165: 76.45508982 | L165: 4.023952096 | M165: 0 | N165: 0 | O165: 1.005988024 | P165: 3.929824561 | Q165: 39.11360449 | R165: 5.874125874 | S165: 19883 | T165: 0 | U165: 0 | Y165: 61 | Z165: 0 | AA165: 707929.6126 | AF165: 19388 | AG165: 171 | AI165: 1 | AQ165: 0 | AR165: 0 | BM165: 0
A166: 2651 | B166: Broadwater Primary School | C166: 1 | E166: Tunbridge Wells | F166: 131 | G166: 0 | H166: 0 | I166: 19 | J166: 5 | K166: 5 | L166: 43 | M166: 0 | N166: 0 | O166: 0 | P166: 2.403669725 | Q166: 48.24191063 | R166: 26.2 | S166: 8917 | T166: 0 | U166: 0 | Y166: 41 | Z166: 0 | AA166: 557070.5128 | AF166: 8695 | AG166: 114 | AI166: 0 | AQ166: 0 | AR166: 0 | BM166: 0
A167: 2653 | B167: West Borough Primary School | C167: 1 | E167: Maidstone | F167: 377 | G167: 0 | H167: 0 | I167: 60 | J167: 79.42133333 | K167: 8.042666667 | L167: 4.021333333 | M167: 5.026666667 | N167: 0 | O167: 0 | P167: 5.339943343 | Q167: 52.75795322 | R167: 42.01857585 | S167: 45308 | T167: 0 | U167: 0 | Y167: 104 | Z167: 0 | AA167: 1385498.902 | AF167: 44180 | AG167: 354 | AI167: 0 | AQ167: 1 | AR167: 0 | BM167: 0
A168: 2657 | B168: Temple Hill Community Primary and Nursery School | C168: 1 | E168: Dartford | F168: 469 | G168: 0 | H168: 0 | I168: 147.5732759 | J168: 13.16846652 | K168: 153.9697624 | L168: 5.064794816 | M168: 200.5658747 | N168: 0 | O168: 0 | P168: 2.08908686 | Q168: 173.6955036 | R168: 65.68304668 | S168: 26751 | T168: 0 | U168: 1 | Y168: 211 | Z168: 0 | AA168: 1906747.313 | AF168: 26403 | AG168: 438 | AI168: 5 | AQ168: 1 | AR168: 0 | BM168: 0.36
A169: 2658 | B169: Westcourt School | C169: 1 | E169: Gravesham | F169: 205 | G169: 0 | H169: 0 | I169: 95.46568627 | J169: 20.09803922 | K169: 84.41176471 | L169: 24.11764706 | M169: 68.33333333 | N169: 1.004901961 | O169: 0 | P169: 1.019900498 | Q169: 64.8885664 | R169: 32.61363636 | S169: 12171 | T169: 0 | U169: 0 | Y169: 125 | Z169: 0 | AA169: 1005132.059 | AF169: 11868 | AG169: 198 | AI169: 1 | AQ169: 1 | AR169: 0 | BM169: 0.28
A170: 2659 | B170: Sandown School | C170: 1 | E170: Dover | F170: 344 | G170: 0 | H170: 0 | I170: 57 | J170: 104.303207 | K170: 5.014577259 | L170: 13.03790087 | M170: 0 | N170: 0 | O170: 0 | P170: 1.011764706 | Q170: 54.06021621 | R170: 9.424657534 | S170: 31571 | T170: 0 | U170: 0 | Y170: 84 | Z170: 0 | AA170: 1275300.348 | AF170: 30785 | AG170: 347 | AI170: 0 | AQ170: 0 | AR170: 0 | BM170: 0
A171: 2661 | B171: Cage Green Primary School | C171: 1 | E171: Tonbridge and Malling | F171: 379 | G171: 0 | H171: 0 | I171: 60.03960396 | J171: 0.9404466501 | K171: 17.86848635 | L171: 2.82133995 | M171: 51.72456576 | N171: 0 | O171: 0 | P171: 0.9768041237 | Q171: 105.9896493 | R171: 16.3832853 | S171: 24100 | T171: 0 | U171: 0 | Y171: 94 | Z171: 0 | AA171: 1291882.779 | AF171: 20084 | AG171: 356 | AI171: 3 | AQ171: 0 | AR171: 1 | BM171: 0
A172: 2662 | B172: Long Mead Community Primary School | C172: 1 | E172: Tonbridge and Malling | F172: 137 | G172: 0 | H172: 0 | I172: 52 | J172: 0 | K172: 12 | L172: 5 | M172: 45 | N172: 0 | O172: 0 | P172: 5.229007634 | Q172: 39.55185759 | R172: 5.805084746 | S172: 10417 | T172: 0 | U172: 0 | Y172: 73 | Z172: 0 | AA172: 639075.7286 | AF172: 10364 | AG172: 131 | AI172: 0 | AQ172: 1 | AR172: 0 | BM172: 0.01
A173: 2666 | B173: Wrotham Road Primary School | C173: 1 | E173: Gravesham | F173: 405 | G173: 0 | H173: 0 | I173: 68.16831683 | J173: 27.20149254 | K173: 119.8880597 | L173: 62.46268657 | M173: 6.044776119 | N173: 7.052238806 | O173: 0 | P173: 0 | Q173: 143.1205915 | R173: 125.9738372 | S173: 20967 | T173: 0 | U173: 0 | Y173: 97 | Z173: 0 | AA173: 1635374.067 | AF173: 20445 | AG173: 400 | AI173: 1 | AQ173: 1 | AR173: 0 | BM173: 0.12
A174: 2667 | B174: St Stephen's (Tonbridge) Primary School | C174: 1 | E174: Tonbridge and Malling | F174: 178 | G174: 0 | H174: 0 | I174: 44 | J174: 1 | K174: 69 | L174: 0 | M174: 1 | N174: 0 | O174: 0 | P174: 0 | Q174: 55.37196078 | R174: 13.1409396 | S174: 16629 | T174: 0 | U174: 0 | Y174: 75 | Z174: 0 | AA174: 755274.1519 | AF174: 13858 | AG174: 187 | AI174: 0 | AQ174: 0 | AR174: 0 | BM174: 0
A175: 2672 | B175: Palm Bay Primary School | C175: 1 | E175: Thanet | F175: 344 | G175: 0 | H175: 0 | I175: 22 | J175: 4 | K175: 14 | L175: 7 | M175: 18 | N175: 15 | O175: 10 | P175: 1.026865672 | Q175: 54.53405666 | R175: 17.01766784 | S175: 43139 | T175: 0 | U175: 0 | Y175: 47 | Z175: 0 | AA175: 1211710.064 | AF175: 42065 | AG175: 339 | AI175: 0 | AQ175: 0 | AR175: 0 | BM175: 0
A176: 2674 | B176: Kings Farm Primary School | C176: 1 | E176: Gravesham | F176: 312 | G176: 0 | H176: 0 | I176: 117.3762058 | J176: 50.12459016 | K176: 32.73442623 | L176: 28.64262295 | M176: 13.29836066 | N176: 125.8229508 | O176: 0 | P176: 6.685714286 | Q176: 106.3737326 | R176: 72.36501901 | S176: 21931 | T176: 0 | U176: 0 | Y176: 149 | Z176: 0 | AA176: 1553211.295 | AF176: 21385 | AG176: 273 | AI176: 1 | AQ176: 1 | AR176: 0 | BM176: 0.36
A177: 2676 | B177: West Hill Primary School | C177: 1 | E177: Dartford | F177: 493 | G177: 0 | H177: 0 | I177: 27.10997963 | J177: 6.024439919 | K177: 11.04480652 | L177: 2.00814664 | M177: 5.020366599 | N177: 0 | O177: 0 | P177: 0 | Q177: 131.2769123 | R177: 32.71090047 | S177: 23859 | T177: 0 | U177: 1 | Y177: 38 | Z177: 0 | AA177: 1681974.254 | AF177: 20210 | AG177: 486 | AI177: 2 | AQ177: 0 | AR177: 0 | BM177: 0
A178: 2677 | B178: Coxheath Primary School | C178: 1 | E178: Maidstone | F178: 250 | G178: 0 | H178: 0 | I178: 35.14056225 | J178: 26.10441767 | K178: 0 | L178: 3.012048193 | M178: 2.008032129 | N178: 2.008032129 | O178: 1.004016064 | P178: 1.953125 | Q178: 46.8323298 | R178: 15.4028436 | S178: 14822 | T178: 0 | U178: 0 | Y178: 66 | Z178: 0 | AA178: 895767.3089 | AF178: 14453 | AG178: 248 | AI178: 1 | AQ178: 0 | AR178: 0 | BM178: 0
A179: 2680 | B179: Kings Hill School | C179: 1 | E179: Tonbridge and Malling | F179: 449 | G179: 0 | H179: 0 | I179: 25.11185682 | J179: 7.031319911 | K179: 6.026845638 | L179: 0 | M179: 1.004474273 | N179: 0 | O179: 0 | P179: 0 | Q179: 52.9221502 | R179: 9.922651934 | S179: 41934 | T179: 0 | U179: 0 | Y179: 30 | Z179: 0 | AA179: 1386604.256 | AF179: 34946 | AG179: 417 | AI179: 2 | AQ179: 0 | AR179: 0 | BM179: 0
A180: 2682 | B180: New Ash Green Primary School | C180: 1 | E180: Sevenoaks | F180: 299 | G180: 0 | H180: 0 | I180: 39 | J180: 72 | K180: 2 | L180: 12 | M180: 2 | N180: 0 | O180: 0 | P180: 2.931372549 | Q180: 60.29821122 | R180: 23.42910448 | S180: 23498 | T180: 0 | U180: 1 | Y180: 67 | Z180: 0 | AA180: 1115002.399 | AF180: 22913 | AG180: 302 | AI180: 0 | AQ180: 0 | AR180: 0 | BM180: 0
A181: 2689 | B181: Craylands School, The | C181: 1 | E181: Dartford | F181: 204 | G181: 0 | H181: 0 | I181: 27 | J181: 144 | K181: 18 | L181: 10 | M181: 13 | N181: 0 | O181: 0 | P181: 0 | Q181: 60.78787879 | R181: 10.55172414 | S181: 24100 | T181: 66619.8 | U181: 1 | Y181: 45 | Z181: 0 | AA181: 914975.8929 | AF181: 23500 | AG181: 205 | AI181: 0 | AQ181: 0 | AR181: 0 | BM181: 0
A182: 2691 | B182: St Nicholas C of E Primary School | C182: 1 | E182: Shepway | F182: 319 | G182: 0 | H182: 0 | I182: 72 | J182: 74 | K182: 106 | L182: 20 | M182: 0 | N182: 0 | O182: 0 | P182: 4.183606557 | Q182: 97.01759491 | R182: 6.934782609 | S182: 24100 | T182: 0 | U182: 0 | Y182: 101 | Z182: 0 | AA182: 1227606.179 | AF182: 23500 | AG182: 317 | AI182: 0 | AQ182: 0 | AR182: 0 | BM182: 0
A183: 2692 | B183: Churchill School, The | C183: 1 | E183: Shepway | F183: 418 | G183: 0 | H183: 0 | I183: 43 | J183: 4 | K183: 0 | L183: 109 | M183: 3 | N183: 0 | O183: 0 | P183: 1.002398082 | Q183: 53.62774341 | R183: 9.340782123 | S183: 41693 | T183: 0 | U183: 0 | Y183: 46 | Z183: 0 | AA183: 1402369.637 | AF183: 40655 | AG183: 414 | AI183: 0 | AQ183: 0 | AR183: 0 | BM183: 0
A184: 3010 | B184: St Paul's CEP School | C184: 1 | E184: Sevenoaks | F184: 111 | G184: 0 | H184: 0 | I184: 4.036363636 | J184: 32.29090909 | K184: 2.018181818 | L184: 3.027272727 | M184: 8.072727273 | N184: 1.009090909 | O184: 0 | P184: 0 | Q184: 16.22307692 | R184: 3.542553191 | S184: 7230 | T184: 0 | U184: 1 | Y184: 13 | Z184: 0 | AA184: 453101.6228 | AF184: 7050 | AG184: 105 | AI184: 1 | AQ184: 0 | AR184: 0 | BM184: 0
A185: 3015 | B185: Fawkham CEP School | C185: 1 | E185: Sevenoaks | F185: 105 | G185: 0 | H185: 0 | I185: 6 | J185: 10 | K185: 0 | L185: 1 | M185: 0 | N185: 0 | O185: 0 | P185: 0 | Q185: 5.59777677 | R185: 5.898876404 | S185: 17352 | T185: 0 | U185: 1 | Y185: 9 | Z185: 0 | AA185: 452081.1213 | AF185: 16920 | AG185: 105 | AI185: 0 | AQ185: 0 | AR185: 0 | BM185: 0
A186: 3018 | B186: Rosherville CEP School | C186: 1 | E186: Gravesham | F186: 132 | G186: 0 | H186: 0 | I186: 29 | J186: 54.83076923 | K186: 3.046153846 | L186: 39.6 | M186: 9.138461538 | N186: 0 | O186: 0 | P186: 0 | Q186: 26.69498569 | R186: 40.07142857 | S186: 5423 | T186: 0 | U186: 0 | Y186: 36 | Z186: 0 | AA186: 591928.9517 | AF186: 5288 | AG186: 133 | AI186: 0 | AQ186: 0 | AR186: 0 | BM186: 0
A187: 3019 | B187: Shorne CEP School | C187: 1 | E187: Gravesham | F187: 209 | G187: 0 | H187: 0 | I187: 3.014423077 | J187: 11.05288462 | K187: 13.0625 | L187: 6.028846154 | M187: 17.08173077 | N187: 4.019230769 | O187: 0 | P187: 5.147783251 | Q187: 35.06949153 | R187: 9.393258427 | S187: 13255 | T187: 0 | U187: 0 | Y187: 12 | Z187: 0 | AA187: 727143.5039 | AF187: 12925 | AG187: 203 | AI187: 1 | AQ187: 0 | AR187: 0 | BM187: 0
A188: 3020 | B188: Sedley's CEP School | C188: 1 | E188: Dartford | F188: 96 | G188: 0 | H188: 0 | I188: 5 | J188: 9.094736842 | K188: 4.042105263 | L188: 4.042105263 | M188: 3.031578947 | N188: 0 | O188: 0 | P188: 1.066666667 | Q188: 14.2745098 | R188: 0 | S188: 3808 | T188: 0 | U188: 1 | Y188: 7 | Z188: 0 | AA188: 391482.8466 | AF188: 3713 | AG188: 91 | AI188: 0 | AQ188: 0 | AR188: 0 | BM188: 0
A189: 3021 | B189: Stone St Mary's CEP School | C189: 1 | E189: Dartford | F189: 425 | G189: 0 | H189: 0 | I189: 50 | J189: 77.36406619 | K189: 57.26950355 | L189: 6.028368794 | M189: 9.042553191 | N189: 0 | O189: 0 | P189: 0 | Q189: 84.37385646 | R189: 39.09495549 | S189: 24100 | T189: 0 | U189: 1 | Y189: 80 | Z189: 0 | AA189: 1392628.004 | AF189: 23500 | AG189: 376 | AI189: 0 | AQ189: 0 | AR189: 0 | BM189: 0
A190: 3022 | B190: Benenden CEP School | C190: 1 | E190: Tunbridge Wells | F190: 153 | G190: 0 | H190: 0 | I190: 8 | J190: 12 | K190: 0 | L190: 0 | M190: 0 | N190: 0 | O190: 0 | P190: 0.921686747 | Q190: 39.44282744 | R190: 0 | S190: 4639 | T190: 0 | U190: 0 | Y190: 14 | Z190: 0 | AA190: 625015.1952 | AF190: 4524 | AG190: 169 | AI190: 0 | AQ190: 0 | AR190: 0 | BM190: 0
A191: 3023 | B191: Bidborough CEP School | C191: 1 | E191: Tunbridge Wells | F191: 206 | G191: 0 | H191: 0 | I191: 0 | J191: 2 | K191: 1 | L191: 0 | M191: 0 | N191: 0 | O191: 0 | P191: 0 | Q191: 21.38913808 | R191: 8.193181818 | S191: 10966 | T191: 0 | U191: 0 | Y191: 7 | Z191: 0 | AA191: 728773.653 | AF191: 10693 | AG191: 211 | AI191: 0 | AQ191: 0 | AR191: 0 | BM191: 0
A192: 3027 | B192: Cranbrook CEP School | C192: 1 | E192: Tunbridge Wells | F192: 161 | G192: 0 | H192: 0 | I192: 44 | J192: 61 | K192: 2 | L192: 0 | M192: 0 | N192: 0 | O192: 0 | P192: 0.875 | Q192: 52.19858156 | R192: 8.586666667 | S192: 27233 | T192: 0 | U192: 0 | Y192: 68 | Z192: 0 | AA192: 767377.7029 | AF192: 26555 | AG192: 187 | AI192: 0 | AQ192: 0 | AR192: 0 | BM192: 0
A193: 3029 | B193: Goudhurst & Kilndown CEP School | C193: 1 | E193: Tunbridge Wells | F193: 210 | G193: 0 | H193: 0 | I193: 7 | J193: 6 | K193: 0 | L193: 0 | M193: 0 | N193: 0 | O193: 0 | P193: 0 | Q193: 4.2 | R193: 0 | S193: 24582 | T193: 0 | U193: 0 | Y193: 11 | Z193: 0 | AA193: 722099.6614 | AF193: 23970 | AG193: 211 | AI193: 0 | AQ193: 0 | AR193: 0 | BM193: 0
A194: 3032 | B194: Hawkhurst CEP School | C194: 1 | E194: Tunbridge Wells | F194: 180 | G194: 0 | H194: 0 | I194: 31.17318436 | J194: 69.38547486 | K194: 0 | L194: 0 | M194: 0 | N194: 0 | O194: 0 | P194: 0 | Q194: 40.43290043 | R194: 8.235294118 | S194: 29643 | T194: 0 | U194: 0 | Y194: 43 | Z194: 0 | AA194: 726743.2226 | AF194: 28905 | AG194: 181 | AI194: 1 | AQ194: 0 | AR194: 0 | BM194: 0
A195: 3033 | B195: Hildenborough CEP School | C195: 1 | E195: Tonbridge and Malling | F195: 206 | G195: 0 | H195: 0 | I195: 13.06341463 | J195: 0 | K195: 1.004878049 | L195: 0 | M195: 5.024390244 | N195: 0 | O195: 0 | P195: 1.067357513 | Q195: 34.46470511 | R195: 7.103448276 | S195: 21208 | T195: 0 | U195: 0 | Y195: 22 | Z195: 0 | AA195: 701401.6744 | AF195: 17674 | AG195: 191 | AI195: 1 | AQ195: 0 | AR195: 0 | BM195: 0
A196: 3034 | B196: Lamberhurst St Mary's CEP School | C196: 1 | E196: Tunbridge Wells | F196: 159 | G196: 0 | H196: 0 | I196: 6.076433121 | J196: 3.077419355 | K196: 0 | L196: 0 | M196: 0 | N196: 0 | O196: 0 | P196: 0 | Q196: 11.7325856 | R196: 0 | S196: 20967 | T196: 0 | U196: 0 | Y196: 14 | Z196: 0 | AA196: 588173.1892 | AF196: 20445 | AG196: 148 | AI196: 2 | AQ196: 0 | AR196: 0 | BM196: 0
A197: 3035 | B197: Seal CEP School | C197: 1 | E197: Sevenoaks | F197: 174 | G197: 0 | H197: 0 | I197: 44.51162791 | J197: 0 | K197: 0 | L197: 0 | M197: 0 | N197: 0 | O197: 0 | P197: 1.912087912 | Q197: 47.25990396 | R197: 13.82781457 | S197: 9399 | T197: 0 | U197: 1 | Y197: 64 | Z197: 0 | AA197: 723843.2429 | AF197: 9165 | AG197: 182 | AI197: 2 | AQ197: 0 | AR197: 0 | BM197: 0
A198: 3037 | B198: St John's CEP School, Sevenoaks | C198: 1 | E198: Sevenoaks | F198: 211 | G198: 0 | H198: 0 | I198: 22 | J198: 0 | K198: 0 | L198: 2 | M198: 0 | N198: 0 | O198: 0 | P198: 12.68306011 | Q198: 57.33149911 | R198: 25.78888889 | S198: 4820 | T198: 0 | U198: 1 | Y198: 35 | Z198: 0 | AA198: 857012.1287 | AF198: 4700 | AG198: 183 | AI198: 0 | AQ198: 0 | AR198: 0 | BM198: 0
A199: 3042 | B199: Speldhurst CEP School | C199: 1 | E199: Tunbridge Wells | F199: 145 | G199: 0 | H199: 0 | I199: 6.258992806 | J199: 15.64748201 | K199: 1.043165468 | L199: 0 | M199: 1.043165468 | N199: 0 | O199: 0 | P199: 0 | Q199: 11.98666667 | R199: 4.833333333 | S199: 2073 | T199: 0 | U199: 0 | Y199: 8 | Z199: 0 | AA199: 528824.4969 | AF199: 2021 | AG199: 132 | AI199: 6 | AQ199: 0 | AR199: 0 | BM199: 0
A200: 3043 | B200: Sundridge & Brasted CEP School | C200: 1 | E200: Sevenoaks | F200: 80 | G200: 0 | H200: 0 | I200: 5.063291139 | J200: 2.025316456 | K200: 0 | L200: 3.037974684 | M200: 0 | N200: 0 | O200: 0 | P200: 0 | Q200: 10.56835637 | R200: 1.111111111 | S200: 4941 | T200: 0 | U200: 1 | Y200: 12 | Z200: 0 | AA200: 361221.0767 | AF200: 4818 | AG200: 80 | AI200: 1 | AQ200: 0 | AR200: 0 | BM200: 0
... 241 more rows

Sheet TestArea (hidden)
A1: DFE | B1: =E1+H1+K1+N1+Q1+T1+W1+Z1+AC1+AF1+AI1+AL1+AO1+AR1+AU1+AX1+BA1+BD1+BG1+BJ1+BM1 -> 0.08582204008 | C1: Total Formula macro | D1: Total formula Calc | E1: =MAX(MIN(E2:E416)*-1,MAX(E2:E416)) -> 0.005364686018 | F1: MFG macro | G1: MFG Calc | H1: =MAX(MIN(H2:H416)*-1,MAX(H2:H416)) -> 0.005155736137 | I1: Rev Budget Tot macro | J1: Rev Budget Tot APT | K1: =MAX(MIN(K2:K416)*-1,MAX(K2:K416)) -> 0.005195277685 | L1: De-delegation macro | M1: De-delegation APT | N1: =MAX(MIN(N2:N416)*-1,MAX(N2:N416)) -> 0.00466266796 | O1: Revised Total macro | P1: Revised total APT | Q1: =MAX(MIN(Q2:Q416)*-1,MAX(Q2:Q416)) -> 0.005928192753 | R1: Year1 De-delegation macro | S1: Year 1 De-delegation APT | T1: =MAX(MIN(T2:T416)*-1,MAX(T2:T416)) -> 0.00466266796 | U1: Early Years Rate macro | V1: Early years rate Ash | W1: =SUM(W2:W416) -> 0 | X1: MFG adjustment macro | Y1: MFG adjustment APT | Z1: =MAX(MIN(Z2:Z416)*-1,MAX(Z2:Z416)) -> 0.005155736137 | AA1: MFG Budget Macro | AB1: MFG Budget APT | AC1: =MAX(MIN(AC2:AC416)*-1,MAX(AC2:AC416)) -> 0.004978249199 | AD1: SEN Budget macro | AE1: SEN budget APT | AF1: =MAX(MIN(AF2:AF416)*-1,MAX(AF2:AF416)) -> 0.004964953507 | AG1: SEN Topup macro | AH1: SEN topup Data Calc | AI1: =MAX(MIN(AI2:AI416)*-1,MAX(AI2:AI416)) -> 0.005046068225 | AJ1: 20% SEN Budget macro | AK1: 20% SEN Budget Data Calc | AL1: =MAX(MIN(AL2:AL416)*-1,MAX(AL2:AL416)) -> 0.004968984747 | AM1: SRP1 Topup macro | AN1: SRP1 Topup calc | AO1: =MAX(MIN(AO2:AO416)*-1,MAX(AO2:AO416)) -> 0.004946952316 | AP1: SRP2 topup macro | AQ1: SRP2 topup calc | AR1: =MAX(MIN(AR2:AR416)*-1,MAX(AR2:AR416)) -> 0.0003955978282 | AS1: SRP1topup post 16 macro | AT1: SRP1topup post 16 calc | AU1: =MAX(MIN(AU2:AU416)*-1,MAX(AU2:AU416)) -> 0.004663016431 | AV1: SRP2topup post 16 macro | AW1: SRP2topup post 16 calc | AX1: =MAX(MIN(AX2:AX416)*-1,MAX(AX2:AX416)) -> 0.001095073926 | AY1: SRP Place funding macro | AZ1: SRP place funding calc | BA1: =MAX(MIN(BA2:BA416)*-1,MAX(BA2:BA416)) -> 0.003333333356 | BB1: October 12 pupils macro | BC1: October 12 pupils APT | BD1: =MAX(MIN(BD2:BD416)*-1,MAX(BD2:BD416)) -> 0 | BE1: Growth unit value macro | BF1: Growth unit value calc | BG1: =MAX(MIN(BG2:BG416)*-1,MAX(BG2:BG416)) -> 0.004953832072 | BH1: MFG macro | BI1: MFG Calc | BJ1: =MAX(MIN(BJ2:BJ416)*-1,MAX(BJ2:BJ416)) -> 0.005155736137 | BK1: Initital Budget macro | BL1: Initial budget calc | BM1: =MAX(MIN(BM2:BM416)*-1,MAX(BM2:BM416)) -> 0.005195277685
A2: 1001 | B2: Northfleet Nursery | C2: 0 | D2: 0 | E2: =C2-D2 -> 0 | F2: 0 | G2: 0 | H2: =F2-G2 -> 0 | I2: 87036 | J2: 87036 | K2: =I2-J2 -> 0 | L2: 0 | M2: 0 | N2: =L2-M2 -> 0 | O2: 87036 | P2: 87036 | Q2: =O2-P2 -> 0 | R2: 0 | S2: 0 | T2: =R2-S2 -> 0 | U2: 4.96 | V2: 4.96 | W2: =U2-V2 -> 0 | X2: 0 | Y2: 0 | Z2: =X2-Y2 -> 0 | AA2: 0 | AB2: 0 | AC2: =AA2-AB2 -> 0 | AD2: 0 | AE2: 0 | AF2: =AD2-AE2 -> 0 | AG2: 0 | AH2: 0 | AI2: =AG2-AH2 -> 0 | AJ2: 0 | AK2: 0 | AL2: =AJ2-AK2 -> 0 | AM2: 0 | AN2: 0 | AO2: =AM2-AN2 -> 0 | AQ2: 0 | AR2: =AP2-AQ2 -> 0 | AT2: 0 | AU2: =AS2-AT2 -> 0 | AW2: 0 | AX2: =AV2-AW2 -> 0 | AY2: 0 | AZ2: 0 | BA2: =AY2-AZ2 -> 0 | BB2: 0 | BC2: 0 | BD2: =BB2-BC2 -> 0 | BE2: 0 | BF2: 0 | BG2: =BE2-BF2 -> 0 | BH2: 0 | BI2: 0 | BJ2: =BH2-BI2 -> 0 | BK2: 0 | BL2: 0 | BM2: =BK2-BL2 -> 0
A3: 2000 | B3: St Johns C of E Primary School | C3: 1333373.92 | D3: 1333373.916 | E3: =C3-D3 -> 0.003798906691 | F3: 134123.57 | G3: 134123.5734 | H3: =F3-G3 -> -0.003387940873 | I3: 1467497.49 | J3: 1467497.49 | K3: =I3-J3 -> 0.0004109658767 | L3: 8339.5 | M3: 8339.5 | N3: =L3-M3 -> 0 | O3: 1459157.99 | P3: 1459157.99 | Q3: =O3-P3 -> 0.0004109658767 | R3: 8339.5 | S3: 8339.5 | T3: =R3-S3 -> 0 | U3: 5.23 | V3: 5.23 | W3: =U3-V3 -> 0 | X3: 134123.57 | Y3: 134123.5734 | Z3: =X3-Y3 -> -0.003387940873 | AA3: 1467497.49 | AB3: 1467497.49 | AC3: =AA3-AB3 -> 0.0004109658767 | AD3: 259250.01 | AE3: 259250.0114 | AF3: =AD3-AE3 -> -0.001369005797 | AG3: 0 | AH3: 0 | AI3: =AG3-AH3 -> 0 | AJ3: 51850 | AK3: 51850.00227 | AL3: =AJ3-AK3 -> -0.002273801161 | AM3: 0 | AN3: 0 | AO3: =AM3-AN3 -> 0 | AQ3: 0 | AR3: =AP3-AQ3 -> 0 | AT3: 0 | AU3: =AS3-AT3 -> 0 | AW3: 0 | AX3: =AV3-AW3 -> 0 | AY3: 0 | AZ3: 0 | BA3: =AY3-AZ3 -> 0 | BB3: 325 | BC3: 325 | BD3: =BB3-BC3 -> 0 | BE3: 1590.81 | BF3: 1590.812001 | BG3: =BE3-BF3 -> -0.002000736297 | BH3: 134123.57 | BI3: 134123.5734 | BJ3: =BH3-BI3 -> -0.003387940873 | BK3: 1467497.49 | BL3: 1467497.49 | BM3: =BK3-BL3 -> 0.0004109658767
A4: 2002 | B4: Repton Manor Primary School | C4: 896578.73 | D4: 896578.727 | E4: 0.00295825419 | F4: 13475.6 | G4: 13475.59856 | H4: 0.001442453964 | I4: 910054.33 | J4: 910054.3256 | K4: 0.004400708131 | L4: 5593.88 | M4: 5593.88 | N4: 0 | O4: 904460.45 | P4: 904460.4456 | Q4: 0.004400708131 | R4: 5593.88 | S4: 5593.88 | T4: 0 | U4: 0 | V4: 0 | W4: 0 | X4: 13475.6 | Y4: 13475.59856 | Z4: 0.001442453964 | AA4: 910054.33 | AB4: 910054.3256 | AC4: 0.004400708131 | AD4: 127068.74 | AE4: 127068.7395 | AF4: 0.0005494510551 | AG4: 2187.94 | AH4: 2187.937816 | AI4: 0.002183516468 | AJ4: 25413.75 | AK4: 25413.74789 | AL4: 0.002109890211 | AM4: 0 | AN4: 0 | AO4: 0 | AQ4: 0 | AR4: 0 | AT4: 0 | AU4: 0 | AW4: 0 | AX4: 0 | AY4: 0 | AZ4: 0 | BA4: 0 | BB4: 218 | BC4: 218 | BD4: 0 | BE4: 1590.81 | BF4: 1590.812001 | BG4: -0.002000736297 | BH4: 13475.6 | BI4: 13475.59856 | BJ4: 0.001442453964 | BK4: 910054.33 | BL4: 910054.3256 | BM4: 0.004400708131
A5: 2062 | B5: Darenth Community Primary School | C5: 576640.95 | D5: 576640.9491 | E5: 0.0009151492268 | F5: 10802.54 | G5: 10802.53686 | H5: 0.003143064292 | I5: 587443.49 | J5: 587443.4859 | K5: 0.004058213555 | L5: 3338.07 | M5: 3338.070121 | N5: -0.00012090368 | O5: 584105.42 | P5: 584105.4158 | Q5: 0.00417911727 | R5: 3338.07 | S5: 3338.070121 | T5: -0.00012090368 | U5: 0 | V5: 0 | W5: 0 | X5: 10802.54 | Y5: 10802.53686 | Z5: 0.003143064292 | AA5: 587443.49 | AB5: 587443.4859 | AC5: 0.004058213555 | AD5: 86670.49 | AE5: 86670.49184 | AF5: -0.001841146513 | AG5: 3399.89 | AH5: 3399.885245 | AI5: 0.004755234395 | AJ5: 17334.1 | AK5: 17334.09837 | AL5: 0.001631770694 | AM5: 0 | AN5: 0 | AO5: 0 | AQ5: 0 | AR5: 0 | AT5: 0 | AU5: 0 | AW5: 0 | AX5: 0 | AY5: 0 | AZ5: 0 | BA5: 0 | BB5: 128 | BC5: 128 | BD5: 0 | BE5: 1590.81 | BF5: 1590.812001 | BG5: -0.002000736297 | BH5: 10802.54 | BI5: 10802.53686 | BJ5: 0.003143064292 | BK5: 587443.49 | BL5: 587443.4859 | BM5: 0.004058213555
A6: 2065 | B6: Discovery School, The | C6: 1707273.52 | D6: 1707273.521 | E6: -0.0005014650524 | F6: 16101.8 | G6: 16101.80396 | H6: -0.003958300967 | I6: 1723375.32 | J6: 1723375.324 | K6: -0.004459765973 | L6: 13497.16 | M6: 13497.16 | N6: 0 | O6: 1709878.16 | P6: 1709878.164 | Q6: -0.004459766205 | R6: 13497.16 | S6: 13497.16 | T6: 0 | U6: 0 | V6: 0 | W6: 0 | X6: 16101.8 | Y6: 16101.80396 | Z6: -0.003958300967 | AA6: 1723375.32 | AB6: 1723375.324 | AC6: -0.004459765973 | AD6: 115624.5 | AE6: 115624.4987 | AF6: 0.001290982036 | AG6: 2531.27 | AH6: 2531.265039 | AI6: 0.004961270539 | AJ6: 23124.9 | AK6: 23124.89974 | AL6: 0.0002581964072 | AM6: 0 | AN6: 0 | AO6: 0 | AQ6: 0 | AR6: 0 | AT6: 0 | AU6: 0 | AW6: 0 | AX6: 0 | AY6: 0 | AZ6: 0 | BA6: 0 | BB6: 526 | BC6: 526 | BD6: 0 | BE6: 1590.81 | BF6: 1590.812001 | BG6: -0.002000736297 | BH6: 16101.8 | BI6: 16101.80396 | BJ6: -0.003958300967 | BK6: 1723375.32 | BL6: 1723375.324 | BM6: -0.004459765973
A7: 2066 | B7: Maypole Primary School | C7: 1195092.78 | D7: 1195092.784 | E7: -0.004298917949 | F7: 0 | G7: 0 | H7: 0 | I7: 1195092.78 | J7: 1195092.784 | K7: -0.004298917949 | L7: 8423.41 | M7: 8423.411321 | N7: -0.00132071788 | O7: 1186669.37 | P7: 1186669.373 | Q7: -0.002978200093 | R7: 8423.41 | S7: 8423.411321 | T7: -0.00132071788 | U7: 0 | V7: 0 | W7: 0 | X7: 0 | Y7: 0 | Z7: 0 | AA7: 1153606.46 | AB7: 1153606.459 | AC7: 0.00121563836 | AD7: 140323.43 | AE7: 140323.4347 | AF7: -0.004747834464 | AG7: 1790.3 | AH7: 1790.296958 | AI7: 0.003042435033 | AJ7: 28064.69 | AK7: 28064.68695 | AL7: 0.003050433108 | AM7: 0 | AN7: 0 | AO7: 0 | AQ7: 0 | AR7: 0 | AT7: 0 | AU7: 0 | AW7: 0 | AX7: 0 | AY7: 0 | AZ7: 0 | BA7: 0 | BB7: 323 | BC7: 323 | BD7: 0 | BE7: 1590.81 | BF7: 1590.812001 | BG7: -0.002000736297 | BH7: 0 | BI7: 0 | BJ7: 0 | BK7: 1195092.78 | BL7: 1195092.784 | BM7: -0.004298917949
A8: 2069 | B8: St Albans Road Infant School | C8: 1025420.17 | D8: 1025420.173 | E8: -0.002851285972 | F8: 0 | G8: 0 | H8: 0 | I8: 1025420.17 | J8: 1025420.173 | K8: -0.002851285972 | L8: 6884.77 | M8: 6884.769624 | N8: 0.0003756361612 | O8: 1018535.4 | P8: 1018535.403 | Q8: -0.003226922126 | R8: 6884.77 | S8: 6884.769624 | T8: 0.0003756361612 | U8: 4.8 | V8: 4.8 | W8: 0 | X8: 0 | Y8: 0 | Z8: 0 | AA8: 1003556.19 | AB8: 1003556.189 | AC8: 0.0005198693834 | AD8: 150563.95 | AE8: 150563.954 | AF8: -0.004040532192 | AG8: 1483.08 | AH8: 1483.081379 | AI8: -0.001378784034 | AJ8: 30112.79 | AK8: 30112.79081 | AL8: -0.0008081064407 | AM8: 0 | AN8: 0 | AO8: 0 | AQ8: 0 | AR8: 0 | AT8: 0 | AU8: 0 | AW8: 0 | AX8: 0 | AY8: 0 | AZ8: 0 | BA8: 0 | BB8: 264 | BC8: 264 | BD8: 0 | BE8: 1590.81 | BF8: 1590.812001 | BG8: -0.002000736297 | BH8: 0 | BI8: 0 | BJ8: 0 | BK8: 1025420.17 | BL8: 1025420.173 | BM8: -0.002851285972
A9: 2072 | B9: Westgate Primary School | C9: 846017.5 | D9: 846017.4979 | E9: 0.002107621869 | F9: 24002.73 | G9: 24002.73019 | H9: -0.0001928367237 | I9: 870020.23 | J9: 870020.2281 | K9: 0.001914785127 | L9: 5320.05 | M9: 5320.049255 | N9: 0.0007448097604 | O9: 864700.18 | P9: 864700.1788 | Q9: 0.001169975381 | R9: 5320.05 | S9: 5320.049255 | T9: 0.0007448097604 | U9: 0 | V9: 0 | W9: 0 | X9: 24002.73 | Y9: 24002.73019 | Z9: -0.0001928367237 | AA9: 870020.23 | AB9: 870020.2281 | AC9: 0.001914785127 | AD9: 128887.29 | AE9: 128887.2872 | AF9: 0.002785202727 | AG9: 2133.38 | AH9: 2133.381384 | AI9: -0.001383556082 | AJ9: 25777.46 | AK9: 25777.45744 | AL9: 0.002557040545 | AM9: 0 | AN9: 0 | AO9: 0 | AQ9: 0 | AR9: 0 | AT9: 0 | AU9: 0 | AW9: 0 | AX9: 0 | AY9: 0 | AZ9: 0 | BA9: 0 | BB9: 204 | BC9: 204 | BD9: 0 | BE9: 1590.81 | BF9: 1590.812001 | BG9: -0.002000736297 | BH9: 24002.73 | BI9: 24002.73019 | BJ9: -0.0001928367237 | BK9: 870020.23 | BL9: 870020.2281 | BM9: 0.001914785127
A10: 2088 | B10: Crockenhill Primary School | C10: 764523.02 | D10: 764523.02 | E10: 1.493352465e-05 | F10: 0 | G10: 0 | H10: 0 | I10: 764523.02 | J10: 764523.02 | K10: 1.493352465e-05 | L10: 5241.81 | M10: 5241.813237 | N10: -0.00323673156 | O10: 759281.21 | P10: 759281.2067 | Q10: 0.003251665039 | R10: 5241.81 | S10: 5241.813237 | T10: -0.00323673156 | U10: 0 | V10: 0 | W10: 0 | X10: 0 | Y10: 0 | Z10: 0 | AA10: 750129.73 | AB10: 750129.7258 | AC10: 0.004150198423 | AD10: 72775.66 | AE10: 72775.6563 | AF10: 0.003696773812 | AG10: 3816.73 | AH10: 3816.730311 | AI10: -0.0003109032145 | AJ10: 14555.13 | AK10: 14555.13126 | AL10: -0.001260645238 | AM10: 0 | AN10: 0 | AO10: 0 | AQ10: 0 | AR10: 0 | AT10: 0 | AU10: 0 | AW10: 0 | AX10: 0 | AY10: 0 | AZ10: 0 | BA10: 0 | BB10: 201 | BC10: 201 | BD10: 0 | BE10: 1590.81 | BF10: 1590.812001 | BG10: -0.002000736297 | BH10: 0 | BI10: 0 | BJ10: 0 | BK10: 764523.02 | BL10: 764523.02 | BM10: 1.493352465e-05
A11: 2089 | B11: Anthony Roper Primary School, The | C11: 1064950.17 | D11: 1064950.165 | E11: 0.005067648599 | F11: 0 | G11: 0 | H11: 0 | I11: 1064950.17 | J11: 1064950.165 | K11: 0.005067648599 | L11: 8240.86 | M11: 8240.860611 | N11: -0.0006109809601 | O11: 1056709.3 | P11: 1056709.304 | Q11: -0.004321370274 | R11: 8240.86 | S11: 8240.860611 | T11: -0.0006109809601 | U11: 0 | V11: 0 | W11: 0 | X11: 0 | Y11: 0 | Z11: 0 | AA11: 1041576.82 | AB11: 1041576.824 | AC11: -0.003849126399 | AD11: 64551.32 | AE11: 64551.32148 | AF11: -0.001476143618 | AG11: 4063.46 | AH11: 4063.460356 | AI11: -0.0003557156915 | AJ11: 12910.26 | AK11: 12910.2643 | AL11: -0.004295228724 | AM11: 0 | AN11: 0 | AO11: 0 | AQ11: 0 | AR11: 0 | AT11: 0 | AU11: 0 | AW11: 0 | AX11: 0 | AY11: 0 | AZ11: 0 | BA11: 0 | BB11: 316 | BC11: 316 | BD11: 0 | BE11: 1590.81 | BF11: 1590.812001 | BG11: -0.002000736297 | BH11: 0 | BI11: 0 | BJ11: 0 | BK11: 1064950.17 | BL11: 1064950.165 | BM11: 0.005067648599
A12: 2094 | B12: Cobham Primary School | C12: 772624.52 | D12: 772624.5207 | E12: -0.0007392535917 | F12: 0 | G12: 0 | H12: 0 | I12: 772624.52 | J12: 772624.5207 | K12: -0.0007392535917 | L12: 5619.54 | M12: 5619.54 | N12: 0 | O12: 767004.98 | P12: 767004.9807 | Q12: -0.0007392535917 | R12: 5619.54 | S12: 5619.54 | T12: 0 | U12: 0 | V12: 0 | W12: 0 | X12: 0 | Y12: 0 | Z12: 0 | AA12: 744846.91 | AB12: 744846.9139 | AC12: -0.003932086751 | AD12: 46700.44 | AE12: 46700.44006 | AF12: -6.099719758e-05 | AG12: 4598.99 | AH12: 4598.986798 | AI12: 0.003201829915 | AJ12: 9340.09 | AK12: 9340.088012 | AL12: 0.001987800561 | AM12: 0 | AN12: 0 | AO12: 0 | AQ12: 0 | AR12: 0 | AT12: 0 | AU12: 0 | AW12: 0 | AX12: 0 | AY12: 0 | AZ12: 0 | BA12: 0 | BB12: 219 | BC12: 219 | BD12: 0 | BE12: 1590.81 | BF12: 1590.812001 | BG12: -0.002000736297 | BH12: 0 | BI12: 0 | BJ12: 0 | BK12: 772624.52 | BL12: 772624.5207 | BM12: -0.0007392535917
A13: 2095 | B13: Cecil Road Primary and Nursery School | C13: 1350554.85 | D13: 1350554.848 | E13: 0.001669318415 | F13: 0 | G13: 0 | H13: 0 | I13: 1350554.85 | J13: 1350554.848 | K13: 0.001669318415 | L13: 9391.56 | M13: 9391.56 | N13: 0 | O13: 1341163.29 | P13: 1341163.288 | Q13: 0.001669318415 | R13: 9391.56 | S13: 9391.56 | T13: 0 | U13: 4.85 | V13: 4.85 | W13: 0 | X13: 0 | Y13: 0 | Z13: 0 | AA13: 1320582.26 | AB13: 1320582.264 | AC13: -0.004256551387 | AD13: 201756.1 | AE13: 201756.1011 | AF13: -0.001050937426 | AG13: 0 | AH13: 0 | AI13: 0 | AJ13: 40351.22 | AK13: 40351.22021 | AL13: -0.0002101874852 | AM13: 0 | AN13: 0 | AO13: 0 | AQ13: 0 | AR13: 0 | AT13: 0 | AU13: 0 | AW13: 0 | AX13: 0 | AY13: 0 | AZ13: 0 | BA13: 0 | BB13: 366 | BC13: 366 | BD13: 0 | BE13: 1590.81 | BF13: 1590.812001 | BG13: -0.002000736297 | BH13: 0 | BI13: 0 | BJ13: 0 | BK13: 1350554.85 | BL13: 1350554.848 | BM13: 0.001669318415
A14: 2109 | B14: Higham Primary School | C14: 742032.96 | D14: 742032.9637 | E14: -0.003656200366 | F14: 0 | G14: 0 | H14: 0 | I14: 742032.96 | J14: 742032.9637 | K14: -0.003656200366 | L14: 5337.28 | M14: 5337.28 | N14: 0 | O14: 736695.68 | P14: 736695.6837 | Q14: -0.00365620025 | R14: 5337.28 | S14: 5337.28 | T14: 0 | U14: 0 | V14: 0 | W14: 0 | X14: 0 | Y14: 0 | Z14: 0 | AA14: 727265.47 | AB14: 727265.4686 | AC14: 0.001423941576 | AD14: 42024.45 | AE14: 42024.44926 | AF14: 0.0007381151154 | AG14: 4739.27 | AH14: 4739.266522 | AI14: 0.003477856547 | AJ14: 8404.89 | AK14: 8404.889852 | AL14: 0.0001476230227 | AM14: 0 | AN14: 0 | AO14: 0 | AQ14: 0 | AR14: 0 | AT14: 0 | AU14: 0 | AW14: 0 | AX14: 0 | AY14: 0 | AZ14: 0 | BA14: 0 | BB14: 208 | BC14: 208 | BD14: 0 | BE14: 1590.81 | BF14: 1590.812001 | BG14: -0.002000736297 | BH14: 0 | BI14: 0 | BJ14: 0 | BK14: 742032.96 | BL14: 742032.9637 | BM14: -0.003656200366
A15: 2110 | B15: Culverstone Green Primary School | C15: 733449.6 | D15: 733449.6018 | E15: -0.00178878766 | F15: 0 | G15: 0 | H15: 0 | I15: 733449.6 | J15: 733449.6018 | K15: -0.00178878766 | L15: 5080.68 | M15: 5080.68 | N15: 0 | O15: 728368.92 | P15: 728368.9218 | Q15: -0.001788787544 | R15: 5080.68 | S15: 5080.68 | T15: 0 | U15: 0 | V15: 0 | W15: 0 | X15: 0 | Y15: 0 | Z15: 0 | AA15: 710403.23 | AB15: 710403.2283 | AC15: 0.001667066128 | AD15: 63731.85 | AE15: 63731.84883 | AF15: 0.001172163109 | AG15: 4088.04 | AH15: 4088.044535 | AI15: -0.004535164893 | AJ15: 12746.37 | AK15: 12746.36977 | AL15: 0.0002344326222 | AM15: 0 | AN15: 0 | AO15: 0 | AQ15: 0 | AR15: 0 | AT15: 0 | AU15: 0 | AW15: 0 | AX15: 0 | AY15: 0 | AZ15: 0 | BA15: 0 | BB15: 198 | BC15: 198 | BD15: 0 | BE15: 1590.81 | BF15: 1590.812001 | BG15: -0.002000736297 | BH15: 0 | BI15: 0 | BJ15: 0 | BK15: 733449.6 | BL15: 733449.6018 | BM15: -0.00178878766
A16: 2116 | B16: Lawn Primary School | C16: 836402.14 | D16: 836402.1439 | E16: -0.003867162624 | F16: 40178.82 | G16: 40178.81577 | H16: 0.004232353116 | I16: 876580.96 | J16: 876580.9596 | K16: 0.0003651904408 | L16: 4541.82 | M16: 4541.82 | N16: 0 | O16: 872039.14 | P16: 872039.1396 | Q16: 0.0003651904408 | R16: 4541.82 | S16: 4541.82 | T16: 0 | U16: 5.48 | V16: 5.48 | W16: 0 | X16: 40178.82 | Y16: 40178.81577 | Z16: 0.004232353116 | AA16: 876580.96 | AB16: 876580.9596 | AC16: 0.0003651904408 | AD16: 197594.29 | AE16: 197594.2928 | AF16: -0.002768311271 | AG16: 72.17 | AH16: 72.17121695 | AI16: -0.001216950662 | AJ16: 39518.86 | AK16: 39518.85855 | AL16: 0.001446337745 | AM16: 0 | AN16: 0 | AO16: 0 | AQ16: 0 | AR16: 0 | AT16: 0 | AU16: 0 | AW16: 0 | AX16: 0 | AY16: 0 | AZ16: 0 | BA16: 0 | BB16: 177 | BC16: 177 | BD16: 0 | BE16: 1590.81 | BF16: 1590.812001 | BG16: -0.002000736297 | BH16: 40178.82 | BI16: 40178.81577 | BJ16: 0.004232353116 | BK16: 876580.96 | BL16: 876580.9596 | BM16: 0.0003651904408
A17: 2119 | B17: Shears Green Infant School | C17: 1302271.08 | D17: 1302271.077 | E17: 0.00278686313 | F17: 24284.03 | G17: 24284.02859 | H17: 0.001412670099 | I17: 1326555.11 | J17: 1326555.106 | K17: 0.004199533258 | L17: 9263.26 | M17: 9263.26 | N17: 0 | O17: 1317291.85 | P17: 1317291.846 | Q17: 0.004199533258 | R17: 9263.26 | S17: 9263.26 | T17: 0 | U17: 0 | V17: 0 | W17: 0 | X17: 24284.03 | Y17: 24284.02859 | Z17: 0.001412670099 | AA17: 1326555.11 | AB17: 1326555.106 | AC17: 0.004199533258 | AD17: 164864.38 | AE17: 164864.3822 | AF17: -0.002238211164 | AG17: 1054.07 | AH17: 1054.068533 | AI17: 0.001467146335 | AJ17: 32972.88 | AK17: 32972.87645 | AL17: 0.003552357761 | AM17: 0 | AN17: 0 | AO17: 0 | AQ17: 0 | AR17: 0 | AT17: 0 | AU17: 0 | AW17: 0 | AX17: 0 | AY17: 0 | AZ17: 0 | BA17: 0 | BB17: 361 | BC17: 361 | BD17: 0 | BE17: 1590.81 | BF17: 1590.812001 | BG17: -0.002000736297 | BH17: 24284.03 | BI17: 24284.02859 | BJ17: 0.001412670099 | BK17: 1326555.11 | BL17: 1326555.106 | BM17: 0.004199533258
A18: 2120 | B18: Bean Primary School | C18: 750262.57 | D18: 750262.5683 | E18: 0.001681028982 | F18: 0 | G18: 0 | H18: 0 | I18: 750262.57 | J18: 750262.5683 | K18: 0.001681028982 | L18: 5033.18 | M18: 5033.183854 | N18: -0.003854175079 | O18: 745229.38 | P18: 745229.3845 | Q18: -0.004464795929 | R18: 5033.18 | S18: 5033.183854 | T18: -0.003854175079 | U18: 0 | V18: 0 | W18: 0 | X18: 0 | Y18: 0 | Z18: 0 | AA18: 729245.26 | AB18: 729245.2647 | AC18: -0.004672588082 | AD18: 81935.98 | AE18: 81935.98191 | AF18: -0.001905789148 | AG18: 3541.92 | AH18: 3541.920543 | AI18: -0.0005428263257 | AJ18: 16387.2 | AK18: 16387.19638 | AL18: 0.003618842173 | AM18: 0 | AN18: 0 | AO18: 0 | AQ18: 0 | AR18: 0 | AT18: 0 | AU18: 0 | AW18: 0 | AX18: 0 | AY18: 0 | AZ18: 0 | BA18: 0 | BB18: 193 | BC18: 193 | BD18: 0 | BE18: 1590.81 | BF18: 1590.812001 | BG18: -0.002000736297 | BH18: 0 | BI18: 0 | BJ18: 0 | BK18: 750262.57 | BL18: 750262.5683 | BM18: 0.001681028982
A19: 2123 | B19: Knockhall Community Primary School | C19: 1540578.51 | D19: 1540578.514 | E19: -0.003798994469 | F19: 0 | G19: 0 | H19: 0 | I19: 1540578.51 | J19: 1540578.514 | K19: -0.003798994469 | L19: 10874.81 | M19: 10874.80657 | N19: 0.003434243481 | O19: 1529703.71 | P19: 1529703.707 | Q19: 0.002766761929 | R19: 10874.81 | S19: 10874.80657 | T19: 0.003434243481 | U19: 4.8 | V19: 4.8 | W19: 0 | X19: 0 | Y19: 0 | Z19: 0 | AA19: 1504058.14 | AB19: 1504058.144 | AC19: -0.004490032792 | AD19: 220239.62 | AE19: 220239.6219 | AF19: -0.001901901996 | AG19: 0 | AH19: 0 | AI19: 0 | AJ19: 44047.92 | AK19: 44047.92438 | AL19: -0.0043803804 | AM19: 0 | AN19: 0 | AO19: 0 | AQ19: 0 | AR19: 0 | AT19: 0 | AU19: 0 | AW19: 0 | AX19: 0 | AY19: 0 | AZ19: 0 | BA19: 0 | BB19: 417 | BC19: 417 | BD19: 0 | BE19: 1590.81 | BF19: 1590.812001 | BG19: -0.002000736297 | BH19: 0 | BI19: 0 | BJ19: 0 | BK19: 1540578.51 | BL19: 1540578.514 | BM19: -0.003798994469
A20: 2127 | B20: Paddock Wood Primary School | C20: 1891387.75 | D20: 1891387.751 | E20: -0.001429756405 | F20: 40803.24 | G20: 40803.24385 | H20: -0.003853268216 | I20: 1932191 | J20: 1932190.995 | K20: 0.004716975382 | L20: 14574.88 | M20: 14574.88 | N20: 0 | O20: 1917616.12 | P20: 1917616.115 | Q20: 0.004716975382 | R20: 14574.88 | S20: 14574.88 | T20: 0 | U20: 0 | V20: 0 | W20: 0 | X20: 40803.24 | Y20: 40803.24385 | Z20: -0.003853268216 | AA20: 1932191 | AB20: 1932190.995 | AC20: 0.004716975382 | AD20: 156583.65 | AE20: 156583.6531 | AF20: -0.003135493054 | AG20: 1302.49 | AH20: 1302.490406 | AI20: -0.0004059352084 | AJ20: 31316.73 | AK20: 31316.73063 | AL20: -0.0006270986087 | AM20: 0 | AN20: 0 | AO20: 0 | AQ20: 0 | AR20: 0 | AT20: 0 | AU20: 0 | AW20: 0 | AX20: 0 | AY20: 0 | AZ20: 0 | BA20: 0 | BB20: 568 | BC20: 568 | BD20: 0 | BE20: 1590.81 | BF20: 1590.812001 | BG20: -0.002000736297 | BH20: 40803.24 | BI20: 40803.24385 | BJ20: -0.003853268216 | BK20: 1932191 | BL20: 1932190.995 | BM20: 0.004716975382
A21: 2128 | B21: Capel Primary School | C21: 699529.21 | D21: 699529.2143 | E21: -0.004332377925 | F21: 2020.87 | G21: 2020.865035 | H21: 0.004964789147 | I21: 701550.08 | J21: 701550.0794 | K21: 0.0006324112182 | L21: 5106.34 | M21: 5106.34 | N21: 0 | O21: 696443.74 | P21: 696443.7394 | Q21: 0.0006324112182 | R21: 5106.34 | S21: 5106.34 | T21: 0 | U21: 0 | V21: 0 | W21: 0 | X21: 2020.87 | Y21: 2020.865035 | Z21: 0.004964789147 | AA21: 701550.08 | AB21: 701550.0794 | AC21: 0.0006324112182 | AD21: 24066.56 | AE21: 24066.55604 | AF21: 0.003957949055 | AG21: 5278 | AH21: 5278.003319 | AI21: -0.003318738472 | AJ21: 4813.31 | AK21: 4813.311208 | AL21: -0.001208410189 | AM21: 0 | AN21: 0 | AO21: 0 | AQ21: 0 | AR21: 0 | AT21: 0 | AU21: 0 | AW21: 0 | AX21: 0 | AY21: 0 | AZ21: 0 | BA21: 0 | BB21: 199 | BC21: 199 | BD21: 0 | BE21: 1590.81 | BF21: 1590.812001 | BG21: -0.002000736297 | BH21: 2020.87 | BI21: 2020.865035 | BJ21: 0.004964789147 | BK21: 701550.08 | BL21: 701550.0794 | BM21: 0.0006324112182
A22: 2130 | B22: Dunton Green Primary School | C22: 739606.89 | D22: 739606.8853 | E22: 0.004702535109 | F22: 0 | G22: 0 | H22: 0 | I22: 739606.89 | J22: 739606.8853 | K22: 0.004702535109 | L22: 4954.95 | M22: 4954.947836 | N22: 0.0021642836 | O22: 734651.94 | P22: 734651.9375 | Q22: 0.002538251458 | R22: 4954.95 | S22: 4954.947836 | T22: 0.0021642836 | U22: 0 | V22: 0 | W22: 0 | X22: 0 | Y22: 0 | Z22: 0 | AA22: 705351.82 | AB22: 705351.8158 | AC22: 0.004173144815 | AD22: 66628.21 | AE22: 66628.21068 | AF22: -0.0006820772833 | AG22: 4001.15 | AH22: 4001.15368 | AI22: -0.003679537681 | AJ22: 13325.64 | AK22: 13325.64214 | AL22: -0.002136415458 | AM22: 0 | AN22: 0 | AO22: 0 | AQ22: 0 | AR22: 0 | AT22: 0 | AU22: 0 | AW22: 0 | AX22: 0 | AY22: 0 | AZ22: 0 | BA22: 0 | BB22: 190 | BC22: 190 | BD22: 0 | BE22: 1590.81 | BF22: 1590.812001 | BG22: -0.002000736297 | BH22: 0 | BI22: 0 | BJ22: 0 | BK22: 739606.89 | BL22: 739606.8853 | BM22: 0.004702535109
A23: 2132 | B23: Hadlow School | C23: 701595.75 | D23: 701595.7531 | E23: -0.00305168191 | F23: 3369 | G23: 3368.999641 | H23: 0.0003589352127 | I23: 704964.75 | J23: 704964.7527 | K23: -0.002692746697 | L23: 4490.5 | M23: 4490.5 | N23: 0 | O23: 700474.25 | P23: 700474.2527 | Q23: -0.002692746697 | R23: 4490.5 | S23: 4490.5 | T23: 0 | U23: 0 | V23: 0 | W23: 0 | X23: 3369 | Y23: 3368.999641 | Z23: 0.0003589352127 | AA23: 704964.75 | AB23: 704964.7527 | AC23: -0.002692746697 | AD23: 89550.04 | AE23: 89550.04278 | AF23: -0.00277599039 | AG23: 3313.5 | AH23: 3313.498717 | AI23: 0.001283279712 | AJ23: 17910.01 | AK23: 17910.00856 | AL23: 0.001444801921 | AM23: 0 | AN23: 0 | AO23: 0 | AQ23: 0 | AR23: 0 | AT23: 0 | AU23: 0 | AW23: 0 | AX23: 0 | AY23: 0 | AZ23: 0 | BA23: 0 | BB23: 175 | BC23: 175 | BD23: 0 | BE23: 1590.81 | BF23: 1590.812001 | BG23: -0.002000736297 | BH23: 3369 | BI23: 3368.999641 | BJ23: 0.0003589352127 | BK23: 704964.75 | BL23: 704964.7527 | BM23: -0.002692746697
A24: 2133 | B24: Halstead Community Primary School | C24: 336224.79 | D24: 336224.7911 | E24: -0.001053752145 | F24: 0 | G24: 0 | H24: 0 | I24: 336224.79 | J24: 336224.7911 | K24: -0.001053752145 | L24: 1747.27 | M24: 1747.271079 | N24: -0.00107891052 | O24: 334477.52 | P24: 334477.52 | Q24: 2.515839878e-05 | R24: 1747.27 | S24: 1747.271079 | T24: -0.00107891052 | U24: 0 | V24: 0 | W24: 0 | X24: 0 | Y24: 0 | Z24: 0 | AA24: 333234.38 | AB24: 333234.3752 | AC24: 0.004813349165 | AD24: 21706.09 | AE24: 21706.09387 | AF24: -0.003866883839 | AG24: 5348.82 | AH24: 5348.817184 | AI24: 0.002816006515 | AJ24: 4341.22 | AK24: 4341.218773 | AL24: 0.001226623232 | AM24: 0 | AN24: 0 | AO24: 0 | AQ24: 0 | AR24: 0 | AT24: 0 | AU24: 0 | AW24: 0 | AX24: 0 | AY24: 0 | AZ24: 0 | BA24: 0 | BB24: 67 | BC24: 67 | BD24: 0 | BE24: 1590.81 | BF24: 1590.812001 | BG24: -0.002000736297 | BH24: 0 | BI24: 0 | BJ24: 0 | BK24: 336224.79 | BL24: 336224.7911 | BM24: -0.001053752145
A25: 2134 | B25: Four Elms Primary School | C25: 490403.56 | D25: 490403.5568 | E25: 0.003191587341 | F25: 0 | G25: 0 | H25: 0 | I25: 490403.56 | J25: 490403.5568 | K25: 0.003191587341 | L25: 2999.05 | M25: 2999.047374 | N25: 0.0026257506 | O25: 487404.51 | P25: 487404.5094 | Q25: 0.0005658367299 | R25: 2999.05 | S25: 2999.047374 | T25: 0.0026257506 | U25: 0 | V25: 0 | W25: 0 | X25: 0 | Y25: 0 | Z25: 0 | AA25: 474661.09 | AB25: 474661.0855 | AC25: 0.004474718764 | AD25: 42889.38 | AE25: 42889.37716 | AF25: 0.002842600596 | AG25: 4713.32 | AH25: 4713.318685 | AI25: 0.001314721982 | AJ25: 8577.88 | AK25: 8577.875431 | AL25: 0.004568520118 | AM25: 0 | AN25: 0 | AO25: 0 | AQ25: 0 | AR25: 0 | AT25: 0 | AU25: 0 | AW25: 0 | AX25: 0 | AY25: 0 | AZ25: 0 | BA25: 0 | BB25: 115 | BC25: 115 | BD25: 0 | BE25: 1590.81 | BF25: 1590.812001 | BG25: -0.002000736297 | BH25: 0 | BI25: 0 | BJ25: 0 | BK25: 490403.56 | BL25: 490403.5568 | BM25: 0.003191587341
A26: 2135 | B26: Horsmonden Primary School | C26: 760824.51 | D26: 760824.5128 | E26: -0.002784230746 | F26: 6222.9 | G26: 6222.902998 | H26: -0.002997520287 | I26: 767047.42 | J26: 767047.4158 | K26: 0.004218249 | L26: 5696.52 | M26: 5696.52 | N26: 0 | O26: 761350.9 | P26: 761350.8958 | Q26: 0.004218249 | R26: 5696.52 | S26: 5696.52 | T26: 0 | U26: 0 | V26: 0 | W26: 0 | X26: 6222.9 | Y26: 6222.902998 | Z26: -0.002997520287 | AA26: 767047.42 | AB26: 767047.4158 | AC26: 0.004218249 | AD26: 26360.01 | AE26: 26360.01277 | AF26: -0.002766244881 | AG26: 5209.2 | AH26: 5209.199617 | AI26: 0.0003829873458 | AJ26: 5272 | AK26: 5272.002553 | AL26: -0.002553248976 | AM26: 0 | AN26: 0 | AO26: 0 | AQ26: 0 | AR26: 0 | AT26: 0 | AU26: 0 | AW26: 0 | AX26: 0 | AY26: 0 | AZ26: 0 | BA26: 0 | BB26: 222 | BC26: 222 | BD26: 0 | BE26: 1590.81 | BF26: 1590.812001 | BG26: -0.002000736297 | BH26: 6222.9 | BI26: 6222.902998 | BJ26: -0.002997520287 | BK26: 767047.42 | BL26: 767047.4158 | BM26: 0.004218249
A27: 2136 | B27: Kemsing Primary School | C27: 747883.78 | D27: 747883.7774 | E27: 0.002601580461 | F27: 14802.23 | G27: 14802.23089 | H27: -0.0008947262359 | I27: 762686.01 | J27: 762686.0083 | K27: 0.001706854207 | L27: 5424.36 | M27: 5424.363946 | N27: -0.003946468481 | O27: 757261.64 | P27: 757261.6443 | Q27: -0.004346677335 | R27: 5424.36 | S27: 5424.363946 | T27: -0.003946468481 | U27: 0 | V27: 0 | W27: 0 | X27: 14802.23 | Y27: 14802.23089 | Z27: -0.0008947262359 | AA27: 762686.01 | AB27: 762686.0083 | AC27: 0.001706854207 | AD27: 38740.75 | AE27: 38740.75412 | AF27: -0.004115649841 | AG27: 4837.78 | AH27: 4837.777377 | AI27: 0.002623469495 | AJ27: 7748.15 | AK27: 7748.150823 | AL27: -0.0008231299689 | AM27: 0 | AN27: 0 | AO27: 0 | AQ27: 0 | AR27: 0 | AT27: 0 | AU27: 0 | AW27: 0 | AX27: 0 | AY27: 0 | AZ27: 0 | BA27: 0 | BB27: 208 | BC27: 208 | BD27: 0 | BE27: 1590.81 | BF27: 1590.812001 | BG27: -0.002000736297 | BH27: 14802.23 | BI27: 14802.23089 | BJ27: -0.0008947262359 | BK27: 762686.01 | BL27: 762686.0083 | BM27: 0.001706854207
A28: 2137 | B28: Leigh Primary School | C28: 584312.74 | D28: 584312.7413 | E28: -0.001266042702 | F28: 0 | G28: 0 | H28: 0 | I28: 584312.74 | J28: 584312.7413 | K28: -0.001266042702 | L28: 3937.88 | M28: 3937.879596 | N28: 0.0004042464402 | O28: 580374.86 | P28: 580374.8617 | Q28: -0.001670289203 | R28: 3937.88 | S28: 3937.879596 | T28: 0.0004042464402 | U28: 0 | V28: 0 | W28: 0 | X28: 0 | Y28: 0 | Z28: 0 | AA28: 564680.75 | AB28: 564680.7486 | AC28: 0.001396548352 | AD28: 38280.8 | AE28: 38280.80145 | AF28: -0.001447914605 | AG28: 4851.58 | AH28: 4851.575957 | AI28: 0.004043437439 | AJ28: 7656.16 | AK28: 7656.16029 | AL28: -0.0002895829221 | AM28: 0 | AN28: 0 | AO28: 0 | AQ28: 0 | AR28: 0 | AT28: 0 | AU28: 0 | AW28: 0 | AX28: 0 | AY28: 0 | AZ28: 0 | BA28: 0 | BB28: 151 | BC28: 151 | BD28: 0 | BE28: 1590.81 | BF28: 1590.812001 | BG28: -0.002000736297 | BH28: 0 | BI28: 0 | BJ28: 0 | BK28: 584312.74 | BL28: 584312.7413 | BM28: -0.001266042702
A29: 2138 | B29: Otford Primary School | C29: 1174222.47 | D29: 1174222.465 | E29: 0.004699322162 | F29: 0 | G29: 0 | H29: 0 | I29: 1174222.47 | J29: 1174222.465 | K29: 0.004699322162 | L29: 8892.83 | M29: 8892.827431 | N29: 0.002568530041 | O29: 1165329.64 | P29: 1165329.638 | Q29: 0.002130792011 | R29: 8892.83 | S29: 8892.827431 | T29: 0.002568530041 | U29: 0 | V29: 0 | W29: 0 | X29: 0 | Y29: 0 | Z29: 0 | AA29: 1139737.11 | AB29: 1139737.107 | AC29: 0.003145749681 | AD29: 84135.41 | AE29: 84135.40899 | AF29: 0.001007812956 | AG29: 3475.94 | AH29: 3475.93773 | AI29: 0.002269765611 | AJ29: 16827.08 | AK29: 16827.0818 | AL29: -0.001798437406 | AM29: 0 | AN29: 0 | AO29: 0 | AQ29: 0 | AR29: 0 | AT29: 0 | AU29: 0 | AW29: 0 | AX29: 0 | AY29: 0 | AZ29: 0 | BA29: 0 | BB29: 341 | BC29: 341 | BD29: 0 | BE29: 1590.81 | BF29: 1590.812001 | BG29: -0.002000736297 | BH29: 0 | BI29: 0 | BJ29: 0 | BK29: 1174222.47 | BL29: 1174222.465 | BM29: 0.004699322162
A30: 2139 | B30: Pembury School | C30: 1589411.48 | D30: 1589411.479 | E30: 0.001108699478 | F30: 10487.44 | G30: 10487.43743 | H30: 0.002567317626 | I30: 1599898.92 | J30: 1599898.916 | K30: 0.003676017048 | L30: 12650.38 | M30: 12650.38 | N30: 0 | O30: 1587248.54 | P30: 1587248.536 | Q30: 0.003676017048 | R30: 12650.38 | S30: 12650.38 | T30: 0 | U30: 0 | V30: 0 | W30: 0 | X30: 10487.44 | Y30: 10487.43743 | Z30: 0.002567317626 | AA30: 1599898.92 | AB30: 1599898.916 | AC30: 0.003676017048 | AD30: 101332.47 | AE30: 101332.4723 | AF30: -0.002255440457 | AG30: 2960.03 | AH30: 2960.025832 | AI30: 0.004167663214 | AJ30: 20266.49 | AK30: 20266.49445 | AL30: -0.004451088091 | AM30: 0 | AN30: 0 | AO30: 0 | AQ30: 0 | AR30: 0 | AT30: 0 | AU30: 0 | AW30: 0 | AX30: 0 | AY30: 0 | AZ30: 0 | BA30: 0 | BB30: 493 | BC30: 493 | BD30: 0 | BE30: 1590.81 | BF30: 1590.812001 | BG30: -0.002000736297 | BH30: 10487.44 | BI30: 10487.43743 | BJ30: 0.002567317626 | BK30: 1599898.92 | BL30: 1599898.916 | BM30: 0.003676017048
A31: 2142 | B31: Sandhurst Primary School | C31: 603975.19 | D31: 603975.1919 | E31: -0.001864617225 | F31: 0 | G31: 0 | H31: 0 | I31: 603975.19 | J31: 603975.1919 | K31: -0.001864617225 | L31: 4002.96 | M31: 4002.96 | N31: 0 | O31: 599972.23 | P31: 599972.2319 | Q31: -0.001864617225 | R31: 4002.96 | S31: 4002.96 | T31: 0 | U31: 0 | V31: 0 | W31: 0 | X31: 0 | Y31: 0 | Z31: 0 | AA31: 603198.39 | AB31: 603198.3864 | AC31: 0.003576563904 | AD31: 42279.3 | AE31: 42279.30487 | AF31: -0.004871880257 | AG31: 4731.62 | AH31: 4731.620854 | AI31: -0.0008538435923 | AJ31: 8455.86 | AK31: 8455.860974 | AL31: -0.0009743760511 | AM31: 0 | AN31: 0 | AO31: 0 | AQ31: 0 | AR31: 0 | AT31: 0 | AU31: 0 | AW31: 0 | AX31: 0 | AY31: 0 | AZ31: 0 | BA31: 0 | BB31: 156 | BC31: 156 | BD31: 0 | BE31: 1590.81 | BF31: 1590.812001 | BG31: -0.002000736297 | BH31: 0 | BI31: 0 | BJ31: 0 | BK31: 603975.19 | BL31: 603975.1919 | BM31: -0.001864617225
A32: 2147 | B32: Weald Community Primary School | C32: 555436.36 | D32: 555436.3604 | E32: -0.0004334073747 | F32: 0 | G32: 0 | H32: 0 | I32: 555436.36 | J32: 555436.3604 | K32: -0.0004334073747 | L32: 3885.72 | M32: 3885.72225 | N32: -0.00225011444 | O32: 551550.64 | P32: 551550.6382 | Q32: 0.001816707081 | R32: 3885.72 | S32: 3885.72225 | T32: -0.00225011444 | U32: 0 | V32: 0 | W32: 0 | X32: 0 | Y32: 0 | Z32: 0 | AA32: 544711.11 | AB32: 544711.1097 | AC32: 0.000325694913 | AD32: 15749.54 | AE32: 15749.54427 | AF32: -0.004270633908 | AG32: 5527.51 | AH32: 5527.513672 | AI32: -0.003671880982 | AJ32: 3149.91 | AK32: 3149.908854 | AL32: 0.001145873218 | AM32: 0 | AN32: 0 | AO32: 0 | AQ32: 0 | AR32: 0 | AT32: 0 | AU32: 0 | AW32: 0 | AX32: 0 | AY32: 0 | AZ32: 0 | BA32: 0 | BB32: 149 | BC32: 149 | BD32: 0 | BE32: 1590.81 | BF32: 1590.812001 | BG32: -0.002000736297 | BH32: 0 | BI32: 0 | BJ32: 0 | BK32: 555436.36 | BL32: 555436.3604 | BM32: -0.0004334073747
A33: 2148 | B33: Shoreham Village School | C33: 464481.49 | D33: 464481.492 | E33: -0.002004278125 | F33: 0 | G33: 0 | H33: 0 | I33: 464481.49 | J33: 464481.492 | K33: -0.002004278125 | L33: 2842.58 | M33: 2842.575337 | N33: 0.00466266796 | O33: 461638.92 | P33: 461638.9167 | Q33: 0.003333053901 | R33: 2842.58 | S33: 2842.575337 | T33: 0.00466266796 | U33: 0 | V33: 0 | W33: 0 | X33: 0 | Y33: 0 | Z33: 0 | AA33: 445715.47 | AB33: 445715.4731 | AC33: -0.003144726157 | AD33: 31534.09 | AE33: 31534.0871 | AF33: 0.002898900035 | AG33: 5053.98 | AH33: 5053.977387 | AI33: 0.002613032999 | AJ33: 6306.82 | AK33: 6306.81742 | AL33: 0.002579780006 | AM33: 0 | AN33: 0 | AO33: 0 | AQ33: 0 | AR33: 0 | AT33: 0 | AU33: 0 | AW33: 0 | AX33: 0 | AY33: 0 | AZ33: 0 | BA33: 0 | BB33: 109 | BC33: 109 | BD33: 0 | BE33: 1590.81 | BF33: 1590.812001 | BG33: -0.002000736297 | BH33: 0 | BI33: 0 | BJ33: 0 | BK33: 464481.49 | BL33: 464481.492 | BM33: -0.002004278125
A34: 2155 | B34: Slade Primary School | C34: 1074127.27 | D34: 1074127.266 | E34: 0.004311986733 | F34: 0 | G34: 0 | H34: 0 | I34: 1128293.93 | J34: 1128293.932 | K34: -0.002354680095 | L34: 7851.96 | M34: 7851.96 | N34: 0 | O34: 1120441.97 | P34: 1120441.972 | Q34: -0.002354680095 | R34: 7851.96 | S34: 7851.96 | T34: 0 | U34: 0 | V34: 0 | W34: 0 | X34: 0 | Y34: 0 | Z34: 0 | AA34: 1017440.82 | AB34: 1017440.821 | AC34: -0.001297976356 | AD34: 103393.54 | AE34: 103393.5444 | AF34: -0.004370685885 | AG34: 2898.19 | AH34: 2898.193669 | AI34: -0.003668879424 | AJ34: 20678.71 | AK34: 20678.70887 | AL34: 0.001125862822 | AM34: 12483.39 | AN34: 12483.38845 | AO34: 0.001549775381 | AQ34: 0 | AR34: 0 | AT34: 0 | AU34: 0 | AW34: 0 | AX34: 0 | AY34: 54166.67 | AZ34: 54166.66667 | BA34: 0.003333333327 | BB34: 306 | BC34: 306 | BD34: 0 | BE34: 1590.81 | BF34: 1590.812001 | BG34: -0.002000736297 | BH34: 0 | BI34: 0 | BJ34: 0 | BK34: 1074127.27 | BL34: 1074127.266 | BM34: 0.004311986733
A35: 2156 | B35: Sussex Road Community Primary School | C35: 1360109.36 | D35: 1360109.359 | E35: 0.001496147597 | F35: 58567.79 | G35: 58567.79369 | H35: -0.003693268904 | I35: 1418677.15 | J35: 1418677.152 | K35: -0.002197121503 | L35: 10366.64 | M35: 10366.64 | N35: 0 | O35: 1408310.51 | P35: 1408310.512 | Q35: -0.002197121503 | R35: 10366.64 | S35: 10366.64 | T35: 0 | U35: 0 | V35: 0 | W35: 0 | X35: 58567.79 | Y35: 58567.79369 | Z35: -0.003693268904 | AA35: 1418677.15 | AB35: 1418677.152 | AC35: -0.002197121503 | AD35: 88631.82 | AE35: 88631.81586 | AF35: 0.004142986072 | AG35: 3341.05 | AH35: 3341.045524 | AI35: 0.004475710418 | AJ35: 17726.36 | AK35: 17726.36317 | AL35: -0.003171402786 | AM35: 0 | AN35: 0 | AO35: 0 | AQ35: 0 | AR35: 0 | AT35: 0 | AU35: 0 | AW35: 0 | AX35: 0 | AY35: 0 | AZ35: 0 | BA35: 0 | BB35: 404 | BC35: 404 | BD35: 0 | BE35: 1590.81 | BF35: 1590.812001 | BG35: -0.002000736297 | BH35: 58567.79 | BI35: 58567.79369 | BJ35: -0.003693268904 | BK35: 1418677.15 | BL35: 1418677.152 | BM35: -0.002197121503
A36: 2161 | B36: Boughton Monchelsea Primary School | C36: 799294.17 | D36: 799294.1672 | E36: 0.002756457776 | F36: 0 | G36: 0 | H36: 0 | I36: 799294.17 | J36: 799294.1672 | K36: 0.002756457776 | L36: 5491.24 | M36: 5491.24 | N36: 0 | O36: 793802.93 | P36: 793802.9272 | Q36: 0.002756457776 | R36: 5491.24 | S36: 5491.24 | T36: 0 | U36: 0 | V36: 0 | W36: 0 | X36: 0 | Y36: 0 | Z36: 0 | AA36: 755192 | AB36: 755191.9981 | AC36: 0.001867373358 | AD36: 81918 | AE36: 81918.0043 | AF36: -0.004296406289 | AG36: 3542.46 | AH36: 3542.459871 | AI36: 0.0001288921885 | AJ36: 16383.6 | AK36: 16383.60086 | AL36: -0.0008592812574 | AM36: 0 | AN36: 0 | AO36: 0 | AQ36: 0 | AR36: 0 | AT36: 0 | AU36: 0 | AW36: 0 | AX36: 0 | AY36: 0 | AZ36: 0 | BA36: 0 | BB36: 214 | BC36: 214 | BD36: 0 | BE36: 1590.81 | BF36: 1590.812001 | BG36: -0.002000736297 | BH36: 0 | BI36: 0 | BJ36: 0 | BK36: 799294.17 | BL36: 799294.1672 | BM36: 0.002756457776
A37: 2163 | B37: East Farleigh Primary School | C37: 715683.16 | D37: 715683.1591 | E37: 0.0009307939326 | F37: 0 | G37: 0 | H37: 0 | I37: 715683.16 | J37: 715683.1591 | K37: 0.0009307939326 | L37: 5260.3 | M37: 5260.3 | N37: 0 | O37: 710422.86 | P37: 710422.8591 | Q37: 0.0009307939326 | R37: 5260.3 | S37: 5260.3 | T37: 0 | U37: 0 | V37: 0 | W37: 0 | X37: 0 | Y37: 0 | Z37: 0 | AA37: 695412.92 | AB37: 695412.9226 | AC37: -0.002597086597 | AD37: 28034.18 | AE37: 28034.17817 | AF37: 0.001833737388 | AG37: 5158.97 | AH37: 5158.974655 | AI37: -0.004655012121 | AJ37: 5606.84 | AK37: 5606.835633 | AL37: 0.004366747477 | AM37: 0 | AN37: 0 | AO37: 0 | AQ37: 0 | AR37: 0 | AT37: 0 | AU37: 0 | AW37: 0 | AX37: 0 | AY37: 0 | AZ37: 0 | BA37: 0 | BB37: 205 | BC37: 205 | BD37: 0 | BE37: 1590.81 | BF37: 1590.812001 | BG37: -0.002000736297 | BH37: 0 | BI37: 0 | BJ37: 0 | BK37: 715683.16 | BL37: 715683.1591 | BM37: 0.0009307939326
A38: 2164 | B38: East Peckham Primary School | C38: 674810.41 | D38: 674810.4133 | E38: -0.003326904378 | F38: 0 | G38: 0 | H38: 0 | I38: 674810.41 | J38: 674810.4133 | K38: -0.003326904378 | L38: 4824.08 | M38: 4824.08 | N38: 0 | O38: 669986.33 | P38: 669986.3333 | Q38: -0.003326904494 | R38: 4824.08 | S38: 4824.08 | T38: 0 | U38: 0 | V38: 0 | W38: 0 | X38: 0 | Y38: 0 | Z38: 0 | AA38: 663754.83 | AB38: 663754.8323 | AC38: -0.002342591644 | AD38: 28437.2 | AE38: 28437.19589 | AF38: 0.004110100861 | AG38: 5146.88 | AH38: 5146.884123 | AI38: -0.004123303026 | AJ38: 5687.44 | AK38: 5687.439178 | AL38: 0.0008220201717 | AM38: 0 | AN38: 0 | AO38: 0 | AQ38: 0 | AR38: 0 | AT38: 0 | AU38: 0 | AW38: 0 | AX38: 0 | AY38: 0 | AZ38: 0 | BA38: 0 | BB38: 188 | BC38: 188 | BD38: 0 | BE38: 1590.81 | BF38: 1590.812001 | BG38: -0.002000736297 | BH38: 0 | BI38: 0 | BJ38: 0 | BK38: 674810.41 | BL38: 674810.4133 | BM38: -0.003326904378
A39: 2165 | B39: Headcorn Primary School | C39: 711552.71 | D39: 711552.7073 | E39: 0.002709281398 | F39: 0 | G39: 0 | H39: 0 | I39: 711552.71 | J39: 711552.7073 | K39: 0.002709281398 | L39: 5106.34 | M39: 5106.34 | N39: 0 | O39: 706446.37 | P39: 706446.3673 | Q39: 0.002709281398 | R39: 5106.34 | S39: 5106.34 | T39: 0 | U39: 0 | V39: 0 | W39: 0 | X39: 0 | Y39: 0 | Z39: 0 | AA39: 702786.5 | AB39: 702786.5012 | AC39: -0.001177929225 | AD39: 35941.67 | AE39: 35941.67265 | AF39: -0.00265382824 | AG39: 4921.75 | AH39: 4921.74982 | AI39: 0.0001796148472 | AJ39: 7188.33 | AK39: 7188.334531 | AL39: -0.004530765647 | AM39: 0 | AN39: 0 | AO39: 0 | AQ39: 0 | AR39: 0 | AT39: 0 | AU39: 0 | AW39: 0 | AX39: 0 | AY39: 0 | AZ39: 0 | BA39: 0 | BB39: 199 | BC39: 199 | BD39: 0 | BE39: 1590.81 | BF39: 1590.812001 | BG39: -0.002000736297 | BH39: 0 | BI39: 0 | BJ39: 0 | BK39: 711552.71 | BL39: 711552.7073 | BM39: 0.002709281398
A40: 2166 | B40: Hollingbourne Primary School | C40: 441140.8 | D40: 441140.8046 | E40: -0.004640051571 | F40: 0 | G40: 0 | H40: 0 | I40: 441140.8 | J40: 441140.8046 | K40: -0.004640051571 | L40: 2719.96 | M40: 2719.96 | N40: 0 | O40: 438420.84 | P40: 438420.8446 | Q40: -0.004640051513 | R40: 2719.96 | S40: 2719.96 | T40: 0 | U40: 0 | V40: 0 | W40: 0 | X40: 0 | Y40: 0 | Z40: 0 | AA40: 436727.94 | AB40: 436727.9417 | AC40: -0.001692402991 | AD40: 25063.83 | AE40: 25063.83487 | AF40: -0.004868940821 | AG40: 5248.09 | AH40: 5248.084954 | AI40: 0.005046068225 | AJ40: 5012.77 | AK40: 5012.766974 | AL40: 0.003026211836 | AM40: 0 | AN40: 0 | AO40: 0 | AQ40: 0 | AR40: 0 | AT40: 0 | AU40: 0 | AW40: 0 | AX40: 0 | AY40: 0 | AZ40: 0 | BA40: 0 | BB40: 106 | BC40: 106 | BD40: 0 | BE40: 1590.81 | BF40: 1590.812001 | BG40: -0.002000736297 | BH40: 0 | BI40: 0 | BJ40: 0 | BK40: 441140.8 | BL40: 441140.8046 | BM40: -0.004640051571
A41: 2167 | B41: Ightham Primary School | C41: 713918.98 | D41: 713918.9831 | E41: -0.003077863366 | F41: 0 | G41: 0 | H41: 0 | I41: 713918.98 | J41: 713918.9831 | K41: -0.003077863366 | L41: 5285.96 | M41: 5285.96 | N41: 0 | O41: 708633.02 | P41: 708633.0231 | Q41: -0.003077863366 | R41: 5285.96 | S41: 5285.96 | T41: 0 | U41: 0 | V41: 0 | W41: 0 | X41: 0 | Y41: 0 | Z41: 0 | AA41: 704586.14 | AB41: 704586.1435 | AC41: -0.003542451654 | AD41: 25244.69 | AE41: 25244.68605 | AF41: 0.003954497919 | AG41: 5242.66 | AH41: 5242.659419 | AI41: 0.0005813650623 | AJ41: 5048.94 | AK41: 5048.937209 | AL41: 0.002790899583 | AM41: 0 | AN41: 0 | AO41: 0 | AQ41: 0 | AR41: 0 | AT41: 0 | AU41: 0 | AW41: 0 | AX41: 0 | AY41: 0 | AZ41: 0 | BA41: 0 | BB41: 206 | BC41: 206 | BD41: 0 | BE41: 1590.81 | BF41: 1590.812001 | BG41: -0.002000736297 | BH41: 0 | BI41: 0 | BJ41: 0 | BK41: 713918.98 | BL41: 713918.9831 | BM41: -0.003077863366
A42: 2168 | B42: Lenham Primary School | C42: 757334.24 | D42: 757334.2443 | E42: -0.004288400291 | F42: 0 | G42: 0 | H42: 0 | I42: 757334.24 | J42: 757334.2443 | K42: -0.004288400291 | L42: 5311.62 | M42: 5311.62 | N42: 0 | O42: 752022.62 | P42: 752022.6243 | Q42: -0.004288400291 | R42: 5311.62 | S42: 5311.62 | T42: 0 | U42: 0 | V42: 0 | W42: 0 | X42: 0 | Y42: 0 | Z42: 0 | AA42: 748360.32 | AB42: 748360.3155 | AC42: 0.00453004858 | AD42: 58586.53 | AE42: 58586.5255 | AF42: 0.00450090252 | AG42: 4242.4 | AH42: 4242.404235 | AI42: -0.004235027076 | AJ42: 11717.31 | AK42: 11717.3051 | AL42: 0.004900180504 | AM42: 0 | AN42: 0 | AO42: 0 | AQ42: 0 | AR42: 0 | AT42: 0 | AU42: 0 | AW42: 0 | AX42: 0 | AY42: 0 | AZ42: 0 | BA42: 0 | BB42: 207 | BC42: 207 | BD42: 0 | BE42: 1590.81 | BF42: 1590.812001 | BG42: -0.002000736297 | BH42: 0 | BI42: 0 | BJ42: 0 | BK42: 757334.24 | BL42: 757334.2443 | BM42: -0.004288400291
A43: 2169 | B43: Platts Heath Primary School | C43: 320407.21 | D43: 320407.2117 | E43: -0.001737205952 | F43: 6303.83 | G43: 6303.82895 | H43: 0.001049540397 | I43: 326711.04 | J43: 326711.0407 | K43: -0.0006876655971 | L43: 1719.22 | M43: 1719.22 | N43: 0 | O43: 324991.82 | P43: 324991.8207 | Q43: -0.0006876655971 | R43: 1719.22 | S43: 1719.22 | T43: 0 | U43: 0 | V43: 0 | W43: 0 | X43: 6303.83 | Y43: 6303.82895 | Z43: 0.001049540397 | AA43: 326711.04 | AB43: 326711.0407 | AC43: -0.0006876655971 | AD43: 19939.49 | AE43: 19939.48764 | AF43: 0.002363020754 | AG43: 5401.82 | AH43: 5401.815371 | AI43: 0.004629109377 | AJ43: 3987.9 | AK43: 3987.897527 | AL43: 0.002472604151 | AM43: 0 | AN43: 0 | AO43: 0 | AQ43: 0 | AR43: 0 | AT43: 0 | AU43: 0 | AW43: 0 | AX43: 0 | AY43: 0 | AZ43: 0 | BA43: 0 | BB43: 67 | BC43: 67 | BD43: 0 | BE43: 1590.81 | BF43: 1590.812001 | BG43: -0.002000736297 | BH43: 6303.83 | BI43: 6303.82895 | BJ43: 0.001049540397 | BK43: 326711.04 | BL43: 326711.0407 | BM43: -0.0006876655971
A44: 2170 | B44: Loose Junior School | C44: 1202956.91 | D44: 1202956.913 | E44: -0.002819284098 | F44: 0 | G44: 0 | H44: 0 | I44: 1202956.91 | J44: 1202956.913 | K44: -0.002819284098 | L44: 9391.56 | M44: 9391.56 | N44: 0 | O44: 1193565.35 | P44: 1193565.353 | Q44: -0.002819283865 | R44: 9391.56 | S44: 9391.56 | T44: 0 | U44: 0 | V44: 0 | W44: 0 | X44: 0 | Y44: 0 | Z44: 0 | AA44: 1178854.53 | AB44: 1178854.526 | AC44: 0.003674218664 | AD44: 63528.8 | AE44: 63528.80125 | AF44: -0.00125227934 | AG44: 4094.14 | AH44: 4094.135962 | AI44: 0.00403756838 | AJ44: 12705.76 | AK44: 12705.76025 | AL44: -0.0002504558688 | AM44: 0 | AN44: 0 | AO44: 0 | AQ44: 0 | AR44: 0 | AT44: 0 | AU44: 0 | AW44: 0 | AX44: 0 | AY44: 0 | AZ44: 0 | BA44: 0 | BB44: 366 | BC44: 366 | BD44: 0 | BE44: 1590.81 | BF44: 1590.812001 | BG44: -0.002000736297 | BH44: 0 | BI44: 0 | BJ44: 0 | BK44: 1202956.91 | BL44: 1202956.913 | BM44: -0.002819284098
A45: 2171 | B45: Brunswick House Primary School | C45: 1487913.13 | D45: 1487913.128 | E45: 0.001676387619 | F45: 4720.91 | G45: 4720.912475 | H45: -0.002475210382 | I45: 1492634.04 | J45: 1492634.041 | K45: -0.0007988226134 | L45: 10700.22 | M45: 10700.22 | N45: 0 | O45: 1481933.82 | P45: 1481933.821 | Q45: -0.0007988226134 | R45: 10700.22 | S45: 10700.22 | T45: 0 | U45: 0 | V45: 0 | W45: 0 | X45: 4720.91 | Y45: 4720.912475 | Z45: -0.002475210382 | AA45: 1492634.04 | AB45: 1492634.041 | AC45: -0.0007988226134 | AD45: 175212.29 | AE45: 175212.2899 | AF45: 0.0001035958703 | AG45: 743.63 | AH45: 743.6313031 | AI45: -0.001303107876 | AJ45: 35042.46 | AK45: 35042.45798 | AL45: 0.00202071917 | AM45: 0 | AN45: 0 | AO45: 0 | AQ45: 0 | AR45: 0 | AT45: 0 | AU45: 0 | AW45: 0 | AX45: 0 | AY45: 0 | AZ45: 0 | BA45: 0 | BB45: 417 | BC45: 417 | BD45: 0 | BE45: 1590.81 | BF45: 1590.812001 | BG45: -0.002000736297 | BH45: 4720.91 | BI45: 4720.912475 | BJ45: -0.002475210382 | BK45: 1492634.04 | BL45: 1492634.041 | BM45: -0.0007988226134
A46: 2172 | B46: East Borough Primary School | C46: 1490646.01 | D46: 1490646.011 | E46: -0.0005035721697 | F46: 0 | G46: 0 | H46: 0 | I46: 1490646.01 | J46: 1490646.011 | K46: -0.0005035721697 | L46: 10802.86 | M46: 10802.86 | N46: 0 | O46: 1479843.15 | P46: 1479843.151 | Q46: -0.0005035721697 | R46: 10802.86 | S46: 10802.86 | T46: 0 | U46: 0 | V46: 0 | W46: 0 | X46: 0 | Y46: 0 | Z46: 0 | AA46: 1477414.55 | AB46: 1477414.547 | AC46: 0.003052493325 | AD46: 176336.84 | AE46: 176336.8426 | AF46: -0.002619256993 | AG46: 709.89 | AH46: 709.8947214 | AI46: -0.004721422291 | AJ46: 35267.37 | AK46: 35267.36852 | AL46: 0.001476148602 | AM46: 0 | AN46: 0 | AO46: 0 | AQ46: 0 | AR46: 0 | AT46: 0 | AU46: 0 | AW46: 0 | AX46: 0 | AY46: 0 | AZ46: 0 | BA46: 0 | BB46: 421 | BC46: 421 | BD46: 0 | BE46: 1590.81 | BF46: 1590.812001 | BG46: -0.002000736297 | BH46: 0 | BI46: 0 | BJ46: 0 | BK46: 1490646.01 | BL46: 1490646.011 | BM46: -0.0005035721697
A47: 2175 | B47: North Borough Junior School | C47: 986732.11 | D47: 986732.1065 | E47: 0.003457383835 | F47: 32825.91 | G47: 32825.90971 | H47: 0.00028980567 | I47: 1019558.02 | J47: 1019558.016 | K47: 0.003747189534 | L47: 6748.58 | M47: 6748.58 | N47: 0 | O47: 1012809.44 | P47: 1012809.436 | Q47: 0.003747189417 | R47: 6748.58 | S47: 6748.58 | T47: 0 | U47: 0 | V47: 0 | W47: 0 | X47: 32825.91 | Y47: 32825.90971 | Z47: 0.00028980567 | AA47: 1019558.02 | AB47: 1019558.016 | AC47: 0.003747189534 | AD47: 126906.44 | AE47: 126906.4354 | AF47: 0.004647809925 | AG47: 2192.81 | AH47: 2192.806939 | AI47: 0.003060565702 | AJ47: 25381.29 | AK47: 25381.28707 | AL47: 0.002929561986 | AM47: 0 | AN47: 0 | AO47: 0 | AQ47: 0 | AR47: 0 | AT47: 0 | AU47: 0 | AW47: 0 | AX47: 0 | AY47: 0 | AZ47: 0 | BA47: 0 | BB47: 263 | BC47: 263 | BD47: 0 | BE47: 1590.81 | BF47: 1590.812001 | BG47: -0.002000736297 | BH47: 32825.91 | BI47: 32825.90971 | BJ47: 0.00028980567 | BK47: 1019558.02 | BL47: 1019558.016 | BM47: 0.003747189534
A48: 2176 | B48: Park Way Primary School | C48: 1186441.79 | D48: 1186441.791 | E48: -0.001125258161 | F48: 0 | G48: 0 | H48: 0 | I48: 1186441.79 | J48: 1186441.791 | K48: -0.001125258161 | L48: 7569.7 | M48: 7569.7 | N48: 0 | O48: 1178872.09 | P48: 1178872.091 | Q48: -0.001125258161 | R48: 7569.7 | S48: 7569.7 | T48: 0 | U48: 0 | V48: 0 | W48: 0 | X48: 0 | Y48: 0 | Z48: 0 | AA48: 1175994.3 | AB48: 1175994.302 | AC48: -0.001681223279 | AD48: 221945.1 | AE48: 221945.0951 | AF48: 0.004906072892 | AG48: 0 | AH48: 0 | AI48: 0 | AJ48: 44389.02 | AK48: 44389.01902 | AL48: 0.0009812145727 | AM48: 0 | AN48: 0 | AO48: 0 | AQ48: 0 | AR48: 0 | AT48: 0 | AU48: 0 | AW48: 0 | AX48: 0 | AY48: 0 | AZ48: 0 | BA48: 0 | BB48: 295 | BC48: 295 | BD48: 0 | BE48: 1590.81 | BF48: 1590.812001 | BG48: -0.002000736297 | BH48: 0 | BI48: 0 | BJ48: 0 | BK48: 1186441.79 | BL48: 1186441.791 | BM48: -0.001125258161
A49: 2180 | B49: South Borough Primary School | C49: 825816.26 | D49: 825816.2573 | E49: 0.002735519782 | F49: 44188.33 | G49: 44188.32813 | H49: 0.001871710338 | I49: 870004.59 | J49: 870004.5854 | K49: 0.004607230076 | L49: 5003.7 | M49: 5003.7 | N49: 0 | O49: 865000.89 | P49: 865000.8854 | Q49: 0.004607230076 | R49: 5003.7 | S49: 5003.7 | T49: 0 | U49: 4.86 | V49: 4.86 | W49: 0 | X49: 44188.33 | Y49: 44188.32813 | Z49: 0.001871710338 | AA49: 870004.59 | AB49: 870004.5854 | AC49: 0.004607230076 | AD49: 135195.61 | AE49: 135195.6078 | AF49: 0.002157144627 | AG49: 1944.13 | AH49: 1944.131765 | AI49: -0.001764714339 | AJ49: 27039.12 | AK49: 27039.12157 | AL49: -0.001568571071 | AM49: 0 | AN49: 0 | AO49: 0 | AQ49: 0 | AR49: 0 | AT49: 0 | AU49: 0 | AW49: 0 | AX49: 0 | AY49: 0 | AZ49: 0 | BA49: 0 | BB49: 195 | BC49: 195 | BD49: 0 | BE49: 1590.81 | BF49: 1590.812001 | BG49: -0.002000736297 | BH49: 44188.33 | BI49: 44188.32813 | BJ49: 0.001871710338 | BK49: 870004.59 | BL49: 870004.5854 | BM49: 0.004607230076
A50: 2183 | B50: Marden Primary School | C50: 920210.65 | D50: 920210.6505 | E50: -0.0005072690547 | F50: 0 | G50: 0 | H50: 0 | I50: 920210.65 | J50: 920210.6505 | K50: -0.0005072690547 | L50: 6363.68 | M50: 6363.68 | N50: 0 | O50: 913846.97 | P50: 913846.9705 | Q50: -0.0005072690547 | R50: 6363.68 | S50: 6363.68 | T50: 0 | U50: 0 | V50: 0 | W50: 0 | X50: 0 | Y50: 0 | Z50: 0 | AA50: 895700.44 | AB50: 895700.4417 | AC50: -0.001686700387 | AD50: 100624.43 | AE50: 100624.4332 | AF50: -0.003164784459 | AG50: 2981.27 | AH50: 2981.267005 | AI50: 0.002994943533 | AJ50: 20124.89 | AK50: 20124.88663 | AL50: 0.003367043108 | AM50: 0 | AN50: 0 | AO50: 0 | AQ50: 0 | AR50: 0 | AT50: 0 | AU50: 0 | AW50: 0 | AX50: 0 | AY50: 0 | AZ50: 0 | BA50: 0 | BB50: 248 | BC50: 248 | BD50: 0 | BE50: 1590.81 | BF50: 1590.812001 | BG50: -0.002000736297 | BH50: 0 | BI50: 0 | BJ50: 0 | BK50: 920210.65 | BL50: 920210.6505 | BM50: -0.0005072690547
A51: 2185 | B51: Mereworth Community Primary School | C51: 762305.1 | D51: 762305.1021 | E51: -0.002143572667 | F51: 0 | G51: 0 | H51: 0 | I51: 762305.1 | J51: 762305.1021 | K51: -0.002143572667 | L51: 5465.58 | M51: 5465.58 | N51: 0 | O51: 756839.52 | P51: 756839.5221 | Q51: -0.002143572667 | R51: 5465.58 | S51: 5465.58 | T51: 0 | U51: 0 | V51: 0 | W51: 0 | X51: 0 | Y51: 0 | Z51: 0 | AA51: 740220.24 | AB51: 740220.2358 | AC51: 0.004241995746 | AD51: 44202.06 | AE51: 44202.05631 | AF51: 0.003685625445 | AG51: 4673.94 | AH51: 4673.938311 | AI51: 0.001689431237 | AJ51: 8840.41 | AK51: 8840.411263 | AL51: -0.00126287491 | AM51: 0 | AN51: 0 | AO51: 0 | AQ51: 0 | AR51: 0 | AT51: 0 | AU51: 0 | AW51: 0 | AX51: 0 | AY51: 0 | AZ51: 0 | BA51: 0 | BB51: 213 | BC51: 213 | BD51: 0 | BE51: 1590.81 | BF51: 1590.812001 | BG51: -0.002000736297 | BH51: 0 | BI51: 0 | BJ51: 0 | BK51: 762305.1 | BL51: 762305.1021 | BM51: -0.002143572667
A52: 2187 | B52: Offham Primary School | C52: 725384.82 | D52: 725384.8218 | E52: -0.00176525081 | F52: 0 | G52: 0 | H52: 0 | I52: 725384.82 | J52: 725384.8218 | K52: -0.00176525081 | L52: 5260.3 | M52: 5260.3 | N52: 0 | O52: 720124.52 | P52: 720124.5218 | Q52: -0.001765250694 | R52: 5260.3 | S52: 5260.3 | T52: 0 | U52: 0 | V52: 0 | W52: 0 | X52: 0 | Y52: 0 | Z52: 0 | AA52: 695774.75 | AB52: 695774.7503 | AC52: -0.0002981389407 | AD52: 33007.87 | AE52: 33007.86828 | AF52: 0.001716522434 | AG52: 5009.76 | AH52: 5009.763951 | AI52: -0.003951495672 | AJ52: 6601.57 | AK52: 6601.573657 | AL52: -0.003656695514 | AM52: 0 | AN52: 0 | AO52: 0 | AQ52: 0 | AR52: 0 | AT52: 0 | AU52: 0 | AW52: 0 | AX52: 0 | AY52: 0 | AZ52: 0 | BA52: 0 | BB52: 205 | BC52: 205 | BD52: 0 | BE52: 1590.81 | BF52: 1590.812001 | BG52: -0.002000736297 | BH52: 0 | BI52: 0 | BJ52: 0 | BK52: 725384.82 | BL52: 725384.8218 | BM52: -0.00176525081
A53: 2188 | B53: Plaxtol Primary School | C53: 397636.01 | D53: 397636.0087 | E53: 0.001271272078 | F53: 0 | G53: 0 | H53: 0 | I53: 397636.01 | J53: 397636.0087 | K53: 0.001271272078 | L53: 2335.06 | M53: 2335.06 | N53: 0 | O53: 395300.95 | P53: 395300.9487 | Q53: 0.001271272078 | R53: 2335.06 | S53: 2335.06 | T53: 0 | U53: 0 | V53: 0 | W53: 0 | X53: 0 | Y53: 0 | Z53: 0 | AA53: 386136.11 | AB53: 386136.1083 | AC53: 0.001652484294 | AD53: 24734.07 | AE53: 24734.06516 | AF53: 0.004838494726 | AG53: 5257.98 | AH53: 5257.978045 | AI53: 0.001954845158 | AJ53: 4946.81 | AK53: 4946.813032 | AL53: -0.003032301054 | AM53: 0 | AN53: 0 | AO53: 0 | AQ53: 0 | AR53: 0 | AT53: 0 | AU53: 0 | AW53: 0 | AX53: 0 | AY53: 0 | AZ53: 0 | BA53: 0 | BB53: 91 | BC53: 91 | BD53: 0 | BE53: 1590.81 | BF53: 1590.812001 | BG53: -0.002000736297 | BH53: 0 | BI53: 0 | BJ53: 0 | BK53: 397636.01 | BL53: 397636.0087 | BM53: 0.001271272078
A54: 2189 | B54: Ryarsh Primary School | C54: 681199.56 | D54: 681199.5635 | E54: -0.003519395366 | F54: 0 | G54: 0 | H54: 0 | I54: 681199.56 | J54: 681199.5635 | K54: -0.003519395366 | L54: 4824.08 | M54: 4824.08 | N54: 0 | O54: 676375.48 | P54: 676375.4835 | Q54: -0.003519395483 | R54: 4824.08 | S54: 4824.08 | T54: 0 | U54: 0 | V54: 0 | W54: 0 | X54: 0 | Y54: 0 | Z54: 0 | AA54: 663625.14 | AB54: 663625.1366 | AC54: 0.00339077937 | AD54: 39815.78 | AE54: 39815.77774 | AF54: 0.002262589085 | AG54: 4805.53 | AH54: 4805.526668 | AI54: 0.003332122327 | AJ54: 7963.16 | AK54: 7963.155547 | AL54: 0.004452517817 | AM54: 0 | AN54: 0 | AO54: 0 | AQ54: 0 | AR54: 0 | AT54: 0 | AU54: 0 | AW54: 0 | AX54: 0 | AY54: 0 | AZ54: 0 | BA54: 0 | BB54: 188 | BC54: 188 | BD54: 0 | BE54: 1590.81 | BF54: 1590.812001 | BG54: -0.002000736297 | BH54: 0 | BI54: 0 | BJ54: 0 | BK54: 681199.56 | BL54: 681199.5635 | BM54: -0.003519395366
A55: 2190 | B55: Shipbourne School | C55: 293716.96 | D55: 293716.9585 | E55: 0.001543427643 | F55: 0 | G55: 0 | H55: 0 | I55: 293716.96 | J55: 293716.9585 | K55: 0.001543427643 | L55: 1436.96 | M55: 1436.96 | N55: 0 | O55: 292280 | P55: 292279.9985 | Q55: 0.001543427643 | R55: 1436.96 | S55: 1436.96 | T55: 0 | U55: 0 | V55: 0 | W55: 0 | X55: 0 | Y55: 0 | Z55: 0 | AA55: 282199.67 | AB55: 282199.6728 | AC55: -0.002760334522 | AD55: 22831.91 | AE55: 22831.90591 | AF55: 0.004092912186 | AG55: 5315.04 | AH55: 5315.042823 | AI55: -0.002822787365 | AJ55: 4566.38 | AK55: 4566.381181 | AL55: -0.001181417562 | AM55: 0 | AN55: 0 | AO55: 0 | AQ55: 0 | AR55: 0 | AT55: 0 | AU55: 0 | AW55: 0 | AX55: 0 | AY55: 0 | AZ55: 0 | BA55: 0 | BB55: 56 | BC55: 56 | BD55: 0 | BE55: 1590.81 | BF55: 1590.812001 | BG55: -0.002000736297 | BH55: 0 | BI55: 0 | BJ55: 0 | BK55: 293716.96 | BL55: 293716.9585 | BM55: 0.001543427643
A56: 2191 | B56: St Katherine's School | C56: 1968344.03 | D56: 1968344.027 | E56: 0.002598888008 | F56: 0 | G56: 0 | H56: 0 | I56: 1968344.03 | J56: 1968344.027 | K56: 0.002598888008 | L56: 14703.18 | M56: 14703.18 | N56: 0 | O56: 1953640.85 | P56: 1953640.847 | Q56: 0.002598888008 | R56: 14703.18 | S56: 14703.18 | T56: 0 | U56: 4.81 | V56: 4.81 | W56: 0 | X56: 0 | Y56: 0 | Z56: 0 | AA56: 1921367.4 | AB56: 1921367.405 | AC56: -0.004834266147 | AD56: 220405.59 | AE56: 220405.5938 | AF56: -0.003841565136 | AG56: 0 | AH56: 0 | AI56: 0 | AJ56: 44081.12 | AK56: 44081.11877 | AL56: 0.001231686976 | AM56: 0 | AN56: 0 | AO56: 0 | AQ56: 0 | AR56: 0 | AT56: 0 | AU56: 0 | AW56: 0 | AX56: 0 | AY56: 0 | AZ56: 0 | BA56: 0 | BB56: 573 | BC56: 573 | BD56: 0 | BE56: 1590.81 | BF56: 1590.812001 | BG56: -0.002000736297 | BH56: 0 | BI56: 0 | BJ56: 0 | BK56: 1968344.03 | BL56: 1968344.027 | BM56: 0.002598888008
A57: 2192 | B57: Staplehurst School | C57: 1427138.52 | D57: 1427138.525 | E57: -0.004532313673 | F57: 10418.44 | G57: 10418.43992 | H57: 7.771729543e-05 | I57: 1437556.96 | J57: 1437556.964 | K57: -0.004454596434 | L57: 11162.1 | M57: 11162.1 | N57: 0 | O57: 1426394.86 | P57: 1426394.864 | Q57: -0.004454596201 | R57: 11162.1 | S57: 11162.1 | T57: 0 | U57: 0 | V57: 0 | W57: 0 | X57: 10418.44 | Y57: 10418.43992 | Z57: 7.771729543e-05 | AA57: 1437556.96 | AB57: 1437556.964 | AC57: -0.004454596434 | AD57: 82347.47 | AE57: 82347.4715 | AF57: -0.001503127889 | AG57: 3529.58 | AH57: 3529.575855 | AI57: 0.004145093837 | AJ57: 16469.49 | AK57: 16469.4943 | AL57: -0.004300625576 | AM57: 0 | AN57: 0 | AO57: 0 | AQ57: 0 | AR57: 0 | AT57: 0 | AU57: 0 | AW57: 0 | AX57: 0 | AY57: 0 | AZ57: 0 | BA57: 0 | BB57: 435 | BC57: 435 | BD57: 0 | BE57: 1590.81 | BF57: 1590.812001 | BG57: -0.002000736297 | BH57: 10418.44 | BI57: 10418.43992 | BJ57: 7.771729543e-05 | BK57: 1437556.96 | BL57: 1437556.964 | BM57: -0.004454596434
A58: 2193 | B58: Sutton Valence Primary School | C58: 775812.77 | D58: 775812.7679 | E58: 0.002134166658 | F58: 0 | G58: 0 | H58: 0 | I58: 775812.77 | J58: 775812.7679 | K58: 0.002134166658 | L58: 5414.26 | M58: 5414.26 | N58: 0 | O58: 770398.51 | P58: 770398.5079 | Q58: 0.002134166658 | R58: 5414.26 | S58: 5414.26 | T58: 0 | U58: 0 | V58: 0 | W58: 0 | X58: 0 | Y58: 0 | Z58: 0 | AA58: 745124.39 | AB58: 745124.3893 | AC58: 0.0006900827866 | AD58: 66555.23 | AE58: 66555.23126 | AF58: -0.001258987599 | AG58: 4003.34 | AH58: 4003.343062 | AI58: -0.003062230372 | AJ58: 13311.05 | AK58: 13311.04625 | AL58: 0.00374820248 | AM58: 0 | AN58: 0 | AO58: 0 | AQ58: 0 | AR58: 0 | AT58: 0 | AU58: 0 | AW58: 0 | AX58: 0 | AY58: 0 | AZ58: 0 | BA58: 0 | BB58: 211 | BC58: 211 | BD58: 0 | BE58: 1590.81 | BF58: 1590.812001 | BG58: -0.002000736297 | BH58: 0 | BI58: 0 | BJ58: 0 | BK58: 775812.77 | BL58: 775812.7679 | BM58: 0.002134166658
A59: 2223 | B59: Bobbing Village School | C59: 759273.46 | D59: 759273.4551 | E59: 0.004896401195 | F59: 0 | G59: 0 | H59: 0 | I59: 759273.46 | J59: 759273.4551 | K59: 0.004896401195 | L59: 5311.62 | M59: 5311.62 | N59: 0 | O59: 753961.84 | P59: 753961.8351 | Q59: 0.004896401195 | R59: 5311.62 | S59: 5311.62 | T59: 0 | U59: 0 | V59: 0 | W59: 0 | X59: 0 | Y59: 0 | Z59: 0 | AA59: 732774.57 | AB59: 732774.572 | AC59: -0.002008546842 | AD59: 75034.85 | AE59: 75034.85083 | AF59: -0.0008266606892 | AG59: 3748.95 | AH59: 3748.954475 | AI59: -0.00447520018 | AJ59: 15006.97 | AK59: 15006.97017 | AL59: -0.0001653321397 | AM59: 0 | AN59: 0 | AO59: 0 | AQ59: 0 | AR59: 0 | AT59: 0 | AU59: 0 | AW59: 0 | AX59: 0 | AY59: 0 | AZ59: 0 | BA59: 0 | BB59: 207 | BC59: 207 | BD59: 0 | BE59: 1590.81 | BF59: 1590.812001 | BG59: -0.002000736297 | BH59: 0 | BI59: 0 | BJ59: 0 | BK59: 759273.46 | BL59: 759273.4551 | BM59: 0.004896401195
A60: 2226 | B60: Eastling Primary School | C60: 434237.81 | D60: 434237.8071 | E60: 0.002890418575 | F60: 0 | G60: 0 | H60: 0 | I60: 434237.81 | J60: 434237.8071 | K60: 0.002890418575 | L60: 2642.98 | M60: 2642.98 | N60: 0 | O60: 431594.83 | P60: 431594.8271 | Q60: 0.002890418575 | R60: 2642.98 | S60: 2642.98 | T60: 0 | U60: 0 | V60: 0 | W60: 0 | X60: 0 | Y60: 0 | Z60: 0 | AA60: 417924 | AB60: 417923.9976 | AC60: 0.002398301556 | AD60: 30837.65 | AE60: 30837.65381 | AF60: -0.00380539964 | AG60: 5074.87 | AH60: 5074.870386 | AI60: -0.0003858380105 | AJ60: 6167.53 | AK60: 6167.530761 | AL60: -0.0007610799285 | AM60: 0 | AN60: 0 | AO60: 0 | AQ60: 0 | AR60: 0 | AT60: 0 | AU60: 0 | AW60: 0 | AX60: 0 | AY60: 0 | AZ60: 0 | BA60: 0 | BB60: 103 | BC60: 103 | BD60: 0 | BE60: 1590.81 | BF60: 1590.812001 | BG60: -0.002000736297 | BH60: 0 | BI60: 0 | BJ60: 0 | BK60: 434237.81 | BL60: 434237.8071 | BM60: 0.002890418575
A61: 2227 | B61: Ethelbert Road Primary School | C61: 625646.96 | D61: 625646.9618 | E61: -0.0018121748 | F61: 0 | G61: 0 | H61: 0 | I61: 625646.96 | J61: 625646.9618 | K61: -0.0018121748 | L61: 4259.56 | M61: 4259.56 | N61: 0 | O61: 621387.4 | P61: 621387.4018 | Q61: -0.001812174683 | R61: 4259.56 | S61: 4259.56 | T61: 0 | U61: 0 | V61: 0 | W61: 0 | X61: 0 | Y61: 0 | Z61: 0 | AA61: 613196.9 | AB61: 613196.8962 | AC61: 0.003750701202 | AD61: 48363.21 | AE61: 48363.21291 | AF61: -0.002907272996 | AG61: 4549.1 | AH61: 4549.103613 | AI61: -0.003612781809 | AJ61: 9672.64 | AK61: 9672.642581 | AL61: -0.002581454599 | AM61: 0 | AN61: 0 | AO61: 0 | AQ61: 0 | AR61: 0 | AT61: 0 | AU61: 0 | AW61: 0 | AX61: 0 | AY61: 0 | AZ61: 0 | BA61: 0 | BB61: 166 | BC61: 166 | BD61: 0 | BE61: 1590.81 | BF61: 1590.812001 | BG61: -0.002000736297 | BH61: 0 | BI61: 0 | BJ61: 0 | BK61: 625646.96 | BL61: 625646.9618 | BM61: -0.0018121748
A62: 2228 | B62: Davington Primary School | C62: 1491970.04 | D62: 1491970.044 | E62: -0.004037739476 | F62: 0 | G62: 0 | H62: 0 | I62: 1491970.04 | J62: 1491970.044 | K62: -0.004037739476 | L62: 10417.96 | M62: 10417.96 | N62: 0 | O62: 1481552.08 | P62: 1481552.084 | Q62: -0.004037739476 | R62: 10417.96 | S62: 10417.96 | T62: 0 | U62: 0 | V62: 0 | W62: 0 | X62: 0 | Y62: 0 | Z62: 0 | AA62: 1475966.37 | AB62: 1475966.366 | AC62: 0.00390371168 | AD62: 229514.64 | AE62: 229514.637 | AF62: 0.002980365301 | AG62: 0 | AH62: 0 | AI62: 0 | AJ62: 45902.93 | AK62: 45902.9274 | AL62: 0.002596073056 | AM62: 0 | AN62: 0 | AO62: 0 | AQ62: 0 | AR62: 0 | AT62: 0 | AU62: 0 | AW62: 0 | AX62: 0 | AY62: 0 | AZ62: 0 | BA62: 0 | BB62: 406 | BC62: 406 | BD62: 0 | BE62: 1590.81 | BF62: 1590.812001 | BG62: -0.002000736297 | BH62: 0 | BI62: 0 | BJ62: 0 | BK62: 1491970.04 | BL62: 1491970.044 | BM62: -0.004037739476
A63: 2230 | B63: Iwade Community Primary School | C63: 1378880.09 | D63: 1378880.09 | E63: 0.0002091103233 | F63: 0 | G63: 0 | H63: 0 | I63: 1378880.09 | J63: 1378880.09 | K63: 0.0002091103233 | L63: 10725.88 | M63: 10725.88 | N63: 0 | O63: 1368154.21 | P63: 1368154.21 | Q63: 0.0002091100905 | R63: 10725.88 | S63: 10725.88 | T63: 0 | U63: 0 | V63: 0 | W63: 0 | X63: 0 | Y63: 0 | Z63: 0 | AA63: 1370550.74 | AB63: 1370550.744 | AC63: -0.003807277419 | AD63: 105860.45 | AE63: 105860.4465 | AF63: 0.003486894551 | AG63: 2824.19 | AH63: 2824.186605 | AI63: 0.003395393163 | AJ63: 21172.09 | AK63: 21172.0893 | AL63: 0.0006973789095 | AM63: 0 | AN63: 0 | AO63: 0 | AQ63: 0 | AR63: 0 | AT63: 0 | AU63: 0 | AW63: 0 | AX63: 0 | AY63: 0 | AZ63: 0 | BA63: 0 | BB63: 418 | BC63: 418 | BD63: 0 | BE63: 1590.81 | BF63: 1590.812001 | BG63: -0.002000736297 | BH63: 0 | BI63: 0 | BJ63: 0 | BK63: 1378880.09 | BL63: 1378880.09 | BM63: 0.0002091103233
A64: 2231 | B64: Lower Halstow School | C64: 556176.63 | D64: 556176.6297 | E64: 0.0003471192904 | F64: 0 | G64: 0 | H64: 0 | I64: 556176.63 | J64: 556176.6297 | K64: 0.0003471192904 | L64: 3489.76 | M64: 3489.76 | N64: 0 | O64: 552686.87 | P64: 552686.8697 | Q64: 0.0003471192904 | R64: 3489.76 | S64: 3489.76 | T64: 0 | U64: 0 | V64: 0 | W64: 0 | X64: 0 | Y64: 0 | Z64: 0 | AA64: 548216.07 | AB64: 548216.0742 | AC64: -0.004223862546 | AD64: 52516.87 | AE64: 52516.8684 | AF64: 0.001600326003 | AG64: 4424.49 | AH64: 4424.493948 | AI64: -0.00394800978 | AJ64: 10503.37 | AK64: 10503.37368 | AL64: -0.0036799348 | AM64: 0 | AN64: 0 | AO64: 0 | AQ64: 0 | AR64: 0 | AT64: 0 | AU64: 0 | AW64: 0 | AX64: 0 | AY64: 0 | AZ64: 0 | BA64: 0 | BB64: 136 | BC64: 136 | BD64: 0 | BE64: 1590.81 | BF64: 1590.812001 | BG64: -0.002000736297 | BH64: 0 | BI64: 0 | BJ64: 0 | BK64: 556176.63 | BL64: 556176.6297 | BM64: 0.0003471192904
A65: 2235 | B65: Minster in Sheppey Primary School | C65: 1866475.84 | D65: 1866475.84 | E65: 0.0004040370695 | F65: 40584.12 | G65: 40584.12377 | H65: -0.003768559654 | I65: 1907059.96 | J65: 1907059.963 | K65: -0.003364522709 | L65: 13240.56 | M65: 13240.56 | N65: 0 | O65: 1893819.4 | P65: 1893819.403 | Q65: -0.003364522709 | R65: 13240.56 | S65: 13240.56 | T65: 0 | U65: 0 | V65: 0 | W65: 0 | X65: 40584.12 | Y65: 40584.12377 | Z65: -0.003768559654 | AA65: 1907059.96 | AB65: 1907059.963 | AC65: -0.003364522709 | AD65: 266262.74 | AE65: 266262.7419 | AF65: -0.001890471787 | AG65: 0 | AH65: 0 | AI65: 0 | AJ65: 53252.55 | AK65: 53252.54838 | AL65: 0.001621905649 | AM65: 0 | AN65: 0 | AO65: 0 | AQ65: 0 | AR65: 0 | AT65: 0 | AU65: 0 | AW65: 0 | AX65: 0 | AY65: 0 | AZ65: 0 | BA65: 0 | BB65: 516 | BC65: 516 | BD65: 0 | BE65: 1590.81 | BF65: 1590.812001 | BG65: -0.002000736297 | BH65: 40584.12 | BI65: 40584.12377 | BJ65: -0.003768559654 | BK65: 1907059.96 | BL65: 1907059.963 | BM65: -0.003364522709
A66: 2237 | B66: Queenborough Primary School | C66: 1503848.35 | D66: 1503848.354 | E66: -0.003973213956 | F66: 15042.74 | G66: 15042.74192 | H66: -0.001916149389 | I66: 1518891.1 | J66: 1518891.096 | K66: 0.004110636655 | L66: 9904.76 | M66: 9904.76 | N66: 0 | O66: 1508986.34 | P66: 1508986.336 | Q66: 0.004110636655 | R66: 9904.76 | S66: 9904.76 | T66: 0 | U66: 5.09 | V66: 5.09 | W66: 0 | X66: 15042.74 | Y66: 15042.74192 | Z66: -0.001916149389 | AA66: 1518891.1 | AB66: 1518891.096 | AC66: 0.004110636655 | AD66: 272786.45 | AE66: 272786.4453 | AF66: 0.004724653612 | AG66: 0 | AH66: 0 | AI66: 0 | AJ66: 54557.29 | AK66: 54557.28906 | AL66: 0.0009449307181 | AM66: 0 | AN66: 0 | AO66: 0 | AQ66: 0 | AR66: 0 | AT66: 0 | AU66: 0 | AW66: 0 | AX66: 0 | AY66: 0 | AZ66: 0 | BA66: 0 | BB66: 386 | BC66: 386 | BD66: 0 | BE66: 1590.81 | BF66: 1590.812001 | BG66: -0.002000736297 | BH66: 15042.74 | BI66: 15042.74192 | BJ66: -0.001916149389 | BK66: 1518891.1 | BL66: 1518891.096 | BM66: 0.004110636655
A67: 2239 | B67: Rodmersham School | C67: 414727.29 | D67: 414727.2945 | E67: =C67-D67 -> -0.004476733098 | F67: 0 | G67: 0 | H67: =F67-G67 -> 0 | I67: 414727.29 | J67: 414727.2945 | K67: =I67-J67 -> -0.004476733098 | L67: 2566 | M67: 2566 | N67: =L67-M67 -> 0 | O67: 412161.29 | P67: 412161.2945 | Q67: =O67-P67 -> -0.004476733098 | R67: 2566 | S67: 2566 | T67: =R67-S67 -> 0 | U67: 0 | V67: 0 | W67: =U67-V67 -> 0 | X67: 0 | Y67: 0 | Z67: =X67-Y67 -> 0 | AA67: 410203.48 | AB67: 410203.484 | AC67: =AA67-AB67 -> -0.003966390039 | AD67: 24697.16 | AE67: 24697.16339 | AF67: =AD67-AE67 -> -0.003385081633 | AG67: 5259.09 | AH67: 5259.085098 | AI67: =AG67-AH67 -> 0.004901552449 | AJ67: 4939.43 | AK67: 4939.432677 | AL67: =AJ67-AK67 -> -0.002677016326 | AM67: 0 | AN67: 0 | AO67: =AM67-AN67 -> 0 | AQ67: 0 | AR67: =AP67-AQ67 -> 0 | AT67: 0 | AU67: =AS67-AT67 -> 0 | AW67: 0 | AX67: =AV67-AW67 -> 0 | AY67: 0 | AZ67: 0 | BA67: =AY67-AZ67 -> 0 | BB67: 100 | BC67: 100 | BD67: =BB67-BC67 -> 0 | BE67: 1590.81 | BF67: 1590.812001 | BG67: =BE67-BF67 -> -0.002000736297 | BH67: 0 | BI67: 0 | BJ67: =BH67-BI67 -> 0 | BK67: 414727.29 | BL67: 414727.2945 | BM67: =BK67-BL67 -> -0.004476733098
A68: 2242 | B68: Richmond Primary School | C68: 1623379.03 | D68: 1623379.031 | E68: -0.0005302580539 | F68: 0 | G68: 0 | H68: 0 | I68: 1623379.03 | J68: 1623379.031 | K68: -0.0005302580539 | L68: 10187.02 | M68: 10187.02 | N68: 0 | O68: 1613192.01 | P68: 1613192.011 | Q68: -0.0005302580539 | R68: 10187.02 | S68: 10187.02 | T68: 0 | U68: 5.37 | V68: 5.37 | W68: 0 | X68: 0 | Y68: 0 | Z68: 0 | AA68: 1587988.98 | AB68: 1587988.976 | AC68: 0.004194911802 | AD68: 344354.95 | AE68: 344354.9494 | AF68: 0.0006258364883 | AG68: 0 | AH68: 0 | AI68: 0 | AJ68: 68870.99 | AK68: 68870.98987 | AL68: 0.0001251672948 | AM68: 0 | AN68: 0 | AO68: 0 | AQ68: 0 | AR68: 0 | AT68: 0 | AU68: 0 | AW68: 0 | AX68: 0 | AY68: 0 | AZ68: 0 | BA68: 0 | BB68: 397 | BC68: 397 | BD68: 0 | BE68: 1590.81 | BF68: 1590.812001 | BG68: -0.002000736297 | BH68: 0 | BI68: 0 | BJ68: 0 | BK68: 1623379.03 | BL68: 1623379.031 | BM68: -0.0005302580539
A69: 2245 | B69: Rose Street School | C69: 906146.51 | D69: 906146.5138 | E69: -0.003771845833 | F69: 79561.58 | G69: 79561.58085 | H69: -0.0008528391627 | I69: 985708.09 | J69: 985708.0946 | K69: -0.00462468504 | L69: 5234.64 | M69: 5234.64 | N69: 0 | O69: 980473.45 | P69: 980473.4546 | Q69: -0.00462468504 | R69: 5234.64 | S69: 5234.64 | T69: 0 | U69: 5.49 | V69: 5.49 | W69: 0 | X69: 79561.58 | Y69: 79561.58085 | Z69: -0.0008528391627 | AA69: 985708.09 | AB69: 985708.0946 | AC69: -0.00462468504 | AD69: 185922.78 | AE69: 185922.7833 | AF69: -0.003348626487 | AG69: 422.32 | AH69: 422.3164995 | AI69: 0.003500458795 | AJ69: 37184.56 | AK69: 37184.55667 | AL69: 0.003330274703 | AM69: 0 | AN69: 0 | AO69: 0 | AQ69: 0 | AR69: 0 | AT69: 0 | AU69: 0 | AW69: 0 | AX69: 0 | AY69: 0 | AZ69: 0 | BA69: 0 | BB69: 204 | BC69: 204 | BD69: 0 | BE69: 1590.81 | BF69: 1590.812001 | BG69: -0.002000736297 | BH69: 79561.58 | BI69: 79561.58085 | BJ69: -0.0008528391627 | BK69: 985708.09 | BL69: 985708.0946 | BM69: -0.00462468504
A70: 2252 | B70: Murston Junior School | C70: 704788.86 | D70: 704788.8569 | E70: 0.003054926987 | F70: 18953.74 | G70: 18953.74425 | H70: -0.004253055075 | I70: 723742.6 | J70: 723742.6012 | K70: -0.001198128099 | L70: 3849 | M70: 3849 | N70: 0 | O70: 719893.6 | P70: 719893.6012 | Q70: -0.001198128099 | R70: 3849 | S70: 3849 | T70: 0 | U70: 0 | V70: 0 | W70: 0 | X70: 18953.74 | Y70: 18953.74425 | Z70: -0.004253055075 | AA70: 723742.6 | AB70: 723742.6012 | AC70: -0.001198128099 | AD70: 150882.29 | AE70: 150882.2871 | AF70: 0.002914209734 | AG70: 1473.53 | AH70: 1473.531387 | AI70: -0.001387426292 | AJ70: 30176.46 | AK70: 30176.45742 | AL70: 0.002582841946 | AM70: 0 | AN70: 0 | AO70: 0 | AQ70: 0 | AR70: 0 | AT70: 0 | AU70: 0 | AW70: 0 | AX70: 0 | AY70: 0 | AZ70: 0 | BA70: 0 | BB70: 150 | BC70: 150 | BD70: 0 | BE70: 1590.81 | BF70: 1590.812001 | BG70: -0.002000736297 | BH70: 18953.74 | BI70: 18953.74425 | BJ70: -0.004253055075 | BK70: 723742.6 | BL70: 723742.6012 | BM70: -0.001198128099
A71: 2254 | B71: Canterbury Road Primary School | C71: 866571.92 | D71: 866571.9169 | E71: 0.003130656201 | F71: 0 | G71: 0 | H71: 0 | I71: 866571.92 | J71: 866571.9169 | K71: 0.003130656201 | L71: 5234.64 | M71: 5234.64 | N71: 0 | O71: 861337.28 | P71: 861337.2769 | Q71: 0.003130656201 | R71: 5234.64 | S71: 5234.64 | T71: 0 | U71: 0 | V71: 0 | W71: 0 | X71: 0 | Y71: 0 | Z71: 0 | AA71: 839229.2 | AB71: 839229.1991 | AC71: 0.000879501109 | AD71: 157521.62 | AE71: 157521.6171 | AF71: 0.00291066803 | AG71: 1274.35 | AH71: 1274.351487 | AI71: -0.001487320041 | AJ71: 31504.32 | AK71: 31504.32342 | AL71: -0.003417866392 | AM71: 0 | AN71: 0 | AO71: 0 | AQ71: 0 | AR71: 0 | AT71: 0 | AU71: 0 | AW71: 0 | AX71: 0 | AY71: 0 | AZ71: 0 | BA71: 0 | BB71: 204 | BC71: 204 | BD71: 0 | BE71: 1590.81 | BF71: 1590.812001 | BG71: -0.002000736297 | BH71: 0 | BI71: 0 | BJ71: 0 | BK71: 866571.92 | BL71: 866571.9169 | BM71: 0.003130656201
A72: 2258 | B72: Blean Primary School | C72: 1483980.7 | D72: 1483980.698 | E72: 0.002028958639 | F72: 0 | G72: 0 | H72: 0 | I72: 1483980.7 | J72: 1483980.698 | K72: 0.002028958639 | L72: 11213.42 | M72: 11213.42 | N72: 0 | O72: 1472767.28 | P72: 1472767.278 | Q72: 0.002028958639 | R72: 11213.42 | S72: 11213.42 | T72: 0 | U72: 0 | V72: 0 | W72: 0 | X72: 0 | Y72: 0 | Z72: 0 | AA72: 1440280.83 | AB72: 1440280.834 | AC72: -0.003718824126 | AD72: 143356.24 | AE72: 143356.2362 | AF72: 0.003801696585 | AG72: 1699.31 | AH72: 1699.312914 | AI72: -0.002914050898 | AJ72: 28671.25 | AK72: 28671.24724 | AL72: 0.002760339317 | AM72: 0 | AN72: 0 | AO72: 0 | AQ72: 0 | AR72: 0 | AT72: 0 | AU72: 0 | AW72: 0 | AX72: 0 | AY72: 0 | AZ72: 0 | BA72: 0 | BB72: 437 | BC72: 437 | BD72: 0 | BE72: 1590.81 | BF72: 1590.812001 | BG72: -0.002000736297 | BH72: 0 | BI72: 0 | BJ72: 0 | BK72: 1483980.7 | BL72: 1483980.698 | BM72: 0.002028958639
A73: 2259 | B73: Chartham Primary School | C73: 1133293.63 | D73: 1133293.634 | E73: -0.003784077941 | F73: 0 | G73: 0 | H73: 0 | I73: 1133293.63 | J73: 1133293.634 | K73: -0.003784077941 | L73: 7928.94 | M73: 7928.94 | N73: 0 | O73: 1125364.69 | P73: 1125364.694 | Q73: -0.003784077941 | R73: 7928.94 | S73: 7928.94 | T73: 0 | U73: 0 | V73: 0 | W73: 0 | X73: 0 | Y73: 0 | Z73: 0 | AA73: 1118824.86 | AB73: 1118824.864 | AC73: -0.004358856706 | AD73: 142117.07 | AE73: 142117.0734 | AF73: -0.003392732295 | AG73: 1736.49 | AH73: 1736.487798 | AI73: 0.002201781969 | AJ73: 28423.41 | AK73: 28423.41468 | AL73: -0.004678546462 | AM73: 0 | AN73: 0 | AO73: 0 | AQ73: 0 | AR73: 0 | AT73: 0 | AU73: 0 | AW73: 0 | AX73: 0 | AY73: 0 | AZ73: 0 | BA73: 0 | BB73: 309 | BC73: 309 | BD73: 0 | BE73: 1590.81 | BF73: 1590.812001 | BG73: -0.002000736297 | BH73: 0 | BI73: 0 | BJ73: 0 | BK73: 1133293.63 | BL73: 1133293.634 | BM73: -0.003784077941
A74: 2263 | B74: Herne Bay Infant School | C74: 1318473.38 | D74: 1318473.378 | E74: 0.002456987742 | F74: 0 | G74: 0 | H74: 0 | I74: 1318473.38 | J74: 1318473.378 | K74: 0.002456987742 | L74: 9263.26 | M74: 9263.26 | N74: 0 | O74: 1309210.12 | P74: 1309210.118 | Q74: 0.002456987975 | R74: 9263.26 | S74: 9263.26 | T74: 0 | U74: 4.8 | V74: 4.8 | W74: 0 | X74: 0 | Y74: 0 | Z74: 0 | AA74: 1261122.18 | AB74: 1261122.184 | AC74: -0.004390841583 | AD74: 180076.95 | AE74: 180076.9534 | AF74: -0.003375124099 | AG74: 597.69 | AH74: 597.6913987 | AI74: -0.001398746277 | AJ74: 36015.39 | AK74: 36015.39068 | AL74: -0.0006750248212 | AM74: 0 | AN74: 0 | AO74: 0 | AQ74: 0 | AR74: 0 | AT74: 0 | AU74: 0 | AW74: 0 | AX74: 0 | AY74: 0 | AZ74: 0 | BA74: 0 | BB74: 361 | BC74: 361 | BD74: 0 | BE74: 1590.81 | BF74: 1590.812001 | BG74: -0.002000736297 | BH74: 0 | BI74: 0 | BJ74: 0 | BK74: 1318473.38 | BL74: 1318473.378 | BM74: 0.002456987742
A75: 2265 | B75: Hoath Primary School | C75: 337259.85 | D75: 337259.8525 | E75: -0.002475590794 | F75: 0 | G75: 0 | H75: 0 | I75: 337259.85 | J75: 337259.8525 | K75: -0.002475590794 | L75: 1744.88 | M75: 1744.88 | N75: 0 | O75: 335514.97 | P75: 335514.9725 | Q75: -0.002475590794 | R75: 1744.88 | S75: 1744.88 | T75: 0 | U75: 0 | V75: 0 | W75: 0 | X75: 0 | Y75: 0 | Z75: 0 | AA75: 323036.44 | AB75: 323036.4364 | AC75: 0.003645789402 | AD75: 30476.92 | AE75: 30476.92161 | AF75: -0.001609587369 | AG75: 5085.69 | AH75: 5085.692352 | AI75: -0.002351712379 | AJ75: 6095.38 | AK75: 6095.384322 | AL75: -0.004321917473 | AM75: 0 | AN75: 0 | AO75: 0 | AQ75: 0 | AR75: 0 | AT75: 0 | AU75: 0 | AW75: 0 | AX75: 0 | AY75: 0 | AZ75: 0 | BA75: 0 | BB75: 68 | BC75: 68 | BD75: 0 | BE75: 1590.81 | BF75: 1590.812001 | BG75: -0.002000736297 | BH75: 0 | BI75: 0 | BJ75: 0 | BK75: 337259.85 | BL75: 337259.8525 | BM75: -0.002475590794
A76: 2268 | B76: Westmeads Community Infant School | C76: 687745.99 | D76: 687745.9861 | E76: 0.003931764979 | F76: 0 | G76: 0 | H76: 0 | I76: 687745.99 | J76: 687745.9861 | K76: 0.003931764979 | L76: 4670.12 | M76: 4670.12 | N76: 0 | O76: 683075.87 | P76: 683075.8661 | Q76: 0.003931764979 | R76: 4670.12 | S76: 4670.12 | T76: 0 | U76: 0 | V76: 0 | W76: 0 | X76: 0 | Y76: 0 | Z76: 0 | AA76: 652013 | AB76: 652013.0022 | AC76: -0.002188346465 | AD76: 53889.56 | AE76: 53889.55603 | AF76: 0.003970930986 | AG76: 4383.31 | AH76: 4383.313319 | AI76: -0.003319127929 | AJ76: 10777.91 | AK76: 10777.91121 | AL76: -0.001205813802 | AM76: 0 | AN76: 0 | AO76: 0 | AQ76: 0 | AR76: 0 | AT76: 0 | AU76: 0 | AW76: 0 | AX76: 0 | AY76: 0 | AZ76: 0 | BA76: 0 | BB76: 182 | BC76: 182 | BD76: 0 | BE76: 1590.81 | BF76: 1590.812001 | BG76: -0.002000736297 | BH76: 0 | BI76: 0 | BJ76: 0 | BK76: 687745.99 | BL76: 687745.9861 | BM76: 0.003931764979
A77: 2269 | B77: Whitstable Junior School | C77: 887257.86 | D77: 887257.855 | E77: 0.00502544234 | F77: 0 | G77: 0 | H77: 0 | I77: 887257.86 | J77: 887257.855 | K77: 0.00502544234 | L77: 6209.72 | M77: 6209.72 | N77: 0 | O77: 881048.14 | P77: 881048.135 | Q77: 0.00502544234 | R77: 6209.72 | S77: 6209.72 | T77: 0 | U77: 0 | V77: 0 | W77: 0 | X77: 0 | Y77: 0 | Z77: 0 | AA77: 874753.06 | AB77: 874753.0595 | AC77: 0.000543559785 | AD77: 83145.01 | AE77: 83145.0139 | AF77: -0.00389543784 | AG77: 3505.65 | AH77: 3505.649583 | AI77: 0.0004168631349 | AJ77: 16629 | AK77: 16629.00278 | AL77: -0.002779087568 | AM77: 0 | AN77: 0 | AO77: 0 | AQ77: 0 | AR77: 0 | AT77: 0 | AU77: 0 | AW77: 0 | AX77: 0 | AY77: 0 | AZ77: 0 | BA77: 0 | BB77: 242 | BC77: 242 | BD77: 0 | BE77: 1590.81 | BF77: 1590.812001 | BG77: -0.002000736297 | BH77: 0 | BI77: 0 | BJ77: 0 | BK77: 887257.86 | BL77: 887257.855 | BM77: 0.00502544234
A78: 2270 | B78: Aldington Primary School | C78: 644678.99 | D78: 644678.9872 | E78: 0.002814409789 | F78: 0 | G78: 0 | H78: 0 | I78: 644678.99 | J78: 644678.9872 | K78: 0.002814409789 | L78: 4310.88 | M78: 4310.88 | N78: 0 | O78: 640368.11 | P78: 640368.1072 | Q78: 0.002814409789 | R78: 4310.88 | S78: 4310.88 | T78: 0 | U78: 0 | V78: 0 | W78: 0 | X78: 0 | Y78: 0 | Z78: 0 | AA78: 639278.01 | AB78: 639278.0093 | AC78: 0.0006601691712 | AD78: 43634.62 | AE78: 43634.62379 | AF78: -0.003791535048 | AG78: 4690.96 | AH78: 4690.961286 | AI78: -0.001286253949 | AJ78: 8726.92 | AK78: 8726.924758 | AL78: -0.00475830701 | AM78: 0 | AN78: 0 | AO78: 0 | AQ78: 0 | AR78: 0 | AT78: 0 | AU78: 0 | AW78: 0 | AX78: 0 | AY78: 0 | AZ78: 0 | BA78: 0 | BB78: 168 | BC78: 168 | BD78: 0 | BE78: 1590.81 | BF78: 1590.812001 | BG78: -0.002000736297 | BH78: 0 | BI78: 0 | BJ78: 0 | BK78: 644678.99 | BL78: 644678.9872 | BM78: 0.002814409789
A79: 2272 | B79: East Stour Primary School | C79: 1488602.21 | D79: 1488602.206 | E79: 0.003782999702 | F79: 74537.12 | G79: 74537.12331 | H79: -0.003310115193 | I79: 1563139.33 | J79: 1563139.33 | K79: 0.0004728846252 | L79: 10187.02 | M79: 10187.02 | N79: 0 | O79: 1552952.31 | P79: 1552952.31 | Q79: 0.0004728846252 | R79: 10187.02 | S79: 10187.02 | T79: 0 | U79: 4.8 | V79: 4.8 | W79: 0 | X79: 74537.12 | Y79: 74537.12331 | Z79: -0.003310115193 | AA79: 1563139.33 | AB79: 1563139.33 | AC79: 0.0004728846252 | AD79: 218895.67 | AE79: 218895.6667 | AF79: 0.003272768779 | AG79: 0 | AH79: 0 | AI79: 0 | AJ79: 43779.13 | AK79: 43779.13335 | AL79: -0.003345446246 | AM79: 0 | AN79: 0 | AO79: 0 | AQ79: 0 | AR79: 0 | AT79: 0 | AU79: 0 | AW79: 0 | AX79: 0 | AY79: 0 | AZ79: 0 | BA79: 0 | BB79: 397 | BC79: 397 | BD79: 0 | BE79: 1590.81 | BF79: 1590.812001 | BG79: -0.002000736297 | BH79: 74537.12 | BI79: 74537.12331 | BJ79: -0.003310115193 | BK79: 1563139.33 | BL79: 1563139.33 | BM79: 0.0004728846252
A80: 2275 | B80: Victoria Road Primary School | C80: 837610.25 | D80: 837610.2488 | E80: 0.001225971035 | F80: 0 | G80: 0 | H80: 0 | I80: 837610.25 | J80: 837610.2488 | K80: 0.001225971035 | L80: 5234.64 | M80: 5234.64 | N80: 0 | O80: 832375.61 | P80: 832375.6088 | Q80: 0.001225971035 | R80: 5234.64 | S80: 5234.64 | T80: 0 | U80: 0 | V80: 0 | W80: 0 | X80: 0 | Y80: 0 | Z80: 0 | AA80: 834373.61 | AB80: 834373.6062 | AC80: 0.003812576411 | AD80: 142774.15 | AE80: 142774.15 | AF80: 4.838273162e-05 | AG80: 1716.78 | AH80: 1716.775501 | AI80: 0.004498548518 | AJ80: 28554.83 | AK80: 28554.82999 | AL80: 9.67655069e-06 | AM80: 0 | AN80: 0 | AO80: 0 | AQ80: 0 | AR80: 0 | AT80: 0 | AU80: 0 | AW80: 0 | AX80: 0 | AY80: 0 | AZ80: 0 | BA80: 0 | BB80: 204 | BC80: 204 | BD80: 0 | BE80: 1590.81 | BF80: 1590.812001 | BG80: -0.002000736297 | BH80: 0 | BI80: 0 | BJ80: 0 | BK80: 837610.25 | BL80: 837610.2488 | BM80: 0.001225971035
A81: 2276 | B81: Willesborough Infant School | C81: 1293020.36 | D81: 1293020.364 | E81: -0.003533427836 | F81: 0 | G81: 0 | H81: 0 | I81: 1293020.36 | J81: 1293020.364 | K81: -0.003533427836 | L81: 8955.34 | M81: 8955.34 | N81: 0 | O81: 1284065.02 | P81: 1284065.024 | Q81: -0.003533427836 | R81: 8955.34 | S81: 8955.34 | T81: 0 | U81: 0 | V81: 0 | W81: 0 | X81: 0 | Y81: 0 | Z81: 0 | AA81: 1253203.77 | AB81: 1253203.771 | AC81: -0.001113810344 | AD81: 189686.04 | AE81: 189686.0397 | AF81: 0.0003069808881 | AG81: 309.42 | AH81: 309.4188092 | AI81: 0.001190790574 | AJ81: 37937.21 | AK81: 37937.20794 | AL81: 0.002061396175 | AM81: 0 | AN81: 0 | AO81: 0 | AQ81: 0 | AR81: 0 | AT81: 0 | AU81: 0 | AW81: 0 | AX81: 0 | AY81: 0 | AZ81: 0 | BA81: 0 | BB81: 349 | BC81: 349 | BD81: 0 | BE81: 1590.81 | BF81: 1590.812001 | BG81: -0.002000736297 | BH81: 0 | BI81: 0 | BJ81: 0 | BK81: 1293020.36 | BL81: 1293020.364 | BM81: -0.003533427836
A82: 2278 | B82: Bethersden Primary School | C82: 478555.92 | D82: 478555.9156 | E82: 0.004444916092 | F82: 10869.62 | G82: 10869.62215 | H82: -0.002149972826 | I82: 489425.54 | J82: 489425.5377 | K82: 0.00229494326 | L82: 2822.6 | M82: 2822.6 | N82: 0 | O82: 486602.94 | P82: 486602.9377 | Q82: 0.00229494326 | R82: 2822.6 | S82: 2822.6 | T82: 0 | U82: 0 | V82: 0 | W82: 0 | X82: 10869.62 | Y82: 10869.62215 | Z82: -0.002149972826 | AA82: 489425.54 | AB82: 489425.5377 | AC82: 0.00229494326 | AD82: 51233.52 | AE82: 51233.51585 | AF82: 0.004151934059 | AG82: 4462.99 | AH82: 4462.994525 | AI82: -0.004524558022 | AJ82: 10246.7 | AK82: 10246.70317 | AL82: -0.003169613186 | AM82: 0 | AN82: 0 | AO82: 0 | AQ82: 0 | AR82: 0 | AT82: 0 | AU82: 0 | AW82: 0 | AX82: 0 | AY82: 0 | AZ82: 0 | BA82: 0 | BB82: 110 | BC82: 110 | BD82: 0 | BE82: 1590.81 | BF82: 1590.812001 | BG82: -0.002000736297 | BH82: 10869.62 | BI82: 10869.62215 | BJ82: -0.002149972826 | BK82: 489425.54 | BL82: 489425.5377 | BM82: 0.00229494326
A83: 2279 | B83: Brook Community Primary School | C83: 398342.14 | D83: 398342.1445 | E83: -0.004521704395 | F83: 0 | G83: 0 | H83: 0 | I83: 398342.14 | J83: 398342.1445 | K83: -0.004521704395 | L83: 2206.76 | M83: 2206.76 | N83: 0 | O83: 396135.38 | P83: 396135.3845 | Q83: -0.004521704395 | R83: 2206.76 | S83: 2206.76 | T83: 0 | U83: 0 | V83: 0 | W83: 0 | X83: 0 | Y83: 0 | Z83: 0 | AA83: 372162.78 | AB83: 372162.779 | AC83: 0.0009658565396 | AD83: 35543.52 | AE83: 35543.52446 | AF83: -0.004464470214 | AG83: 4933.69 | AH83: 4933.694266 | AI83: -0.004266065894 | AJ83: 7108.7 | AK83: 7108.704893 | AL83: -0.004892894042 | AM83: 0 | AN83: 0 | AO83: 0 | AQ83: 0 | AR83: 0 | AT83: 0 | AU83: 0 | AW83: 0 | AX83: 0 | AY83: 0 | AZ83: 0 | BA83: 0 | BB83: 86 | BC83: 86 | BD83: 0 | BE83: 1590.81 | BF83: 1590.812001 | BG83: -0.002000736297 | BH83: 0 | BI83: 0 | BJ83: 0 | BK83: 398342.14 | BL83: 398342.1445 | BM83: -0.004521704395
A84: 2280 | B84: Challock Primary School | C84: 708513.53 | D84: 708513.5311 | E84: -0.001074261731 | F84: 0 | G84: 0 | H84: 0 | I84: 708513.53 | J84: 708513.5311 | K84: -0.001074261731 | L84: 5003.7 | M84: 5003.7 | N84: 0 | O84: 703509.83 | P84: 703509.8311 | Q84: -0.001074261847 | R84: 5003.7 | S84: 5003.7 | T84: 0 | U84: 0 | V84: 0 | W84: 0 | X84: 0 | Y84: 0 | Z84: 0 | AA84: 698988.35 | AB84: 698988.3478 | AC84: 0.002184885554 | AD84: 51050.1 | AE84: 51050.10176 | AF84: -0.001762241816 | AG84: 4468.5 | AH84: 4468.496947 | AI84: 0.003052867254 | AJ84: 10210.02 | AK84: 10210.02035 | AL84: -0.0003524483618 | AM84: 0 | AN84: 0 | AO84: 0 | AQ84: 0 | AR84: 0 | AT84: 0 | AU84: 0 | AW84: 0 | AX84: 0 | AY84: 0 | AZ84: 0 | BA84: 0 | BB84: 195 | BC84: 195 | BD84: 0 | BE84: 1590.81 | BF84: 1590.812001 | BG84: -0.002000736297 | BH84: 0 | BI84: 0 | BJ84: 0 | BK84: 708513.53 | BL84: 708513.5311 | BM84: -0.001074261731
A85: 2282 | B85: Great Chart Primary School | C85: 1634095.92 | D85: 1634095.915 | E85: 0.004770086147 | F85: 0 | G85: 0 | H85: 0 | I85: 1634095.92 | J85: 1634095.915 | K85: 0.004770086147 | L85: 12368.12 | M85: 12368.12 | N85: 0 | O85: 1621727.8 | P85: 1621727.795 | Q85: 0.00477008638 | R85: 12368.12 | S85: 12368.12 | T85: 0 | U85: 0 | V85: 0 | W85: 0 | X85: 0 | Y85: 0 | Z85: 0 | AA85: 1610402.62 | AB85: 1610402.617 | AC85: 0.002772239735 | AD85: 154765.96 | AE85: 154765.9624 | AF85: -0.00240363105 | AG85: 1357.02 | AH85: 1357.021128 | AI85: -0.001127891069 | AJ85: 30953.19 | AK85: 30953.19248 | AL85: -0.002480726209 | AM85: 0 | AN85: 0 | AO85: 0 | AQ85: 0 | AR85: 0 | AT85: 0 | AU85: 0 | AW85: 0 | AX85: 0 | AY85: 0 | AZ85: 0 | BA85: 0 | BB85: 482 | BC85: 482 | BD85: 0 | BE85: 1590.81 | BF85: 1590.812001 | BG85: -0.002000736297 | BH85: 0 | BI85: 0 | BJ85: 0 | BK85: 1634095.92 | BL85: 1634095.915 | BM85: 0.004770086147
A86: 2285 | B86: Mersham Primary School | C86: 727943.39 | D86: 727943.3888 | E86: 0.001230973285 | F86: 0 | G86: 0 | H86: 0 | I86: 727943.39 | J86: 727943.3888 | K86: 0.001230973285 | L86: 5414.26 | M86: 5414.26 | N86: 0 | O86: 722529.13 | P86: 722529.1288 | Q86: 0.001230973285 | R86: 5414.26 | S86: 5414.26 | T86: 0 | U86: 0 | V86: 0 | W86: 0 | X86: 0 | Y86: 0 | Z86: 0 | AA86: 704092.82 | AB86: 704092.8242 | AC86: -0.004249471938 | AD86: 32013.72 | AE86: 32013.72029 | AF86: -0.0002926629932 | AG86: 5039.59 | AH86: 5039.588391 | AI86: 0.00160877989 | AJ86: 6402.74 | AK86: 6402.744059 | AL86: -0.004058532599 | AM86: 0 | AN86: 0 | AO86: 0 | AQ86: 0 | AR86: 0 | AT86: 0 | AU86: 0 | AW86: 0 | AX86: 0 | AY86: 0 | AZ86: 0 | BA86: 0 | BB86: 211 | BC86: 211 | BD86: 0 | BE86: 1590.81 | BF86: 1590.812001 | BG86: -0.002000736297 | BH86: 0 | BI86: 0 | BJ86: 0 | BK86: 727943.39 | BL86: 727943.3888 | BM86: 0.001230973285
A87: 2287 | B87: Rolvenden Primary School | C87: 345293.17 | D87: 345293.1682 | E87: 0.001761752355 | F87: 0 | G87: 0 | H87: 0 | I87: 345293.17 | J87: 345293.1682 | K87: 0.001761752355 | L87: 1796.2 | M87: 1796.2 | N87: 0 | O87: 343496.97 | P87: 343496.9682 | Q87: 0.001761752355 | R87: 1796.2 | S87: 1796.2 | T87: 0 | U87: 0 | V87: 0 | W87: 0 | X87: 0 | Y87: 0 | Z87: 0 | AA87: 337425.49 | AB87: 337425.492 | AC87: -0.002047447953 | AD87: 28418.16 | AE87: 28418.15565 | AF87: 0.004353588018 | AG87: 5147.46 | AH87: 5147.455331 | AI87: 0.00466939236 | AJ87: 5683.63 | AK87: 5683.631129 | AL87: -0.001129282397 | AM87: 0 | AN87: 0 | AO87: 0 | AQ87: 0 | AR87: 0 | AT87: 0 | AU87: 0 | AW87: 0 | AX87: 0 | AY87: 0 | AZ87: 0 | BA87: 0 | BB87: 70 | BC87: 70 | BD87: 0 | BE87: 1590.81 | BF87: 1590.812001 | BG87: -0.002000736297 | BH87: 0 | BI87: 0 | BJ87: 0 | BK87: 345293.17 | BL87: 345293.1682 | BM87: 0.001761752355
A88: 2289 | B88: Smeeth Community Primary School | C88: 568982.23 | D88: 568982.2311 | E88: -0.00108734984 | F88: 0 | G88: 0 | H88: 0 | I88: 568982.23 | J88: 568982.2311 | K88: -0.00108734984 | L88: 3772.02 | M88: 3772.02 | N88: 0 | O88: 565210.21 | P88: 565210.2111 | Q88: -0.00108734984 | R88: 3772.02 | S88: 3772.02 | T88: 0 | U88: 0 | V88: 0 | W88: 0 | X88: 0 | Y88: 0 | Z88: 0 | AA88: 562232.96 | AB88: 562232.9598 | AC88: 0.0002271732083 | AD88: 45420.41 | AE88: 45420.40594 | AF88: 0.00405579713 | AG88: 4637.39 | AH88: 4637.387822 | AI88: 0.002178326086 | AJ88: 9084.08 | AK88: 9084.081189 | AL88: -0.001188840575 | AM88: 0 | AN88: 0 | AO88: 0 | AQ88: 0 | AR88: 0 | AT88: 0 | AU88: 0 | AW88: 0 | AX88: 0 | AY88: 0 | AZ88: 0 | BA88: 0 | BB88: 147 | BC88: 147 | BD88: 0 | BE88: 1590.81 | BF88: 1590.812001 | BG88: -0.002000736297 | BH88: 0 | BI88: 0 | BJ88: 0 | BK88: 568982.23 | BL88: 568982.2311 | BM88: -0.00108734984
A89: 2290 | B89: Tenterden Infant School | C89: 631987.7 | D89: 631987.7028 | E89: -0.002794129075 | F89: 0 | G89: 0 | H89: 0 | I89: 631987.7 | J89: 631987.7028 | K89: -0.002794129075 | L89: 4156.92 | M89: 4156.92 | N89: 0 | O89: 627830.78 | P89: 627830.7828 | Q89: -0.002794128959 | R89: 4156.92 | S89: 4156.92 | T89: 0 | U89: 0 | V89: 0 | W89: 0 | X89: 0 | Y89: 0 | Z89: 0 | AA89: 611069.28 | AB89: 611069.2848 | AC89: -0.004831050523 | AD89: 50933.47 | AE89: 50933.47473 | AF89: -0.004727932392 | AG89: 4472 | AH89: 4471.995758 | AI89: 0.004241837972 | AJ89: 10186.69 | AK89: 10186.69495 | AL89: -0.004945586477 | AM89: 0 | AN89: 0 | AO89: 0 | AQ89: 0 | AR89: 0 | AT89: 0 | AU89: 0 | AW89: 0 | AX89: 0 | AY89: 0 | AZ89: 0 | BA89: 0 | BB89: 162 | BC89: 162 | BD89: 0 | BE89: 1590.81 | BF89: 1590.812001 | BG89: -0.002000736297 | BH89: 0 | BI89: 0 | BJ89: 0 | BK89: 631987.7 | BL89: 631987.7028 | BM89: -0.002794129075
A90: 2296 | B90: Mundella Primary School | C90: 831020.48 | D90: 831020.4766 | E90: 0.003350586514 | F90: 1856.86 | G90: 1856.863814 | H90: -0.003814429264 | I90: 832877.34 | J90: 832877.3405 | K90: -0.0004638427636 | L90: 4695.78 | M90: 4695.78 | N90: 0 | O90: 828181.56 | P90: 828181.5605 | Q90: -0.0004638426472 | R90: 4695.78 | S90: 4695.78 | T90: 0 | U90: 0 | V90: 0 | W90: 0 | X90: 1856.86 | Y90: 1856.863814 | Z90: -0.003814429264 | AA90: 832877.34 | AB90: 832877.3405 | AC90: -0.0004638427636 | AD90: 178486.44 | AE90: 178486.4357 | AF90: 0.004302188754 | AG90: 645.41 | AH90: 645.4069291 | AI90: 0.003070934337 | AJ90: 35697.29 | AK90: 35697.28714 | AL90: 0.002860437751 | AM90: 0 | AN90: 0 | AO90: 0 | AQ90: 0 | AR90: 0 | AT90: 0 | AU90: 0 | AW90: 0 | AX90: 0 | AY90: 0 | AZ90: 0 | BA90: 0 | BB90: 183 | BC90: 183 | BD90: 0 | BE90: 1590.81 | BF90: 1590.812001 | BG90: -0.002000736297 | BH90: 1856.86 | BI90: 1856.863814 | BJ90: -0.003814429264 | BK90: 832877.34 | BL90: 832877.3405 | BM90: -0.0004638427636
A91: 2298 | B91: Hawkinge Primary School | C91: 1209689.91 | D91: 1209689.905 | E91: 0.004699248821 | F91: 0 | G91: 0 | H91: 0 | I91: 1209689.91 | J91: 1209689.905 | K91: 0.004699248821 | L91: 8236.86 | M91: 8236.86 | N91: 0 | O91: 1201453.05 | P91: 1201453.045 | Q91: 0.004699249053 | R91: 8236.86 | S91: 8236.86 | T91: 0 | U91: 0 | V91: 0 | W91: 0 | X91: 0 | Y91: 0 | Z91: 0 | AA91: 1166307 | AB91: 1166307.003 | AC91: -0.003053334542 | AD91: 177166.54 | AE91: 177166.5405 | AF91: -0.0004524917749 | AG91: 685 | AH91: 685.0037864 | AI91: -0.003786425246 | AJ91: 35433.31 | AK91: 35433.30809 | AL91: 0.00190950164 | AM91: 0 | AN91: 0 | AO91: 0 | AQ91: 0 | AR91: 0 | AT91: 0 | AU91: 0 | AW91: 0 | AX91: 0 | AY91: 0 | AZ91: 0 | BA91: 0 | BB91: 321 | BC91: 321 | BD91: 0 | BE91: 1590.81 | BF91: 1590.812001 | BG91: -0.002000736297 | BH91: 0 | BI91: 0 | BJ91: 0 | BK91: 1209689.91 | BL91: 1209689.905 | BM91: 0.004699248821
A92: 2300 | B92: Sellindge Primary School | C92: 453227.22 | D92: 453227.2172 | E92: 0.002790403669 | F92: 0 | G92: 0 | H92: 0 | I92: 453227.22 | J92: 453227.2172 | K92: 0.002790403669 | L92: 2822.6 | M92: 2822.6 | N92: 0 | O92: 450404.62 | P92: 450404.6172 | Q92: 0.002790403669 | R92: 2822.6 | S92: 2822.6 | T92: 0 | U92: 0 | V92: 0 | W92: 0 | X92: 0 | Y92: 0 | Z92: 0 | AA92: 451048.08 | AB92: 451048.084 | AC92: -0.004043318389 | AD92: 20937.92 | AE92: 20937.92277 | AF92: -0.002769379684 | AG92: 5371.86 | AH92: 5371.862317 | AI92: -0.00231691861 | AJ92: 4187.58 | AK92: 4187.584554 | AL92: -0.004553875937 | AM92: 0 | AN92: 0 | AO92: 0 | AQ92: 0 | AR92: 0 | AT92: 0 | AU92: 0 | AW92: 0 | AX92: 0 | AY92: 0 | AZ92: 0 | BA92: 0 | BB92: 110 | BC92: 110 | BD92: 0 | BE92: 1590.81 | BF92: 1590.812001 | BG92: -0.002000736297 | BH92: 0 | BI92: 0 | BJ92: 0 | BK92: 453227.22 | BL92: 453227.2172 | BM92: 0.002790403669
A93: 2309 | B93: Priory Fields School | C93: 1613431.48 | D93: 1613431.477 | E93: 0.002989155008 | F93: 52136.72 | G93: 52136.7226 | H93: -0.002603871719 | I93: 1665568.2 | J93: 1665568.2 | K93: 0.0003852832597 | L93: 9673.82 | M93: 9673.82 | N93: 0 | O93: 1655894.38 | P93: 1655894.38 | Q93: 0.0003852832597 | R93: 9673.82 | S93: 9673.82 | T93: 0 | U93: 0 | V93: 0 | W93: 0 | X93: 52136.72 | Y93: 52136.7226 | Z93: -0.002603871719 | AA93: 1665568.2 | AB93: 1665568.2 | AC93: 0.0003852832597 | AD93: 387527.22 | AE93: 387527.2169 | AF93: 0.003077788744 | AG93: 0 | AH93: 0 | AI93: 0 | AJ93: 77505.44 | AK93: 77505.44338 | AL93: -0.003384442243 | AM93: 0 | AN93: 0 | AO93: 0 | AQ93: 0 | AR93: 0 | AT93: 0 | AU93: 0 | AW93: 0 | AX93: 0 | AY93: 0 | AZ93: 0 | BA93: 0 | BB93: 377 | BC93: 377 | BD93: 0 | BE93: 1590.81 | BF93: 1590.812001 | BG93: -0.002000736297 | BH93: 52136.72 | BI93: 52136.7226 | BJ93: -0.002603871719 | BK93: 1665568.2 | BL93: 1665568.2 | BM93: 0.0003852832597
A94: 2312 | B94: River Primary School | C94: 1447097.89 | D94: 1447097.893 | E94: -0.002874714555 | F94: 12716.12 | G94: 12716.12431 | H94: -0.004313095584 | I94: 1499814.02 | J94: 1499814.017 | K94: 0.002812189981 | L94: 10751.54 | M94: 10751.54 | N94: 0 | O94: 1489062.48 | P94: 1489062.477 | Q94: 0.002812189981 | R94: 10751.54 | S94: 10751.54 | T94: 0 | U94: 0 | V94: 0 | W94: 0 | X94: 12716.12 | Y94: 12716.12431 | Z94: -0.004313095584 | AA94: 1459814.02 | AB94: 1459814.017 | AC94: 0.002812189981 | AD94: 148114.34 | AE94: 148114.3395 | AF94: 0.0005204474437 | AG94: 1556.57 | AH94: 1556.569816 | AI94: 0.0001843865759 | AJ94: 29622.87 | AK94: 29622.8679 | AL94: 0.00210408949 | AM94: 3253.1 | AN94: 3253.097908 | AO94: 0.002091949983 | AQ94: 0 | AR94: 0 | AT94: 0 | AU94: 0 | AW94: 0 | AX94: 0 | AY94: 40000 | AZ94: 40000 | BA94: 0 | BB94: 419 | BC94: 419 | BD94: 0 | BE94: 1590.81 | BF94: 1590.812001 | BG94: -0.002000736297 | BH94: 12716.12 | BI94: 12716.12431 | BJ94: -0.004313095584 | BK94: 1459814.02 | BL94: 1459814.017 | BM94: 0.002812189981
A95: 2313 | B95: St Martin's School | C95: 779078.26 | D95: 779078.2625 | E95: -0.00247993716 | F95: 0 | G95: 0 | H95: 0 | I95: 779078.26 | J95: 779078.2625 | K95: -0.00247993716 | L95: 5337.28 | M95: 5337.28 | N95: 0 | O95: 773740.98 | P95: 773740.9825 | Q95: -0.00247993716 | R95: 5337.28 | S95: 5337.28 | T95: 0 | U95: 0 | V95: 0 | W95: 0 | X95: 0 | Y95: 0 | Z95: 0 | AA95: 766901.79 | AB95: 766901.7901 | AC95: -9.250442963e-05 | AD95: 77397.15 | AE95: 77397.14521 | AF95: 0.004787178885 | AG95: 3678.09 | AH95: 3678.085644 | AI95: 0.004356384633 | AJ95: 15479.43 | AK95: 15479.42904 | AL95: 0.0009574357791 | AM95: 0 | AN95: 0 | AO95: 0 | AQ95: 0 | AR95: 0 | AT95: 0 | AU95: 0 | AW95: 0 | AX95: 0 | AY95: 0 | AZ95: 0 | BA95: 0 | BB95: 208 | BC95: 208 | BD95: 0 | BE95: 1590.81 | BF95: 1590.812001 | BG95: -0.002000736297 | BH95: 0 | BI95: 0 | BJ95: 0 | BK95: 779078.26 | BL95: 779078.2625 | BM95: -0.00247993716
A96: 2318 | B96: Langdon Primary School | C96: 376369.43 | D96: 376369.4282 | E96: 0.001810334215 | F96: 0 | G96: 0 | H96: 0 | I96: 376369.43 | J96: 376369.4282 | K96: 0.001810334215 | L96: 2104.12 | M96: 2104.12 | N96: 0 | O96: 374265.31 | P96: 374265.3082 | Q96: 0.001810334215 | R96: 2104.12 | S96: 2104.12 | T96: 0 | U96: 0 | V96: 0 | W96: 0 | X96: 0 | Y96: 0 | Z96: 0 | AA96: 366616.13 | AB96: 366616.1329 | AC96: -0.002937534242 | AD96: 31271.84 | AE96: 31271.84066 | AF96: -0.0006591019228 | AG96: 5061.84 | AH96: 5061.84478 | AI96: -0.004780226942 | AJ96: 6254.37 | AK96: 6254.368132 | AL96: 0.001868179615 | AM96: 0 | AN96: 0 | AO96: 0 | AQ96: 0 | AR96: 0 | AT96: 0 | AU96: 0 | AW96: 0 | AX96: 0 | AY96: 0 | AZ96: 0 | BA96: 0 | BB96: 82 | BC96: 82 | BD96: 0 | BE96: 1590.81 | BF96: 1590.812001 | BG96: -0.002000736297 | BH96: 0 | BI96: 0 | BJ96: 0 | BK96: 376369.43 | BL96: 376369.4282 | BM96: 0.001810334215
A97: 2320 | B97: Eythorne Elvington Community Primary School | C97: 438114.34 | D97: 438114.3356 | E97: 0.004412927141 | F97: 0 | G97: 0 | H97: 0 | I97: 438114.34 | J97: 438114.3356 | K97: 0.004412927141 | L97: 2027.14 | M97: 2027.14 | N97: 0 | O97: 436087.2 | P97: 436087.1956 | Q97: 0.004412927141 | R97: 2027.14 | S97: 2027.14 | T97: 0 | U97: 0 | V97: 0 | W97: 0 | X97: 0 | Y97: 0 | Z97: 0 | AA97: 425252.38 | AB97: 425252.3752 | AC97: 0.004800825263 | AD97: 80941.32 | AE97: 80941.31689 | AF97: 0.003108876583 | AG97: 3571.76 | AH97: 3571.760493 | AI97: -0.0004932662973 | AJ97: 16188.26 | AK97: 16188.26338 | AL97: -0.003378224685 | AM97: 0 | AN97: 0 | AO97: 0 | AQ97: 0 | AR97: 0 | AT97: 0 | AU97: 0 | AW97: 0 | AX97: 0 | AY97: 0 | AZ97: 0 | BA97: 0 | BB97: 79 | BC97: 79 | BD97: 0 | BE97: 1590.81 | BF97: 1590.812001 | BG97: -0.002000736297 | BH97: 0 | BI97: 0 | BJ97: 0 | BK97: 438114.34 | BL97: 438114.3356 | BM97: 0.004412927141
A98: 2321 | B98: Lydden Primary School | C98: 363969.27 | D98: 363969.2651 | E98: 0.004855330801 | F98: 0 | G98: 0 | H98: 0 | I98: 363969.27 | J98: 363969.2651 | K98: 0.004855330801 | L98: 2104.12 | M98: 2104.12 | N98: 0 | O98: 361865.15 | P98: 361865.1451 | Q98: 0.004855330801 | R98: 2104.12 | S98: 2104.12 | T98: 0 | U98: 0 | V98: 0 | W98: 0 | X98: 0 | Y98: 0 | Z98: 0 | AA98: 357023.68 | AB98: 357023.6813 | AC98: -0.001320375537 | AD98: 20780.41 | AE98: 20780.41434 | AF98: -0.004340417207 | AG98: 5376.59 | AH98: 5376.58757 | AI98: 0.002430212517 | AJ98: 4156.08 | AK98: 4156.082868 | AL98: -0.002868083441 | AM98: 0 | AN98: 0 | AO98: 0 | AQ98: 0 | AR98: 0 | AT98: 0 | AU98: 0 | AW98: 0 | AX98: 0 | AY98: 0 | AZ98: 0 | BA98: 0 | BB98: 82 | BC98: 82 | BD98: 0 | BE98: 1590.81 | BF98: 1590.812001 | BG98: -0.002000736297 | BH98: 0 | BI98: 0 | BJ98: 0 | BK98: 363969.27 | BL98: 363969.2651 | BM98: 0.004855330801
A99: 2322 | B99: Preston Primary School | C99: 492990.01 | D99: 492990.0063 | E99: 0.003716161009 | F99: 0 | G99: 0 | H99: 0 | I99: 492990.01 | J99: 492990.0063 | K99: 0.003716161009 | L99: 3156.18 | M99: 3156.18 | N99: 0 | O99: 489833.83 | P99: 489833.8263 | Q99: 0.003716161009 | R99: 3156.18 | S99: 3156.18 | T99: 0 | U99: 0 | V99: 0 | W99: 0 | X99: 0 | Y99: 0 | Z99: 0 | AA99: 482254.79 | AB99: 482254.7932 | AC99: -0.003164713155 | AD99: 35714.71 | AE99: 35714.71336 | AF99: -0.003358990121 | AG99: 4928.56 | AH99: 4928.558599 | AI99: 0.001400769704 | AJ99: 7142.94 | AK99: 7142.942672 | AL99: -0.002671798024 | AM99: 0 | AN99: 0 | AO99: 0 | AQ99: 0 | AR99: 0 | AT99: 0 | AU99: 0 | AW99: 0 | AX99: 0 | AY99: 0 | AZ99: 0 | BA99: 0 | BB99: 123 | BC99: 123 | BD99: 0 | BE99: 1590.81 | BF99: 1590.812001 | BG99: -0.002000736297 | BH99: 0 | BI99: 0 | BJ99: 0 | BK99: 492990.01 | BL99: 492990.0063 | BM99: 0.003716161009
A100: 2326 | B100: Wingham Primary School | C100: 763981.59 | D100: 763981.5861 | E100: 0.003889431711 | F100: 0 | G100: 0 | H100: 0 | I100: 763981.59 | J100: 763981.5861 | K100: 0.003889431711 | L100: 5439.92 | M100: 5439.92 | N100: 0 | O100: 758541.67 | P100: 758541.6661 | Q100: 0.003889431828 | R100: 5439.92 | S100: 5439.92 | T100: 0 | U100: 0 | V100: 0 | W100: 0 | X100: 0 | Y100: 0 | Z100: 0 | AA100: 747737.43 | AB100: 747737.4302 | AC100: -0.0001557415817 | AD100: 39091.45 | AE100: 39091.44561 | AF100: 0.004389253474 | AG100: 4827.26 | AH100: 4827.256632 | AI100: 0.003368322396 | AJ100: 7818.29 | AK100: 7818.289122 | AL100: 0.0008778506954 | AM100: 0 | AN100: 0 | AO100: 0 | AQ100: 0 | AR100: 0 | AT100: 0 | AU100: 0 | AW100: 0 | AX100: 0 | AY100: 0 | AZ100: 0 | BA100: 0 | BB100: 212 | BC100: 212 | BD100: 0 | BE100: 1590.81 | BF100: 1590.812001 | BG100: -0.002000736297 | BH100: 0 | BI100: 0 | BJ100: 0 | BK100: 763981.59 | BL100: 763981.5861 | BM100: 0.003889431711
A101: 2327 | B101: Worth Primary School | C101: 322264.88 | D101: 322264.8813 | E101: -0.001251703769 | F101: 0 | G101: 0 | H101: 0 | I101: 322264.88 | J101: 322264.8813 | K101: -0.001251703769 | L101: 1565.26 | M101: 1565.26 | N101: 0 | O101: 320699.62 | P101: 320699.6213 | Q101: -0.001251703769 | R101: 1565.26 | S101: 1565.26 | T101: 0 | U101: 0 | V101: 0 | W101: 0 | X101: 0 | Y101: 0 | Z101: 0 | AA101: 313668.22 | AB101: 313668.2198 | AC101: 0.0001796938013 | AD101: 37126.69 | AE101: 37126.69439 | AF101: -0.004394535921 | AG101: 4886.2 | AH101: 4886.199168 | AI101: 0.0008318360769 | AJ101: 7425.34 | AK101: 7425.338879 | AL101: 0.001121092815 | AM101: 0 | AN101: 0 | AO101: 0 | AQ101: 0 | AR101: 0 | AT101: 0 | AU101: 0 | AW101: 0 | AX101: 0 | AY101: 0 | AZ101: 0 | BA101: 0 | BB101: 61 | BC101: 61 | BD101: 0 | BE101: 1590.81 | BF101: 1590.812001 | BG101: -0.002000736297 | BH101: 0 | BI101: 0 | BJ101: 0 | BK101: 322264.88 | BL101: 322264.8813 | BM101: -0.001251703769
A102: 2328 | B102: St Mildred's Primary Infant School | C102: 1000028.91 | D102: 1000028.91 | E102: -0.0003224341199 | F102: 0 | G102: 0 | H102: 0 | I102: 1000028.91 | J102: 1000028.91 | K102: -0.0003224341199 | L102: 6928.2 | M102: 6928.2 | N102: 0 | O102: 993100.71 | P102: 993100.7103 | Q102: -0.0003224342363 | R102: 6928.2 | S102: 6928.2 | T102: 0 | U102: 0 | V102: 0 | W102: 0 | X102: 0 | Y102: 0 | Z102: 0 | AA102: 938711.2 | AB102: 938711.2022 | AC102: -0.002241558046 | AD102: 126139 | AE102: 126139.0023 | AF102: -0.002305174246 | AG102: 2215.83 | AH102: 2215.829931 | AI102: 6.915522727e-05 | AJ102: 25227.8 | AK102: 25227.80046 | AL102: -0.0004610348515 | AM102: 0 | AN102: 0 | AO102: 0 | AQ102: 0 | AR102: 0 | AT102: 0 | AU102: 0 | AW102: 0 | AX102: 0 | AY102: 0 | AZ102: 0 | BA102: 0 | BB102: 270 | BC102: 270 | BD102: 0 | BE102: 1590.81 | BF102: 1590.812001 | BG102: -0.002000736297 | BH102: 0 | BI102: 0 | BJ102: 0 | BK102: 1000028.91 | BL102: 1000028.91 | BM102: -0.0003224341199
A103: 2329 | B103: Callis Grange Nursery & Infant School | C103: 1191120.24 | D103: 1191120.242 | E103: -0.00241144537 | F103: 0 | G103: 0 | H103: 0 | I103: 1191120.24 | J103: 1191120.242 | K103: -0.00241144537 | L103: 7698 | M103: 7698 | N103: 0 | O103: 1183422.24 | P103: 1183422.242 | Q103: -0.00241144537 | R103: 7698 | S103: 7698 | T103: 0 | U103: 4.83 | V103: 4.83 | W103: 0 | X103: 0 | Y103: 0 | Z103: 0 | AA103: 1144775.62 | AB103: 1144775.618 | AC103: 0.001903282478 | AD103: 205458.24 | AE103: 205458.2367 | AF103: 0.003312311921 | AG103: 0 | AH103: 0 | AI103: 0 | AJ103: 41091.65 | AK103: 41091.64734 | AL103: 0.002662462386 | AM103: 0 | AN103: 0 | AO103: 0 | AQ103: 0 | AR103: 0 | AT103: 0 | AU103: 0 | AW103: 0 | AX103: 0 | AY103: 0 | AZ103: 0 | BA103: 0 | BB103: 300 | BC103: 300 | BD103: 0 | BE103: 1590.81 | BF103: 1590.812001 | BG103: -0.002000736297 | BH103: 0 | BI103: 0 | BJ103: 0 | BK103: 1191120.24 | BL103: 1191120.242 | BM103: -0.00241144537
A104: 2337 | B104: St Crispin's Community Primary Infant School | C104: 1021835.38 | D104: 1021835.378 | E104: 0.002215869608 | F104: 0 | G104: 0 | H104: 0 | I104: 1021835.38 | J104: 1021835.378 | K104: 0.002215869608 | L104: 7005.18 | M104: 7005.18 | N104: 0 | O104: 1014830.2 | P104: 1014830.198 | Q104: 0.002215869608 | R104: 7005.18 | S104: 7005.18 | T104: 0 | U104: 0 | V104: 0 | W104: 0 | X104: 0 | Y104: 0 | Z104: 0 | AA104: 979232.36 | AB104: 979232.3614 | AC104: -0.00140042475 | AD104: 135568.25 | AE104: 135568.2466 | AF104: 0.003403260169 | AG104: 1932.95 | AH104: 1932.952602 | AI104: -0.002602097805 | AJ104: 27113.65 | AK104: 27113.64932 | AL104: 0.000680652036 | AM104: 0 | AN104: 0 | AO104: 0 | AQ104: 0 | AR104: 0 | AT104: 0 | AU104: 0 | AW104: 0 | AX104: 0 | AY104: 0 | AZ104: 0 | BA104: 0 | BB104: 273 | BC104: 273 | BD104: 0 | BE104: 1590.81 | BF104: 1590.812001 | BG104: -0.002000736297 | BH104: 0 | BI104: 0 | BJ104: 0 | BK104: 1021835.38 | BL104: 1021835.378 | BM104: 0.002215869608
A105: 2340 | B105: Ellington Infant School | C105: 1087328.85 | D105: 1087328.855 | E105: -0.004702936858 | F105: 0 | G105: 0 | H105: 0 | I105: 1087328.85 | J105: 1087328.855 | K105: -0.004702936858 | L105: 6979.52 | M105: 6979.52 | N105: 0 | O105: 1080349.33 | P105: 1080349.335 | Q105: -0.004702936858 | R105: 6979.52 | S105: 6979.52 | T105: 0 | U105: 0 | V105: 0 | W105: 0 | X105: 0 | Y105: 0 | Z105: 0 | AA105: 1042339.86 | AB105: 1042339.862 | AC105: -0.001558437012 | AD105: 188063.32 | AE105: 188063.3178 | AF105: 0.002167480008 | AG105: 358.1 | AH105: 358.100465 | AI105: -0.0004650244003 | AJ105: 37612.66 | AK105: 37612.66357 | AL105: -0.003566503998 | AM105: 0 | AN105: 0 | AO105: 0 | AQ105: 0 | AR105: 0 | AT105: 0 | AU105: 0 | AW105: 0 | AX105: 0 | AY105: 0 | AZ105: 0 | BA105: 0 | BB105: 272 | BC105: 272 | BD105: 0 | BE105: 1590.81 | BF105: 1590.812001 | BG105: -0.002000736297 | BH105: 0 | BI105: 0 | BJ105: 0 | BK105: 1087328.85 | BL105: 1087328.855 | BM105: -0.004702936858
A106: 2345 | B106: Priory Infant School | C106: 802106.23 | D106: 802106.2316 | E106: -0.001570198569 | F106: 28212.49 | G106: 28212.4865 | H106: 0.003497977636 | I106: 830318.72 | J106: 830318.7181 | K106: 0.001927779056 | L106: 4721.44 | M106: 4721.44 | N106: 0 | O106: 825597.28 | P106: 825597.2781 | Q106: 0.001927779056 | R106: 4721.44 | S106: 4721.44 | T106: 0 | U106: 0 | V106: 0 | W106: 0 | X106: 28212.49 | Y106: 28212.4865 | Z106: 0.003497977636 | AA106: 830318.72 | AB106: 830318.7181 | AC106: 0.001927779056 | AD106: 135841.98 | AE106: 135841.9754 | AF106: 0.00462291349 | AG106: 1924.74 | AH106: 1924.740739 | AI106: -0.0007386874047 | AJ106: 27168.4 | AK106: 27168.39508 | AL106: 0.004924582696 | AM106: 0 | AN106: 0 | AO106: 0 | AQ106: 0 | AR106: 0 | AT106: 0 | AU106: 0 | AW106: 0 | AX106: 0 | AY106: 0 | AZ106: 0 | BA106: 0 | BB106: 184 | BC106: 184 | BD106: 0 | BE106: 1590.81 | BF106: 1590.812001 | BG106: -0.002000736297 | BH106: 28212.49 | BI106: 28212.4865 | BJ106: 0.003497977636 | BK106: 830318.72 | BL106: 830318.7181 | BM106: 0.001927779056
A107: 2431 | B107: Shears Green Junior School | C107: 1697693.97 | D107: 1697693.967 | E107: 0.002869836753 | F107: 15817.45 | G107: 15817.4507 | H107: -0.0006951733485 | I107: 1713511.42 | J107: 1713511.418 | K107: 0.002174663357 | L107: 12188.5 | M107: 12188.5 | N107: 0 | O107: 1701322.92 | P107: 1701322.918 | Q107: 0.002174663357 | R107: 12188.5 | S107: 12188.5 | T107: 0 | U107: 0 | V107: 0 | W107: 0 | X107: 15817.45 | Y107: 15817.4507 | Z107: -0.0006951733485 | AA107: 1713511.42 | AB107: 1713511.418 | AC107: 0.002174663357 | AD107: 243292.45 | AE107: 243292.4473 | AF107: 0.002699686389 | AG107: 0 | AH107: 0 | AI107: 0 | AJ107: 48658.49 | AK107: 48658.48946 | AL107: 0.0005399372749 | AM107: 0 | AN107: 0 | AO107: 0 | AQ107: 0 | AR107: 0 | AT107: 0 | AU107: 0 | AW107: 0 | AX107: 0 | AY107: 0 | AZ107: 0 | BA107: 0 | BB107: 475 | BC107: 475 | BD107: 0 | BE107: 1590.81 | BF107: 1590.812001 | BG107: -0.002000736297 | BH107: 15817.45 | BI107: 15817.4507 | BJ107: -0.0006951733485 | BK107: 1713511.42 | BL107: 1713511.418 | BM107: 0.002174663357
A108: 2434 | B108: West Minster Primary School | C108: 1662965.56 | D108: 1662965.557 | E108: 0.002735609189 | F108: 64630.62 | G108: 64630.61638 | H108: 0.003616923357 | I108: 1727596.17 | J108: 1727596.174 | K108: -0.003647467587 | L108: 10469.28 | M108: 10469.28 | N108: 0 | O108: 1717126.89 | P108: 1717126.894 | Q108: -0.003647467587 | R108: 10469.28 | S108: 10469.28 | T108: 0 | U108: 5.26 | V108: 5.26 | W108: 0 | X108: 64630.62 | Y108: 64630.61638 | Z108: 0.003616923357 | AA108: 1727596.17 | AB108: 1727596.174 | AC108: -0.003647467587 | AD108: 326855.3 | AE108: 326855.3022 | AF108: -0.00216355361 | AG108: 0 | AH108: 0 | AI108: 0 | AJ108: 65371.06 | AK108: 65371.06043 | AL108: -0.0004327107235 | AM108: 0 | AN108: 0 | AO108: 0 | AQ108: 0 | AR108: 0 | AT108: 0 | AU108: 0 | AW108: 0 | AX108: 0 | AY108: 0 | AZ108: 0 | BA108: 0 | BB108: 408 | BC108: 408 | BD108: 0 | BE108: 1590.81 | BF108: 1590.812001 | BG108: -0.002000736297 | BH108: 64630.62 | BI108: 64630.61638 | BJ108: 0.003616923357 | BK108: 1727596.17 | BL108: 1727596.174 | BM108: -0.003647467587
A109: 2444 | B109: Riverview Junior School | C109: 1692189.68 | D109: 1692189.683 | E109: -0.003306106897 | F109: 0 | G109: 0 | H109: 0 | I109: 1692189.68 | J109: 1692189.683 | K109: -0.003306106897 | L109: 12547.74 | M109: 12547.74 | N109: 0 | O109: 1679641.94 | P109: 1679641.943 | Q109: -0.003306106897 | R109: 12547.74 | S109: 12547.74 | T109: 0 | U109: 0 | V109: 0 | W109: 0 | X109: 0 | Y109: 0 | Z109: 0 | AA109: 1691124.82 | AB109: 1691124.824 | AC109: -0.003819949459 | AD109: 207644.28 | AE109: 207644.2831 | AF109: -0.003119387664 | AG109: 0 | AH109: 0 | AI109: 0 | AJ109: 41528.86 | AK109: 41528.85662 | AL109: 0.003376122469 | AM109: 0 | AN109: 0 | AO109: 0 | AQ109: 0 | AR109: 0 | AT109: 0 | AU109: 0 | AW109: 0 | AX109: 0 | AY109: 0 | AZ109: 0 | BA109: 0 | BB109: 489 | BC109: 489 | BD109: 0 | BE109: 1590.81 | BF109: 1590.812001 | BG109: -0.002000736297 | BH109: 0 | BI109: 0 | BJ109: 0 | BK109: 1692189.68 | BL109: 1692189.683 | BM109: -0.003306106897
A110: 2453 | B110: Woodlands Junior School | C110: 1272072.26 | D110: 1272072.262 | E110: -0.002112900373 | F110: 5557.06 | G110: 5557.059436 | H110: 0.0005643153008 | I110: 1277629.32 | J110: 1277629.322 | K110: -0.001548585016 | L110: 9802.12 | M110: 9802.12 | N110: 0 | O110: 1267827.2 | P110: 1267827.202 | Q110: -0.001548585016 | R110: 9802.12 | S110: 9802.12 | T110: 0 | U110: 0 | V110: 0 | W110: 0 | X110: 5557.06 | Y110: 5557.059436 | Z110: 0.0005643153008 | AA110: 1277629.32 | AB110: 1277629.322 | AC110: -0.001548585016 | AD110: 78565.84 | AE110: 78565.84229 | AF110: -0.002293469661 | AG110: 3643.02 | AH110: 3643.024731 | AI110: -0.004731195911 | AJ110: 15713.17 | AK110: 15713.16846 | AL110: 0.001541306068 | AM110: 0 | AN110: 0 | AO110: 0 | AQ110: 0 | AR110: 0 | AT110: 0 | AU110: 0 | AW110: 0 | AX110: 0 | AY110: 0 | AZ110: 0 | BA110: 0 | BB110: 382 | BC110: 382 | BD110: 0 | BE110: 1590.81 | BF110: 1590.812001 | BG110: -0.002000736297 | BH110: 5557.06 | BI110: 5557.059436 | BJ110: 0.0005643153008 | BK110: 1277629.32 | BL110: 1277629.322 | BM110: -0.001548585016
A111: 2454 | B111: Aycliffe Community Primary School | C111: 600970.44 | D111: 600970.4428 | E111: -0.002811023267 | F111: 4163.68 | G111: 4163.678121 | H111: 0.00187931845 | I111: 605134.12 | J111: 605134.1209 | K111: -0.0009317047661 | L111: 3156.18 | M111: 3156.18 | N111: 0 | O111: 601977.94 | P111: 601977.9409 | Q111: -0.0009317047661 | R111: 3156.18 | S111: 3156.18 | T111: 0 | U111: 0 | V111: 0 | W111: 0 | X111: 4163.68 | Y111: 4163.678121 | Z111: 0.00187931845 | AA111: 605134.12 | AB111: 605134.1209 | AC111: -0.0009317047661 | AD111: 121027.05 | AE111: 121027.0518 | AF111: -0.001752482858 | AG111: 2369.19 | AH111: 2369.188447 | AI111: 0.001552574486 | AJ111: 24205.41 | AK111: 24205.41035 | AL111: -0.0003504965716 | AM111: 0 | AN111: 0 | AO111: 0 | AQ111: 0 | AR111: 0 | AT111: 0 | AU111: 0 | AW111: 0 | AX111: 0 | AY111: 0 | AZ111: 0 | BA111: 0 | BB111: 123 | BC111: 123 | BD111: 0 | BE111: 1590.81 | BF111: 1590.812001 | BG111: -0.002000736297 | BH111: 4163.68 | BI111: 4163.678121 | BJ111: 0.00187931845 | BK111: 605134.12 | BL111: 605134.1209 | BM111: -0.0009317047661
A112: 2458 | B112: Istead Rise Primary School | C112: 1021592.45 | D112: 1021592.447 | E112: 0.003287944361 | F112: 0 | G112: 0 | H112: 0 | I112: 1021592.45 | J112: 1021592.447 | K112: 0.003287944361 | L112: 7030.84 | M112: 7030.84 | N112: 0 | O112: 1014561.61 | P112: 1014561.607 | Q112: 0.003287944361 | R112: 7030.84 | S112: 7030.84 | T112: 0 | U112: 0 | V112: 0 | W112: 0 | X112: 0 | Y112: 0 | Z112: 0 | AA112: 1009667.59 | AB112: 1009667.591 | AC112: -0.0008118111873 | AD112: 133790.71 | AE112: 133790.7116 | AF112: -0.001631689229 | AG112: 1986.28 | AH112: 1986.278651 | AI112: 0.001348950677 | AJ112: 26758.14 | AK112: 26758.14233 | AL112: -0.002326337846 | AM112: 0 | AN112: 0 | AO112: 0 | AQ112: 0 | AR112: 0 | AT112: 0 | AU112: 0 | AW112: 0 | AX112: 0 | AY112: 0 | AZ112: 0 | BA112: 0 | BB112: 274 | BC112: 274 | BD112: 0 | BE112: 1590.81 | BF112: 1590.812001 | BG112: -0.002000736297 | BH112: 0 | BI112: 0 | BJ112: 0 | BK112: 1021592.45 | BL112: 1021592.447 | BM112: 0.003287944361
A113: 2459 | B113: Riverhead Infant School | C113: 943002.33 | D113: 943002.3312 | E113: -0.00122699549 | F113: 0 | G113: 0 | H113: 0 | I113: 943002.33 | J113: 943002.3312 | K113: -0.00122699549 | L113: 7015.16 | M113: 7015.162988 | N113: -0.002988461641 | O113: 935987.17 | P113: 935987.1682 | Q113: 0.001761466265 | R113: 7015.16 | S113: 7015.162988 | T113: -0.002988461641 | U113: 0 | V113: 0 | W113: 0 | X113: 0 | Y113: 0 | Z113: 0 | AA113: 928702.6 | AB113: 928702.5977 | AC113: 0.002305491478 | AD113: 44086.33 | AE113: 44086.33112 | AF113: -0.001118041022 | AG113: 4677.41 | AH113: 4677.410066 | AI113: -6.645876965e-05 | AJ113: 8817.27 | AK113: 8817.266224 | AL113: 0.003776391795 | AM113: 0 | AN113: 0 | AO113: 0 | AQ113: 0 | AR113: 0 | AT113: 0 | AU113: 0 | AW113: 0 | AX113: 0 | AY113: 0 | AZ113: 0 | BA113: 0 | BB113: 269 | BC113: 269 | BD113: 0 | BE113: 1590.81 | BF113: 1590.812001 | BG113: -0.002000736297 | BH113: 0 | BI113: 0 | BJ113: 0 | BK113: 943002.33 | BL113: 943002.3312 | BM113: -0.00122699549
A114: 2462 | B114: Riverview Infant School | C114: 1345618.96 | D114: 1345618.956 | E114: 0.004488355247 | F114: 0 | G114: 0 | H114: 0 | I114: 1345618.96 | J114: 1345618.956 | K114: 0.004488355247 | L114: 9263.26 | M114: 9263.26 | N114: 0 | O114: 1336355.7 | P114: 1336355.696 | Q114: 0.004488355247 | R114: 9263.26 | S114: 9263.26 | T114: 0 | U114: 0 | V114: 0 | W114: 0 | X114: 0 | Y114: 0 | Z114: 0 | AA114: 1274442.63 | AB114: 1274442.63 | AC114: 0.000369482208 | AD114: 218402.47 | AE114: 218402.4711 | AF114: -0.001070321567 | AG114: 0 | AH114: 0 | AI114: 0 | AJ114: 43680.49 | AK114: 43680.49421 | AL114: -0.004214064313 | AM114: 0 | AN114: 0 | AO114: 0 | AQ114: 0 | AR114: 0 | AT114: 0 | AU114: 0 | AW114: 0 | AX114: 0 | AY114: 0 | AZ114: 0 | BA114: 0 | BB114: 361 | BC114: 361 | BD114: 0 | BE114: 1590.81 | BF114: 1590.812001 | BG114: -0.002000736297 | BH114: 0 | BI114: 0 | BJ114: 0 | BK114: 1345618.96 | BL114: 1345618.956 | BM114: 0.004488355247
A115: 2463 | B115: Minterne Community Junior School | C115: 1247263.19 | D115: 1247263.191 | E115: -0.001343893819 | F115: 0 | G115: 0 | H115: 0 | I115: 1527263.19 | J115: 1527263.191 | K115: -0.001343893819 | L115: 9314.58 | M115: 9314.58 | N115: 0 | O115: 1517948.61 | P115: 1517948.611 | Q115: -0.001343893586 | R115: 9314.58 | S115: 9314.58 | T115: 0 | U115: 0 | V115: 0 | W115: 0 | X115: 0 | Y115: 0 | Z115: 0 | AA115: 1244216.96 | AB115: 1244216.963 | AC115: -0.002862730995 | AD115: 112738.68 | AE115: 112738.679 | AF115: 0.0009767570591 | AG115: 2617.84 | AH115: 2617.839629 | AI115: 0.000370697288 | AJ115: 22547.74 | AK115: 22547.7358 | AL115: 0.004195351416 | AM115: 1868.75 | AN115: 1868.747482 | AO115: 0.002517715107 | AQ115: 0 | AR115: 0 | AT115: 0 | AU115: 0 | AW115: 0 | AX115: 0 | AY115: 280000 | AZ115: 280000 | BA115: 0 | BB115: 363 | BC115: 363 | BD115: 0 | BE115: 1590.81 | BF115: 1590.812001 | BG115: -0.002000736297 | BH115: 0 | BI115: 0 | BJ115: 0 | BK115: 1247263.19 | BL115: 1247263.191 | BM115: -0.001343893819
A116: 2465 | B116: Claremont Primary School | C116: 1578764.21 | D116: 1578764.212 | E116: -0.001869453117 | F116: 0 | G116: 0 | H116: 0 | I116: 1578764.21 | J116: 1578764.212 | K116: -0.001869453117 | L116: 12650.38 | M116: 12650.38 | N116: 0 | O116: 1566113.83 | P116: 1566113.832 | Q116: -0.001869453117 | R116: 12650.38 | S116: 12650.38 | T116: 0 | U116: 0 | V116: 0 | W116: 0 | X116: 0 | Y116: 0 | Z116: 0 | AA116: 1538310.26 | AB116: 1538310.26 | AC116: 0.0003434140235 | AD116: 94165.01 | AE116: 94165.00856 | AF116: 0.001440366512 | AG116: 3175.05 | AH116: 3175.049743 | AI116: 0.0002567890047 | AJ116: 18833 | AK116: 18833.00171 | AL116: -0.001711926696 | AM116: 0 | AN116: 0 | AO116: 0 | AQ116: 0 | AR116: 0 | AT116: 0 | AU116: 0 | AW116: 0 | AX116: 0 | AY116: 0 | AZ116: 0 | BA116: 0 | BB116: 493 | BC116: 493 | BD116: 0 | BE116: 1590.81 | BF116: 1590.812001 | BG116: -0.002000736297 | BH116: 0 | BI116: 0 | BJ116: 0 | BK116: 1578764.21 | BL116: 1578764.212 | BM116: -0.001869453117
A117: 2471 | B117: Whitfield and Aspen School | C117: 1445805.79 | D117: 1445805.786 | E117: 0.003687626915 | F117: 13855.47 | G117: 13855.47226 | H117: -0.002255737987 | I117: 1459661.26 | J117: 1459661.259 | K117: 0.001431888901 | L117: 9545.52 | M117: 9545.52 | N117: 0 | O117: 1450115.74 | P117: 1450115.739 | Q117: 0.001431888901 | R117: 9545.52 | S117: 9545.52 | T117: 0 | U117: 0 | V117: 0 | W117: 0 | X117: 13855.47 | Y117: 13855.47226 | Z117: -0.002255737987 | AA117: 1459661.26 | AB117: 1459661.259 | AC117: 0.001431888901 | AD117: 250542.41 | AE117: 250542.4056 | AF117: 0.004430725327 | AG117: 0 | AH117: 0 | AI117: 0 | AJ117: 50108.48 | AK117: 50108.48111 | AL117: -0.001113854931 | AM117: 0 | AN117: 0 | AO117: 0 | AQ117: 0 | AR117: 0 | AT117: 0 | AU117: 0 | AW117: 0 | AX117: 0 | AY117: 0 | AZ117: 0 | BA117: 0 | BB117: 372 | BC117: 372 | BD117: 0 | BE117: 1590.81 | BF117: 1590.812001 | BG117: -0.002000736297 | BH117: 13855.47 | BI117: 13855.47226 | BJ117: -0.002255737987 | BK117: 1459661.26 | BL117: 1459661.259 | BM117: 0.001431888901
A118: 2474 | B118: St Paul's Infant School | C118: 952327.62 | D118: 952327.6194 | E118: 0.0005936292 | F118: 0 | G118: 0 | H118: 0 | I118: 952327.62 | J118: 952327.6194 | K118: 0.0005936292 | L118: 6030.1 | M118: 6030.1 | N118: 0 | O118: 946297.52 | P118: 946297.5194 | Q118: 0.0005936292 | R118: 6030.1 | S118: 6030.1 | T118: 0 | U118: 0 | V118: 0 | W118: 0 | X118: 0 | Y118: 0 | Z118: 0 | AA118: 897172.05 | AB118: 897172.0461 | AC118: 0.003923491109 | AD118: 174908.81 | AE118: 174908.8072 | AF118: 0.002776021836 | AG118: 752.74 | AH118: 752.7357833 | AI118: 0.004216719344 | AJ118: 34981.76 | AK118: 34981.76144 | AL118: -0.001444795627 | AM118: 0 | AN118: 0 | AO118: 0 | AQ118: 0 | AR118: 0 | AT118: 0 | AU118: 0 | AW118: 0 | AX118: 0 | AY118: 0 | AZ118: 0 | BA118: 0 | BB118: 235 | BC118: 235 | BD118: 0 | BE118: 1590.81 | BF118: 1590.812001 | BG118: -0.002000736297 | BH118: 0 | BI118: 0 | BJ118: 0 | BK118: 952327.62 | BL118: 952327.6194 | BM118: 0.0005936292
A119: 2482 | B119: Langton Green Primary School | C119: 919604.9 | D119: 919604.9012 | E119: -0.001163373236 | F119: 0 | G119: 0 | H119: 0 | I119: 919604.9 | J119: 919604.9012 | K119: -0.001163373236 | L119: 7005.18 | M119: 7005.18 | N119: 0 | O119: 912599.72 | P119: 912599.7212 | Q119: -0.001163373236 | R119: 7005.18 | S119: 7005.18 | T119: 0 | U119: 0 | V119: 0 | W119: 0 | X119: 0 | Y119: 0 | Z119: 0 | AA119: 903099.48 | AB119: 903099.4783 | AC119: 0.001682986971 | AD119: 45816.98 | AE119: 45816.98051 | AF119: -0.0005095853558 | AG119: 4625.49 | AH119: 4625.490585 | AI119: -0.0005847124394 | AJ119: 9163.4 | AK119: 9163.396102 | AL119: 0.003898082929 | AM119: 0 | AN119: 0 | AO119: 0 | AQ119: 0 | AR119: 0 | AT119: 0 | AU119: 0 | AW119: 0 | AX119: 0 | AY119: 0 | AZ119: 0 | BA119: 0 | BB119: 273 | BC119: 273 | BD119: 0 | BE119: 1590.81 | BF119: 1590.812001 | BG119: -0.002000736297 | BH119: 0 | BI119: 0 | BJ119: 0 | BK119: 919604.9 | BL119: 919604.9012 | BM119: -0.001163373236
A120: 2484 | B120: Woodlands Infant School | C120: 951438.45 | D120: 951438.4542 | E120: -0.004178591655 | F120: 0 | G120: 0 | H120: 0 | I120: 951438.45 | J120: 951438.4542 | K120: -0.004178591655 | L120: 6928.2 | M120: 6928.2 | N120: 0 | O120: 944510.25 | P120: 944510.2542 | Q120: -0.004178591655 | R120: 6928.2 | S120: 6928.2 | T120: 0 | U120: 0 | V120: 0 | W120: 0 | X120: 0 | Y120: 0 | Z120: 0 | AA120: 945139.64 | AB120: 945139.6395 | AC120: 0.0005374917528 | AD120: 70909.05 | AE120: 70909.04856 | AF120: 0.001444667738 | AG120: 3872.73 | AH120: 3872.728543 | AI120: 0.001456659968 | AJ120: 14181.81 | AK120: 14181.80971 | AL120: 0.0002889335465 | AM120: 0 | AN120: 0 | AO120: 0 | AQ120: 0 | AR120: 0 | AT120: 0 | AU120: 0 | AW120: 0 | AX120: 0 | AY120: 0 | AZ120: 0 | BA120: 0 | BB120: 270 | BC120: 270 | BD120: 0 | BE120: 1590.81 | BF120: 1590.812001 | BG120: -0.002000736297 | BH120: 0 | BI120: 0 | BJ120: 0 | BK120: 951438.45 | BL120: 951438.4542 | BM120: -0.004178591655
A121: 2490 | B121: Bishops Down Primary School | C121: 1092306.96 | D121: 1092306.962 | E121: -0.001960394206 | F121: 0 | G121: 0 | H121: 0 | I121: 1152306.96 | J121: 1152306.962 | K121: -0.001960394206 | L121: 7954.6 | M121: 7954.6 | N121: 0 | O121: 1144352.36 | P121: 1144352.362 | Q121: -0.001960393973 | R121: 7954.6 | S121: 7954.6 | T121: 0 | U121: 4.8 | V121: 4.8 | W121: 0 | X121: 0 | Y121: 0 | Z121: 0 | AA121: 1024290.88 | AB121: 1024290.884 | AC121: -0.003741899505 | AD121: 111220.02 | AE121: 111220.0199 | AF121: 6.007099e-05 | AG121: 2663.4 | AH121: 2663.399402 | AI121: 0.0005981978702 | AJ121: 22244 | AK121: 22244.00399 | AL121: -0.003987985801 | AM121: 11432.33 | AN121: 11432.3273 | AO121: 0.002696867528 | AQ121: 0 | AR121: 0 | AT121: 0 | AU121: 0 | AW121: 0 | AX121: 0 | AY121: 60000 | AZ121: 60000 | BA121: 0 | BB121: 310 | BC121: 310 | BD121: 0 | BE121: 1590.81 | BF121: 1590.812001 | BG121: -0.002000736297 | BH121: 0 | BI121: 0 | BJ121: 0 | BK121: 1092306.96 | BL121: 1092306.962 | BM121: -0.001960394206
A122: 2491 | B122: Madginford Park Junior School | C122: 1271327.49 | D122: 1271327.485 | E122: 0.004661822459 | F122: 0 | G122: 0 | H122: 0 | I122: 1271327.49 | J122: 1271327.485 | K122: 0.004661822459 | L122: 9725.14 | M122: 9725.14 | N122: 0 | O122: 1261602.35 | P122: 1261602.345 | Q122: 0.004661822459 | R122: 9725.14 | S122: 9725.14 | T122: 0 | U122: 0 | V122: 0 | W122: 0 | X122: 0 | Y122: 0 | Z122: 0 | AA122: 1238192.99 | AB122: 1238192.99 | AC122: 0.000387507258 | AD122: 97406.19 | AE122: 97406.193 | AF122: -0.002998078315 | AG122: 3077.81 | AH122: 3077.81421 | AI122: -0.004210057651 | AJ122: 19481.24 | AK122: 19481.2386 | AL122: 0.001400384339 | AM122: 0 | AN122: 0 | AO122: 0 | AQ122: 0 | AR122: 0 | AT122: 0 | AU122: 0 | AW122: 0 | AX122: 0 | AY122: 0 | AZ122: 0 | BA122: 0 | BB122: 379 | BC122: 379 | BD122: 0 | BE122: 1590.81 | BF122: 1590.812001 | BG122: -0.002000736297 | BH122: 0 | BI122: 0 | BJ122: 0 | BK122: 1271327.49 | BL122: 1271327.485 | BM122: 0.004661822459
A123: 2509 | B123: Singlewell Primary School | C123: 821448.63 | D123: 821448.6296 | E123: 0.0004497369519 | F123: 0 | G123: 0 | H123: 0 | I123: 821448.63 | J123: 821448.6296 | K123: 0.0004497369519 | L123: 5362.94 | M123: 5362.94 | N123: 0 | O123: 816085.69 | P123: 816085.6896 | Q123: 0.0004497368354 | R123: 5362.94 | S123: 5362.94 | T123: 0 | U123: 0 | V123: 0 | W123: 0 | X123: 0 | Y123: 0 | Z123: 0 | AA123: 807866.95 | AB123: 807866.9486 | AC123: 0.001378820394 | AD123: 114512.31 | AE123: 114512.3055 | AF123: 0.00448262968 | AG123: 2564.63 | AH123: 2564.630834 | AI123: -0.0008344788903 | AJ123: 22902.46 | AK123: 22902.4611 | AL123: -0.001103474064 | AM123: 0 | AN123: 0 | AO123: 0 | AQ123: 0 | AR123: 0 | AT123: 0 | AU123: 0 | AW123: 0 | AX123: 0 | AY123: 0 | AZ123: 0 | BA123: 0 | BB123: 209 | BC123: 209 | BD123: 0 | BE123: 1590.81 | BF123: 1590.812001 | BG123: -0.002000736297 | BH123: 0 | BI123: 0 | BJ123: 0 | BK123: 821448.63 | BL123: 821448.6296 | BM123: 0.0004497369519
A124: 2510 | B124: Cheriton Primary School | C124: 1497286.13 | D124: 1497286.134 | E124: -0.003754829057 | F124: 59447.29 | G124: 59447.28526 | H124: 0.004744315251 | I124: 1556733.42 | J124: 1556733.419 | K124: 0.0009894862305 | L124: 10212.68 | M124: 10212.68 | N124: 0 | O124: 1546520.74 | P124: 1546520.739 | Q124: 0.0009894862305 | R124: 10212.68 | S124: 10212.68 | T124: 0 | U124: 0 | V124: 0 | W124: 0 | X124: 59447.29 | Y124: 59447.28526 | Z124: 0.004744315251 | AA124: 1556733.42 | AB124: 1556733.419 | AC124: 0.0009894862305 | AD124: 250840.09 | AE124: 250840.0947 | AF124: -0.004670569528 | AG124: 0 | AH124: 0 | AI124: 0 | AJ124: 50168.02 | AK124: 50168.01893 | AL124: 0.001065886092 | AM124: 0 | AN124: 0 | AO124: 0 | AQ124: 0 | AR124: 0 | AT124: 0 | AU124: 0 | AW124: 0 | AX124: 0 | AY124: 0 | AZ124: 0 | BA124: 0 | BB124: 398 | BC124: 398 | BD124: 0 | BE124: 1590.81 | BF124: 1590.812001 | BG124: -0.002000736297 | BH124: 59447.29 | BI124: 59447.28526 | BJ124: 0.004744315251 | BK124: 1556733.42 | BL124: 1556733.419 | BM124: 0.0009894862305
A125: 2513 | B125: Oaks Community Infant School, The | C125: 978747.9 | D125: 978747.8994 | E125: 0.0006067095092 | F125: 0 | G125: 0 | H125: 0 | I125: 1098747.9 | J125: 1098747.899 | K125: 0.0006067093927 | L125: 6902.54 | M125: 6902.54 | N125: 0 | O125: 1091845.36 | P125: 1091845.359 | Q125: 0.0006067096256 | R125: 6902.54 | S125: 6902.54 | T125: 0 | U125: 4.8 | V125: 4.8 | W125: 0 | X125: 0 | Y125: 0 | Z125: 0 | AA125: 949311.29 | AB125: 949311.2891 | AC125: 0.0008814041503 | AD125: 107687.48 | AE125: 107687.4772 | AF125: 0.002843153037 | AG125: 2769.38 | AH125: 2769.375685 | AI125: 0.004314705409 | AJ125: 21537.5 | AK125: 21537.49543 | AL125: 0.004568630608 | AM125: 2911.5 | AN125: 2911.496225 | AO125: 0.003775409226 | AQ125: 0 | AR125: 0 | AT125: 0 | AU125: 0 | AW125: 0 | AX125: 0 | AY125: 120000 | AZ125: 120000 | BA125: 0 | BB125: 269 | BC125: 269 | BD125: 0 | BE125: 1590.81 | BF125: 1590.812001 | BG125: -0.002000736297 | BH125: 0 | BI125: 0 | BJ125: 0 | BK125: 978747.9 | BL125: 978747.8994 | BM125: 0.0006067095092
A126: 2514 | B126: Brookfield Infant School | C126: 702377.57 | D126: 702377.5721 | E126: -0.002081388026 | F126: 0 | G126: 0 | H126: 0 | I126: 702377.57 | J126: 702377.5721 | K126: -0.002081388026 | L126: 4516.16 | M126: 4516.16 | N126: 0 | O126: 697861.41 | P126: 697861.4121 | Q126: -0.002081387909 | R126: 4516.16 | S126: 4516.16 | T126: 0 | U126: 0 | V126: 0 | W126: 0 | X126: 0 | Y126: 0 | Z126: 0 | AA126: 693916.28 | AB126: 693916.2768 | AC126: 0.003239759477 | AD126: 79738.55 | AE126: 79738.54646 | AF126: 0.003540211124 | AG126: 3607.84 | AH126: 3607.843606 | AI126: -0.003606206334 | AJ126: 15947.71 | AK126: 15947.70929 | AL126: 0.0007080422238 | AM126: 0 | AN126: 0 | AO126: 0 | AQ126: 0 | AR126: 0 | AT126: 0 | AU126: 0 | AW126: 0 | AX126: 0 | AY126: 0 | AZ126: 0 | BA126: 0 | BB126: 176 | BC126: 176 | BD126: 0 | BE126: 1590.81 | BF126: 1590.812001 | BG126: -0.002000736297 | BH126: 0 | BI126: 0 | BJ126: 0 | BK126: 702377.57 | BL126: 702377.5721 | BM126: -0.002081388026
A127: 2516 | B127: Lansdowne Primary School | C127: 912928.9 | D127: 912928.9029 | E127: -0.002904851106 | F127: 0 | G127: 0 | H127: 0 | I127: 912928.9 | J127: 912928.9029 | K127: -0.002904851106 | L127: 5901.8 | M127: 5901.8 | N127: 0 | O127: 907027.1 | P127: 907027.1029 | Q127: -0.002904851106 | R127: 5901.8 | S127: 5901.8 | T127: 0 | U127: 0 | V127: 0 | W127: 0 | X127: 0 | Y127: 0 | Z127: 0 | AA127: 878231.83 | AB127: 878231.8261 | AC127: 0.003869266715 | AD127: 138810.63 | AE127: 138810.6291 | AF127: 0.0008701526094 | AG127: 1835.68 | AH127: 1835.681126 | AI127: -0.001126104579 | AJ127: 27762.13 | AK127: 27762.12583 | AL127: 0.004174030521 | AM127: 0 | AN127: 0 | AO127: 0 | AQ127: 0 | AR127: 0 | AT127: 0 | AU127: 0 | AW127: 0 | AX127: 0 | AY127: 0 | AZ127: 0 | BA127: 0 | BB127: 230 | BC127: 230 | BD127: 0 | BE127: 1590.81 | BF127: 1590.812001 | BG127: -0.002000736297 | BH127: 0 | BI127: 0 | BJ127: 0 | BK127: 912928.9 | BL127: 912928.9029 | BM127: -0.002904851106
A128: 2519 | B128: Vigo Village School | C128: 698527.74 | D128: 698527.7439 | E128: -0.003858560813 | F128: 0 | G128: 0 | H128: 0 | I128: 698527.74 | J128: 698527.7439 | K128: -0.003858560813 | L128: 4567.48 | M128: 4567.48 | N128: 0 | O128: 693960.26 | P128: 693960.2639 | Q128: -0.003858560813 | R128: 4567.48 | S128: 4567.48 | T128: 0 | U128: 0 | V128: 0 | W128: 0 | X128: 0 | Y128: 0 | Z128: 0 | AA128: 674821.52 | AB128: 674821.5216 | AC128: -0.001647725236 | AD128: 80334.32 | AE128: 80334.31759 | AF128: 0.002405259496 | AG128: 3589.97 | AH128: 3589.970472 | AI128: -0.0004721577848 | AJ128: 16066.86 | AK128: 16066.86352 | AL128: -0.003518948102 | AM128: 0 | AN128: 0 | AO128: 0 | AQ128: 0 | AR128: 0 | AT128: 0 | AU128: 0 | AW128: 0 | AX128: 0 | AY128: 0 | AZ128: 0 | BA128: 0 | BB128: 178 | BC128: 178 | BD128: 0 | BE128: 1590.81 | BF128: 1590.812001 | BG128: -0.002000736297 | BH128: 0 | BI128: 0 | BJ128: 0 | BK128: 698527.74 | BL128: 698527.7439 | BM128: -0.003858560813
A129: 2520 | B129: Madginford Park Infant School | C129: 975271.61 | D129: 975271.6143 | E129: -0.004321047687 | F129: 0 | G129: 0 | H129: 0 | I129: 975271.61 | J129: 975271.6143 | K129: -0.004321047687 | L129: 6928.2 | M129: 6928.2 | N129: 0 | O129: 968343.41 | P129: 968343.4143 | Q129: -0.004321047687 | R129: 6928.2 | S129: 6928.2 | T129: 0 | U129: 0 | V129: 0 | W129: 0 | X129: 0 | Y129: 0 | Z129: 0 | AA129: 920653.43 | AB129: 920653.4251 | AC129: 0.004933241638 | AD129: 101836.81 | AE129: 101836.8116 | AF129: -0.00157058904 | AG129: 2944.9 | AH129: 2944.895653 | AI129: 0.004347117671 | AJ129: 20367.36 | AK129: 20367.36231 | AL129: -0.002314117806 | AM129: 0 | AN129: 0 | AO129: 0 | AQ129: 0 | AR129: 0 | AT129: 0 | AU129: 0 | AW129: 0 | AX129: 0 | AY129: 0 | AZ129: 0 | BA129: 0 | BB129: 270 | BC129: 270 | BD129: 0 | BE129: 1590.81 | BF129: 1590.812001 | BG129: -0.002000736297 | BH129: 0 | BI129: 0 | BJ129: 0 | BK129: 975271.61 | BL129: 975271.6143 | BM129: -0.004321047687
A130: 2523 | B130: Upton Junior School | C130: 1793931.69 | D130: 1793931.686 | E130: 0.003701499663 | F130: 6281.36 | G130: 6281.364486 | H130: -0.004485641709 | I130: 1800213.05 | J130: 1800213.051 | K130: -0.0007841419429 | L130: 13368.86 | M130: 13368.86 | N130: 0 | O130: 1786844.19 | P130: 1786844.191 | Q130: -0.0007841419429 | R130: 13368.86 | S130: 13368.86 | T130: 0 | U130: 0 | V130: 0 | W130: 0 | X130: 6281.36 | Y130: 6281.364486 | Z130: -0.004485641709 | AA130: 1800213.05 | AB130: 1800213.051 | AC130: -0.0007841419429 | AD130: 183491.69 | AE130: 183491.6888 | AF130: 0.001241066086 | AG130: 495.25 | AH130: 495.2493372 | AI130: 0.0006627680177 | AJ130: 36698.34 | AK130: 36698.33775 | AL130: 0.002248213212 | AM130: 0 | AN130: 0 | AO130: 0 | AQ130: 0 | AR130: 0 | AT130: 0 | AU130: 0 | AW130: 0 | AX130: 0 | AY130: 0 | AZ130: 0 | BA130: 0 | BB130: 521 | BC130: 521 | BD130: 0 | BE130: 1590.81 | BF130: 1590.812001 | BG130: -0.002000736297 | BH130: 6281.36 | BI130: 6281.364486 | BJ130: -0.004485641709 | BK130: 1800213.05 | BL130: 1800213.051 | BM130: -0.0007841419429
A131: 2524 | B131: Palmarsh Primary School | C131: 488058.78 | D131: 488058.7804 | E131: =C131-D131 -> -0.0004435019218 | F131: 0 | G131: 0 | H131: =F131-G131 -> 0 | I131: 488058.78 | J131: 488058.7804 | K131: =I131-J131 -> -0.0004435019218 | L131: 2642.98 | M131: 2642.98 | N131: =L131-M131 -> 0 | O131: 485415.8 | P131: 485415.8004 | Q131: =O131-P131 -> -0.00044350198 | R131: 2642.98 | S131: 2642.98 | T131: =R131-S131 -> 0 | U131: 0 | V131: 0 | W131: =U131-V131 -> 0 | X131: 0 | Y131: 0 | Z131: =X131-Y131 -> 0 | AA131: 476923.4 | AB131: 476923.4015 | AC131: =AA131-AB131 -> -0.001506864966 | AD131: 73723.32 | AE131: 73723.31613 | AF131: =AD131-AE131 -> 0.003873082489 | AG131: 3788.3 | AH131: 3788.300516 | AI131: =AG131-AH131 -> -0.0005161924742 | AJ131: 14744.66 | AK131: 14744.66323 | AL131: =AJ131-AK131 -> -0.003225383503 | AM131: 0 | AN131: 0 | AO131: =AM131-AN131 -> 0 | AQ131: 0 | AR131: =AP131-AQ131 -> 0 | AT131: 0 | AU131: =AS131-AT131 -> 0 | AW131: 0 | AX131: =AV131-AW131 -> 0 | AY131: 0 | AZ131: 0 | BA131: =AY131-AZ131 -> 0 | BB131: 103 | BC131: 103 | BD131: =BB131-BC131 -> 0 | BE131: 1590.81 | BF131: 1590.812001 | BG131: =BE131-BF131 -> -0.002000736297 | BH131: 0 | BI131: 0 | BJ131: =BH131-BI131 -> 0 | BK131: 488058.78 | BL131: 488058.7804 | BM131: =BK131-BL131 -> -0.0004435019218
A132: 2525 | B132: Painters Ash Primary School | C132: 1457406.17 | D132: 1457406.169 | E132: 0.000947952969 | F132: 26362.31 | G132: 26362.31456 | H132: -0.004557799137 | I132: 1483768.48 | J132: 1483768.484 | K132: -0.003609846113 | L132: 10161.36 | M132: 10161.36 | N132: 0 | O132: 1473607.12 | P132: 1473607.124 | Q132: -0.00360984588 | R132: 10161.36 | S132: 10161.36 | T132: 0 | U132: 0 | V132: 0 | W132: 0 | X132: 26362.31 | Y132: 26362.31456 | Z132: -0.004557799137 | AA132: 1483768.48 | AB132: 1483768.484 | AC132: -0.003609846113 | AD132: 211240.04 | AE132: 211240.0411 | AF132: -0.001105340256 | AG132: 0 | AH132: 0 | AI132: 0 | AJ132: 42248.01 | AK132: 42248.00822 | AL132: 0.001778931946 | AM132: 0 | AN132: 0 | AO132: 0 | AQ132: 0 | AR132: 0 | AT132: 0 | AU132: 0 | AW132: 0 | AX132: 0 | AY132: 0 | AZ132: 0 | BA132: 0 | BB132: 396 | BC132: 396 | BD132: 0 | BE132: 1590.81 | BF132: 1590.812001 | BG132: -0.002000736297 | BH132: 26362.31 | BI132: 26362.31456 | BJ132: -0.004557799137 | BK132: 1483768.48 | BL132: 1483768.484 | BM132: -0.003609846113
A133: 2530 | B133: Tunbury Primary School | C133: 1895040.52 | D133: 1895040.516 | E133: 0.004111821763 | F133: 0 | G133: 0 | H133: 0 | I133: 1895040.52 | J133: 1895040.516 | K133: 0.004111821763 | L133: 15524.3 | M133: 15524.3 | N133: 0 | O133: 1879516.22 | P133: 1879516.216 | Q133: 0.004111821763 | R133: 15524.3 | S133: 15524.3 | T133: 0 | U133: 0 | V133: 0 | W133: 0 | X133: 0 | Y133: 0 | Z133: 0 | AA133: 1878722.5 | AB133: 1878722.495 | AC133: 0.004966017092 | AD133: 88287.75 | AE133: 88287.75182 | AF133: -0.001818923789 | AG133: 3351.37 | AH133: 3351.367445 | AI133: 0.002554567714 | AJ133: 17657.55 | AK133: 17657.55036 | AL133: -0.0003637847585 | AM133: 0 | AN133: 0 | AO133: 0 | AQ133: 0 | AR133: 0 | AT133: 0 | AU133: 0 | AW133: 0 | AX133: 0 | AY133: 0 | AZ133: 0 | BA133: 0 | BB133: 605 | BC133: 605 | BD133: 0 | BE133: 1590.81 | BF133: 1590.812001 | BG133: -0.002000736297 | BH133: 0 | BI133: 0 | BJ133: 0 | BK133: 1895040.52 | BL133: 1895040.516 | BM133: 0.004111821763
A134: 2531 | B134: Vale View Community School | C134: 826969.46 | D134: 826969.456 | E134: 0.004009091062 | F134: 0 | G134: 0 | H134: 0 | I134: 826969.46 | J134: 826969.456 | K134: 0.004009091062 | L134: 4978.04 | M134: 4978.04 | N134: 0 | O134: 821991.42 | P134: 821991.416 | Q134: 0.004009091179 | R134: 4978.04 | S134: 4978.04 | T134: 0 | U134: 4.97 | V134: 4.97 | W134: 0 | X134: 0 | Y134: 0 | Z134: 0 | AA134: 816171.45 | AB134: 816171.4524 | AC134: -0.002419823548 | AD134: 145281.4 | AE134: 145281.4009 | AF134: -0.0008862576506 | AG134: 1641.56 | AH134: 1641.557973 | AI134: 0.002026587729 | AJ134: 29056.28 | AK134: 29056.28018 | AL134: -0.0001772515316 | AM134: 0 | AN134: 0 | AO134: 0 | AQ134: 0 | AR134: 0 | AT134: 0 | AU134: 0 | AW134: 0 | AX134: 0 | AY134: 0 | AZ134: 0 | BA134: 0 | BB134: 194 | BC134: 194 | BD134: 0 | BE134: 1590.81 | BF134: 1590.812001 | BG134: -0.002000736297 | BH134: 0 | BI134: 0 | BJ134: 0 | BK134: 826969.46 | BL134: 826969.456 | BM134: 0.004009091062
A135: 2532 | B135: St Margaret's-at-Cliffe Primary School | C135: 671727.12 | D135: 671727.1196 | E135: 0.0003977053566 | F135: 0 | G135: 0 | H135: 0 | I135: 671727.12 | J135: 671727.1196 | K135: 0.0003977053566 | L135: 4798.42 | M135: 4798.42 | N135: 0 | O135: 666928.7 | P135: 666928.6996 | Q135: 0.0003977053566 | R135: 4798.42 | S135: 4798.42 | T135: 0 | U135: 0 | V135: 0 | W135: 0 | X135: 0 | Y135: 0 | Z135: 0 | AA135: 649251.08 | AB135: 649251.0791 | AC135: 0.0009044335457 | AD135: 34154.44 | AE135: 34154.44011 | AF135: -0.000107286578 | AG135: 4975.37 | AH135: 4975.366797 | AI135: 0.003203218597 | AJ135: 6830.89 | AK135: 6830.888021 | AL135: 0.001978542684 | AM135: 0 | AN135: 0 | AO135: 0 | AQ135: 0 | AR135: 0 | AT135: 0 | AU135: 0 | AW135: 0 | AX135: 0 | AY135: 0 | AZ135: 0 | BA135: 0 | BB135: 187 | BC135: 187 | BD135: 0 | BE135: 1590.81 | BF135: 1590.812001 | BG135: -0.002000736297 | BH135: 0 | BI135: 0 | BJ135: 0 | BK135: 671727.12 | BL135: 671727.1196 | BM135: 0.0003977053566
A136: 2534 | B136: Bysing Wood Primary School | C136: 541724.86 | D136: 541724.8555 | E136: 0.004505314282 | F136: 50913.73 | G136: 50913.73219 | H136: -0.002186155391 | I136: 592638.59 | J136: 592638.5877 | K136: 0.00231915887 | L136: 2848.26 | M136: 2848.26 | N136: 0 | O136: 589790.33 | P136: 589790.3277 | Q136: 0.00231915887 | R136: 2848.26 | S136: 2848.26 | T136: 0 | U136: 0 | V136: 0 | W136: 0 | X136: 50913.73 | Y136: 50913.73219 | Z136: -0.002186155391 | AA136: 592638.59 | AB136: 592638.5877 | AC136: 0.00231915887 | AD136: 91580.89 | AE136: 91580.88598 | AF136: 0.004018935346 | AG136: 3252.57 | AH136: 3252.573421 | AI136: -0.00342056806 | AJ136: 18316.18 | AK136: 18316.1772 | AL136: 0.002803787069 | AM136: 0 | AN136: 0 | AO136: 0 | AQ136: 0 | AR136: 0 | AT136: 0 | AU136: 0 | AW136: 0 | AX136: 0 | AY136: 0 | AZ136: 0 | BA136: 0 | BB136: 111 | BC136: 111 | BD136: 0 | BE136: 1590.81 | BF136: 1590.812001 | BG136: -0.002000736297 | BH136: 50913.73 | BI136: 50913.73219 | BJ136: -0.002186155391 | BK136: 592638.59 | BL136: 592638.5877 | BM136: 0.00231915887
A137: 2536 | B137: Loose Infant School | C137: 960355.26 | D137: 960355.2599 | E137: 0.000111990259 | F137: 0 | G137: 0 | H137: 0 | I137: 960355.26 | J137: 960355.2599 | K137: 0.000111990259 | L137: 6902.54 | M137: 6902.54 | N137: 0 | O137: 953452.72 | P137: 953452.7199 | Q137: 0.000111990259 | R137: 6902.54 | S137: 6902.54 | T137: 0 | U137: 0 | V137: 0 | W137: 0 | X137: 0 | Y137: 0 | Z137: 0 | AA137: 925856.08 | AB137: 925856.0846 | AC137: -0.0046115648 | AD137: 86892.86 | AE137: 86892.86007 | AF137: -7.292692317e-05 | AG137: 3393.21 | AH137: 3393.214198 | AI137: -0.004197812192 | AJ137: 17378.57 | AK137: 17378.57201 | AL137: -0.002014585385 | AM137: 0 | AN137: 0 | AO137: 0 | AQ137: 0 | AR137: 0 | AT137: 0 | AU137: 0 | AW137: 0 | AX137: 0 | AY137: 0 | AZ137: 0 | BA137: 0 | BB137: 269 | BC137: 269 | BD137: 0 | BE137: 1590.81 | BF137: 1590.812001 | BG137: -0.002000736297 | BH137: 0 | BI137: 0 | BJ137: 0 | BK137: 960355.26 | BL137: 960355.2599 | BM137: 0.000111990259
A138: 2539 | B138: Stocks Green Primary School | C138: 739663.33 | D138: 739663.3284 | E138: 0.001555909752 | F138: 0 | G138: 0 | H138: 0 | I138: 739663.33 | J138: 739663.3284 | K138: 0.001555909752 | L138: 5542.56 | M138: 5542.56 | N138: 0 | O138: 734120.77 | P138: 734120.7684 | Q138: 0.001555909868 | R138: 5542.56 | S138: 5542.56 | T138: 0 | U138: 0 | V138: 0 | W138: 0 | X138: 0 | Y138: 0 | Z138: 0 | AA138: 719078.12 | AB138: 719078.124 | AC138: -0.004000334069 | AD138: 22749.17 | AE138: 22749.1695 | AF138: 0.0005004357954 | AG138: 5317.52 | AH138: 5317.524915 | AI138: -0.004915013074 | AJ138: 4549.83 | AK138: 4549.8339 | AL138: -0.003899912841 | AM138: 0 | AN138: 0 | AO138: 0 | AQ138: 0 | AR138: 0 | AT138: 0 | AU138: 0 | AW138: 0 | AX138: 0 | AY138: 0 | AZ138: 0 | BA138: 0 | BB138: 216 | BC138: 216 | BD138: 0 | BE138: 1590.81 | BF138: 1590.812001 | BG138: -0.002000736297 | BH138: 0 | BI138: 0 | BJ138: 0 | BK138: 739663.33 | BL138: 739663.3284 | BM138: 0.001555909752
A139: 2545 | B139: Sandgate Primary School | C139: 1386879.41 | D139: 1386879.408 | E139: 0.002386584878 | F139: 22437.41 | G139: 22437.41236 | H139: -0.002359151291 | I139: 1409316.82 | J139: 1409316.82 | K139: 2.743373625e-05 | L139: 10828.52 | M139: 10828.52 | N139: 0 | O139: 1398488.3 | P139: 1398488.3 | Q139: 2.743373625e-05 | R139: 10828.52 | S139: 10828.52 | T139: 0 | U139: 0 | V139: 0 | W139: 0 | X139: 22437.41 | Y139: 22437.41236 | Z139: -0.002359151291 | AA139: 1409316.82 | AB139: 1409316.82 | AC139: 2.743373625e-05 | AD139: 71361.28 | AE139: 71361.27689 | AF139: 0.003105837735 | AG139: 3859.16 | AH139: 3859.161693 | AI139: -0.001693175132 | AJ139: 14272.26 | AK139: 14272.25538 | AL139: 0.004621167547 | AM139: 0 | AN139: 0 | AO139: 0 | AQ139: 0 | AR139: 0 | AT139: 0 | AU139: 0 | AW139: 0 | AX139: 0 | AY139: 0 | AZ139: 0 | BA139: 0 | BB139: 422 | BC139: 422 | BD139: 0 | BE139: 1590.81 | BF139: 1590.812001 | BG139: -0.002000736297 | BH139: 22437.41 | BI139: 22437.41236 | BJ139: -0.002359151291 | BK139: 1409316.82 | BL139: 1409316.82 | BM139: 2.743373625e-05
A140: 2548 | B140: Barming Primary School | C140: 1365982.77 | D140: 1365982.77 | E140: -0.0003590867855 | F140: 17438.04 | G140: 17438.04023 | H140: -0.0002258308596 | I140: 1383420.81 | J140: 1383420.811 | K140: -0.0005849176086 | L140: 10392.3 | M140: 10392.3 | N140: 0 | O140: 1373028.51 | P140: 1373028.511 | Q140: -0.0005849176086 | R140: 10392.3 | S140: 10392.3 | T140: 0 | U140: 0 | V140: 0 | W140: 0 | X140: 17438.04 | Y140: 17438.04023 | Z140: -0.0002258308596 | AA140: 1383420.81 | AB140: 1383420.811 | AC140: -0.0005849176086 | AD140: 107697.21 | AE140: 107697.2074 | AF140: 0.002624403467 | AG140: 2769.08 | AH140: 2769.083779 | AI140: -0.003778732104 | AJ140: 21539.44 | AK140: 21539.44148 | AL140: -0.001475119308 | AM140: 0 | AN140: 0 | AO140: 0 | AQ140: 0 | AR140: 0 | AT140: 0 | AU140: 0 | AW140: 0 | AX140: 0 | AY140: 0 | AZ140: 0 | BA140: 0 | BB140: 405 | BC140: 405 | BD140: 0 | BE140: 1590.81 | BF140: 1590.812001 | BG140: -0.002000736297 | BH140: 17438.04 | BI140: 17438.04023 | BJ140: -0.0002258308596 | BK140: 1383420.81 | BL140: 1383420.811 | BM140: -0.0005849176086
A141: 2552 | B141: Sandling Primary School | C141: 1413617.7 | D141: 1413617.698 | E141: 0.002226688899 | F141: 0 | G141: 0 | H141: 0 | I141: 1413617.7 | J141: 1413617.698 | K141: 0.002226688899 | L141: 10956.82 | M141: 10956.82 | N141: 0 | O141: 1402660.88 | P141: 1402660.878 | Q141: 0.002226688899 | R141: 10956.82 | S141: 10956.82 | T141: 0 | U141: 0 | V141: 0 | W141: 0 | X141: 0 | Y141: 0 | Z141: 0 | AA141: 1408812.89 | AB141: 1408812.888 | AC141: 0.002319844207 | AD141: 105224.01 | AE141: 105224.0086 | AF141: 0.001369806996 | AG141: 2843.28 | AH141: 2843.279741 | AI141: 0.0002589057899 | AJ141: 21044.8 | AK141: 21044.80173 | AL141: -0.001726038601 | AM141: 0 | AN141: 0 | AO141: 0 | AQ141: 0 | AR141: 0 | AT141: 0 | AU141: 0 | AW141: 0 | AX141: 0 | AY141: 0 | AZ141: 0 | BA141: 0 | BB141: 427 | BC141: 427 | BD141: 0 | BE141: 1590.81 | BF141: 1590.812001 | BG141: -0.002000736297 | BH141: 0 | BI141: 0 | BJ141: 0 | BK141: 1413617.7 | BL141: 1413617.698 | BM141: 0.002226688899
A142: 2559 | B142: Capel-le-Ferne Primary School | C142: 763492.92 | D142: 763492.9163 | E142: 0.003726312425 | F142: 0 | G142: 0 | H142: 0 | I142: 763492.92 | J142: 763492.9163 | K142: 0.003726312425 | L142: 5208.98 | M142: 5208.98 | N142: 0 | O142: 758283.94 | P142: 758283.9363 | Q142: 0.003726312309 | R142: 5208.98 | S142: 5208.98 | T142: 0 | U142: 0 | V142: 0 | W142: 0 | X142: 0 | Y142: 0 | Z142: 0 | AA142: 744793.26 | AB142: 744793.2593 | AC142: 0.0007153636543 | AD142: 77097.65 | AE142: 77097.65414 | AF142: -0.004142545251 | AG142: 3687.07 | AH142: 3687.070376 | AI142: -0.0003757236427 | AJ142: 15419.53 | AK142: 15419.53083 | AL142: -0.000828509048 | AM142: 0 | AN142: 0 | AO142: 0 | AQ142: 0 | AR142: 0 | AT142: 0 | AU142: 0 | AW142: 0 | AX142: 0 | AY142: 0 | AZ142: 0 | BA142: 0 | BB142: 203 | BC142: 203 | BD142: 0 | BE142: 1590.81 | BF142: 1590.812001 | BG142: -0.002000736297 | BH142: 0 | BI142: 0 | BJ142: 0 | BK142: 763492.92 | BL142: 763492.9163 | BM142: 0.003726312425
A143: 2562 | B143: Lunsford Primary School | C143: 743943.06 | D143: 743943.0628 | E143: -0.00284484087 | F143: 0 | G143: 0 | H143: 0 | I143: 743943.06 | J143: 743943.0628 | K143: -0.00284484087 | L143: 5439.92 | M143: 5439.92 | N143: 0 | O143: 738503.14 | P143: 738503.1428 | Q143: -0.00284484087 | R143: 5439.92 | S143: 5439.92 | T143: 0 | U143: 0 | V143: 0 | W143: 0 | X143: 0 | Y143: 0 | Z143: 0 | AA143: 716179.62 | AB143: 716179.6202 | AC143: -0.0001585814171 | AD143: 35171.49 | AE143: 35171.49435 | AF143: -0.004353762561 | AG143: 4944.86 | AH143: 4944.855169 | AI143: 0.004830612877 | AJ143: 7034.3 | AK143: 7034.298871 | AL143: 0.001129247488 | AM143: 0 | AN143: 0 | AO143: 0 | AQ143: 0 | AR143: 0 | AT143: 0 | AU143: 0 | AW143: 0 | AX143: 0 | AY143: 0 | AZ143: 0 | BA143: 0 | BB143: 212 | BC143: 212 | BD143: 0 | BE143: 1590.81 | BF143: 1590.812001 | BG143: -0.002000736297 | BH143: 0 | BI143: 0 | BJ143: 0 | BK143: 743943.06 | BL143: 743943.0628 | BM143: -0.00284484087
A144: 2568 | B144: Morehall Primary School | C144: 745019.02 | D144: 745019.0207 | E144: -0.0007494052406 | F144: 3287.6 | G144: 3287.604051 | H144: -0.004050932452 | I144: 798306.62 | J144: 798306.6248 | K144: -0.004800337716 | L144: 4644.46 | M144: 4644.46 | N144: 0 | O144: 793662.16 | P144: 793662.1648 | Q144: -0.004800337716 | R144: 4644.46 | S144: 4644.46 | T144: 0 | U144: 0 | V144: 0 | W144: 0 | X144: 3287.6 | Y144: 3287.604051 | Z144: -0.004050932452 | AA144: 748306.62 | AB144: 748306.6248 | AC144: -0.004800337716 | AD144: 95964.73 | AE144: 95964.73172 | AF144: -0.001720641318 | AG144: 3121.06 | AH144: 3121.058048 | AI144: 0.001951619239 | AJ144: 19192.95 | AK144: 19192.94634 | AL144: 0.003655871737 | AM144: 11142.5 | AN144: 11142.50187 | AO144: -0.001866006871 | AQ144: 0 | AR144: 0 | AT144: 0 | AU144: 0 | AW144: 0 | AX144: 0 | AY144: 50000 | AZ144: 50000 | BA144: 0 | BB144: 181 | BC144: 181 | BD144: 0 | BE144: 1590.81 | BF144: 1590.812001 | BG144: -0.002000736297 | BH144: 3287.6 | BI144: 3287.604051 | BJ144: -0.004050932452 | BK144: 748306.62 | BL144: 748306.6248 | BM144: -0.004800337716
A145: 2569 | B145: Briary Primary School | C145: 1527568.27 | D145: 1527568.268 | E145: 0.001696009655 | F145: 17297.7 | G145: 17297.70271 | H145: -0.00271022641 | I145: 1544865.97 | J145: 1544865.971 | K145: -0.001014216803 | L145: 10571.92 | M145: 10571.92 | N145: 0 | O145: 1534294.05 | P145: 1534294.051 | Q145: -0.001014216803 | R145: 10571.92 | S145: 10571.92 | T145: 0 | U145: 0 | V145: 0 | W145: 0 | X145: 17297.7 | Y145: 17297.70271 | Z145: -0.00271022641 | AA145: 1544865.97 | AB145: 1544865.971 | AC145: -0.001014216803 | AD145: 220467.34 | AE145: 220467.3393 | AF145: 0.0007131405873 | AG145: 0 | AH145: 0 | AI145: 0 | AJ145: 44093.47 | AK145: 44093.46786 | AL145: 0.002142628116 | AM145: 0 | AN145: 0 | AO145: 0 | AQ145: 0 | AR145: 0 | AT145: 0 | AU145: 0 | AW145: 0 | AX145: 0 | AY145: 0 | AZ145: 0 | BA145: 0 | BB145: 412 | BC145: 412 | BD145: 0 | BE145: 1590.81 | BF145: 1590.812001 | BG145: -0.002000736297 | BH145: 17297.7 | BI145: 17297.70271 | BJ145: -0.00271022641 | BK145: 1544865.97 | BL145: 1544865.971 | BM145: -0.001014216803
A146: 2574 | B146: Downs View Infant School | C146: 970467.56 | D146: 970467.5575 | E146: 0.002474981244 | F146: 0 | G146: 0 | H146: 0 | I146: 970467.56 | J146: 970467.5575 | K146: 0.002474981244 | L146: 6620.28 | M146: 6620.28 | N146: 0 | O146: 963847.28 | P146: 963847.2775 | Q146: 0.002474981244 | R146: 6620.28 | S146: 6620.28 | T146: 0 | U146: 0 | V146: 0 | W146: 0 | X146: 0 | Y146: 0 | Z146: 0 | AA146: 931911.89 | AB146: 931911.8939 | AC146: -0.003891328466 | AD146: 120414.72 | AE146: 120414.7192 | AF146: 0.0007941243093 | AG146: 2387.56 | AH146: 2387.558424 | AI146: 0.001576176271 | AJ146: 24082.94 | AK146: 24082.94384 | AL146: -0.003841175141 | AM146: 0 | AN146: 0 | AO146: 0 | AQ146: 0 | AR146: 0 | AT146: 0 | AU146: 0 | AW146: 0 | AX146: 0 | AY146: 0 | AZ146: 0 | BA146: 0 | BB146: 258 | BC146: 258 | BD146: 0 | BE146: 1590.81 | BF146: 1590.812001 | BG146: -0.002000736297 | BH146: 0 | BI146: 0 | BJ146: 0 | BK146: 970467.56 | BL146: 970467.5575 | BM146: 0.002474981244
A147: 2578 | B147: Kingswood Primary School | C147: 518030.85 | D147: 518030.8469 | E147: 0.003098215268 | F147: 13794.06 | G147: 13794.06397 | H147: -0.003967136841 | I147: 531824.91 | J147: 531824.9109 | K147: -0.0008689215174 | L147: 3361.46 | M147: 3361.46 | N147: 0 | O147: 528463.45 | P147: 528463.4509 | Q147: -0.0008689216338 | R147: 3361.46 | S147: 3361.46 | T147: 0 | U147: 0 | V147: 0 | W147: 0 | X147: 13794.06 | Y147: 13794.06397 | Z147: -0.003967136841 | AA147: 531824.91 | AB147: 531824.9109 | AC147: -0.0008689215174 | AD147: 34521.32 | AE147: 34521.31565 | AF147: 0.004352939803 | AG147: 4964.36 | AH147: 4964.360531 | AI147: -0.0005305881941 | AJ147: 6904.26 | AK147: 6904.263129 | AL147: -0.003129412039 | AM147: 0 | AN147: 0 | AO147: 0 | AQ147: 0 | AR147: 0 | AT147: 0 | AU147: 0 | AW147: 0 | AX147: 0 | AY147: 0 | AZ147: 0 | BA147: 0 | BB147: 131 | BC147: 131 | BD147: 0 | BE147: 1590.81 | BF147: 1590.812001 | BG147: -0.002000736297 | BH147: 13794.06 | BI147: 13794.06397 | BJ147: -0.003967136841 | BK147: 531824.91 | BL147: 531824.9109 | BM147: -0.0008689215174
A148: 2586 | B148: Senacre Wood Primary School | C148: 840704.81 | D148: 840704.8111 | E148: -0.001099950401 | F148: 0 | G148: 0 | H148: 0 | I148: 840704.81 | J148: 840704.8111 | K148: -0.001099950401 | L148: 5208.98 | M148: 5208.98 | N148: 0 | O148: 835495.83 | P148: 835495.8311 | Q148: -0.001099950518 | R148: 5208.98 | S148: 5208.98 | T148: 0 | U148: 0 | V148: 0 | W148: 0 | X148: 0 | Y148: 0 | Z148: 0 | AA148: 821545.93 | AB148: 821545.9321 | AC148: -0.002144354628 | AD148: 143929.41 | AE148: 143929.4119 | AF148: -0.001861313649 | AG148: 1682.12 | AH148: 1682.117644 | AI148: 0.00235583941 | AJ148: 28785.88 | AK148: 28785.88237 | AL148: -0.00237226273 | AM148: 0 | AN148: 0 | AO148: 0 | AQ148: 0 | AR148: 0 | AT148: 0 | AU148: 0 | AW148: 0 | AX148: 0 | AY148: 0 | AZ148: 0 | BA148: 0 | BB148: 203 | BC148: 203 | BD148: 0 | BE148: 1590.81 | BF148: 1590.812001 | BG148: -0.002000736297 | BH148: 0 | BI148: 0 | BJ148: 0 | BK148: 840704.81 | BL148: 840704.8111 | BM148: -0.001099950401
A149: 2596 | B149: Chilton Primary School | C149: 1511514.57 | D149: 1511514.571 | E149: -0.001188509399 | F149: 0 | G149: 0 | H149: 0 | I149: 1511514.57 | J149: 1511514.571 | K149: -0.001188509399 | L149: 10777.2 | M149: 10777.2 | N149: 0 | O149: 1500737.37 | P149: 1500737.371 | Q149: -0.001188509399 | R149: 10777.2 | S149: 10777.2 | T149: 0 | U149: 0 | V149: 0 | W149: 0 | X149: 0 | Y149: 0 | Z149: 0 | AA149: 1484356.35 | AB149: 1484356.348 | AC149: 0.002281630877 | AD149: 204644.01 | AE149: 204644.0072 | AF149: 0.00280282984 | AG149: 0 | AH149: 0 | AI149: 0 | AJ149: 40928.8 | AK149: 40928.80144 | AL149: -0.001439434032 | AM149: 0 | AN149: 0 | AO149: 0 | AQ149: 0 | AR149: 0 | AT149: 0 | AU149: 0 | AW149: 0 | AX149: 0 | AY149: 0 | AZ149: 0 | BA149: 0 | BB149: 420 | BC149: 420 | BD149: 0 | BE149: 1590.81 | BF149: 1590.812001 | BG149: -0.002000736297 | BH149: 0 | BI149: 0 | BJ149: 0 | BK149: 1511514.57 | BL149: 1511514.571 | BM149: -0.001188509399
A150: 2603 | B150: Bromstone Primary School, Broadstairs | C150: 1712255.98 | D150: 1712255.976 | E150: 0.004361350322 | F150: 29081.74 | G150: 29081.73737 | H150: 0.002634715765 | I150: 1861337.71 | J150: 1861337.713 | K150: -0.003003933933 | L150: 11572.66 | M150: 11572.66 | N150: 0 | O150: 1849765.05 | P150: 1849765.053 | Q150: -0.003003933933 | R150: 11572.66 | S150: 11572.66 | T150: 0 | U150: 0 | V150: 0 | W150: 0 | X150: 29081.74 | Y150: 29081.73737 | Z150: 0.002634715765 | AA150: 1741337.71 | AB150: 1741337.713 | AC150: -0.003003933933 | AD150: 300362.41 | AE150: 300362.4095 | AF150: 0.0004675323726 | AG150: 0 | AH150: 0 | AI150: 0 | AJ150: 60072.48 | AK150: 60072.48191 | AL150: -0.001906493519 | AM150: 10257.83 | AN150: 10257.82584 | AO150: 0.004156102432 | AQ150: 0 | AR150: 0 | AT150: 0 | AU150: 0 | AW150: 0 | AX150: 0 | AY150: 120000 | AZ150: 120000 | BA150: 0 | BB150: 451 | BC150: 451 | BD150: 0 | BE150: 1590.81 | BF150: 1590.812001 | BG150: -0.002000736297 | BH150: 29081.74 | BI150: 29081.73737 | BJ150: 0.002634715765 | BK150: 1741337.71 | BL150: 1741337.713 | BM150: -0.003003933933
A151: 2607 | B151: Parkside Community Primary School | C151: 593317.14 | D151: 593317.1393 | E151: 0.000669279485 | F151: 105280.76 | G151: 105280.7558 | H151: 0.004221807569 | I151: 698597.9 | J151: 698597.8951 | K151: 0.004891087068 | L151: 2976.56 | M151: 2976.56 | N151: 0 | O151: 695621.34 | P151: 695621.3351 | Q151: 0.004891087068 | R151: 2976.56 | S151: 2976.56 | T151: 0 | U151: 5.21 | V151: 5.21 | W151: 0 | X151: 105280.76 | Y151: 105280.7558 | Z151: 0.004221807569 | AA151: 698597.9 | AB151: 698597.8951 | AC151: 0.004891087068 | AD151: 126047.76 | AE151: 126047.7553 | AF151: 0.004733086971 | AG151: 2218.57 | AH151: 2218.567342 | AI151: 0.002658007391 | AJ151: 25209.55 | AK151: 25209.55105 | AL151: -0.001053382606 | AM151: 0 | AN151: 0 | AO151: 0 | AQ151: 0 | AR151: 0 | AT151: 0 | AU151: 0 | AW151: 0 | AX151: 0 | AY151: 0 | AZ151: 0 | BA151: 0 | BB151: 116 | BC151: 116 | BD151: 0 | BE151: 1590.81 | BF151: 1590.812001 | BG151: -0.002000736297 | BH151: 105280.76 | BI151: 105280.7558 | BJ151: 0.004221807569 | BK151: 698597.9 | BL151: 698597.8951 | BM151: 0.004891087068
A152: 2611 | B152: St Stephen's Infant School | C152: 1068974.87 | D152: 1068974.872 | E152: -0.001606302569 | F152: 0 | G152: 0 | H152: 0 | I152: 1068974.87 | J152: 1068974.872 | K152: -0.001606302569 | L152: 6902.54 | M152: 6902.54 | N152: 0 | O152: 1062072.33 | P152: 1062072.332 | Q152: -0.001606302569 | R152: 6902.54 | S152: 6902.54 | T152: 0 | U152: 0 | V152: 0 | W152: 0 | X152: 0 | Y152: 0 | Z152: 0 | AA152: 1023868.5 | AB152: 1023868.497 | AC152: 0.003044654499 | AD152: 184949.76 | AE152: 184949.7637 | AF152: -0.003651617822 | AG152: 451.51 | AH152: 451.5070905 | AI152: 0.002909548535 | AJ152: 36989.95 | AK152: 36989.95273 | AL152: -0.002730323569 | AM152: 0 | AN152: 0 | AO152: 0 | AQ152: 0 | AR152: 0 | AT152: 0 | AU152: 0 | AW152: 0 | AX152: 0 | AY152: 0 | AZ152: 0 | BA152: 0 | BB152: 269 | BC152: 269 | BD152: 0 | BE152: 1590.81 | BF152: 1590.812001 | BG152: -0.002000736297 | BH152: 0 | BI152: 0 | BJ152: 0 | BK152: 1068974.87 | BL152: 1068974.872 | BM152: -0.001606302569
A153: 2615 | B153: High Firs Primary School | C153: 786102.91 | D153: 786102.9062 | E153: 0.00381231471 | F153: 0 | G153: 0 | H153: 0 | I153: 786102.91 | J153: 786102.9062 | K153: 0.00381231471 | L153: 5320.05 | M153: 5320.049255 | N153: 0.0007448097604 | O153: 780782.86 | P153: 780782.8569 | Q153: 0.003067504847 | R153: 5320.05 | S153: 5320.049255 | T153: 0.0007448097604 | U153: 0 | V153: 0 | W153: 0 | X153: 0 | Y153: 0 | Z153: 0 | AA153: 754135.27 | AB153: 754135.2682 | AC153: 0.001750591677 | AD153: 79204.82 | AE153: 79204.81664 | AF153: 0.003355364228 | AG153: 3623.86 | AH153: 3623.855501 | AI153: 0.004499339073 | AJ153: 15840.96 | AK153: 15840.96333 | AL153: -0.003328927156 | AM153: 0 | AN153: 0 | AO153: 0 | AQ153: 0 | AR153: 0 | AT153: 0 | AU153: 0 | AW153: 0 | AX153: 0 | AY153: 0 | AZ153: 0 | BA153: 0 | BB153: 204 | BC153: 204 | BD153: 0 | BE153: 1590.81 | BF153: 1590.812001 | BG153: -0.002000736297 | BH153: 0 | BI153: 0 | BJ153: 0 | BK153: 786102.91 | BL153: 786102.9062 | BM153: 0.00381231471
A154: 2622 | B154: Murston Infant School | C154: 659272.63 | D154: 659272.625 | E154: 0.005001294543 | F154: 0 | G154: 0 | H154: 0 | I154: 659272.63 | J154: 659272.625 | K154: 0.005001294543 | L154: 3335.8 | M154: 3335.8 | N154: 0 | O154: 655936.83 | P154: 655936.825 | Q154: 0.005001294543 | R154: 3335.8 | S154: 3335.8 | T154: 0 | U154: 5.12 | V154: 5.12 | W154: 0 | X154: 0 | Y154: 0 | Z154: 0 | AA154: 644594.73 | AB154: 644594.7293 | AC154: 0.0006738372613 | AD154: 151005.58 | AE154: 151005.578 | AF154: 0.001993847807 | AG154: 1469.83 | AH154: 1469.83266 | AI154: -0.002659815435 | AJ154: 30201.12 | AK154: 30201.1156 | AL154: 0.004398769564 | AM154: 0 | AN154: 0 | AO154: 0 | AQ154: 0 | AR154: 0 | AT154: 0 | AU154: 0 | AW154: 0 | AX154: 0 | AY154: 0 | AZ154: 0 | BA154: 0 | BB154: 130 | BC154: 130 | BD154: 0 | BE154: 1590.81 | BF154: 1590.812001 | BG154: -0.002000736297 | BH154: 0 | BI154: 0 | BJ154: 0 | BK154: 659272.63 | BL154: 659272.625 | BM154: 0.005001294543
A155: 2625 | B155: Godinton Primary School | C155: 1402515.18 | D155: 1402515.185 | E155: -0.004508983344 | F155: 0 | G155: 0 | H155: 0 | I155: 1402515.18 | J155: 1402515.185 | K155: -0.004508983344 | L155: 10751.54 | M155: 10751.54 | N155: 0 | O155: 1391763.64 | P155: 1391763.645 | Q155: -0.004508983344 | R155: 10751.54 | S155: 10751.54 | T155: 0 | U155: 0 | V155: 0 | W155: 0 | X155: 0 | Y155: 0 | Z155: 0 | AA155: 1389069.39 | AB155: 1389069.386 | AC155: 0.004314061254 | AD155: 93768.73 | AE155: 93768.73159 | AF155: -0.001592621717 | AG155: 3186.94 | AH155: 3186.938052 | AI155: 0.001947778651 | AJ155: 18753.75 | AK155: 18753.74632 | AL155: 0.003681475657 | AM155: 0 | AN155: 0 | AO155: 0 | AQ155: 0 | AR155: 0 | AT155: 0 | AU155: 0 | AW155: 0 | AX155: 0 | AY155: 0 | AZ155: 0 | BA155: 0 | BB155: 419 | BC155: 419 | BD155: 0 | BE155: 1590.81 | BF155: 1590.812001 | BG155: -0.002000736297 | BH155: 0 | BI155: 0 | BJ155: 0 | BK155: 1402515.18 | BL155: 1402515.185 | BM155: -0.004508983344
A156: 2626 | B156: Sandwich Infant School | C156: 619148.41 | D156: 619148.4059 | E156: 0.004099705489 | F156: 0 | G156: 0 | H156: 0 | I156: 619148.41 | J156: 619148.4059 | K156: 0.004099705489 | L156: 4054.28 | M156: 4054.28 | N156: 0 | O156: 615094.13 | P156: 615094.1259 | Q156: 0.004099705489 | R156: 4054.28 | S156: 4054.28 | T156: 0 | U156: 0 | V156: 0 | W156: 0 | X156: 0 | Y156: 0 | Z156: 0 | AA156: 591895.1 | AB156: 591895.0995 | AC156: 0.0005300873891 | AD156: 61785.76 | AE156: 61785.76268 | AF156: -0.002682332335 | AG156: 4146.43 | AH156: 4146.42712 | AI156: 0.00288046997 | AJ156: 12357.15 | AK156: 12357.15254 | AL156: -0.002536466467 | AM156: 0 | AN156: 0 | AO156: 0 | AQ156: 0 | AR156: 0 | AT156: 0 | AU156: 0 | AW156: 0 | AX156: 0 | AY156: 0 | AZ156: 0 | BA156: 0 | BB156: 158 | BC156: 158 | BD156: 0 | BE156: 1590.81 | BF156: 1590.812001 | BG156: -0.002000736297 | BH156: 0 | BI156: 0 | BJ156: 0 | BK156: 619148.41 | BL156: 619148.4059 | BM156: 0.004099705489
A157: 2627 | B157: Sandwich Junior School | C157: 740874.22 | D157: 740874.2186 | E157: 0.001446095179 | F157: 0 | G157: 0 | H157: 0 | I157: 740874.22 | J157: 740874.2186 | K157: 0.001446095179 | L157: 5029.36 | M157: 5029.36 | N157: 0 | O157: 735844.86 | P157: 735844.8586 | Q157: 0.001446095179 | R157: 5029.36 | S157: 5029.36 | T157: 0 | U157: 0 | V157: 0 | W157: 0 | X157: 0 | Y157: 0 | Z157: 0 | AA157: 733786.88 | AB157: 733786.884 | AC157: -0.003957870998 | AD157: 71310.58 | AE157: 71310.57769 | AF157: 0.002311893069 | AG157: 3860.68 | AH157: 3860.682669 | AI157: -0.002669356792 | AJ157: 14262.12 | AK157: 14262.11554 | AL157: 0.004462378614 | AM157: 0 | AN157: 0 | AO157: 0 | AQ157: 0 | AR157: 0 | AT157: 0 | AU157: 0 | AW157: 0 | AX157: 0 | AY157: 0 | AZ157: 0 | BA157: 0 | BB157: 196 | BC157: 196 | BD157: 0 | BE157: 1590.81 | BF157: 1590.812001 | BG157: -0.002000736297 | BH157: 0 | BI157: 0 | BJ157: 0 | BK157: 740874.22 | BL157: 740874.2186 | BM157: 0.001446095179
A158: 2629 | B158: Holywell Primary School Upchurch | C158: 717477.25 | D158: 717477.2453 | E158: 0.004741671146 | F158: 0 | G158: 0 | H158: 0 | I158: 717477.25 | J158: 717477.2453 | K158: 0.004741671146 | L158: 5106.34 | M158: 5106.34 | N158: 0 | O158: 712370.91 | P158: 712370.9053 | Q158: 0.004741671146 | R158: 5106.34 | S158: 5106.34 | T158: 0 | U158: 0 | V158: 0 | W158: 0 | X158: 0 | Y158: 0 | Z158: 0 | AA158: 703100.15 | AB158: 703100.1467 | AC158: 0.003294122405 | AD158: 41850.62 | AE158: 41850.61714 | AF158: 0.002863637645 | AG158: 4744.48 | AH158: 4744.481486 | AI158: -0.00148590913 | AJ158: 8370.12 | AK158: 8370.123427 | AL158: -0.003427272472 | AM158: 0 | AN158: 0 | AO158: 0 | AQ158: 0 | AR158: 0 | AT158: 0 | AU158: 0 | AW158: 0 | AX158: 0 | AY158: 0 | AZ158: 0 | BA158: 0 | BB158: 199 | BC158: 199 | BD158: 0 | BE158: 1590.81 | BF158: 1590.812001 | BG158: -0.002000736297 | BH158: 0 | BI158: 0 | BJ158: 0 | BK158: 717477.25 | BL158: 717477.2453 | BM158: 0.004741671146
A159: 2632 | B159: Sevenoaks Primary School | C159: 1582118.99 | D159: 1582118.992 | E159: -0.001823826693 | F159: 31958.18 | G159: 31958.18197 | H159: -0.001967037031 | I159: 1614077.17 | J159: 1614077.174 | K159: -0.00379086379 | L159: 12465.61 | M159: 12465.60561 | N159: 0.004392250319 | O159: 1601611.57 | P159: 1601611.568 | Q159: 0.001816886012 | R159: 12465.61 | S159: 12465.60561 | T159: 0.004392250319 | U159: 0 | V159: 0 | W159: 0 | X159: 31958.18 | Y159: 31958.18197 | Z159: -0.001967037031 | AA159: 1614077.17 | AB159: 1614077.174 | AC159: -0.00379086379 | AD159: 110513.74 | AE159: 110513.7364 | AF159: 0.003636053763 | AG159: 2684.59 | AH159: 2684.587909 | AI159: 0.002090918387 | AJ159: 22102.75 | AK159: 22102.74727 | AL159: 0.002727210751 | AM159: 0 | AN159: 0 | AO159: 0 | AQ159: 0 | AR159: 0 | AT159: 0 | AU159: 0 | AW159: 0 | AX159: 0 | AY159: 0 | AZ159: 0 | BA159: 0 | BB159: 478 | BC159: 478 | BD159: 0 | BE159: 1590.81 | BF159: 1590.812001 | BG159: -0.002000736297 | BH159: 31958.18 | BI159: 31958.18197 | BJ159: -0.001967037031 | BK159: 1614077.17 | BL159: 1614077.174 | BM159: -0.00379086379
A160: 2636 | B160: Edenbridge Primary School | C160: 1264019.36 | D160: 1264019.359 | E160: 0.001419947715 | F160: 0 | G160: 0 | H160: 0 | I160: 1264019.36 | J160: 1264019.359 | K160: 0.001419947715 | L160: 8605.96 | M160: 8605.96203 | N160: -0.002030454802 | O160: 1255413.4 | P160: 1255413.397 | Q160: 0.003450402291 | R160: 8605.96 | S160: 8605.96203 | T160: -0.002030454802 | U160: 4.82 | V160: 4.82 | W160: 0 | X160: 0 | Y160: 0 | Z160: 0 | AA160: 1262128.66 | AB160: 1262128.66 | AC160: 4.708743654e-05 | AD160: 169055.48 | AE160: 169055.4794 | AF160: 0.0006269604492 | AG160: 928.34 | AH160: 928.3356188 | AI160: 0.004381191186 | AJ160: 33811.1 | AK160: 33811.09587 | AL160: 0.004125392086 | AM160: 0 | AN160: 0 | AO160: 0 | AQ160: 0 | AR160: 0 | AT160: 0 | AU160: 0 | AW160: 0 | AX160: 0 | AY160: 0 | AZ160: 0 | BA160: 0 | BB160: 330 | BC160: 330 | BD160: 0 | BE160: 1590.81 | BF160: 1590.812001 | BG160: -0.002000736297 | BH160: 0 | BI160: 0 | BJ160: 0 | BK160: 1264019.36 | BL160: 1264019.359 | BM160: 0.001419947715
A161: 2643 | B161: Swalecliffe Community Primary School | C161: 2086165.97 | D161: 2086165.969 | E161: 0.0007971797604 | F161: 12200.84 | G161: 12200.8432 | H161: -0.00319743514 | I161: 2098366.81 | J161: 2098366.812 | K161: -0.002400255296 | L161: 16576.36 | M161: 16576.36 | N161: 0 | O161: 2081790.45 | P161: 2081790.452 | Q161: -0.002400255296 | R161: 16576.36 | S161: 16576.36 | T161: 0 | U161: 0 | V161: 0 | W161: 0 | X161: 12200.84 | Y161: 12200.8432 | Z161: -0.00319743514 | AA161: 2098366.81 | AB161: 2098366.812 | AC161: -0.002400255296 | AD161: 148957.79 | AE161: 148957.7911 | AF161: -0.001057991554 | AG161: 1531.27 | AH161: 1531.266268 | AI161: 0.003731739747 | AJ161: 29791.56 | AK161: 29791.55821 | AL161: 0.001788401689 | AM161: 0 | AN161: 0 | AO161: 0 | AQ161: 0 | AR161: 0 | AT161: 0 | AU161: 0 | AW161: 0 | AX161: 0 | AY161: 0 | AZ161: 0 | BA161: 0 | BB161: 646 | BC161: 646 | BD161: 0 | BE161: 1590.81 | BF161: 1590.812001 | BG161: -0.002000736297 | BH161: 12200.84 | BI161: 12200.8432 | BJ161: -0.00319743514 | BK161: 2098366.81 | BL161: 2098366.812 | BM161: -0.002400255296
A162: 2645 | B162: Lydd Primary School | C162: 845795.52 | D162: 845795.5186 | E162: 0.001449711737 | F162: 0 | G162: 0 | H162: 0 | I162: 845795.52 | J162: 845795.5186 | K162: 0.001449711737 | L162: 5132 | M162: 5132 | N162: 0 | O162: 840663.52 | P162: 840663.5186 | Q162: 0.001449711737 | R162: 5132 | S162: 5132 | T162: 0 | U162: 4.85 | V162: 4.85 | W162: 0 | X162: 0 | Y162: 0 | Z162: 0 | AA162: 819674.34 | AB162: 819674.3446 | AC162: -0.004561730544 | AD162: 144113.33 | AE162: 144113.3329 | AF162: -0.002905779751 | AG162: 1676.6 | AH162: 1676.600013 | AI162: -1.282660787e-05 | AJ162: 28822.67 | AK162: 28822.66658 | AL162: 0.003418844051 | AM162: 0 | AN162: 0 | AO162: 0 | AQ162: 0 | AR162: 0 | AT162: 0 | AU162: 0 | AW162: 0 | AX162: 0 | AY162: 0 | AZ162: 0 | BA162: 0 | BB162: 200 | BC162: 200 | BD162: 0 | BE162: 1590.81 | BF162: 1590.812001 | BG162: -0.002000736297 | BH162: 0 | BI162: 0 | BJ162: 0 | BK162: 845795.52 | BL162: 845795.5186 | BM162: 0.001449711737
A163: 2648 | B163: Aylesham Primary School | C163: 758217.43 | D163: 758217.426 | E163: 0.003976788954 | F163: 83812.99 | G163: 83812.9888 | H163: 0.001202812899 | I163: 842030.41 | J163: 842030.4148 | K163: -0.004820398171 | L163: 4875.4 | M163: 4875.4 | N163: 0 | O163: 837155.01 | P163: 837155.0148 | Q163: -0.004820398171 | R163: 4875.4 | S163: 4875.4 | T163: 0 | U163: 0 | V163: 0 | W163: 0 | X163: 83812.99 | Y163: 83812.9888 | Z163: 0.001202812899 | AA163: 842030.41 | AB163: 842030.4148 | AC163: -0.004820398171 | AD163: 90064.8 | AE163: 90064.80085 | AF163: -0.0008544671146 | AG163: 3298.06 | AH163: 3298.055974 | AI163: 0.004025634013 | AJ163: 18012.96 | AK163: 18012.96017 | AL163: -0.0001708934251 | AM163: 0 | AN163: 0 | AO163: 0 | AQ163: 0 | AR163: 0 | AT163: 0 | AU163: 0 | AW163: 0 | AX163: 0 | AY163: 0 | AZ163: 0 | BA163: 0 | BB163: 190 | BC163: 190 | BD163: 0 | BE163: 1590.81 | BF163: 1590.812001 | BG163: -0.002000736297 | BH163: 83812.99 | BI163: 83812.9888 | BJ163: 0.001202812899 | BK163: 842030.41 | BL163: 842030.4148 | BM163: -0.004820398171
A164: 2650 | B164: Dymchurch Primary School | C164: 708763.24 | D164: 708763.2395 | E164: 0.000475837267 | F164: 0 | G164: 0 | H164: 0 | I164: 708763.24 | J164: 708763.2395 | K164: 0.000475837267 | L164: 4310.88 | M164: 4310.88 | N164: 0 | O164: 704452.36 | P164: 704452.3595 | Q164: 0.000475837267 | R164: 4310.88 | S164: 4310.88 | T164: 0 | U164: 0 | V164: 0 | W164: 0 | X164: 0 | Y164: 0 | Z164: 0 | AA164: 686796.76 | AB164: 686796.7577 | AC164: 0.002337411977 | AD164: 98898.84 | AE164: 98898.84426 | AF164: -0.004258690344 | AG164: 3033.03 | AH164: 3033.034672 | AI164: -0.00467223929 | AJ164: 19779.77 | AK164: 19779.76885 | AL164: 0.001148261934 | AM164: 0 | AN164: 0 | AO164: 0 | AQ164: 0 | AR164: 0 | AT164: 0 | AU164: 0 | AW164: 0 | AX164: 0 | AY164: 0 | AZ164: 0 | BA164: 0 | BB164: 168 | BC164: 168 | BD164: 0 | BE164: 1590.81 | BF164: 1590.812001 | BG164: -0.002000736297 | BH164: 0 | BI164: 0 | BJ164: 0 | BK164: 708763.24 | BL164: 708763.2395 | BM164: 0.000475837267
A165: 2651 | B165: Broadwater Primary School | C165: 592593.77 | D165: 592593.7658 | E165: 0.004206238315 | F165: 21195.46 | G165: 21195.46488 | H165: -0.004876916493 | I165: 613789.23 | J165: 613789.2307 | K165: -0.0006706782151 | L165: 3361.46 | M165: 3361.46 | N165: 0 | O165: 610427.77 | P165: 610427.7707 | Q165: -0.0006706782151 | R165: 3361.46 | S165: 3361.46 | T165: 0 | U165: 0 | V165: 0 | W165: 0 | X165: 21195.46 | Y165: 21195.46488 | Z165: -0.004876916493 | AA165: 613789.23 | AB165: 613789.2307 | AC165: -0.0006706782151 | AD165: 105837.93 | AE165: 105837.9331 | AF165: -0.003102636838 | AG165: 2824.86 | AH165: 2824.862007 | AI165: -0.002006920895 | AJ165: 21167.59 | AK165: 21167.58662 | AL165: 0.003379472633 | AM165: 0 | AN165: 0 | AO165: 0 | AQ165: 0 | AR165: 0 | AT165: 0 | AU165: 0 | AW165: 0 | AX165: 0 | AY165: 0 | AZ165: 0 | BA165: 0 | BB165: 131 | BC165: 131 | BD165: 0 | BE165: 1590.81 | BF165: 1590.812001 | BG165: -0.002000736297 | BH165: 21195.46 | BI165: 21195.46488 | BJ165: -0.004876916493 | BK165: 613789.23 | BL165: 613789.2307 | BM165: -0.0006706782151
A166: 2653 | B166: West Borough Primary School | C166: 1351401.42 | D166: 1351401.423 | E166: -0.003360524541 | F166: 95066.65 | G166: 95066.65485 | H166: -0.004845397692 | I166: 1446468.08 | J166: 1446468.078 | K166: 0.001794077922 | L166: 9673.82 | M166: 9673.82 | N166: 0 | O166: 1436794.26 | P166: 1436794.258 | Q166: 0.001794077922 | R166: 9673.82 | S166: 9673.82 | T166: 0 | U166: 4.8 | V166: 4.8 | W166: 0 | X166: 95066.65 | Y166: 95066.65485 | Z166: -0.004845397692 | AA166: 1446468.08 | AB166: 1446468.078 | AC166: 0.001794077922 | AD166: 142663.32 | AE166: 142663.3244 | AF166: -0.004442373785 | AG166: 1720.1 | AH166: 1720.100267 | AI166: -0.0002667287868 | AJ166: 28532.66 | AK166: 28532.66489 | AL166: -0.004888474759 | AM166: 0 | AN166: 0 | AO166: 0 | AQ166: 0 | AR166: 0 | AT166: 0 | AU166: 0 | AW166: 0 | AX166: 0 | AY166: 0 | AZ166: 0 | BA166: 0 | BB166: 377 | BC166: 377 | BD166: 0 | BE166: 1590.81 | BF166: 1590.812001 | BG166: -0.002000736297 | BH166: 95066.65 | BI166: 95066.65485 | BJ166: -0.004845397692 | BK166: 1446468.08 | BL166: 1446468.078 | BM166: 0.001794077922
A167: 2657 | B167: Temple Hill Community Primary and Nursery School | C167: 1929501.16 | D167: 1929501.155 | E167: 0.004561775597 | F167: 54031.77 | G167: 54031.77516 | H167: -0.005155736137 | I167: 1983532.93 | J167: 1983532.931 | K167: -0.000593960518 | L167: 12230.9 | M167: 12230.89755 | N167: 0.002447626359 | O167: 1971302.03 | P167: 1971302.033 | Q167: -0.003041586839 | R167: 12230.9 | S167: 12230.89755 | T167: 0.002447626359 | U167: 5.16 | V167: 5.16 | W167: 0 | X167: 54031.77 | Y167: 54031.77516 | Z167: -0.005155736137 | AA167: 1983532.93 | AB167: 1983532.931 | AC167: -0.000593960518 | AD167: 433389.23 | AE167: 433389.2253 | AF167: 0.004682294442 | AG167: 0 | AH167: 0 | AI167: 0 | AJ167: 86677.85 | AK167: 86677.84506 | AL167: 0.004936458892 | AM167: 0 | AN167: 0 | AO167: 0 | AQ167: 0 | AR167: 0 | AT167: 0 | AU167: 0 | AW167: 0 | AX167: 0 | AY167: 0 | AZ167: 0 | BA167: 0 | BB167: 469 | BC167: 469 | BD167: 0 | BE167: 1590.81 | BF167: 1590.812001 | BG167: -0.002000736297 | BH167: 54031.77 | BI167: 54031.77516 | BJ167: -0.005155736137 | BK167: 1983532.93 | BL167: 1983532.931 | BM167: -0.000593960518
A168: 2658 | B168: Westcourt School | C168: 915341.96 | D168: 915341.9589 | E168: 0.001141953282 | F168: 103059.75 | G168: 103059.748 | H168: 0.002031560405 | I168: 1018401.71 | J168: 1018401.707 | K168: 0.003173513687 | L168: 5260.3 | M168: 5260.3 | N168: 0 | O168: 1013141.41 | P168: 1013141.407 | Q168: 0.003173513804 | R168: 5260.3 | S168: 5260.3 | T168: 0 | U168: 5.08 | V168: 5.08 | W168: 0 | X168: 103059.75 | Y168: 103059.748 | Z168: 0.002031560405 | AA168: 1018401.71 | AB168: 1018401.707 | AC168: 0.003173513687 | AD168: 196067.4 | AE168: 196067.3964 | AF168: 0.003622295655 | AG168: 117.98 | AH168: 117.9781087 | AI168: 0.00189133113 | AJ168: 39213.48 | AK168: 39213.47928 | AL168: 0.0007244591325 | AM168: 0 | AN168: 0 | AO168: 0 | AQ168: 0 | AR168: 0 | AT168: 0 | AU168: 0 | AW168: 0 | AX168: 0 | AY168: 0 | AZ168: 0 | BA168: 0 | BB168: 205 | BC168: 205 | BD168: 0 | BE168: 1590.81 | BF168: 1590.812001 | BG168: -0.002000736297 | BH168: 103059.75 | BI168: 103059.748 | BJ168: 0.002031560405 | BK168: 1018401.71 | BL168: 1018401.707 | BM168: 0.003173513687
A169: 2659 | B169: Sandown School | C169: 1227478.68 | D169: 1227478.684 | E169: -0.003735441016 | F169: 22163.73 | G169: 22163.72952 | H169: 0.0004752064306 | I169: 1249642.41 | J169: 1249642.413 | K169: -0.003260234604 | L169: 8827.04 | M169: 8827.04 | N169: 0 | O169: 1240815.37 | P169: 1240815.373 | Q169: -0.003260234371 | R169: 8827.04 | S169: 8827.04 | T169: 0 | U169: 0 | V169: 0 | W169: 0 | X169: 22163.73 | Y169: 22163.72952 | Z169: 0.0004752064306 | AA169: 1249642.41 | AB169: 1249642.413 | AC169: -0.003260234604 | AD169: 123549.39 | AE169: 123549.3937 | AF169: -0.003723915215 | AG169: 2293.52 | AH169: 2293.518188 | AI169: 0.001811717456 | AJ169: 24709.88 | AK169: 24709.87874 | AL169: 0.001255216957 | AM169: 0 | AN169: 0 | AO169: 0 | AQ169: 0 | AR169: 0 | AT169: 0 | AU169: 0 | AW169: 0 | AX169: 0 | AY169: 0 | AZ169: 0 | BA169: 0 | BB169: 344 | BC169: 344 | BD169: 0 | BE169: 1590.81 | BF169: 1590.812001 | BG169: -0.002000736297 | BH169: 22163.73 | BI169: 22163.72952 | BJ169: 0.0004752064306 | BK169: 1249642.41 | BL169: 1249642.413 | BM169: -0.003260234604
